Workbook

Sheet RESUMO MODULO TOTAL
A1: ='RESUMO MODULO MINIMO'!A1 -> EXECUÇÃO DE SERVIÇOS DE IMPLANTAÇÃO DE PAVIMENTAÇÃO EM BLOCO DE CONCRETO INTERTRAVADO, EM VIAS URBANAS E RURAIS DE MUNÍCIPIOS DIVERSOS INSERIDOS NA ÁREA DE ATUAÇÃO DA CODEVASF, NO ESTADO DO CEARÁ
A5: =A1 -> EXECUÇÃO DE SERVIÇOS DE IMPLANTAÇÃO DE PAVIMENTAÇÃO EM BLOCO DE CONCRETO INTERTRAVADO, EM VIAS URBANAS E RURAIS DE MUNÍCIPIOS DIVERSOS INSERIDOS NA ÁREA DE ATUAÇÃO DA CODEVASF, NO ESTADO DO CEARÁ
A6: ITEM | B6: ORIGEM COMPOSIÇÃO | C6: CÓDIGO COMPOSIÇÃO | D6: DISCRIMINAÇÃO DOS SERVIÇOS | H6: BDI %: | I6: =BDI!E25 -> 0.2158381752 | J6: R$/m² | K6: =L33/I15 -> 109.2053526 | L6: PERCENTUAL DE RISCO
H7: Total de m² | I7: Encargos Sociais: | J7: Horista | K7: Mensalista | L7: 0.0107
H8: =I15 -> 560000 | J8: ='ENC. SOCIAIS'!$E$51 -> 112.76 | K8: ='ENC. SOCIAIS'!$F$51 -> 71.07
H9: UND | I9: QTDE. | J9: PREÇO UNITÁRIO COM BDI COM RISCO 0 (R$) | K9: PREÇO TOTAL COM BDI RISCO 0 (R$) | L9: PREÇO TOTAL COM CONTINGÊNCIA (R$) | U9: PREÇO TOTAL (R$)
D10: MOBILIZAÇÃO | R10: Índices de reajustamento
A11: 1 | B11: Codevasf | C11: Composição Própria | D11: Implantação da Obra | H11: modulo | I11: ='MC MODULO'!N17 -> 80 | J11: ='SERVIÇOS PRELI'!I15 -> 1257.99 | K11: =ROUND(I11*J11,2) -> 100639.2 | L11: =K11*(1+$L$7) -> 101716.0394 | P11: INCC | Q11: =SUMIF(P11:P32,"INCC",L11:L32) -> 1937033.344 | R11: =Q11/$Q$15 -> 0.03167416276 | S11: INCC | U11: 101458.4
A12: 2 | B12: Codevasf | C12: Composição Própria | D12: Administração da Obra | H12: modulo | I12: ='MC MODULO'!N22 -> 80 | J12: ='SERVIÇOS PRELI'!$I$24 -> 5861.84 | K12: =ROUND(I12*J12,2) -> 468947.2 | L12: =K12*(1+$L$7) -> 473964.935 | P12: INCC | Q12: =SUMIF(P11:P32,"T",L11:L32) -> 713149.92 | R12: =Q12/$Q$15 -> 0.01166135148 | S12: T | U12: 472761.6
A13: 3 | B13: Codevasf | C13: Composição Própria | D13: Placa de Obra em Chapa de Aço Galvanizado | H13: und | I13: ='MC MODULO'!I8 -> 80 | J13: ='SERVIÇOS PRELI'!I19 -> 404.49 | K13: 32359.2 | L13: 32705.44344 | P13: INCC | Q13: =SUMIF(P11:P32,"P",L11:L32) -> 53873382.53 | R13: =Q13/$Q$15 -> 0.8809318086 | S13: P | U13: 32622.4
D14: TERRAPLANAGEM | Q14: =SUMIF(P11:P32,"D",L11:L32) -> 4631431.68 | R14: =Q14/$Q$15 -> 0.07573267716 | S14: D
A15: 4 | B15: Codevasf | C15: Composição Própria | D15: serviços topográficos para pavimentação, inclusive notas de serviços, acompanhamento e greide | H15: m² | I15: ='MC MODULO'!P29 -> 560000 | J15: ='CPU CODEVASF'!H90 -> 0.47 | K15: =ROUND(I15*J15,2) -> 263200 | L15: =K15*(1+$L$7) -> 266016.24 | P15: T | Q15: =SUM(Q11:Q14) -> 61154997.47 | R15: =SUM(R11:R14) -> 1 | U15: 268800
A16: 5 | B16: SICRO | C16: 5502114 | D16: Escavação, carga e transporte de material de 1ª categoria - DMT de 1.000 a 1.200 m - caminho de serviço em leito natural - com escavadeira e caminhão basculante de 14 m³ | H16: m³ | I16: ='MC MODULO'!R34 -> 56000 | J16: =CPU_SICRO!I712 -> 6.39 | K16: 357840 | L16: 361668.888 | P16: T | U16: 361200
A17: 6 | B17: SICRO | C17: 4413942 | D17: Espalhamento de material em bota-fora | H17: m³ | I17: ='MC MODULO'!R41 -> 56000 | J17: =CPU_SICRO!I744 -> 1.51 | K17: 84560 | L17: 85464.792 | P17: T | U17: 85120
D18: PAVIMENTAÇÃO | N18: 0.4
A19: 7 | B19: SINAPI | C19: 92394 | D19: Execução de Pavimento em Piso Intertravado, com Bloco Sextavado de 25 X 25 cm, espessura 8 cm. AF_12/2015 | H19: m² | I19: ='MC MODULO'!P49 -> 560000 | J19: ='CPU SINAPI'!G17 -> 65.13 | K19: =ROUND(I19*J19,2) -> 36472800 | L19: =K19*(1+$L$7) -> 36863058.96 | M19: =I19*N18 -> 224000 | P19: P | U19: 36769600
A20: 8 | B20: SICRO | C20: 4011276 | D20: Base ou sub-base de brita graduada com brita comercial | H20: m³ | I20: ='MC MODULO'!R55 -> 84000 | J20: =CPU_SICRO!$I$35 -> 193.96 | K20: 16292640 | L20: 16466971.25 | M20: =I20*N18 -> 33600 | P20: P | U20: 16425360
A21: 9 | B21: SICRO | C21: 4011209 | D21: Regularização do subleito | H21: m² | I21: ='MC MODULO'!R61 -> 560000 | J21: =CPU_SICRO!$I$139 -> 0.96 | K21: 537600 | L21: 543352.32 | P21: P | U21: 543200
D22: SINALIZAÇÃO
A23: 10 | B23: SICRO | C23: 5213440 | D23: Fornecimento e implantação de placa de regulamentação em aço D = 0,60 m - película retrorrefletiva tipo I + SI | H23: und | I23: ='MC MODULO'!R69 -> 40 | J23: =CPU_SICRO!$I$173 -> 243.56 | K23: =ROUND(I23*J23,2) -> 9742.4 | L23: =K23*(1+$L$7) -> 9846.64368 | P23: INCC | U23: 9822
A24: 11 | B24: SICRO | C24: 5213863 | D24: Fornecimento e implantação de suporte metálico galvanizado para placa de regulamentação - D = 0,60 m | H24: und | I24: ='MC MODULO'!R75 -> 40 | J24: =CPU_SICRO!$I$398 -> 318.75 | K24: 12750 | L24: 12886.425 | P24: INCC | U24: 12853.6
D25: DRENAGEM
A26: 12 | B26: SICRO | C26: 2003373 | D26: Meio fio de concreto - MFC 03 - areia e brita comerciais - fôrma de madeira | H26: m | I26: ='MC MODULO'!R82 -> 160000 | J26: =CPU_SICRO!I638 -> 28.64 | K26: =ROUND(I26*J26,2) -> 4582400 | L26: =K26*(1+$L$7) -> 4631431.68 | M26: =I26*N18 -> 64000 | P26: D | U26: 4619200
D27: LIMPEZA GERAL
A28: 13 | B28: Codevasf | C28: Composição Própria | D28: Limpeza Geral | H28: m² | I28: ='MC MODULO'!R90 -> 560000 | J28: ='CPU CODEVASF'!$H$66 -> 1 | K28: =ROUND(I28*J28,2) -> 560000 | L28: =K28*(1+$L$7) -> 565992 | P28: INCC | U28: 565600
D29: SERVIÇOS COMPLEMENTARES
A30: 14 | B30: Codevasf | C30: Composição Própria | D30: Conserto de quebra no ramal na rua sem pavimento com fornecimento de material hidráulico | H30: m | I30: ='MC MODULO'!R97 -> 8000 | J30: ='CPU CODEVASF'!H77 -> 16.73 | K30: =ROUND(I30*J30,2) -> 133840 | L30: =K30*(1+$L$7) -> 135272.088 | P30: INCC | U30: 134960
D31: PROJETO EXECUTIVO
A32: 15 | B32: Codevasf | C32: Composição Própria | D32: Projeto Executivo | H32: km | I32: ='MC MODULO'!R104 -> 80 | J32: ='Projeto Executivo'!G32 -> 7478.106368 | K32: =ROUND(I32*J32,2) -> 598248.51 | L32: =K32*(1+$L$7) -> 604649.7691 | P32: INCC | U32: 598248.51
A33: VALOR TOTAL DO SRP | K33: =SUM(K11:K32) -> 60507566.51 | L33: =SUM(L11:L32) -> 61154997.47 | U33: =SUM(U11:U32) -> 61000806.51
I35: Sinapi 09/2021
I36: Orse 08/2021
I37: Sicro 04/2021

Sheet CPU SINAPI
A1: SINAPI - SISTEMA NACIONAL DE PESQUISA DE CUSTOS E ÍNDICES DA CONSTRUÇÃO CIVIL | F1: =CPU_SICRO!#REF! -> 
A2: PCI.818.01 - COMPOSIÇÕES ATIVAS ANALÍTICAS COM CUSTO | C2: ABRANGENCIA: NACIONAL DATA DE PREÇO : 9/2021 DATA REFERENCIA TECNICA: 14/10/2021
A3: * Composições constantes nos Relatórios publicados de Composições Analíticas para as 27 Unidades da Federação
A4: MACROCLASSE.CLASSE.GRUPO | B4: CÓDIGOS | C4: DESCRIÇÃO | D4: UNIDADE | E4: COEFICIENTE | F4: CADERNO TÉCNICO | G4: PREÇO UNITÁRIO
A5: 03.PAVI.INTE.004/001 | B5: 92394 | C5: EXECUÇÃO DE PAVIMENTO EM PISO INTERTRAVADO, COM BLOCO SEXTAVADO DE 25 X 25 CM, ESPESSURA 8 CM. AF_12/2015 | D5: M2 | F5: Pavimento Intertravado | G5: =G17 -> 65.13
A6: INSUMO | B6: 370 | C6: AREIA MEDIA - POSTO JAZIDA/FORNECEDOR (RETIRADO NA JAZIDA, SEM TRANSPORTE) | D6: M3 | E6: 0,0568000 | F6: 90 | G6: =ROUND(E6*F6,2) -> 5.11
A7: INSUMO | B7: 712 | C7: BLOQUETE/PISO INTERTRAVADO DE CONCRETO - MODELO SEXTAVADO / HEXAGONAL, 25 CM X 25 CM, E = 8 CM, RESISTENCIA DE 35 MPA (NBR 9781), COR NATURAL | D7: M2 | E7: 1,0174000 | F7: 39.67 | G7: =ROUND(E7*F7,2) -> 40.36
A8: INSUMO | B8: 4741 | C8: PO DE PEDRA (POSTO PEDREIRA/FORNECEDOR, SEM FRETE) | D8: M3 | E8: 0,0064000 | F8: =VLOOKUP($B8,'Excluido INSUMOS SINAPI'!$A$8:$E$5286,5,0) -> 73,10 | G8: =ROUND(E8*F8,2) -> 0.47
A9: COMPOSICAO | B9: 88260 | C9: CALCETEIRO COM ENCARGOS COMPLEMENTARES | D9: H | E9: 0,1853000 | F9: 22.12 | G9: 4.1
A10: COMPOSICAO | B10: 88316 | C10: SERVENTE COM ENCARGOS COMPLEMENTARES | D10: H | E10: 0,1853000 | F10: 16.44 | G10: 3.05
A11: COMPOSICAO | B11: 91277 | C11: PLACA VIBRATÓRIA REVERSÍVEL COM MOTOR 4 TEMPOS A GASOLINA, FORÇA CENTRÍFUGA DE 25 KN (2500 KGF), POTÊNCIA 5,5 CV - CHP DIURNO. AF_08/2015 | D11: CHP | E11: 0,0055000 | F11: 9.63 | G11: 0.05
A12: COMPOSICAO | B12: 91278 | C12: PLACA VIBRATÓRIA REVERSÍVEL COM MOTOR 4 TEMPOS A GASOLINA, FORÇA CENTRÍFUGA DE 25 KN (2500 KGF), POTÊNCIA 5,5 CV - CHI DIURNO. AF_08/2015 | D12: CHI | E12: 0,0872000 | F12: 0.54 | G12: 0.05
A13: COMPOSICAO | B13: 91283 | C13: CORTADORA DE PISO COM MOTOR 4 TEMPOS A GASOLINA, POTÊNCIA DE 13 HP, COM DISCO DE CORTE DIAMANTADO SEGMENTADO PARA CONCRETO, DIÂMETRO DE 350 MM, FURO DE 1" (14 X 1") - CHP DIURNO. AF_08/2015 | D13: CHP | E13: 0,0135000 | F13: 22.38 | G13: 0.3
A14: COMPOSICAO | B14: 91285 | C14: CORTADORA DE PISO COM MOTOR 4 TEMPOS A GASOLINA, POTÊNCIA DE 13 HP, COM DISCO DE CORTE DIAMANTADO SEGMENTADO PARA CONCRETO, DIÂMETRO DE 350 MM, FURO DE 1" (14 X 1") - CHI DIURNO. AF_08/2015 | D14: CHI | E14: 0,0792000 | F14: 0.98 | G14: 0.08
D15: Sub total: | G15: =SUM(G6:G14) -> 53.57
D16: BDI | F16: =BDI!E25 -> 0.2158381752 | G16: =ROUND(G15*F16,2) -> 11.56
D17: Total Serviços: | G17: =G15+G16 -> 65.13

Sheet CPU_SICRO
A2: CGCIT | I2: DNIT
A3: SISTEMA DE CUSTOS REFERENCIAIS DE OBRAS - SICRO
A4: Custo Unitário de Referência | G4: Produção da equipe | H4: 113.18 | I4: m³
A5: 4011276 | B5: Base ou sub-base de brita graduada com brita comercial | H5: Valores em reais (R$)
A6: A - EQUIPAMENTOS | C6: Quantidade | D6: Utilização | F6: Custo Horário | I6: Custo
D7: Operativa | E7: Improdutiva | F7: Produtivo | G7: Improdutivo | I7: Horário Total
A8: E9571 | B8: Caminhão tanque com capacidade de 10.000 l - 188 kW | C8: 1 | D8: 0.34 | E8: 0.66 | F8: 239.5332 | G8: 60.9683 | I8: =ROUND((C8*(D8*F8))+(C8*(E8*G8)),4) -> 121.6804
A9: E9514 | B9: Distribuidor de agregados autopropelido - 130 kW | C9: 1 | D9: 1 | E9: 0 | F9: 208.8643 | G9: 75.0945 | I9: 208.8643
A10: E9762 | B10: Rolo compactador de pneus autopropelido de 27 t - 85 kW | C10: 1 | D10: 0.65 | E10: 0.35 | F10: 158.7539 | G10: 74.3931 | I10: 129.2276
A11: E9530 | B11: Rolo compactador liso autopropelido vibratório de 11 t - 97 kW | C11: 1 | D11: 0.52 | E11: 0.48 | F11: 155.7483 | G11: 63.1745 | I11: 111.3129
G12: Custo horário total de equipamentos | I12: =SUM(I8:I11) -> 571.0852
A13: B - MÃO DE OBRA | C13: Quantidade | D13: Unidade | E13: Custo Horário | G13: Custo Horário Total
A14: P9824 | B14: Servente | C14: 1 | D14: h | E14: 16.2666 | I14: =ROUND(C14*E14,4) -> 16.2666
C15: Custo horário total de mão de obra | H15: =SUM(I14) -> 16.2666
C16: Custo horário total de execução | I16: =SUM(H15,I12) -> 587.3518
C17: Custo unitário de execução | I17: =I16/H4 -> 5.189537021
G18: Custo do FIC | H18: 0.00453 | I18: =I17*H18 -> 0.0235086027
G19: Custo do FIT | I19: -
A20: C - MATERIAL | C20: Quantidade | D20: Unidade | E20: Preço Unitário | G20: Custo Unitário
C21: Custo unitário total de material
A22: D - ATIVIDADES AUXILIARES | C22: Quantidade | D22: Unidade | E22: Custo Unitário | G22: Custo Unitário
A23: 6416040 | B23: Usinagem de brita graduada com brita comercial em usina de 300 t/h | C23: 1 | D23: m³ | F23: =$I$77 -> 137.9719936 | I23: =ROUND(C23*F23,4) -> 137.972
C24: Custo total de atividades auxiliares | I24: =SUM(I23) -> 137.972
G25: Subtotal | I25: =SUM(I24,I17,I18,I19) -> 143.1850456
A26: E - TEMPO FIXO | C26: Código | D26: Quantidade | E26: Unidade | F26: Custo Unitário | H26: Custo Unitário
A27: 6416040 | B27: Usinagem de brita graduada com brita comercial em usina de 300 t/h - Caminhão basculante 10 m³ | C27: 5914652 | D27: 2.2 | E27: t | G27: 2.23 | I27: =ROUND(D27*G27,4) -> 4.906
C28: Custo unitário total de tempo fixo | I28: =SUM(I27) -> 4.906
A29: F - MOMENTO DE TRANSPORTE | C29: Quantidade | D29: Unidade | E29: DMT | I29: Custo Unitário
E30: LN | F30: RP | G30: P
A31: 6416040 | B31: Usinagem de brita graduada com brita comercial em usina de 300 t/h - Caminhão basculante 10 m³ | C31: 2.2 | D31: tkm | G31: 5914389 | H31: 0.52 | I31: =C31*H31*10 -> 11.44 | K31: 5914389
C32: Custo unitário total de transporte | I32: =SUM(I31) -> 11.44
E33: Custo unitário direto total | I33: =SUM(I32,I28,I25) -> 159.5310456
F34: BDI | G34: =BDI!E25 -> 0.2158381752 | I34: =ROUND(I33*G34,4) -> 34.4329
G35: Preço Unitário: | I35: =ROUND(SUM(I33,I34),2) -> 193.96
A36: Obs.
A38: CGCIT | I38: DNIT
A39: SISTEMA DE CUSTOS REFERENCIAIS DE OBRAS - SICRO
A40: Custo Unitário de Referência | G40: Produção da equipe | H40: 113.18 | I40: m³
A41: 6416040 | B41: Usinagem de brita graduada com brita comercial em usina de 300 t/h | H41: Valores em reais (R$)
A42: A - EQUIPAMENTOS | C42: Quantidade | D42: Utilização | F42: Custo Horário | I42: Custo
D43: Operativa | E43: Improdutiva | F43: Produtivo | G43: Improdutivo | I43: Horário Total
A44: E9511 | B44: Carregadeira de pneus com capacidade de 3,40 m³ - 195 kW | C44: 2 | D44: 0.57 | E44: 0.43 | F44: 260.8057 | G44: 119.3198 | I44: =ROUND((C44*(D44*F44))+(C44*(E44*G44)),4) -> 399.9335
A45: E9779 | B45: Grupo gerador - 100/110 kVA | C45: 1 | D45: 1 | E45: 0 | F45: 71.0334 | G45: 4.5283 | I45: =ROUND((C45*(D45*F45))+(C45*(E45*G45)),4) -> 71.0334
A46: E9615 | B46: Usina misturadora de solos com capacidade de 300 t/h | C46: 1 | D46: 1 | E46: 0 | F46: 132.0027 | G46: 87.7017 | I46: =ROUND((C46*(D46*F46))+(C46*(E46*G46)),4) -> 132.0027
G47: Custo horário total de equipamentos | I47: =SUM(I44:I46) -> 602.9696
A48: B - MÃO DE OBRA | C48: Quantidade | D48: Unidade | E48: Custo Horário | G48: Custo Horário Total
A49: P9824 | B49: Servente | C49: 3 | D49: h | E49: 16.2666 | I49: =ROUND(C49*E49,4) -> 48.7998
C50: Custo horário total de mão de obra | H50: =SUM(I49) -> 48.7998
C51: Custo horário total de execução | I51: =SUM(H50,I47) -> 651.7694
C52: Custo unitário de execução | I52: =I51/H40 -> 5.75869765
G53: Custo do FIC
G54: Custo do FIT | I54: -
A55: C - MATERIAL | C55: Quantidade | D55: Unidade | E55: Preço Unitário | G55: Custo Unitário
A56: M0005 | B56: Brita 0 | C56: 0.53076 | D56: m³ | F56: 96.5853 | I56: =ROUND(C56*F56,4) -> 51.2636
A57: M0191 | B57: Brita 1 | C57: 0.147 | D57: m³ | F57: 93.9769 | I57: 13.8146
A58: M0192 | B58: Brita 2 | C58: 0.2606 | D58: m³ | F58: 93.4287 | I58: 24.3475
A59: M1135 | B59: Pó de pedra | C59: 0.52829 | D59: m³ | F59: 54.5075 | I59: 28.7958
C60: Custo unitário total de material | I60: =SUM(I56:I59) -> 118.2215
A61: D - ATIVIDADES AUXILIARES | C61: Quantidade | D61: Unidade | E61: Custo Unitário | G61: Custo Unitário
C62: Custo total de atividades auxiliares
G63: Subtotal | I63: =SUM(I60,I52,I53,I54) -> 123.9801976
A64: E - TEMPO FIXO | C64: Código | D64: Quantidade | E64: Unidade | F64: Custo Unitário | H64: Custo Unitário
A65: M0005 | B65: Brita 0 - Caminhão basculante 10 m³ | C65: 5914647 | D65: 0.79614 | E65: t | G65: 1.16 | I65: =ROUND(D65*G65,4) -> 0.9235
A66: M0191 | B66: Brita 1 - Caminhão basculante 10 m³ | C66: 5914647 | D66: 0.2205 | E66: t | G66: 1.16 | I66: =ROUND(D66*G66,4) -> 0.2558
A67: M0192 | B67: Brita 2 - Caminhão basculante 10 m³ | C67: 5914647 | D67: 0.3909 | E67: t | G67: 1.16 | I67: 0.4534
A68: M1135 | B68: Pó de pedra - Caminhão basculante 10 m³ | C68: 5914647 | D68: 0.79244 | E68: t | G68: 1.16 | I68: 0.9192
C69: Custo unitário total de tempo fixo | I69: =SUM(I65:I68) -> 2.5519
A70: F - MOMENTO DE TRANSPORTE | C70: Quantidade | D70: Unidade | E70: DMT | I70: Custo Unitário
E71: LN | F71: RP | G71: P
A72: M0005 | B72: Brita 0 - Caminhão basculante 10 m³ | C72: 0.79614 | D72: tkm | G72: 5914389 | H72: 0.52 | I72: =C72*H72*10 -> 4.139928 | K72: 5914389
A73: M0191 | B73: Brita 1 - Caminhão basculante 10 m³ | C73: 0.2205 | D73: tkm | G73: 5914389 | H73: 0.52 | I73: =C73*H73*10 -> 1.1466 | K73: 5914389
A74: M0192 | B74: Brita 2 - Caminhão basculante 10 m³ | C74: 0.3909 | D74: tkm | G74: 5914389 | H74: 0.52 | I74: 2.03268 | K74: 5914389
A75: M1135 | B75: Pó de pedra - Caminhão basculante 10 m³ | C75: 0.79244 | D75: tkm | G75: 5914389 | H75: 0.52 | I75: 4.120688 | K75: 5914389
C76: Custo unitário total de transporte | I76: =SUM(I72:I75) -> 11.439896
E77: Custo unitário direto total | I77: =SUM(I76,I69,I63) -> 137.9719936
A78: Obs.
A80: CGCIT | I80: DNIT
A81: SISTEMA DE CUSTOS REFERENCIAIS DE OBRAS - SICRO
A82: Custo Unitário de Referência | G82: Produção da equipe | H82: 249 | I82: t
A83: 5914652 | B83: Carga, manobra e descarga de agregados ou solos em caminhão basculante de 10 m³ - carga em usina de solos de 300 t/h e descarga em distribuidor autopropelido | H83: Valores em reais (R$)
A84: A - EQUIPAMENTOS | C84: Quantidade | D84: Utilização | F84: Custo Horário | I84: Custo
D85: Operativa | E85: Improdutiva | F85: Produtivo | G85: Improdutivo | I85: Horário Total
A86: E9579 | B86: Caminhão basculante com capacidade de 10 m³ - 188 kW | C86: 3 | D86: 0.92 | E86: 0.08 | F86: =VLOOKUP($A86,'INSUMOS SICRO'!$B$1760:$I$2246,8,0) -> 149.7011 | G86: =VLOOKUP($A86,'INSUMOS SICRO'!$B$1760:$I$2246,7,0) -> 44.6139 | I86: =ROUND((C86*(D86*F86))+(C86*(E86*G86)),4) -> 423.8824
G87: Custo horário total de equipamentos | I87: =SUM(I86) -> 423.8824
A88: B - MÃO DE OBRA | C88: Quantidade | D88: Unidade | E88: Custo Horário | G88: Custo Horário Total
C89: Custo horário total de mão de obra | H89: -
C90: Custo horário total de execução | I90: =SUM(I87) -> 423.8824
C91: Custo unitário de execução | I91: =I90/H82 -> 1.702338956
G92: Custo do FIC | I92: -
G93: Custo do FIT | I93: -
A94: C - MATERIAL | C94: Quantidade | D94: Unidade | E94: Preço Unitário | G94: Custo Unitário
C95: Custo unitário total de material
A96: D - ATIVIDADES AUXILIARES | C96: Quantidade | D96: Unidade | E96: Custo Unitário | G96: Custo Unitário
C97: Custo total de atividades auxiliares
G98: Subtotal | I98: =SUM(I91) -> 1.702338956
A99: E - TEMPO FIXO | C99: Código | D99: Quantidade | E99: Unidade | F99: Custo Unitário | H99: Custo Unitário
C100: Custo unitário total de tempo fixo
A101: F - MOMENTO DE TRANSPORTE | C101: Quantidade | D101: Unidade | E101: DMT | I101: Custo Unitário
E102: LN | F102: RP | G102: P
C103: Custo unitário total de transporte | I103: -
E104: Custo unitário direto total | I104: =ROUND(SUM(I98),2) -> 1.7
A105: Obs.
A107: CGCIT | I107: DNIT
A108: SISTEMA DE CUSTOS REFERENCIAIS DE OBRAS - SICRO
A109: Custo Unitário de Referência | G109: Produção da equipe | H109: 1121.33 | I109: m²
A110: 4011209 | B110: Regularização do subleito | H110: Valores em reais (R$)
A111: A - EQUIPAMENTOS | C111: Quantidade | D111: Utilização | F111: Custo Horário | I111: Custo
D112: Operativa | E112: Improdutiva | F112: Produtivo | G112: Improdutivo | I112: Horário Total
A113: E9571 | B113: Caminhão tanque com capacidade de 10.000 l - 188 kW | C113: 2 | D113: 0.51 | E113: 0.49 | F113: 239.5332 | G113: 60.9683 | I113: =ROUND((C113*(D113*F113))+(C113*(E113*G113)),4) -> 304.0728
A114: E9518 | B114: Grade de 24 discos rebocável de 24" | C114: 1 | D114: 0.69 | E114: 0.31 | F114: 3.0436 | G114: 2.0599 | I114: 2.7387
A115: E9524 | B115: Motoniveladora - 93 kW | C115: 1 | D115: 0.71 | E115: 0.29 | F115: 187.8087 | G115: 78.311 | I115: 156.0544
A116: E9762 | B116: Rolo compactador de pneus autopropelido de 27 t - 85 kW | C116: 1 | D116: 0.96 | E116: 0.04 | F116: 158.7539 | G116: 74.3931 | I116: 155.3795
A117: E9685 | B117: Rolo compactador pé de carneiro vibratório autopropelido de 11,6 t - 82 kW | C117: 1 | D117: 1 | E117: 0 | F117: 156.7311 | G117: 68.859 | I117: 156.7311
A118: E9577 | B118: Trator agrícola - 77 kW | C118: 1 | D118: 0.69 | E118: 0.31 | F118: 100.1418 | G118: 34.6986 | I118: 79.8544
G119: Custo horário total de equipamentos | I119: =SUM(I113:I118) -> 854.8309
A120: B - MÃO DE OBRA | C120: Quantidade | D120: Unidade | E120: Custo Horário | G120: Custo Horário Total
A121: P9824 | B121: Servente | C121: 1 | D121: h | E121: 16.2666 | I121: =ROUND(C121*E121,4) -> 16.2666
C122: Custo horário total de mão de obra | H122: =SUM(I121) -> 16.2666
C123: Custo horário total de execução | I123: =SUM(H122,I119) -> 871.0975
C124: Custo unitário de execução | I124: =I123/H109 -> 0.7768431238
G125: Custo do FIC | H125: 0.0136 | I125: =I124*H125 -> 0.01056506648
G126: Custo do FIT | I126: -
A127: C - MATERIAL | C127: Quantidade | D127: Unidade | E127: Preço Unitário | G127: Custo Unitário
C128: Custo unitário total de material
A129: D - ATIVIDADES AUXILIARES | C129: Quantidade | D129: Unidade | E129: Custo Unitário | G129: Custo Unitário
C130: Custo total de atividades auxiliares
G131: Subtotal | I131: =SUM(I124,I125,I126) -> 0.7874081903
A132: E - TEMPO FIXO | C132: Código | D132: Quantidade | E132: Unidade | F132: Custo Unitário | H132: Custo Unitário
C133: Custo unitário total de tempo fixo
A134: F - MOMENTO DE TRANSPORTE | C134: Quantidade | D134: Unidade | E134: DMT | I134: Custo Unitário
E135: LN | F135: RP | G135: P
C136: Custo unitário total de transporte | I136: -
E137: Custo unitário direto total | I137: =SUM(I131) -> 0.7874081903
F138: BDI | G138: =BDI!E25 -> 0.2158381752 | I138: =ROUND(I137*G138,4) -> 0.17
G139: Preço Unitário: | I139: =ROUND(SUM(I137,I138),2) -> 0.96
A140: Obs.
A142: CGCIT | I142: DNIT
A143: SISTEMA DE CUSTOS REFERENCIAIS DE OBRAS - SICRO
A144: Custo Unitário de Referência | G144: Produção da equipe | H144: 3 | I144: un
A145: 5213440 | B145: Fornecimento e implantação de placa de regulamentação em aço D = 0,60 m - película retrorrefletiva tipo I + SI | H145: Valores em reais (R$)
A146: A - EQUIPAMENTOS | C146: Quantidade | D146: Utilização | F146: Custo Horário | I146: Custo
D147: Operativa | E147: Improdutiva | F147: Produtivo | G147: Improdutivo | I147: Horário Total
A148: E9687 | B148: Caminhão carroceria com capacidade de 5 t - 115 kW | C148: 1 | D148: 0.3 | E148: 0.7 | F148: 110.9354 | G148: 45.0167 | I148: =ROUND((C148*(D148*F148))+(C148*(E148*G148)),4) -> 64.7923
G149: Custo horário total de equipamentos | I149: =SUM(I148) -> 64.7923
A150: B - MÃO DE OBRA | C150: Quantidade | D150: Unidade | E150: Custo Horário | G150: Custo Horário Total
A151: P9830 | B151: Montador | C151: 1 | D151: h | E151: 25.1783 | I151: =ROUND(C151*E151,4) -> 25.1783
A152: P9824 | B152: Servente | C152: 2 | D152: h | E152: 16.2666 | I152: =ROUND(C152*E152,4) -> 32.5332
C153: Custo horário total de mão de obra | H153: =SUM(I151:I152) -> 57.7115
C154: Custo horário total de execução | I154: =SUM(H153,I149) -> 122.5038
C155: Custo unitário de execução | I155: =I154/H144 -> 40.8346
G156: Custo do FIC | I156: -
G157: Custo do FIT | I157: -
A158: C - MATERIAL | C158: Quantidade | D158: Unidade | E158: Preço Unitário | G158: Custo Unitário
C159: Custo unitário total de material
A160: D - ATIVIDADES AUXILIARES | C160: Quantidade | D160: Unidade | E160: Custo Unitário | G160: Custo Unitário
A161: 5213414 | B161: Confecção de placa em aço nº 16 galvanizado, com película retrorrefletiva tipo I + SI | C161: 0.36 | D161: m² | F161: =I214 -> 443.032944 | I161: =ROUND(C161*F161,4) -> 159.4919
C162: Custo total de atividades auxiliares | I162: =SUM(I161) -> 159.4919
G163: Subtotal | I163: =SUM(I162,I155,I156,I157) -> 200.3265
A164: E - TEMPO FIXO | C164: Código | D164: Quantidade | E164: Unidade | F164: Custo Unitário | H164: Custo Unitário
C166: Custo unitário total de tempo fixo | I166: =SUM(I165) -> 0
A167: F - MOMENTO DE TRANSPORTE | C167: Quantidade | D167: Unidade | E167: DMT | I167: Custo Unitário
E168: LN | F168: RP | G168: P
C170: Custo unitário total de transporte
E171: Custo unitário direto total | I171: =SUM(I170,I166,I163) -> 200.3265
F172: BDI | G172: =BDI!E25 -> 0.2158381752 | I172: =ROUND(I171*G172,4) -> 43.2381
G173: Preço Unitário: | I173: =ROUND(SUM(I171,I172),2) -> 243.56
A174: Obs.
A176: CGCIT | I176: DNIT
A177: SISTEMA DE CUSTOS REFERENCIAIS DE OBRAS - SICRO
A178: Custo Unitário de Referência | G178: Produção da equipe | H178: 4 | I178: m²
A179: 5213414 | B179: Confecção de placa em aço nº 16 galvanizado, com película retrorrefletiva tipo I + SI | H179: Valores em reais (R$)
A180: A - EQUIPAMENTOS | C180: Quantidade | D180: Utilização | F180: Custo Horário | I180: Custo
D181: Operativa | E181: Improdutiva | F181: Produtivo | G181: Improdutivo | I181: Horário Total
A182: E9568 | B182: Furadeira de impacto de 12,5 mm - 0,8 kW | C182: 0.1506 | D182: 1 | E182: 0 | F182: 0.1658 | G182: 0.107 | I182: =ROUND((C182*(D182*F182))+(C182*(E182*G182)),4) -> 0.025
A183: E9066 | B183: Grupo gerador - 13/14 kVA | C183: 0.48193 | D183: 1 | E183: 0 | F183: 12.137 | G183: 2.3756 | I183: 5.8492
A184: E9623 | B184: Máquina de bancada guilhotina - 4 kW | C184: 0.2008 | D184: 1 | E184: 0 | F184: 12.5242 | G184: 7.6667 | I184: 2.5149
A185: E9622 | B185: Máquina de bancada universal para corte de chapa - 1,5 kW | C185: 0.48193 | D185: 1 | E185: 0 | F185: 4.927 | G185: 3.0161 | I185: 2.3745
G186: Custo horário total de equipamentos | I186: =SUM(I182:I185) -> 10.7636
A187: B - MÃO DE OBRA | C187: Quantidade | D187: Unidade | E187: Custo Horário | G187: Custo Horário Total
A188: P9801 | B188: Ajudante | C188: 2 | D188: h | E188: 17.6327 | I188: =ROUND(C188*E188,4) -> 35.2654
A189: P9830 | B189: Montador | C189: 1 | D189: h | E189: 25.1783 | I189: 25.1783
A190: P9823 | B190: Serralheiro | C190: 1 | D190: h | E190: 22.2731 | I190: 22.2731
A191: P9824 | B191: Servente | C191: 2 | D191: h | E191: 16.2666 | I191: 32.5332
C192: Custo horário total de mão de obra | H192: =SUM(I188:I191) -> 115.25
C193: Custo horário total de execução | I193: =SUM(H192,I186) -> 126.0136
C194: Custo unitário de execução | I194: =I193/H178 -> 31.5034
G195: Custo do FIC | I195: -
G196: Custo do FIT | I196: -
A197: C - MATERIAL | C197: Quantidade | D197: Unidade | E197: Preço Unitário | G197: Custo Unitário
A198: M1367 | B198: Chapa de aço galvanizado | C198: 11.775 | D198: kg | F198: 8.1416 | I198: =ROUND(C198*F198,4) -> 95.8673
A199: M3229 | B199: Película retrorrefletiva tipo I + SI | C199: 1 | D199: m² | F199: 302.8059 | I199: 302.8059
C200: Custo unitário total de material | I200: =SUM(I198:I199) -> 398.6732
A201: D - ATIVIDADES AUXILIARES | C201: Quantidade | D201: Unidade | E201: Custo Unitário | G201: Custo Unitário
A202: 5212552 | B202: Pintura eletrostática a pó com tinta poliester em chapa de aço | C202: 1 | D202: m² | F202: =I248 -> 12.49924824 | I202: =ROUND(C202*F202,4) -> 12.4992
C203: Custo total de atividades auxiliares | I203: =SUM(I202) -> 12.4992
G204: Subtotal | I204: =SUM(I203,I200,I194,I195,I196) -> 442.6758
A205: E - TEMPO FIXO | C205: Código | D205: Quantidade | E205: Unidade | F205: Custo Unitário | H205: Custo Unitário
A206: M1367 | B206: Chapa de aço galvanizado - Caminhão carroceria 15 t | C206: 5914333 | D206: 0.01178 | E206: t | G206: 24.01 | I206: =ROUND(D206*G206,4) -> 0.2828
A207: M3229 | B207: Película retrorrefletiva tipo I + SI - Caminhão carroceria 15 t | C207: 5914665 | D207: 0.00044 | E207: t | G207: 24.55 | I207: =ROUND(D207*G207,4) -> 0.0108
C208: Custo unitário total de tempo fixo | I208: =SUM(I206:I207) -> 0.2936
... 521 more rows

Sheet CRONOGRAMA TOTAL
A2: ='RESUMO MODULO MINIMO'!$A$5 -> EXECUÇÃO DE SERVIÇOS DE IMPLANTAÇÃO DE PAVIMENTAÇÃO EM BLOCO DE CONCRETO INTERTRAVADO, EM VIAS URBANAS E RURAIS DE MUNÍCIPIOS DIVERSOS INSERIDOS NA ÁREA DE ATUAÇÃO DA CODEVASF, NO ESTADO DO CEARÁ
A3: Cronograma Físico e Financeiro
A4: Item | B4: Descrição | C4: Total Por Etapa | D4: 30 DIAS | E4: 60 DIAS | F4: 90 DIAS | G4: 120 DIAS | H4: 150 DIAS | I4: 180 DIAS | J4: 210 DIAS | K4: 240 DIAS | L4: 270 DIAS | M4: 300 DIAS | N4: 330 DIAS | O4: 360 DIAS
B5: ='RESUMO MODULO MINIMO'!$D$10 -> MOBILIZAÇÃO | C5: 1 | E5: =$C$5/11 -> 0.09090909091 | F5: =$C$5/11 -> 0.09090909091 | G5: 0.09090909091 | H5: 0.09090909091 | I5: 0.09090909091 | J5: 0.09090909091 | K5: 0.09090909091 | L5: 0.09090909091 | M5: 0.09090909091 | N5: 0.09090909091 | O5: 0.09090909091 | Q5: =SUM(D5:O5) -> 1
C6: =SUM('RESUMO MODULO TOTAL'!L11:L13) -> 608386.4179 | E6: =$C$6*E5 -> 55307.85617 | F6: 55307.85617 | G6: 55307.85617 | H6: 55307.85617 | I6: 55307.85617 | J6: 55307.85617 | K6: 55307.85617 | L6: 55307.85617 | M6: 55307.85617 | N6: 55307.85617 | O6: 55307.85617 | Q6: =SUM(D6:O6) -> 608386.4179 | R6: =C6 -> 608386.4179 | S6: =Q6-R6 -> 0
B7: ='RESUMO MODULO MINIMO'!D14 -> TERRAPLANAGEM | C7: 1 | F7: =$C$9/10 -> 0.1 | G7: =$C$9/10 -> 0.1 | H7: 0.1 | I7: 0.1 | J7: 0.1 | K7: 0.1 | L7: 0.1 | M7: 0.1 | N7: 0.1 | O7: 0.1 | Q7: =SUM(F7:O7) -> 1
C8: =SUM('RESUMO MODULO TOTAL'!L15:L17) -> 713149.92 | F8: =$C$8*F7 -> 71314.992 | G8: =$C$8*G7 -> 71314.992 | H8: 71314.992 | I8: 71314.992 | J8: 71314.992 | K8: 71314.992 | L8: 71314.992 | M8: 71314.992 | N8: 71314.992 | O8: 71314.992 | Q8: 713149.92 | R8: =C8 -> 713149.92 | S8: =Q8-R8 -> 0
B9: ='RESUMO MODULO MINIMO'!$D$18 -> PAVIMENTAÇÃO | C9: 1 | F9: =$C$9/10 -> 0.1 | G9: 0.1 | H9: 0.1 | I9: 0.1 | J9: 0.1 | K9: 0.1 | L9: 0.1 | M9: 0.1 | N9: 0.1 | O9: 0.1 | Q9: 1
C10: =SUM('RESUMO MODULO TOTAL'!L19:L21) -> 53873382.53 | F10: =$C$10*F9 -> 5387338.253 | G10: =$C$10*G9 -> 5387338.253 | H10: 5387338.253 | I10: 5387338.253 | J10: 5387338.253 | K10: 5387338.253 | L10: 5387338.253 | M10: 5387338.253 | N10: 5387338.253 | O10: 5387338.253 | Q10: 53873382.53 | R10: =C10 -> 53873382.53 | S10: =Q10-R10 -> 0
B11: ='RESUMO MODULO MINIMO'!$D$22 -> SINALIZAÇÃO | C11: 1 | F11: =$C$11/10 -> 0.1 | G11: =(100%-$F$11)/9 -> 0.1 | H11: =(100%-$F$11)/9 -> 0.1 | I11: 0.1 | J11: 0.1 | K11: 0.1 | L11: 0.1 | M11: 0.1 | N11: 0.1 | O11: 0.1 | Q11: 1
C12: =SUM('RESUMO MODULO TOTAL'!L23:L24) -> 22733.06868 | F12: =$C$12*F11 -> 2273.306868 | G12: 2273.306868 | H12: 2273.306868 | I12: 2273.306868 | J12: 2273.306868 | K12: 2273.306868 | L12: 2273.306868 | M12: 2273.306868 | N12: 2273.306868 | O12: 2273.306868 | Q12: 22733.06868 | R12: =C12 -> 22733.06868 | S12: 0
B13: ='RESUMO MODULO MINIMO'!$D$25 -> DRENAGEM | C13: 1 | F13: =$C$13/10 -> 0.1 | G13: =$C$13/10 -> 0.1 | H13: 0.1 | I13: 0.1 | J13: 0.1 | K13: 0.1 | L13: 0.1 | M13: 0.1 | N13: 0.1 | O13: 0.1 | Q13: =SUM(D13:O13) -> 1
C14: =SUM('RESUMO MODULO TOTAL'!L26) -> 4631431.68 | F14: =$C$14*F13 -> 463143.168 | G14: =$C$14*G13 -> 463143.168 | H14: 463143.168 | I14: 463143.168 | J14: 463143.168 | K14: 463143.168 | L14: 463143.168 | M14: 463143.168 | N14: 463143.168 | O14: 463143.168 | Q14: 4631431.68 | R14: =C14 -> 4631431.68 | S14: 0
B15: ='RESUMO MODULO MINIMO'!$D$27 -> LIMPEZA GERAL | C15: 1 | F15: =100%/10 -> 0.1 | G15: =100%/10 -> 0.1 | H15: 0.1 | I15: 0.1 | J15: 0.1 | K15: 0.1 | L15: 0.1 | M15: 0.1 | N15: 0.1 | O15: 0.1 | Q15: =SUM(D15:O15) -> 1
C16: ='RESUMO MODULO TOTAL'!L28 -> 565992 | F16: =$C$16*F15 -> 56599.2 | G16: 56599.2 | H16: 56599.2 | I16: 56599.2 | J16: 56599.2 | K16: 56599.2 | L16: 56599.2 | M16: 56599.2 | N16: 56599.2 | O16: 56599.2 | Q16: 565992 | R16: =C16 -> 565992 | S16: =Q16-R16 -> 0
B17: ='RESUMO MODULO MINIMO'!D29 -> SERVIÇOS COMPLEMENTARES | C17: 1 | F17: =100%/10 -> 0.1 | G17: 0.1 | H17: 0.1 | I17: 0.1 | J17: 0.1 | K17: 0.1 | L17: 0.1 | M17: 0.1 | N17: 0.1 | O17: 0.1 | Q17: 1
C18: ='RESUMO MODULO TOTAL'!L30 -> 135272.088 | F18: =$C$18*F17 -> 13527.2088 | G18: =$C$18*G17 -> 13527.2088 | H18: 13527.2088 | I18: 13527.2088 | J18: 13527.2088 | K18: 13527.2088 | L18: 13527.2088 | M18: 13527.2088 | N18: 13527.2088 | O18: 13527.2088 | Q18: 135272.088 | R18: =C18 -> 135272.088 | S18: =Q18-R18 -> 0
B19: ='RESUMO MODULO MINIMO'!$D$31 -> PROJETO EXECUTIVO | C19: 1 | D19: 0.5 | E19: 0.5 | Q19: 1
C20: ='RESUMO MODULO TOTAL'!L32 -> 604649.7691 | D20: =$C$20*D19 -> 302324.8845 | E20: =$C$20*E19 -> 302324.8845 | Q20: 604649.7691 | R20: =C20 -> 604649.7691 | S20: =Q20-R20 -> 0
A22: Porcentagem | D22: =SUM(D6+D8+D10+D12+D14+D16+D18+D20)/$O$27 -> 0.004943584286 | E22: =SUM(E6+E8+E10+E12+E14+E16+E18+E20)/$O$27 -> 0.005847972455 | F22: 0.09892084433 | G22: 0.09892084433 | H22: 0.09892084433 | I22: 0.09892084433 | J22: 0.09892084433 | K22: 0.09892084433 | L22: 0.09892084433 | M22: 0.09892084433 | N22: 0.09892084433 | O22: 0.09892084433
A23: Custo | D23: =$O$27*D22 -> 302324.8845 | E23: =$O$27*E22 -> 357632.7407 | F23: =$O$27*F22 -> 6049503.985 | G23: 6049503.985 | H23: 6049503.985 | I23: 6049503.985 | J23: 6049503.985 | K23: 6049503.985 | L23: 6049503.985 | M23: 6049503.985 | N23: 6049503.985 | O23: 6049503.985
A24: Porcentagem Acumulado | D24: =D22 -> 0.004943584286 | E24: =D24+E22 -> 0.01079155674 | F24: =E24+F22 -> 0.1097124011 | G24: 0.2086332454 | H24: 0.3075540897 | I24: 0.406474934 | J24: 0.5053957784 | K24: 0.6043166227 | L24: 0.703237467 | M24: 0.8021583113 | N24: 0.9010791557 | O24: 1
A25: Custo Acumulado | D25: =D23 -> 302324.8845 | E25: =D25+E23 -> 659957.6252 | F25: 6709461.61 | G25: 12758965.59 | H25: 18808469.58 | I25: 24857973.56 | J25: 30907477.55 | K25: 36956981.53 | L25: 43006485.52 | M25: 49055989.5 | N25: 55105493.49 | O25: 61154997.47
D27: Total Geral | N27: R$ | O27: ='RESUMO MODULO TOTAL'!L33 -> 61154997.47

Sheet SERVIÇOS PRELI
A4: ='RESUMO MODULO MINIMO'!A1 -> EXECUÇÃO DE SERVIÇOS DE IMPLANTAÇÃO DE PAVIMENTAÇÃO EM BLOCO DE CONCRETO INTERTRAVADO, EM VIAS URBANAS E RURAIS DE MUNÍCIPIOS DIVERSOS INSERIDOS NA ÁREA DE ATUAÇÃO DA CODEVASF, NO ESTADO DO CEARÁ
G5: BDI %: | H5: =BDI!E25 -> 0.2158381752
F6: Encargos Sociais: | H6: Horista | I6: Mensalista
H7: ='ENC. SOCIAIS'!$E$51/100 -> 1.1276 | I7: ='ENC. SOCIAIS'!$F$51/100 -> 0.7107
A8: Anexo VI - Planilhas Orçamentárias
A10: ITEM | B10: CPUs | C10: Fonte | D10: Cód. | E10: DISCRIMINAÇÃO DOS SERVIÇOS | F10: UND | G10: QTDE. | H10: PREÇO UNITÁRIO (R$) | I10: TOTAL
A12: 1 | B12: IMPLANTAÇÃO DA OBRA
A13: 1.1 | B13: SERVIÇOS INICIAIS
A14: 1.1.1 | B14: CPU-02 | C14: CODEVASF | D14: 72840 | E14: MOBILIZAÇÃO E DESMOBILIZAÇÃO | F14: und | G14: 1 | H14: ='CPU CODEVASF'!$H$36 -> 1257.99 | I14: =ROUND(G14*H14,2) -> 1257.99
F15: ITEM 1: | H15: TOTAL | I15: =SUM(I14:I14) -> 1257.99
A17: 2 | B17: PLACA DE OBRA EM CHAPA DE ACO GALVANIZADO
A18: 2.1 | B18: CPU-01 | C18: CODEVASF | D18: 74209/1 | E18: PLACA DE OBRA EM CHAPA DE ACO GALVANIZADO | F18: und | G18: 1 | H18: ='CPU CODEVASF'!$H$24 -> 404.49 | I18: =ROUND(G18*H18,2) -> 404.49
F19: ITEM 2: | H19: TOTAL | I19: =SUM(I18:I18) -> 404.49
A21: 3 | B21: ADMINISTRAÇÃO DA OBRA
A22: 3.1 | B22: CPU-03 | C22: CODEVASF | D22: 2.1 | E22: ADMINISTRAÇÃO LOCAL | F22: % | G22: 1 | H22: ='CPU CODEVASF'!$H$49 -> 5483.86 | I22: =ROUND(G22*H22,2) -> 5483.86
A23: 3.2 | B23: CPU-04 | C23: CODEVASF | D23: 2.2 | E23: CANTEIRO DE OBRAS E ALMOXARIFADO | F23: MÊS | G23: 1 | H23: ='CPU CODEVASF'!$H$58 -> 377.98 | I23: =ROUND(G23*H23,2) -> 377.98
F24: ITEM 3: | H24: TOTAL | I24: =SUM(I22:I23) -> 5861.84

Sheet Projeto Executivo
A1: COMPOSIÇAO PREÇO PROJETO EXECUTIVO (POR KM)
A3: DISCRIMINAÇAO | F3: Pr. Unit. | G3: Pr. Total
A5: A· EOUIPE TECNICA | G5: =G6+G9 -> 3342.2
B6: A. 1 - Pessoal de Nível Superior | C6: Unidade | D6: Quantitativo | E6: Código SINAPI | G6: =G7+G8 -> 2483.5
B7: Engenheiro | C7: h | D7: 20 | E7: 34780 | F7: 109.91 | G7: =F7*D7 -> 2198.2
B8: Topógrafo | C8: h | D8: 10 | E8: 7592 | F8: 28.53 | G8: =F8*D8 -> 285.3
B9: A.2 - Pessoal de Nível Técnico e Aux. | G9: =G10+G11 -> 858.7
B10: Auxiliar de topógrafo | C10: h | D10: 10 | E10: 244 | F10: 11.63 | G10: =F10*D10 -> 116.3
B11: Cadista/calculista | C11: h | D11: 20 | E11: 2359 | F11: 37.12 | G11: =F11*D11 -> 742.4
A12: B - ENCARGOS SOCIAIS | G12: =G13 -> 0
B13: Taxas 72,23 % do item "A" | G13: 0
A14: C - DESPESAS GERAIS | G14: =G15+G16+G17+G18 -> 466.086
B15: C.1 - MATERIAIS DE CONSUMO | C15: Estimativa % como referência de equipe técnica com encargos sociais | D15: 0.03 | F15: =G5+G13 -> 3342.2 | G15: =F15*D15 -> 100.266
B16: C.2 - VEÍCULOS | C16: H | D16: 8 | E16: 92144 | F16: 40 | G16: =F16*D16 -> 320
B17: C.3 - COMBUSTÍVEL | C17: L | D17: 2 | E17: 4221 | F17: 4.91 | G17: =F17*D17 -> 9.82
B18: C.3 - EQUIPAMENTOS, INSTALAÇÕES E MOBILIÁRIO | C18: H | D18: 16 | E18: 7247 | F18: =VLOOKUP(E18,'[11]COMPOSIÇÃO ANALI sinapi'!$M$5:$R$42432,6,0) -> 2.25 | G18: =F18*D18 -> 36
A19: D - ENSAIOS | G19: =G20 -> 1720.21
B20: D.1 - ENSAIOS | C20: Composição Ensaios | F20: =Ensaios!F20 -> 1720.21 | G20: =F20 -> 1720.21
A21: I - SOMA (A+B+C+D) | G21: =G5+G12+G14+G19 -> 5528.496
A22: II - CUSTOS ADMINISTRATIVOS (23,74 %) | D22: =[11]BDI!E25 -> 0.2257294717 | G22: =D22*G21 -> 1247.944482
A23: II - SOMA | G23: =SUM(G21:G22) -> 6776.440482
A24: VI - RELATÓRIOS | C24: Estimativa % como referência soma II | D24: 0.025 | F24: =G23 -> 6776.440482 | G24: =F24*D24 -> 169.411012
A25: V - DESPESAS DIRETAS (3,74%) | C25: Percentual VI | D25: 0.0374 | F25: =D25*G24 -> 6.33597185 | G25: =F25 -> 6.33597185
A26: VI - REMUNERAÇAO DA EMPRESA
B27: Taxas 4,75% | D27: 0.0475 | F27: =D27*F25 -> 0.3009586629 | G27: =F27 -> 0.3009586629
A28: VII - CONTIGÊNCIAS | D28: 0.0577 | F28: =F24 -> 6776.440482 | G28: =F28*D28 -> 391.0006158
A29: VIII - SOMA | G29: =SUM(G24:G28) -> 567.0485583
A30: IX - CUSTOS ADMINISTRATIVOS (23,74 %) | D30: 0.2374 | G30: =D30*G29 -> 134.6173278
A31: III - SOMA | G31: =SUM(G29:G30) -> 701.6658861
A32: X - TOTAL | G32: =G31+G23 -> 7478.106368

Sheet Ensaios
A1: SERVIÇOS GEOLÓGICOS/GEOTÉCNICOS
A3: NOME DA EMPRESA:
A5: PROJETO: | D5: CONTRATANTE: | F5: EDITAL:
D6: Codevasf (Sede)
A7: Cod. | B7: Insumos | C7: Uni | D7: Qde | E7: Preço Unitário (PU) | F7: Preço Total (PT)
A8: GT01 | B8: Ensaios em solos Umidade Natural | C8: un | D8: 1 | E8: 30 | F8: =ROUND(E8*D8,2) -> 30
A9: GT02 | B9: Densidade in SITUEnsaios do Frasco de Areia (in Situ) | C9: un | D9: 1 | E9: 45.03 | F9: 45.03
A10: GT03 | B10: Ensaios em solos Limite de Liquidez | C10: un | D10: 1 | E10: 50.04 | F10: 50.04
A11: GT04 | B11: Ensaios em solos Limite de Plasticidade | C11: un | D11: 1 | E11: 45.03 | F11: 45.03
A12: GT05 | B12: Granulometria por Peneiramento | C12: un | D12: 1 | E12: 80.06 | F12: 80.06
A13: GT06 | B13: Granulometria Completa ( peneiramento e sedimentação) | C13: un | D13: 1 | E13: 80.06 | F13: 80.06
A14: GT07 | B14: Massa Específica Real dos Grãos | C14: un | D14: 1 | E14: 35.03 | F14: 35.03
A15: GT08 | B15: Compactação Proctor Normal | C15: un | D15: 2 | E15: 87.7 | F15: 175.4
A16: GT09 | B16: Abrasão "Los Angeles " | C16: un | D16: 1 | E16: 225 | F16: 225
A17: GT10 | B17: Índice de Suporte Califórnia ( ISC/CBR) | C17: un | D17: 5 | E17: 166.4 | F17: 832
A18: GT11 | B18: Equivalente de Areia | C18: un | D18: 1 | E18: 50 | F18: 50
A19: GT12 | B19: Ensaio de Expansão | C19: un | D19: 1 | E19: 72.56 | F19: 72.56
A20: TOTAL SERVIÇOS GEOTÉCNICOS | F20: =SUM(F8:F19) -> 1720.21
A21: NOME DO INFORMANTE: | E21: QUALIFICAÇÃO:
A23: ASSINATURA: | E23: DATA:

Sheet CPU CODEVASF
A4: ='RESUMO MODULO MINIMO'!A1 -> EXECUÇÃO DE SERVIÇOS DE IMPLANTAÇÃO DE PAVIMENTAÇÃO EM BLOCO DE CONCRETO INTERTRAVADO, EM VIAS URBANAS E RURAIS DE MUNÍCIPIOS DIVERSOS INSERIDOS NA ÁREA DE ATUAÇÃO DA CODEVASF, NO ESTADO DO CEARÁ
F5: BDI %: | G5: =BDI!E25 -> 0.2158381752
E6: Encargos Sociais: | G6: Horista | H6: Mensalista
G7: ='ENC. SOCIAIS'!E51/100 -> 1.1276 | H7: ='ENC. SOCIAIS'!F51/100 -> 0.7107
A8: COMPOSIÇÕES DE CUSTO UNITARIO
A9: CPU-01 | B9: CODEVASF | C9: 74209/1 | D9: PLACA DE OBRA EM CHAPA DE ACO GALVANIZADO | E9: M2 | F9: COEF. | G9: PRECO UNITÁRIO (R$) | H9: TOTAL (R$)
A11: INS. SINAPI | B11: SINAPI | C11: 5075 | D11: PREGO 18X30. | E11: kg | F11: 0.11 | G11: 19.84 | H11: =ROUND(F11*G11,2) -> 2.18
A12: INS. SINAPI | B12: SINAPI | C12: 4491 | D12: PECA DE MADEIRA NATIVA / REGIONAL 7,5 X 7,5CM (3X3) NAO APARELHADA (P/FORMA) | E12: m | F12: 4 | G12: 10.54 | H12: 42.16
A13: INS. SINAPI | B13: SINAPI | C13: 4417 | D13: PECA DE MADEIRA DE LEI *2,5 X 7,5* CM (1" X 3"), NÃO APARELHADA, (P/TELHADO) | E13: m | F13: 1 | G13: 5.41 | H13: 5.41
A14: INS. SINAPI | B14: SINAPI | C14: 4813 | D14: PLACA DE OBRA (PARA CONSTRUCAO CIVIL) EM CHAPA GALVANIZADA *Nº 22*, DE *2,0 X 1,125* M | E14: m² | F14: 1 | G14: =VLOOKUP($C14,'Excluido INSUMOS SINAPI'!$A$8:$E$5286,5,0) -> 225,00 | H14: 225
A15: INS. SINAPI | B15: SINAPI | C15: 370 | D15: AREIA MÉDIA | E15: m³ | F15: 0.0049 | G15: 90 | H15: 0.44
A16: INS. SINAPI | B16: SINAPI | C16: 1379 | D16: CIMENTO PORTLAND COMPOSTO CP II-32 | E16: kg | F16: 1.5 | G16: 0.54 | H16: 0.81
A17: INS. SINAPI | B17: SINAPI | C17: 4718 | D17: PEDRA BRITADA Nº 2 | E17: m³ | F17: 0.0098 | G17: 77.8 | H17: 0.76
A18: COMP. SINAPI | B18: SINAPI | C18: 87445 | D18: BETONEIRA CAPACIDADE NOMINAL 400 L, CAPACIDADE DE MISTURA 310 L, MOTOR A DIESEL POTÊNCIA 5,0 HP, SEM CARREGADOR - CHP DIURNO | E18: h | F18: 0.0065 | G18: 4.27 | H18: =ROUND(F18*G18,2) -> 0.03
A19: COMP. SINAPI | B19: SINAPI | C19: 88262 | D19: CARPINTEIRO DE FORMAS COM ENCARGOS COMPLEMENTARES | E19: h | F19: 1 | G19: 22.02 | H19: =ROUND(F19*G19,2) -> 22.02
A20: COMP. SINAPI | B20: SINAPI | C20: 88316 | D20: SERVENTE COM ENCARGOS COMPLEMENTARES | E20: h | F20: 2.06 | G20: 16.44 | H20: =ROUND(F20*G20,2) -> 33.87
E21: Sub total: | H21: =SUM(H11:H20) -> 332.68
F22: BDI | G22: =G5 -> 0.2158381752 | H22: =ROUND(H21*G22,2) -> 71.81
G23: Total Serviços: | H23: =H21+H22 -> 404.49
E24: =A9 -> CPU-01 | F24: PREÇO UNITÁRIO TOTAL: | H24: =H23 -> 404.49
A26: CPU-02 | B26: CODEVASF | C26: Propria | D26: MOBILIZAÇÃO E DESMOBILIZAÇÃO | E26: T X KM | F26: COEF. | G26: PRECO UNITÁRIO (R$) | H26: TOTAL (R$)
A28: COMP. SINAPI | B28: SINAPI | C28: 73340 | D28: CAMINHÃO TOCO, PBT 14.300 KG, CARGA ÚTIL MÁX. 9.710 KG, DIST. ENTRE EIXOS 3,56 M, POTÊNCIA 185 CV, INCLUSIVE CARROCERIA FIXA ABERTA DE MADEIRA P/ TR ANSPORTE GERAL DE CARGA SECA, DIMEN. APROX. 2,50 X 6,50 X 0,50 M - MATERIA IS NA OPERAÇÃO. AF_06/2014 | E28: H | F28: 2 | G28: 66.87 | H28: =ROUND(F28*G28,2) -> 133.74
A29: COMP. SINAPI | B29: SINAPI | C29: 67826 | D29: CAMINHÃO BASCULANTE 6 M3 TOCO, PESO BRUTO TOTAL 16.000 KG, CARGA ÚTIL MÁXI CHP MA 11.130 KG, DISTÂNCIA ENTRE EIXOS 5,36 M, POTÊNCIA 185 CV, INCLUSIVE CAÇAMBA METÁLICA - CHP DIURNO. AF_06/2014 | E29: CHP | F29: 2 | G29: 139.03 | H29: =ROUND(F29*G29,2) -> 278.06
A30: COMP. SINAPI | B30: SINAPI | C30: 6259 | D30: CAMINHÃO PIPA 6.000 L, PESO BRUTO TOTAL 13.000 KG, DISTÂNCIA ENTRE EIXOS 4 CHP ,80 M, POTÊNCIA 189 CV INCLUSIVE TANQUE DE AÇO PARA TRANSPORTE DE ÁGUA, CAPACIDADE 6 M3 - CHP DIURNO. AF_06/2014 | E30: CHP | F30: 2 | G30: 193.74 | H30: =ROUND(F30*G30,2) -> 387.48
A31: COMP. SICRO | B31: SICRO | C31: 5914640 | D31: TRANSPORTE COM CAVALO MECÂNICO COM SEMIRREBOQUE COM CAPACIDADE DE 30 T - RODOVIA PAVIMENTADA | E31: tkm | F31: ='Mob e Desmob'!E31 -> 678.7 | G31: =VLOOKUP($C31,'INSUMOS SICRO'!$B$1749:$E$1749,4,0) -> 0.31 | H31: =ROUND(F31*G31,2) -> 210.4
A32: INSUMO | B32: ORSE | C32: 5896 | D32: VEÍCULO TIPO SEDAN OU PICK-UP CAPACIDADE 0,6 TON | E32: h | F32: 3 | G32: 8.33 | H32: =ROUND(F32*G32,2) -> 24.99
E33: Sub total: | H33: =SUM(H28:H32) -> 1034.67
F34: BDI | G34: =G5 -> 0.2158381752 | H34: =ROUND(H33*G34,2) -> 223.32
G35: Total Serviços: | H35: =H33+H34 -> 1257.99
E36: =A26 -> CPU-02 | F36: PREÇO UNITÁRIO TOTAL: | H36: =H35 -> 1257.99
A38: CPU-03 | B38: CODEVASF | D38: ADMINISTRAÇÃO LOCAL | E38: % | F38: COEF. | G38: PRECO UNITÁRIO (R$) | H38: TOTAL (R$)
A40: COMP. SINAPI | B40: SINAPI | C40: 90777 | D40: ENGENHEIRO CIVIL DE OBRA JUNIOR COM ENCARGOS COMPLEMENTARES | E40: H | F40: 20 | G40: 98.2 | H40: =ROUND(F40*G40,2) -> 1964
A41: COMP. SINAPI | B41: SINAPI | C41: 90780 | D41: MESTRE DE OBRAS COM ENCARGOS COMPLEMENTARES | E41: H | F41: 40 | G41: 43.48 | H41: 1739.2
A42: COMP. SINAPI | B42: SINAPI | C42: 90772 | D42: AUXILIAR DE ESCRITORIO COM ENCARGOS COMPLEMENTARES | E42: H | F42: 40 | G42: 13.46 | H42: 538.4
A43: INS. SINAPI | B43: SINAPI | C43: 14250 | D43: ENERGIA | E43: KW/H | F43: 100 | G43: 0.78 | H43: 78
A44: INS. SINAPI | B44: SINAPI | C44: 14583 | D44: ÁGUA TARIFA "A" ENTRE 0 E 20M3 FORNECIMENTO D'AGUA | E44: M3 | F44: 1 | G44: 14.75 | H44: 14.75
A45: INS. ORSE | B45: ORSE | C45: 4415 | D45: VEÍCULO LEVE - VOLKSWAGEN:GOL 1000 - AUTOMÓVEL ATÉ 100 HP | E45: H | F45: 40 | G45: 4.4 | H45: 176
E46: ADM. LOCAL : | H46: =SUM(H40:H45) -> 4510.35
E47: Total para 6 meses:
E48: =G5 -> 0.2158381752 | H48: =ROUND(E48*H46,2) -> 973.51
E49: =A38 -> CPU-03 | F49: PREÇO TOTAL: | H49: =H46+H48 -> 5483.86
A51: CPU-04 | B51: CODEVASF | D51: CANTEIRO DE OBRAS E ALMOXARIFADO | E51: MÊS | F51: COEF. | G51: PRECO UNITÁRIO (R$) | H51: TOTAL (R$)
A53: INS. SINAPI | B53: SINAPI | C53: 10775 | D53: LOCAÇÃO DE CONTAINER - ESCRITÓRIO COM BANHEIRO - 6,20 X 2,20M | E53: mês | F53: 0.2 | G53: 900 | H53: =ROUND(F53*G53,2) -> 180
A54: INS. ORSE | B54: ORSE | C54: 4299 | D54: ALUGUEL DE CONTAINER - ALMOXARIFADO SEM BANHEIRO - 6,00 X 2,40M | E54: mês | F54: 0.2 | G54: 654.42 | H54: =ROUND(F54*G54,2) -> 130.88
E55: Sub total: | H55: =SUM(H53:H54) -> 310.88
F56: BDI | G56: =G5 -> 0.2158381752 | H56: =ROUND(H55*G56,2) -> 67.1
G57: Total Serviços: | H57: =H55+H56 -> 377.98
E58: =A51 -> CPU-04 | F58: PREÇO UNITÁRIO TOTAL: | H58: =H57 -> 377.98
A60: CPU-11 | B60: CODEVASF | D60: LIMPEZA GERAL | E60: UNID | F60: COEF. | G60: PRECO UNITÁRIO (R$) | H60: TOTAL (R$)
A62: COMP. SINAPI | B62: SINAPI | C62: 88316 | D62: SERVENTE COM ENCARGOS COMPLEMENTARES | E62: H | F62: 0.05 | G62: 16.44 | H62: =ROUND(F62*G62,2) -> 0.82
E63: Sub total: | H63: =SUM(H62:H62) -> 0.82
F64: BDI | G64: =G5 -> 0.2158381752 | H64: =ROUND(H63*G64,2) -> 0.18
G65: Total Serviços: | H65: =H63+H64 -> 1
E66: =A60 -> CPU-11 | F66: PREÇO UNITÁRIO TOTAL: | H66: =H65 -> 1
A67: CPU-12 | B67: CODEVASF | D67: Correção de vazamentos no ramal na rua sem pavimento com fornecimento do material hidráulico | E67: UNID | F67: COEF. | G67: PRECO UNITÁRIO (R$) | H67: TOTAL (R$)
A69: COMP. SINAPI | B69: SINAPI | C69: 88316 | D69: SERVENTE COM ENCARGOS COMPLEMENTARES | E69: H | F69: 0.2 | G69: 16.44 | H69: =ROUND(F69*G69,2) -> 3.29
A70: COMP. SINAPI | B70: SINAPI | C70: 88267 | D70: ENCANADOR OU BOMBEIRO HIDRÁULICO COM ENCARGOS COMPLEMENTARES | E70: H | F70: 0.1 | G70: 21.75 | H70: =ROUND(F70*G70,2) -> 2.18
A71: Insumo | B71: SINAPI | C71: 9867 | D71: TUBO PVC, SOLDAVEL, DN 20 MM, AGUA FRIA (NBR-5648) | E71: m | F71: 1 | G71: 3.18 | H71: =ROUND(F71*G71,2) -> 3.18
A72: Insumo | B72: ORSE | C72: 10585 | D72: Arco de serra | E72: un | F72: 0.1 | G72: 21.25 | H72: =ROUND(F72*G72,2) -> 2.13
A73: Insumo | B73: SINAPI | C73: 3859 | D73: LUVA SOLDAVEL COM ROSCA, PVC, 20 MM X 1/2", PARA AGUA FRIA PREDIAL | E73: un | F73: 2 | G73: 1.49 | H73: =ROUND(F73*G73,2) -> 2.98
E74: Sub total: | H74: =SUM(H69:H73) -> 13.76
F75: BDI | G75: =G5 -> 0.2158381752 | H75: =ROUND(H74*G75,2) -> 2.97
G76: Total Serviços: | H76: =H74+H75 -> 16.73
E77: =A67 -> CPU-12 | F77: PREÇO UNITÁRIO TOTAL: | H77: =H76 -> 16.73
A79: CPU-13 | B79: CODEVASF | D79: SERVIÇOS TOPOGRÁFICOS PARA PAVIMENTAÇÃO, INCLUSIVE NOTAS DE SERVIÇOS, ACOMPANHAMENTO E GREIDE | E79: UNID | F79: COEF. | G79: PRECO UNITÁRIO (R$) | H79: TOTAL (R$)
A81: Insumo | B81: SINAPI | C81: 20206 | D81: =VLOOKUP(C81,'Excluido INSUMOS SINAPI'!A:E,2,0) -> SARRAFO APARELHADO *2 X 10* CM, EM MACARANDUBA, ANGELIM OU EQUIVALENTE DA REGIAO | E81: m | F81: 0.002886 | G81: 6.84 | H81: =ROUND(F81*G81,2) -> 0.02
A82: Composição | B82: SINAPI | C82: 88253 | D82: =VLOOKUP(C82,'Excluido COMP Sint. Sinapi'!A:F,2,0) -> AUXILIAR DE TOPÓGRAFO COM ENCARGOS COMPLEMENTARES | E82: h | F82: 0.0025 | G82: 12.88 | H82: 0.03
A83: Composição | B83: SINAPI | C83: 88288 | D83: =VLOOKUP(C83,'Excluido COMP Sint. Sinapi'!A:F,2,0) -> NIVELADOR COM ENCARGOS COMPLEMENTARES | E83: h | F83: 0.0025 | G83: 15.95 | H83: 0.04
A84: Composição | B84: SINAPI | C84: 88316 | D84: =VLOOKUP(C84,'Excluido COMP Sint. Sinapi'!A:F,2,0) -> SERVENTE COM ENCARGOS COMPLEMENTARES | E84: h | F84: 0.0075 | G84: 16.44 | H84: 0.12
A85: Composição | B85: SINAPI | C85: 88597 | D85: =VLOOKUP(C85,'Excluido COMP Sint. Sinapi'!A:F,2,0) -> DESENHISTA DETALHISTA COM ENCARGOS COMPLEMENTARES | E85: h | F85: 0.002 | G85: 52.79 | H85: 0.11
A86: Composição | B86: SINAPI | C86: 92145 | D86: =VLOOKUP(C86,'Excluido COMP Sint. Sinapi'!A:F,2,0) -> CAMINHONETE CABINE SIMPLES COM MOTOR 1.6 FLEX, CÂMBIO MANUAL, POTÊNCIA 101/104 CV, 2 PORTAS - CHP DIURNO. AF_11/2015 | E86: chp | F86: 0.001 | G86: 66.1 | H86: 0.07
E87: Sub total: | H87: =SUM(H81:H86) -> 0.39
F88: BDI | G88: =G5 -> 0.2158381752 | H88: =ROUND(H87*G88,2) -> 0.08
G89: Total Serviços: | H89: =H87+H88 -> 0.47
E90: =A79 -> CPU-13 | F90: PREÇO UNITÁRIO TOTAL: | H90: =H89 -> 0.47

Sheet BDI
A2: OBRA:
A3: LOCAL:
A4: DATA BASE:
A5: DETALHAMENTO DO BDI - SEM DESONERAÇÃO
A7: Item | B7: Descrição dos serviços | D7: Preço de Venda (%) | E7: Custo Direto (%)
A8: A | B8: ADMINISTRAÇÃO CENTRAL | C8: Váriável - f (CD) | D8: =E8/(1+$E$25) -> 0.04934867257 | E8: 0.06
A9: B | B9: CUSTOS FINANCEIROS | C9: 0,43% s/ PV - Lucro Operacional | D9: 0.0041 | E9: =D9*(1+$E$25) -> 0.004984936518
A10: C | B10: RISCOS | C10: 0,50% de PV | E10: =D10*(1+$E$25) -> 0
A11: D | B11: SEGUROS E GARANTIAS CONTRATUAIS | C11: 0,25% do PV | E11: =D11*(1+$E$25) -> 0
A12: SUBTOTAL | D12: =SUM(D8:D11) -> 0.05344867257 | E12: =SUM(E8:E11) -> 0.06498493652
A13: LUCRO | D13: % SOBRE PV | E13: % SOBRE CD
A14: E | B14: LUCRO OPERACIONAL | C14: Variável - f (CD) | D14: =E14/(1+$E$25) -> 0.05757345133 | E14: 0.07
A15: SUBTOTAL | D15: =SUM(D14) -> 0.05757345133 | E15: =SUM(E14) -> 0.07
A16: TAXAS E IMPOSTOS | D16: % SOBRE PV | E16: % SOBRE CD
A17: F | B17: PIS | C17: 0,65% de PV | D17: 0.0065 | E17: =D17*(1+$E$25) -> 0.007902948139
A18: G | B18: COFINS | C18: 3,00% de PV | D18: 0.03 | E18: =D18*(1+$E$25) -> 0.03647514526
A19: H | B19: ISSQN | C19: 3,00% de PV | D19: 0.03 | E19: =D19*(1+$E$25) -> 0.03647514526
A20: I | B20: Contribuição Previdenciaria | C20: 0,00% de PV | D20: 0 | E20: =D20*(1+$E$25) -> 0
A21: SUBTOTAL | D21: =SUM(D17:D20) -> 0.0665 | E21: =SUM(E17:E20) -> 0.08085323865
A22: BDI COM IMPOSTOS | D22: =D21+D15+D12 -> 0.1775221239 | E22: =(1+(E8+E14))/(1-(D9+D10+D11+D17+D18+D19+D20))-1 -> 0.2158381752
A23: CUSTO DIRETO - CD | D23: =D24-D22 -> 0.8224778761
D24: 1
A25: BDI | E25: =E22 -> 0.2158381752
A26: Observação: O percentual de ISSQN aqui utilizado consiste apenas em um referencial médio.
B27: O valor real do ISSQN a ser adotado deve ser aquele proveniente das alíquotas dos municípios situados na área de
B28: influência das obras.

Sheet ENC. SOCIAIS
A6: NOME DA CONCORRENTE:
A7: EDITAL:
A8: FOLHA:
A9: ='RESUMO MODULO MINIMO'!A1 -> EXECUÇÃO DE SERVIÇOS DE IMPLANTAÇÃO DE PAVIMENTAÇÃO EM BLOCO DE CONCRETO INTERTRAVADO, EM VIAS URBANAS E RURAIS DE MUNÍCIPIOS DIVERSOS INSERIDOS NA ÁREA DE ATUAÇÃO DA CODEVASF, NO ESTADO DO CEARÁ
A11: DETALHAMENTO DOS ENCARGOS SOCIAIS (%)
A12: VIGÊNCIA A PARTIR DE 01/2020 | C12: COM DESONERAÇÃO | E12: SEM DESONERAÇÃO
C14: HORISTA | D14: MENSALISTA | E14: HORISTA | F14: MENSALISTA
A16: GRUPO A
A17: A1 | B17: INSS | C17: 0 | D17: 0 | E17: 20 | F17: 20
A18: A2 | B18: SESI | C18: 1.5 | D18: 1.5 | E18: 1.5 | F18: 1.5
A19: A3 | B19: SENAI | C19: 1 | D19: 1 | E19: 1 | F19: 1
A20: A4 | B20: INCRA | C20: 0.2 | D20: 0.2 | E20: 0.2 | F20: 0.2
A21: A5 | B21: SEBRAE | C21: 0.6 | D21: 0.6 | E21: 0.6 | F21: 0.6
A22: A6 | B22: Salário Educação | C22: 2.5 | D22: 2.5 | E22: 2.5 | F22: 2.5
A23: A7 | B23: Seguro Contra Acidentes de Trabalho | C23: 3 | D23: 3 | E23: 3 | F23: 3
A24: A8 | B24: FGTS | C24: 8 | D24: 8 | E24: 8 | F24: 8
A25: A9 | B25: SECONCI | C25: 1 | D25: 1 | E25: 0 | F25: 0
A26: A | B26: Total | C26: =SUM(C17:C25) -> 17.8 | D26: =SUM(D17:D25) -> 17.8 | E26: =SUM(E17:E25) -> 36.8 | F26: =SUM(F17:F25) -> 36.8
A27: GRUPO B
A28: B1 | B28: Repouso Semanal Remunerado | C28: 17.88 | D28: - | E28: 17.84 | F28: -
A29: B2 | B29: Feriados | C29: 3.94 | D29: - | E29: 3.71 | F29: -
A30: B3 | B30: Auxílio-enfermidade | C30: 0.91 | D30: 0.69 | E30: 0.87 | F30: 0.67
A31: B4 | B31: 13° salário | C31: 10.98 | D31: 8.33 | E31: 10.8 | F31: 8.33
A32: B5 | B32: Licença-paternidade | C32: 0.07 | D32: 0.06 | E32: 0.07 | F32: 0.06
A33: B6 | B33: Faltas Justificadas | C33: 0.73 | D33: 0.56 | E33: 0.72 | F33: 0.56
A34: B7 | B34: Dias de chuva | C34: 1.45 | D34: - | E34: 1.55 | F34: 0
A35: B8 | B35: Auxílio Acidente de Trabalho | C35: 0.11 | D35: 0.09 | E35: 0.11 | F35: 0.08
A36: B9 | B36: Férias Gozadas | C36: 11.35 | D36: 8.62 | E36: 8.71 | F36: 6.73
A37: B10 | B37: Salário Maternidade | C37: 0.03 | D37: 0.03 | E37: 0.03 | F37: 0.03
A38: B | B38: Total | C38: =SUM(C28:C37) -> 47.45 | D38: =SUM(D28:D37) -> 18.38 | E38: =SUM(E28:E37) -> 44.41 | F38: =SUM(F28:F37) -> 16.46
A39: GRUPO C
A40: C1 | B40: Aviso Prévio Indenizado | C40: 6.76 | D40: 5.14 | E40: 5.4 | F40: 4.17
A41: C2 | B41: Aviso Prévio Trabalhado | C41: 0.16 | D41: 0.12 | E41: 0.13 | F41: 0.1
A42: C3 | B42: Férias Indenizadas | C42: 2.28 | D42: 1.73 | E42: 4.85 | F42: 3.75
A43: C4 | B43: Depósito Rescisão Sem Justa Causa | C43: 3.81 | D43: 2.89 | E43: 3.9 | F43: 3.01
A44: C5 | B44: Indenização Adicional | C44: 0.57 | D44: 0.43 | E44: 0.45 | F44: 0.35
A45: C | B45: Total | C45: =SUM(C40:C44) -> 13.58 | D45: =SUM(D40:D44) -> 10.31 | E45: =SUM(E40:E44) -> 14.73 | F45: =SUM(F40:F44) -> 11.38
A46: GRUPO D
A47: D1 | B47: Reincidência de A sobre B | C47: 8.45 | D47: 3.27 | E47: 16.34 | F47: 6.06
A48: D2 | B48: Reincidência de Grupo A sobre Aviso Prévio Trabalhado e Reincidência do FGTS sobre Aviso Prévio Indenizado | C48: 0.57 | D48: 0.43 | E48: 0.48 | F48: 0.37
A49: D | B49: Total | C49: =SUM(C47:C48) -> 9.02 | D49: =SUM(D47:D48) -> 3.7 | E49: =SUM(E47:E48) -> 16.82 | F49: 6.43
A51: T O T A L (%) | C51: =C26+C38+C45+C49 -> 87.85 | D51: =D26+D38+D45+D49 -> 50.19 | E51: =E26+E38+E45+E49 -> 112.76 | F51: =F26+F38+F45+F49 -> 71.07

Sheet Mob e Desmob
A5: ='RESUMO MODULO MINIMO'!A1 -> EXECUÇÃO DE SERVIÇOS DE IMPLANTAÇÃO DE PAVIMENTAÇÃO EM BLOCO DE CONCRETO INTERTRAVADO, EM VIAS URBANAS E RURAIS DE MUNÍCIPIOS DIVERSOS INSERIDOS NA ÁREA DE ATUAÇÃO DA CODEVASF, NO ESTADO DO CEARÁ
A7: MEMÓRIA DE CÁLCULO DOS MOMENTOS DE TRANSPORTE PARA MOBILIZAÇÃO E DESMOBILIZAÇÃO
A10: Deslocamento:
C11: Distancia méd. (Km) | D11: Qtde. | E11: Total (Km)
A12: Mobilização (entre os trechos de serviço): | C12: 1 | D12: 1 | E12: =C12*D12 -> 1
A13: Desmobilização (entre os trechos de serviço): | C13: 1 | D13: 1 | E13: =C13*D13 -> 1
A14: Mobilização inter-municipal (entre as localidades): | C14: 10 | D14: 1 | E14: =C14*D14 -> 10
A15: Desmobilização inter-municipal (entre as localidades): | C15: 10 | D15: 1 | E15: =C15*D15 -> 10
A16: Mobilização - Total (km) | E16: =E12+E14 -> 11
A17: Desmobilização - Total (km) | E17: =E13+E15 -> 11
A20: Peso das máquinas:
E21: Pá carregadeira | H21: 10.1 | I21: ton
E22: Motoniveladora | H22: 12.47 | I22: ton
E23: Trator de pneus | H23: 2.8 | I23: ton
E24: Rolo Compactador | H24: 15.33 | I24: ton
E25: Grade de disco | H25: 1 | I25: ton
E26: Usina misturadora | H26: 20 | I26: ton
E28: Total | H28: =ROUND(SUM(H20:H27),2) -> 61.7 | I28: ton
A30: Portanto: | B30: Portanto
A31: Mobilização - Total (km) | E31: =E16*H28 -> 678.7 | F31: t x km
A32: Desmobilização - Total (km) | E32: =E17*H28 -> 678.7 | F32: t x km
A39: E9010 | B39: Balança plataforma digital com mesa de 75 x 75 cm com capacidade de 500 kg | I39: Caminhão carroceria
A40: E9064 | B40: Transportador manual gerica com capacidade de 180 l | I40: Caminhão carroceria
A41: E9066 | B41: Grupo gerador - 13/14 kVA | I41: Caminhão carroceria
A42: E9071 | B42: Transportador manual carrinho de mão com capacidade de 80 l | I42: Caminhão carroceria
A43: E9076 | B43: Equipamento de pintura com cabine de 7,00 kW e estufa de 80.000 kCal para pintura eletrostática | I43: Caminhão carroceria
A44: E9519 | B44: Betoneira com motor a gasolina com capacidade de 600 l - 10 kW | I44: Caminhão carroceria
A45: E9521 | B45: Grupo gerador - 2,5/3 kVA | I45: Caminhão carroceria
A46: E9568 | B46: Furadeira de impacto de 12,5 mm - 0,8 kW | I46: Caminhão carroceria
A47: E9622 | B47: Máquina de bancada universal para corte de chapa - 1,5 kW | I47: Caminhão carroceria
A48: E9623 | B48: Máquina de bancada guilhotina - 4 kW | I48: Caminhão carroceria
A49: E9675 | B49: Martelete perfurador/rompedor elétrico - 1,5 kW | I49: Caminhão carroceria
A50: E9779 | B50: Grupo gerador - 100/110 kVA | I50: Caminhão carroceria
A53: E9506 | B53: Caminhão basculante com capacidade de 6 m³ - 136 kW | I53: Rodoviario
A54: E9571 | B54: Caminhão tanque com capacidade de 10.000 l - 188 kW | I54: Rodoviario
A55: E9579 | B55: Caminhão basculante com capacidade de 10 m³ - 188 kW | I55: Rodoviario
A56: E9592 | B56: Caminhão carroceria com capacidade de 15 t - 188 kW | I56: Rodoviario
A57: E9644 | B57: Caminhão demarcador de faixas com sistema de pintura a frio - 28 kW/115 kW | I57: Rodoviario
A58: E9686 | B58: Caminhão carroceria com guindauto com capacidade de 20 t.m - 136 kW | I58: Rodoviario
A59: E9687 | B59: Caminhão carroceria com capacidade de 5 t - 115 kW | I59: Rodoviario
A60: E9514 | B60: Distribuidor de agregados autopropelido - 130 kW | I60: Rodoviario
A62: E9511 | B62: Carregadeira de pneus com capacidade de 3,40 m³ - 195 kW | I62: TRANSPORTE COM CAVALO MECÂNICO COM SEMIRREBOQUE COM CAPACIDADE DE 30 T - RODOVIA PAVIMENTADA
A63: E9524 | B63: Motoniveladora - 93 kW | I63: TRANSPORTE COM CAVALO MECÂNICO COM SEMIRREBOQUE COM CAPACIDADE DE 30 T - RODOVIA PAVIMENTADA
A64: E9530 | B64: Rolo compactador liso autopropelido vibratório de 11 t - 97 kW | I64: TRANSPORTE COM CAVALO MECÂNICO COM SEMIRREBOQUE COM CAPACIDADE DE 30 T - RODOVIA PAVIMENTADA
A65: E9577 | B65: Trator agrícola - 77 kW | I65: TRANSPORTE COM CAVALO MECÂNICO COM SEMIRREBOQUE COM CAPACIDADE DE 30 T - RODOVIA PAVIMENTADA
A66: E9685 | B66: Rolo compactador pé de carneiro vibratório autopropelido de 11,6 t - 82 kW | I66: TRANSPORTE COM CAVALO MECÂNICO COM SEMIRREBOQUE COM CAPACIDADE DE 30 T - RODOVIA PAVIMENTADA
A67: E9762 | B67: Rolo compactador de pneus autopropelido de 27 t - 85 kW | I67: TRANSPORTE COM CAVALO MECÂNICO COM SEMIRREBOQUE COM CAPACIDADE DE 30 T - RODOVIA PAVIMENTADA
A68: E9518 | B68: Grade de 24 discos rebocável de 24" | I68: TRANSPORTE COM CAVALO MECÂNICO COM SEMIRREBOQUE COM CAPACIDADE DE 30 T - RODOVIA PAVIMENTADA
A69: E9615 | B69: Usina misturadora de solos com capacidade de 300 t/h | I69: TRANSPORTE COM CAVALO MECÂNICO COM SEMIRREBOQUE COM CAPACIDADE DE 30 T - RODOVIA PAVIMENTADA

Sheet RESUMO MODULO MINIMO
A1: EXECUÇÃO DE SERVIÇOS DE IMPLANTAÇÃO DE PAVIMENTAÇÃO EM BLOCO DE CONCRETO INTERTRAVADO, EM VIAS URBANAS E RURAIS DE MUNÍCIPIOS DIVERSOS INSERIDOS NA ÁREA DE ATUAÇÃO DA CODEVASF, NO ESTADO DO CEARÁ | J1: Extensão (km)
C4: MÓDULO MÍNIMO
A5: =A1 -> EXECUÇÃO DE SERVIÇOS DE IMPLANTAÇÃO DE PAVIMENTAÇÃO EM BLOCO DE CONCRETO INTERTRAVADO, EM VIAS URBANAS E RURAIS DE MUNÍCIPIOS DIVERSOS INSERIDOS NA ÁREA DE ATUAÇÃO DA CODEVASF, NO ESTADO DO CEARÁ
A6: ITEM | B6: ORIGEM COMPOSIÇÃO | C6: CÓDIGO COMPOSIÇÃO | D6: DISCRIMINAÇÃO DOS SERVIÇOS | H6: BDI %: | I6: =BDI!E25 -> 0.2158381752 | J6: R$/m² | K6: =L33/I15 -> 109.2053539 | L6: PERCENTUAL DE RISCO
H7: Total de m² | I7: Encargos Sociais: | J7: Horista | K7: Mensalista | L7: 0.0107
H8: =I15 -> 7000 | J8: ='ENC. SOCIAIS'!$E$51 -> 112.76 | K8: ='ENC. SOCIAIS'!$F$51 -> 71.07
H9: UND | I9: QTDE. | J9: PREÇO UNITÁRIO COM BDI COM RISCO 0 (R$) | K9: PREÇO TOTAL COM BDI RISCO 0 (R$) | L9: PREÇO TOTAL COM CONTINGÊNCIA (R$) | N9: PREÇO TOTAL (R$)
D10: MOBILIZAÇÃO
A11: 1 | B11: Codevasf | C11: Composição Própria | D11: Implantação da Obra | H11: modulo | I11: ='MC MODULO'!$D$17 -> 1 | J11: ='SERVIÇOS PRELI'!I15 -> 1257.99 | K11: =ROUND(I11*J11,2) -> 1257.99 | L11: =K11*(1+$L$7) -> 1271.450493 | N11: 1268.23
A12: 2 | B12: Codevasf | C12: Composição Própria | D12: Administração da Obra | H12: modulo | I12: ='MC MODULO'!$D$22 -> 1 | J12: ='SERVIÇOS PRELI'!$I$24 -> 5861.84 | K12: =ROUND(I12*J12,2) -> 5861.84 | L12: =K12*(1+$L$7) -> 5924.561688 | N12: 5909.52
A13: 3 | B13: Codevasf | C13: Composição Própria | D13: Placa de Obra em Chapa de Aço Galvanizado | H13: und | I13: 1 | J13: ='SERVIÇOS PRELI'!I19 -> 404.49 | K13: 404.49 | L13: 408.818043 | N13: 407.78
D14: TERRAPLANAGEM
A15: 4 | B15: Codevasf | C15: Composição Própria | D15: serviços topográficos para pavimentação, inclusive notas de serviços, acompanhamento e greide | H15: m² | I15: ='MC MODULO'!F29 -> 7000 | J15: ='CPU CODEVASF'!H90 -> 0.47 | K15: =ROUND(I15*J15,2) -> 3290 | L15: =K15*(1+$L$7) -> 3325.203 | N15: 3360
A16: 5 | B16: SICRO | C16: 5502114 | D16: Escavação, carga e transporte de material de 1ª categoria - DMT de 1.000 a 1.200 m - caminho de serviço em leito natural - com escavadeira e caminhão basculante de 14 m³ | H16: m³ | I16: ='MC MODULO'!$H$34 -> 700 | J16: =CPU_SICRO!I712 -> 6.39 | K16: 4473 | L16: 4520.8611 | N16: 4515
A17: 6 | B17: SICRO | C17: 5502114 | D17: Espalhamento de material em bota-fora | H17: m³ | I17: ='MC MODULO'!$H$41 -> 700 | J17: =CPU_SICRO!I744 -> 1.51 | K17: 1057 | L17: 1068.3099 | N17: 1064
D18: PAVIMENTAÇÃO
A19: 7 | B19: SINAPI | C19: 92394 | D19: Execução de Pavimento em Piso Intertravado, com Bloco Sextavado de 25 X 25 cm, espessura 8 cm. AF_12/2015 | H19: m² | I19: ='MC MODULO'!$F$49 -> 7000 | J19: ='CPU SINAPI'!$G$5 -> 65.13 | K19: =ROUND(I19*J19,2) -> 455910 | L19: =K19*(1+$L$7) -> 460788.237 | N19: 459620
A20: 8 | B20: SICRO | C20: 4011276 | D20: Base ou sub-base de brita graduada com brita comercial | H20: m³ | I20: ='MC MODULO'!$H$55 -> 1050 | J20: =CPU_SICRO!$I$35 -> 193.96 | K20: 203658 | L20: 205837.1406 | N20: 205317
A21: 9 | B21: SICRO | C21: 4011209 | D21: Regularização do subleito | H21: m² | I21: ='MC MODULO'!$H$61 -> 7000 | J21: =CPU_SICRO!$I$139 -> 0.96 | K21: 6720 | L21: 6791.904 | N21: 6790
D22: SINALIZAÇÃO
A23: 10 | B23: SICRO | C23: 5213440 | D23: Fornecimento e implantação de placa de regulamentação em aço D = 0,60 m - película retrorrefletiva tipo I + SI | H23: und | I23: ='MC MODULO'!$H$69 -> 0.5 | J23: =CPU_SICRO!$I$173 -> 243.56 | K23: =ROUND(I23*J23,2) -> 121.78 | L23: =K23*(1+$L$7) -> 123.083046 | N23: 122.78
A24: 11 | B24: SICRO | C24: ='RESUMO MODULO TOTAL'!C24 -> 5213863 | D24: Fornecimento e implantação de suporte metálico galvanizado para placa de regulamentação - D = 0,60 m | H24: und | I24: ='MC MODULO'!$H$75 -> 0.5 | J24: =CPU_SICRO!$I$398 -> 318.75 | K24: 159.38 | L24: 161.085366 | N24: 160.67
D25: DRENAGEM
A26: 12 | B26: SICRO | C26: 2003373 | D26: Meio fio de concreto - MFC 03 - areia e brita comerciais - fôrma de madeira | H26: m | I26: ='MC MODULO'!$H$82 -> 2000 | J26: =CPU_SICRO!I638 -> 28.64 | K26: =ROUND(I26*J26,2) -> 57280 | L26: =K26*(1+$L$7) -> 57892.896 | N26: 57740
D27: LIMPEZA GERAL
A28: 13 | B28: Codevasf | C28: Composição Própria | D28: Limpeza Geral | H28: m² | I28: ='MC MODULO'!$H$90 -> 7000 | J28: ='CPU CODEVASF'!$H$66 -> 1 | K28: =ROUND(I28*J28,2) -> 7000 | L28: =K28*(1+$L$7) -> 7074.9 | N28: 7070
D29: SERVIÇOS COMPLEMENTARES
A30: 14 | B30: Codevasf | C30: Composição Própria | D30: Conserto de quebra no ramal na rua sem pavimento com fornecimento de material hidráulico | H30: m | I30: ='MC MODULO'!H97 -> 100 | J30: ='CPU CODEVASF'!H77 -> 16.73 | K30: =ROUND(I30*J30,2) -> 1673 | L30: =K30*(1+$L$7) -> 1690.9011 | N30: 1687
D31: PROJETO EXECUTIVO
A32: 15 | B32: Codevasf | C32: Composição Própria | D32: Projeto Executivo | H32: km | I32: ='MC MODULO'!$H$104 -> 1 | J32: ='Projeto Executivo'!G32 -> 7478.106368 | K32: =ROUND(I32*J32,2) -> 7478.11 | L32: =K32*(1+$L$7) -> 7558.125777 | N32: 7478.11
A33: VALOR TOTAL DO SRP | K33: =SUM(K11:K32) -> 756344.59 | L33: =SUM(L11:L32) -> 764437.4771 | N33: =SUM(N11:N32) -> 762510.09

Sheet CRONOGRAMA MINIMO
A2: MÓDULO MÍNIMO
A3: ='RESUMO MODULO MINIMO'!$A$5 -> EXECUÇÃO DE SERVIÇOS DE IMPLANTAÇÃO DE PAVIMENTAÇÃO EM BLOCO DE CONCRETO INTERTRAVADO, EM VIAS URBANAS E RURAIS DE MUNÍCIPIOS DIVERSOS INSERIDOS NA ÁREA DE ATUAÇÃO DA CODEVASF, NO ESTADO DO CEARÁ
A4: Cronograma Físico e Financeiro
A5: Item | B5: Descrição | C5: Total Por Etapa | D5: 30 DIAS | E5: 60 DIAS | F5: 90 DIAS | G5: 120 DIAS | H5: 150 DIAS | I5: 180 DIAS | J5: 210 DIAS | K5: 240 DIAS | L5: 270 DIAS | M5: 300 DIAS | N5: 330 DIAS | O5: 360 DIAS
B6: ='RESUMO MODULO MINIMO'!$D$10 -> MOBILIZAÇÃO | C6: 1 | E6: =$C$6/11 -> 0.09090909091 | F6: =$C$6/11 -> 0.09090909091 | G6: 0.09090909091 | H6: 0.09090909091 | I6: 0.09090909091 | J6: 0.09090909091 | K6: 0.09090909091 | L6: 0.09090909091 | M6: 0.09090909091 | N6: 0.09090909091 | O6: 0.09090909091 | Q6: =SUM(D6:O6) -> 1
C7: =SUM('RESUMO MODULO MINIMO'!L11:L13) -> 7604.830224 | E7: =$C$7*E6 -> 691.3482022 | F7: 691.3482022 | G7: 691.3482022 | H7: 691.3482022 | I7: 691.3482022 | J7: 691.3482022 | K7: 691.3482022 | L7: 691.3482022 | M7: 691.3482022 | N7: 691.3482022 | O7: 691.3482022 | Q7: =SUM(D7:O7) -> 7604.830224 | R7: =C7 -> 7604.830224 | S7: =Q7-R7 -> 0
B8: ='RESUMO MODULO MINIMO'!D14 -> TERRAPLANAGEM | C8: 1 | F8: =$C$10/10 -> 0.1 | G8: =$C$10/10 -> 0.1 | H8: 0.1 | I8: 0.1 | J8: 0.1 | K8: 0.1 | L8: 0.1 | M8: 0.1 | N8: 0.1 | O8: 0.1 | Q8: =SUM(F8:O8) -> 1
C9: =SUM('RESUMO MODULO MINIMO'!L15:L17) -> 8914.374 | F9: =$C$9*F8 -> 891.4374 | G9: =$C$9*G8 -> 891.4374 | H9: 891.4374 | I9: 891.4374 | J9: 891.4374 | K9: 891.4374 | L9: 891.4374 | M9: 891.4374 | N9: 891.4374 | O9: 891.4374 | Q9: 8914.374 | R9: =C9 -> 8914.374 | S9: =Q9-R9 -> 0
B10: ='RESUMO MODULO MINIMO'!$D$18 -> PAVIMENTAÇÃO | C10: 1 | F10: =$C$10/10 -> 0.1 | G10: 0.1 | H10: 0.1 | I10: 0.1 | J10: 0.1 | K10: 0.1 | L10: 0.1 | M10: 0.1 | N10: 0.1 | O10: 0.1 | Q10: 1
C11: =SUM('RESUMO MODULO MINIMO'!L19:L21) -> 673417.2816 | F11: =$C$11*F10 -> 67341.72816 | G11: =$C$11*G10 -> 67341.72816 | H11: 67341.72816 | I11: 67341.72816 | J11: 67341.72816 | K11: 67341.72816 | L11: 67341.72816 | M11: 67341.72816 | N11: 67341.72816 | O11: 67341.72816 | Q11: 673417.2816 | R11: =C11 -> 673417.2816 | S11: =Q11-R11 -> 0
B12: ='RESUMO MODULO MINIMO'!$D$22 -> SINALIZAÇÃO | C12: 1 | F12: =$C$12/10 -> 0.1 | G12: =(100%-$F$12)/9 -> 0.1 | H12: =(100%-$F$12)/9 -> 0.1 | I12: 0.1 | J12: 0.1 | K12: 0.1 | L12: 0.1 | M12: 0.1 | N12: 0.1 | O12: 0.1 | Q12: 1
C13: =SUM('RESUMO MODULO MINIMO'!L23:L24) -> 284.168412 | F13: =$C$13*F12 -> 28.4168412 | G13: 28.4168412 | H13: 28.4168412 | I13: 28.4168412 | J13: 28.4168412 | K13: 28.4168412 | L13: 28.4168412 | M13: 28.4168412 | N13: 28.4168412 | O13: 28.4168412 | Q13: 284.168412 | R13: =C13 -> 284.168412 | S13: 0
B14: ='RESUMO MODULO MINIMO'!$D$25 -> DRENAGEM | C14: 1 | F14: =$C$14/10 -> 0.1 | G14: =$C$14/10 -> 0.1 | H14: 0.1 | I14: 0.1 | J14: 0.1 | K14: 0.1 | L14: 0.1 | M14: 0.1 | N14: 0.1 | O14: 0.1 | Q14: =SUM(D14:O14) -> 1
C15: =SUM('RESUMO MODULO MINIMO'!L26) -> 57892.896 | F15: =$C$15*F14 -> 5789.2896 | G15: =$C$15*G14 -> 5789.2896 | H15: 5789.2896 | I15: 5789.2896 | J15: 5789.2896 | K15: 5789.2896 | L15: 5789.2896 | M15: 5789.2896 | N15: 5789.2896 | O15: 5789.2896 | Q15: 57892.896 | R15: =C15 -> 57892.896 | S15: 0
B16: ='RESUMO MODULO MINIMO'!$D$27 -> LIMPEZA GERAL | C16: 1 | F16: =100%/10 -> 0.1 | G16: =100%/10 -> 0.1 | H16: 0.1 | I16: 0.1 | J16: 0.1 | K16: 0.1 | L16: 0.1 | M16: 0.1 | N16: 0.1 | O16: 0.1 | Q16: =SUM(D16:O16) -> 1
C17: =SUM('RESUMO MODULO MINIMO'!L28) -> 7074.9 | F17: =$C$17*F16 -> 707.49 | G17: 707.49 | H17: 707.49 | I17: 707.49 | J17: 707.49 | K17: 707.49 | L17: 707.49 | M17: 707.49 | N17: 707.49 | O17: 707.49 | Q17: 7074.9 | R17: =C17 -> 7074.9 | S17: =Q17-R17 -> 0
B18: ='RESUMO MODULO MINIMO'!D29 -> SERVIÇOS COMPLEMENTARES | C18: 1 | F18: =100%/10 -> 0.1 | G18: 0.1 | H18: 0.1 | I18: 0.1 | J18: 0.1 | K18: 0.1 | L18: 0.1 | M18: 0.1 | N18: 0.1 | O18: 0.1 | Q18: =SUM(D18:O18) -> 1
C19: ='RESUMO MODULO MINIMO'!L30 -> 1690.9011 | F19: =$C$19*F18 -> 169.09011 | G19: =$C$19*G18 -> 169.09011 | H19: 169.09011 | I19: 169.09011 | J19: 169.09011 | K19: 169.09011 | L19: 169.09011 | M19: 169.09011 | N19: 169.09011 | O19: 169.09011 | Q19: 1690.9011 | R19: =C19 -> 1690.9011 | S19: =Q19-R19 -> 0
B20: ='RESUMO MODULO MINIMO'!$D$31 -> PROJETO EXECUTIVO | C20: 1 | D20: 0.5 | E20: 0.5 | Q20: =SUM(D20:O20) -> 1
C21: ='RESUMO MODULO MINIMO'!L32 -> 7558.125777 | D21: =$C$21*D20 -> 3779.062888 | E21: =$C$21*E20 -> 3779.062888 | Q21: 7558.125777 | R21: =C21 -> 7558.125777 | S21: =Q21-R21 -> 0
A23: Porcentagem | D23: =SUM(D7+D9+D11+D13+D15+D17+D19+D21)/$O$28 -> 0.004943586626 | E23: =SUM(E7+E9+E11+E13+E15+E17+E19+E21)/$O$28 -> 0.005847974785 | F23: 0.09892084386 | G23: 0.09892084386 | H23: 0.09892084386 | I23: 0.09892084386 | J23: 0.09892084386 | K23: 0.09892084386 | L23: 0.09892084386 | M23: 0.09892084386 | N23: 0.09892084386 | O23: 0.09892084386
A24: Custo | D24: =$O$28*D23 -> 3779.062888 | E24: =$O$28*E23 -> 4470.411091 | F24: =$O$28*F23 -> 75618.80031 | G24: 75618.80031 | H24: 75618.80031 | I24: 75618.80031 | J24: 75618.80031 | K24: 75618.80031 | L24: 75618.80031 | M24: 75618.80031 | N24: 75618.80031 | O24: 75618.80031
A25: Porcentagem Acumulado | D25: =D23 -> 0.004943586626 | E25: =D25+E23 -> 0.01079156141 | F25: =E25+F23 -> 0.1097124053 | G25: 0.2086332491 | H25: 0.307554093 | I25: 0.4064749368 | J25: 0.5053957807 | K25: 0.6043166246 | L25: 0.7032374684 | M25: 0.8021583123 | N25: 0.9010791561 | O25: 1
A26: Custo Acumulado | D26: =D24 -> 3779.062888 | E26: =D26+E24 -> 8249.473979 | F26: 83868.27429 | G26: 159487.0746 | H26: 235105.8749 | I26: 310724.6752 | J26: 386343.4755 | K26: 461962.2759 | L26: 537581.0762 | M26: 613199.8765 | N26: 688818.6768 | O26: 764437.4771
D28: Total Geral | N28: R$ | O28: ='RESUMO MODULO MINIMO'!L33 -> 764437.4771

Sheet MC MODULO
H2: ='RESUMO MODULO MINIMO'!L33 -> 764437.4771
H4: =ROUND(H2/(E11*1000*E9),3) -> 109.205
C8: Extensão | D8: = | E8: 1000 | F8: m | H8: QUANTIDADE DE MODULOS | I8: 80
C9: Largura | D9: = | E9: 7 | F9: m
C11: Extensão | D11: = | E11: 1 | F11: km
B13: MOBUILIZAÇÃO | L13: MOBUILIZAÇÃO
A14: 1 | B14: Implantação da obra | K14: 1 | L14: Implantação da obra
B16: Extensão (km) | D16: Extensão (km) | L16: Extensão (km) | N16: Extensão (km)
B17: =E11 -> 1 | C17: = | D17: =B17 -> 1 | L17: =E11*$I$8 -> 80 | M17: = | N17: =L17 -> 80
A19: 2 | B19: Administração da obra | K19: 2 | L19: Administração da obra
B21: Extensão (km) | D21: Extensão (km) | L21: Extensão (km) | N21: Extensão (km)
B22: =E11 -> 1 | C22: = | D22: =B22 -> 1 | L22: =E11*$I$8 -> 80 | M22: = | N22: =L22 -> 80
B24: TERRAPLENAGEM | L24: TERRAPLENAGEM
A26: 4 | B26: serviços topográficos para pavimentação, inclusive notas de serviços, acompanhamento e greide | K26: 4 | L26: serviços topográficos para pavimentação, inclusive notas de serviços, acompanhamento e greide
B28: Extensão (m) | D28: Largura (m) | F28: Área (m2) | L28: Extensão (m) | N28: Largura (m) | P28: Área (m2)
B29: =E8 -> 1000 | C29: x | D29: =$E$9 -> 7 | E29: = | F29: =B29*D29 -> 7000 | L29: =E8*I8 -> 80000 | M29: x | N29: =$E$9 -> 7 | O29: = | P29: =L29*N29 -> 560000
A31: 5 | B31: ='RESUMO MODULO MINIMO'!D16 -> Escavação, carga e transporte de material de 1ª categoria - DMT de 1.000 a 1.200 m - caminho de serviço em leito natural - com escavadeira e caminhão basculante de 14 m³ | K31: 5
B33: Extensão (m) | D33: Largura (m) | F33: Espessura (m) | H33: Volume (m3) | L33: Extensão (m) | N33: Largura (m) | P33: Espessura (m) | R33: Volume (m3)
B34: =E8 -> 1000 | C34: x | D34: =$E$9 -> 7 | E34: x | F34: 0.1 | G34: = | H34: =B34*D34*F34 -> 700 | L34: =E8*I8 -> 80000 | M34: x | N34: =$E$9 -> 7 | O34: x | P34: 0.1 | Q34: = | R34: =L34*N34*P34 -> 56000
A38: 6 | B38: ='RESUMO MODULO MINIMO'!D17 -> Espalhamento de material em bota-fora | K38: 6
B40: Extensão (m) | D40: Largura (m) | F40: Espessura (m) | H40: Volume (m3) | L40: Extensão (m) | N40: Largura (m) | P40: Espessura (m) | R40: Volume (m3)
B41: =$E$8 -> 1000 | C41: x | D41: =$E$9 -> 7 | E41: x | F41: 0.1 | G41: = | H41: =B41*D41*F41 -> 700 | L41: =$E$8*I8 -> 80000 | M41: x | N41: =$E$9 -> 7 | O41: x | P41: 0.1 | Q41: = | R41: =L41*N41*P41 -> 56000
B44: PAVIMENTAÇÃO | L44: PAVIMENTAÇÃO
A46: 7 | B46: Execução de pavimento em piso intertravado, com bloco sextavado de 25 x 25 cm, espessura 8 cm. af_12/2015 | K46: 7 | L46: Execução de pavimento em piso intertravado, com bloco sextavado de 25 x 25 cm, espessura 8 cm. af_12/2015
B48: Extensão (m) | D48: Largura (m) | F48: Área (m2) | L48: Extensão (m) | N48: Largura (m) | P48: Área (m2)
B49: =E8 -> 1000 | C49: x | D49: =$E$9 -> 7 | E49: = | F49: =B49*D49 -> 7000 | L49: =E8*I8 -> 80000 | M49: x | N49: =$E$9 -> 7 | O49: = | P49: =L49*N49 -> 560000
A52: 8 | B52: Base ou sub-base de brita graduada com brita comercial | K52: 8 | L52: Base ou sub-base de brita graduada com brita comercial
B54: Extensão (m) | D54: Largura (m) | F54: Espessura (m) | H54: Volume (m3) | L54: Extensão (m) | N54: Largura (m) | P54: Espessura (m) | R54: Volume (m3)
B55: =$E$8 -> 1000 | C55: x | D55: =$E$9 -> 7 | E55: x | F55: 0.15 | G55: = | H55: =B55*D55*F55 -> 1050 | L55: =$E$8*$I$8 -> 80000 | M55: x | N55: =$E$9 -> 7 | O55: x | P55: 0.15 | Q55: = | R55: =L55*N55*P55 -> 84000
A58: 9 | B58: Regularização do subleito | K58: 9 | L58: Regularização do subleito
B60: Extensão (m) | D60: Largura (m) | H60: Volume (m2) | L60: Extensão (m) | N60: Largura (m) | R60: Volume (m2)
B61: =$E$8 -> 1000 | C61: x | D61: =$E$9 -> 7 | G61: = | H61: =B61*D61 -> 7000 | L61: =$E$8*$I$8 -> 80000 | M61: x | N61: =$E$9 -> 7 | Q61: = | R61: =L61*N61 -> 560000
B64: SINALIZAÇÃO | L64: SINALIZAÇÃO
A66: 10 | B66: Fornecimento e implantação de placa de regulamentação em aço D = 0,60 m - película retrorrefletiva tipo I + SI | K66: 10 | L66: Fornecimento e implantação de placa de regulamentação em aço D = 0,60 m - película retrorrefletiva tipo I + SI
B68: Extensão (km) | D68: Quant. (un) | H68: Quant. (un) | L68: Extensão (km) | N68: Quant. (un) | R68: Quant. (un)
B69: =$E$11 -> 1 | C69: x | D69: 0.5 | G69: = | H69: =B69*D69 -> 0.5 | L69: =$E$11*$I$8 -> 80 | M69: x | N69: 0.5 | Q69: = | R69: =L69*N69 -> 40
A72: 11 | B72: Fornecimento e implantação de suporte metálico galvanizado para placa de regulamentação - D = 0,60 m | K72: 11 | L72: Fornecimento e implantação de suporte metálico galvanizado para placa de regulamentação - D = 0,60 m
B74: Extensão (km) | D74: Quant. (un) | H74: Quant. (un) | L74: Extensão (km) | N74: Quant. (un) | R74: Quant. (un)
B75: =$E$11 -> 1 | C75: x | D75: 0.5 | G75: = | H75: =B75*D75 -> 0.5 | L75: =$E$11*$I$8 -> 80 | M75: x | N75: 0.5 | Q75: = | R75: =L75*N75 -> 40
B78: DRENAGEM | L78: DRENAGEM
A79: 12 | B79: Meio fio de concreto - MFC 04 - areia e brita comerciais - fôrma de madeira | K79: 12 | L79: Meio fio de concreto - MFC 04 - areia e brita comerciais - fôrma de madeira
B81: Extensão (m) | D81: Quant. (un) | H81: Volume (m) | L81: Extensão (m) | N81: Quant. (un) | R81: Volume (m)
B82: =$E$8 -> 1000 | C82: x | D82: 2 | G82: = | H82: =B82*D82 -> 2000 | L82: =$E$8*$I$8 -> 80000 | M82: x | N82: 2 | Q82: = | R82: =L82*N82 -> 160000
B86: LIMPEZA GERAL | L86: LIMPEZA GERAL
A87: 13 | B87: Limpeza Geral | K87: 13 | L87: Limpeza Geral
B89: Extensão (m) | D89: Largura (m) | F89: Quant. (un) | H89: Volume (m2) | L89: Extensão (m) | N89: Largura (m) | P89: Quant. (un) | R89: Volume (m2)
B90: =$E$8 -> 1000 | C90: x | D90: 7 | E90: x | F90: 1 | G90: = | H90: =B90*D90*F90 -> 7000 | L90: =$E$8*$I$8 -> 80000 | M90: x | N90: 7 | O90: x | P90: 1 | Q90: = | R90: =L90*N90*P90 -> 560000
B93: SERVIÇOS COMPLEMENTARES | L93: SERVIÇOS COMPLEMENTARES
A94: 14 | B94: ='RESUMO MODULO MINIMO'!D30 -> Conserto de quebra no ramal na rua sem pavimento com fornecimento de material hidráulico | K94: 14 | L94: ='RESUMO MODULO MINIMO'!O30 -> 0
B96: Extensão (m) | D96: Largura (m) | G96: 0.1 | H96: extensão (m) | L96: Extensão (m) | N96: Largura (m) | Q96: 0.1 | R96: extensão (m)
B97: =$E$8 -> 1000 | C97: x | D97: 1 | E97: x | G97: = | H97: =G96*B97 -> 100 | L97: =$E$8*I8 -> 80000 | M97: x | N97: 1 | O97: x | Q97: = | R97: =Q96*L97 -> 8000
B100: PROJETO EXECUTIVO | L100: PROJETO EXECUTIVO
A101: 15 | B101: Projeto Executivo | K101: 15 | L101: Projeto Executivo
B103: Extensão (m) | D103: Largura (m) | F103: Quant. (un) | H103: Volume (Km) | L103: Extensão (m) | N103: Largura (m) | P103: Quant. (un) | R103: Volume (Km)
B104: =E11 -> 1 | C104: x | E104: x | F104: 1 | G104: = | H104: =B104*F104 -> 1 | L104: =E11*I8 -> 80 | M104: x | O104: x | P104: 1 | Q104: = | R104: =L104*P104 -> 80

Sheet Excluido Relação Insumos
A1: cls | B1: fonte | C1: cod | D1: descrição | E1: unid | F1: PRECO UNITÁRIO (R$)
A2: INS. SINAPI | B2: SINAPI | C2: 370 | D2: AREIA MEDIA - POSTO JAZIDA/FORNECEDOR (RETIRADO NA JAZIDA, SEM TRANSPORTE) | E2: M3 | F2: =IF(A2="INS. SINAPI",VLOOKUP(C2,'Excluido INSUMOS SINAPI'!A:E,5,0),IF(A2="COMP. SINAPI",VLOOKUP(C2,'ExcluidoCOMPOSIÇÃO ANALI sinapi'!A:E,5,0),IF(A2="INS. SICRO",VLOOKUP(C2,'[12]INSUMOS SICRO'!B:F,5,0),""))) -> 80,00
A3: INS. SINAPI | B3: SINAPI | C3: 1379 | D3: CIMENTO PORTLAND COMPOSTO CP II-32 | E3: KG | F3: =IF(A3="INS. SINAPI",VLOOKUP(C3,'Excluido INSUMOS SINAPI'!A:E,5,0),IF(A3="COMP. SINAPI",VLOOKUP(C3,'ExcluidoCOMPOSIÇÃO ANALI sinapi'!A:E,5,0),IF(A3="INS. SICRO",VLOOKUP(C3,'[12]INSUMOS SICRO'!B:F,5,0),""))) -> 0,54
A4: INS. SINAPI | B4: SINAPI | C4: 1518 | D4: CONCRETO BETUMINOSO USINADO A QUENTE (CBUQ) PARA PAVIMENTACAO ASFALTICA, PADRAO DNIT, FAIXA C, COM CAP 50/70 - AQUISICAO POSTO USINA | E4: T | F4: =IF(A4="INS. SINAPI",VLOOKUP(C4,'Excluido INSUMOS SINAPI'!A:E,5,0),IF(A4="COMP. SINAPI",VLOOKUP(C4,'ExcluidoCOMPOSIÇÃO ANALI sinapi'!A:E,5,0),IF(A4="INS. SICRO",VLOOKUP(C4,'[12]INSUMOS SICRO'!B:F,5,0),""))) -> 400,00
A5: INS. SINAPI | B5: SINAPI | C5: 4059 | D5: MEIO-FIO OU GUIA DE CONCRETO, PRE-MOLDADO, COMP 1 M, *30 X 15/ 12* CM (H X L1/L2) | E5: M | F5: =IF(A5="INS. SINAPI",VLOOKUP(C5,'Excluido INSUMOS SINAPI'!A:E,5,0),IF(A5="COMP. SINAPI",VLOOKUP(C5,'ExcluidoCOMPOSIÇÃO ANALI sinapi'!A:E,5,0),IF(A5="INS. SICRO",VLOOKUP(C5,'[12]INSUMOS SICRO'!B:F,5,0),""))) -> 19,39
A6: COMP. ORSE | B6: ORSE | C6: 4299 | D6: Aluguel de container - Almoxarifado sem banheiro - 6,00 x 2,40m | E6: mês | F6: 600
A7: INSUMO | B7: ORSE | C7: 5896 | D7: Veículo leve - Volkswagen:GOL 1000 - automóvel até 100 hp | E7: H | F7: 8.33
A8: INS. SINAPI | B8: SINAPI | C8: 4417 | D8: Peca de madeira de lei *2,5 x 7,5* cm (1" x 3"), não aparelhada, (p/telhado) | E8: m | F8: =IF(A8="INS. SINAPI",VLOOKUP(C8,'Excluido INSUMOS SINAPI'!A:E,5,0),IF(A8="COMP. SINAPI",VLOOKUP(C8,'ExcluidoCOMPOSIÇÃO ANALI sinapi'!A:E,5,0),IF(A8="INS. SICRO",VLOOKUP(C8,'[12]INSUMOS SICRO'!B:F,5,0),""))) -> 5,17
A9: INS. SINAPI | B9: SINAPI | C9: 4491 | D9: Peca de madeira nativa / regional 7,5 x 7,5cm (3x3) nao aparelhada (p/forma) | E9: m | F9: =IF(A9="INS. SINAPI",VLOOKUP(C9,'Excluido INSUMOS SINAPI'!A:E,5,0),IF(A9="COMP. SINAPI",VLOOKUP(C9,'ExcluidoCOMPOSIÇÃO ANALI sinapi'!A:E,5,0),IF(A9="INS. SICRO",VLOOKUP(C9,'[12]INSUMOS SICRO'!B:F,5,0),""))) -> 9,04
A10: INS. SINAPI | B10: SINAPI | C10: 4718 | D10: Pedra Britada nº 2 | E10: m³ | F10: =IF(A10="INS. SINAPI",VLOOKUP(C10,'Excluido INSUMOS SINAPI'!A:E,5,0),IF(A10="COMP. SINAPI",VLOOKUP(C10,'ExcluidoCOMPOSIÇÃO ANALI sinapi'!A:E,5,0),IF(A10="INS. SICRO",VLOOKUP(C10,'[12]INSUMOS SICRO'!B:F,5,0),""))) -> 77,80
A11: INS. SINAPI | B11: SINAPI | C11: 4721 | D11: PEDRA BRITADA N. 1 (9,5 a 19 MM) POSTO PEDREIRA/FORNECEDOR, SEM FRETE | E11: M3 | F11: =IF(A11="INS. SINAPI",VLOOKUP(C11,'Excluido INSUMOS SINAPI'!A:E,5,0),IF(A11="COMP. SINAPI",VLOOKUP(C11,'ExcluidoCOMPOSIÇÃO ANALI sinapi'!A:E,5,0),IF(A11="INS. SICRO",VLOOKUP(C11,'[12]INSUMOS SICRO'!B:F,5,0),""))) -> 77,39
A12: INS. SINAPI | B12: SINAPI | C12: 4730 | D12: PEDRA DE MÃO | E12: m³ | F12: =IF(A12="INS. SINAPI",VLOOKUP(C12,'Excluido INSUMOS SINAPI'!A:E,5,0),IF(A12="COMP. SINAPI",VLOOKUP(C12,'ExcluidoCOMPOSIÇÃO ANALI sinapi'!A:E,5,0),IF(A12="INS. SICRO",VLOOKUP(C12,'[12]INSUMOS SICRO'!B:F,5,0),""))) -> 72,74
A13: INS. SINAPI | B13: SINAPI | C13: 4813 | D13: Placa de obra (para construcao civil) em chapa galvanizada *nº 22*, de *2,0 x 1,125* m | E13: m² | F13: =IF(A13="INS. SINAPI",VLOOKUP(C13,'Excluido INSUMOS SINAPI'!A:E,5,0),IF(A13="COMP. SINAPI",VLOOKUP(C13,'ExcluidoCOMPOSIÇÃO ANALI sinapi'!A:E,5,0),IF(A13="INS. SICRO",VLOOKUP(C13,'[12]INSUMOS SICRO'!B:F,5,0),""))) -> 225,00
A14: INS. SINAPI | B14: SINAPI | C14: 5075 | D14: Prego 18x30. | E14: kg | F14: =IF(A14="INS. SINAPI",VLOOKUP(C14,'Excluido INSUMOS SINAPI'!A:E,5,0),IF(A14="COMP. SINAPI",VLOOKUP(C14,'ExcluidoCOMPOSIÇÃO ANALI sinapi'!A:E,5,0),IF(A14="INS. SICRO",VLOOKUP(C14,'[12]INSUMOS SICRO'!B:F,5,0),""))) -> 18,26
A15: INS. SINAPI | B15: SINAPI | C15: 5318 | D15: SOLVENTE DILUENTE A BASE DE AGUARRAS | E15: L | F15: =IF(A15="INS. SINAPI",VLOOKUP(C15,'Excluido INSUMOS SINAPI'!A:E,5,0),IF(A15="COMP. SINAPI",VLOOKUP(C15,'ExcluidoCOMPOSIÇÃO ANALI sinapi'!A:E,5,0),IF(A15="INS. SICRO",VLOOKUP(C15,'[12]INSUMOS SICRO'!B:F,5,0),""))) -> 14,80
A16: COMP. SINAPI | B16: SINAPI | C16: 5689 | D16: GRADE DE 24 DISCOS REBOCÁVEL DE 24" | E16: CHP | F16: =IF(A16="INS. SINAPI",VLOOKUP(C16,'Excluido INSUMOS SINAPI'!A:E,5,0),IF(A16="COMP. SINAPI",VLOOKUP(C16,'Excluido COMP Sint. Sinapi'!A5:E6676,5,0),IF(A16="INS. SICRO",VLOOKUP(C16,'[12]INSUMOS SICRO'!B:F,5,0),""))) -> 5,73
A17: COMP. SINAPI | B17: SINAPI | C17: 5690 | D17: GRADE DE 24 DISCOS REBOCÁVEL DE 24" | E17: CHI | F17: =IF(A17="INS. SINAPI",VLOOKUP(C17,'Excluido INSUMOS SINAPI'!A:E,5,0),IF(A17="COMP. SINAPI",VLOOKUP(C17,'Excluido COMP Sint. Sinapi'!A6:E6677,5,0),IF(A17="INS. SICRO",VLOOKUP(C17,'[12]INSUMOS SICRO'!B:F,5,0),""))) -> 3,56
A18: COMP. SINAPI | B18: SINAPI | C18: 5795 | D18: MARTELETE PERFURADOR/ROMPEDOR A AR COMPRIMIDO DE 25 KG | E18: CHP | F18: =IF(A18="INS. SINAPI",VLOOKUP(C18,'Excluido INSUMOS SINAPI'!A:E,5,0),IF(A18="COMP. SINAPI",VLOOKUP(C18,'Excluido COMP Sint. Sinapi'!A6:E6678,5,0),IF(A18="INS. SICRO",VLOOKUP(C18,'[12]INSUMOS SICRO'!B:F,5,0),""))) -> 21,94
A19: COMP. SINAPI | B19: SINAPI | C19: 5845 | D19: TRATOR AGRÍCOLA - 77 KW | E19: CHI | F19: =IF(A19="INS. SINAPI",VLOOKUP(C19,'Excluido INSUMOS SINAPI'!A:E,5,0),IF(A19="COMP. SINAPI",VLOOKUP(C19,'Excluido COMP Sint. Sinapi'!A7:E6679,5,0),IF(A19="INS. SICRO",VLOOKUP(C19,'[12]INSUMOS SICRO'!B:F,5,0),""))) -> 36,40
A20: COMP. SINAPI | B20: SINAPI | C20: 5855 | D20: TRATOR DE ESTEIRAS COM LÂMINA - 259 KW | E20: CHP | F20: =IF(A20="INS. SINAPI",VLOOKUP(C20,'Excluido INSUMOS SINAPI'!A:E,5,0),IF(A20="COMP. SINAPI",VLOOKUP(C20,'Excluido COMP Sint. Sinapi'!A8:E6680,5,0),IF(A20="INS. SICRO",VLOOKUP(C20,'[12]INSUMOS SICRO'!B:F,5,0),""))) -> 500,25
A21: COMP. SINAPI | B21: SINAPI | C21: 5875 | D21: RETROESCAVADEIRA DE PNEUS - 58 KW | E21: H | F21: =IF(A21="INS. SINAPI",VLOOKUP(C21,'Excluido INSUMOS SINAPI'!A:E,5,0),IF(A21="COMP. SINAPI",VLOOKUP(C21,'Excluido COMP Sint. Sinapi'!A9:E6681,5,0),IF(A21="INS. SICRO",VLOOKUP(C21,'[12]INSUMOS SICRO'!B:F,5,0),""))) -> 97,98
A22: COMP. SINAPI | B22: SINAPI | C22: 5901 | D22: CAMINHÃO TANQUE COM CAPACIDADE DE 10.000 L - 188 KW | E22: CHP | F22: =IF(A22="INS. SINAPI",VLOOKUP(C22,'Excluido INSUMOS SINAPI'!A:E,5,0),IF(A22="COMP. SINAPI",VLOOKUP(C22,'Excluido COMP Sint. Sinapi'!A10:E6682,5,0),IF(A22="INS. SICRO",VLOOKUP(C22,'[12]INSUMOS SICRO'!B:F,5,0),""))) -> 221,57
A23: COMP. SINAPI | B23: SINAPI | C23: 5903 | D23: CAMINHÃO TANQUE COM CAPACIDADE DE 10.000 L - 188 KW | E23: CHI | F23: =IF(A23="INS. SINAPI",VLOOKUP(C23,'Excluido INSUMOS SINAPI'!A:E,5,0),IF(A23="COMP. SINAPI",VLOOKUP(C23,'Excluido COMP Sint. Sinapi'!A11:E6683,5,0),IF(A23="INS. SICRO",VLOOKUP(C23,'[12]INSUMOS SICRO'!B:F,5,0),""))) -> 40,52
A24: COMP. SINAPI | B24: SINAPI | C24: 5932 | D24: MOTONIVELADORA - 93 KW | E24: CHP | F24: =IF(A24="INS. SINAPI",VLOOKUP(C24,'Excluido INSUMOS SINAPI'!A:E,5,0),IF(A24="COMP. SINAPI",VLOOKUP(C24,'Excluido COMP Sint. Sinapi'!A12:E6684,5,0),IF(A24="INS. SICRO",VLOOKUP(C24,'[12]INSUMOS SICRO'!B:F,5,0),""))) -> 174,33
A25: COMP. SINAPI | B25: SINAPI | C25: 5934 | D25: MOTONIVELADORA - 93 KW | E25: CHI | F25: =IF(A25="INS. SINAPI",VLOOKUP(C25,'Excluido INSUMOS SINAPI'!A:E,5,0),IF(A25="COMP. SINAPI",VLOOKUP(C25,'Excluido COMP Sint. Sinapi'!A13:E6685,5,0),IF(A25="INS. SICRO",VLOOKUP(C25,'[12]INSUMOS SICRO'!B:F,5,0),""))) -> 60,64
A26: COMP. SINAPI | B26: SINAPI | C26: 5944 | D26: CARREGADEIRA DE PNEUS PARA ROCHA COM CAPACIDADE DE 2,9 M³ - 96 KW | E26: CHP | F26: =IF(A26="INS. SINAPI",VLOOKUP(C26,'Excluido INSUMOS SINAPI'!A:E,5,0),IF(A26="COMP. SINAPI",VLOOKUP(C26,'Excluido COMP Sint. Sinapi'!A14:E6686,5,0),IF(A26="INS. SICRO",VLOOKUP(C26,'[12]INSUMOS SICRO'!B:F,5,0),""))) -> 165,72
A27: COMP. SINAPI | B27: SINAPI | C27: 5946 | D27: CARREGADEIRA DE PNEUS PARA ROCHA COM CAPACIDADE DE 2,9 M³ - 96 KW | E27: CHI | F27: =IF(A27="INS. SINAPI",VLOOKUP(C27,'Excluido INSUMOS SINAPI'!A:E,5,0),IF(A27="COMP. SINAPI",VLOOKUP(C27,'Excluido COMP Sint. Sinapi'!A15:E6687,5,0),IF(A27="INS. SICRO",VLOOKUP(C27,'[12]INSUMOS SICRO'!B:F,5,0),""))) -> 64,59
A28: COMP. SINAPI | B28: SINAPI | C28: 5953 | D28: COMPRESSOR DE AR PORTÁTIL DE 124 PCM - 27 Kw | E28: CHP | F28: =IF(A28="INS. SINAPI",VLOOKUP(C28,'Excluido INSUMOS SINAPI'!A:E,5,0),IF(A28="COMP. SINAPI",VLOOKUP(C28,'Excluido COMP Sint. Sinapi'!A16:E6688,5,0),IF(A28="INS. SICRO",VLOOKUP(C28,'[12]INSUMOS SICRO'!B:F,5,0),""))) -> 44,70
A29: COMP. SINAPI | B29: SINAPI | C29: 7049 | D29: ROLO COMP. PÉ DE CARNEIRO VIBR. AUTOP. DE 11,6 T - 82 KW | E29: H | F29: =IF(A29="INS. SINAPI",VLOOKUP(C29,'Excluido INSUMOS SINAPI'!A:E,5,0),IF(A29="COMP. SINAPI",VLOOKUP(C29,'Excluido COMP Sint. Sinapi'!A17:E6689,5,0),IF(A29="INS. SICRO",VLOOKUP(C29,'[12]INSUMOS SICRO'!B:F,5,0),""))) -> 158,63
A30: INS. SINAPI | B30: SINAPI | C30: 7343 | D30: TINTA A BASE DE RESINA ACRILICA, PARA SINALIZACAO HORIZONTAL VIARIA (NBR 11862) | E30: L | F30: =IF(A30="INS. SINAPI",VLOOKUP(C30,'Excluido INSUMOS SINAPI'!A:E,5,0),IF(A30="COMP. SINAPI",VLOOKUP(C30,'Excluido COMP Sint. Sinapi'!A18:E6690,5,0),IF(A30="INS. SICRO",VLOOKUP(C30,'[12]INSUMOS SICRO'!B:F,5,0),""))) -> 10,15
A31: INS. SINAPI | B31: SINAPI | C31: 7348 | D31: TINTA ACRILICA PREMIUM PARA PISO | E31: L | F31: =IF(A31="INS. SINAPI",VLOOKUP(C31,'Excluido INSUMOS SINAPI'!A:E,5,0),IF(A31="COMP. SINAPI",VLOOKUP(C31,'Excluido COMP Sint. Sinapi'!A19:E6691,5,0),IF(A31="INS. SICRO",VLOOKUP(C31,'[12]INSUMOS SICRO'!B:F,5,0),""))) -> 15,43
A32: INS. SINAPI | B32: SINAPI | C32: 10775 | D32: Locação de container - Escritório com banheiro - 6,20 x 2,20m | E32: mês | F32: =IF(A32="INS. SINAPI",VLOOKUP(C32,'Excluido INSUMOS SINAPI'!A:E,5,0),IF(A32="COMP. SINAPI",VLOOKUP(C32,'Excluido COMP Sint. Sinapi'!A20:E6692,5,0),IF(A32="INS. SICRO",VLOOKUP(C32,'[12]INSUMOS SICRO'!B:F,5,0),""))) -> 900,00
A33: INS. SINAPI | B33: SINAPI | C33: 14250 | D33: ENERGIA | E33: KW/H | F33: =IF(A33="INS. SINAPI",VLOOKUP(C33,'Excluido INSUMOS SINAPI'!A:E,5,0),IF(A33="COMP. SINAPI",VLOOKUP(C33,'Excluido COMP Sint. Sinapi'!A21:E6693,5,0),IF(A33="INS. SICRO",VLOOKUP(C33,'[12]INSUMOS SICRO'!B:F,5,0),""))) -> 0,78
A34: INS. SINAPI | B34: SINAPI | C34: 14583 | D34: ÁGUA | E34: M3 | F34: =IF(A34="INS. SINAPI",VLOOKUP(C34,'Excluido INSUMOS SINAPI'!A:E,5,0),IF(A34="COMP. SINAPI",VLOOKUP(C34,'Excluido COMP Sint. Sinapi'!A22:E6694,5,0),IF(A34="INS. SICRO",VLOOKUP(C34,'[12]INSUMOS SICRO'!B:F,5,0),""))) -> 14,75
A35: INS. SINAPI | B35: SINAPI | C35: 25972 | D35: MICROESFERAS DE VIDRO PARA SINALIZACAO HORIZONTAL VIARIA, TIPO I-B (PREMIX) - NBR 16184 | E35: KG | F35: =IF(A35="INS. SINAPI",VLOOKUP(C35,'Excluido INSUMOS SINAPI'!A:E,5,0),IF(A35="COMP. SINAPI",VLOOKUP(C35,'Excluido COMP Sint. Sinapi'!A23:E6695,5,0),IF(A35="INS. SICRO",VLOOKUP(C35,'[12]INSUMOS SICRO'!B:F,5,0),""))) -> 13,05
A36: INS. SINAPI | B36: SINAPI | C36: 41899 | D36: CIMENTO ASFÁLTICO CAP 50/70 | E36: T | F36: =IF(A36="INS. SINAPI",VLOOKUP(C36,'Excluido INSUMOS SINAPI'!A:E,5,0),IF(A36="COMP. SINAPI",VLOOKUP(C36,'Excluido COMP Sint. Sinapi'!A24:E6696,5,0),IF(A36="INS. SICRO",VLOOKUP(C36,'[12]INSUMOS SICRO'!B:F,5,0),""))) -> 3.998,74
A37: INS. SINAPI | B37: SINAPI | C37: 41903 | D37: EMULSAO ASFALTICA CATIONICA RR-2C PARA USO EM PAVIMENTACAO ASFALTICA (COLETADO CAIXA NA ANP ACRESCIDO DE ICMS) | E37: KG | F37: =IF(A37="INS. SINAPI",VLOOKUP(C37,'Excluido INSUMOS SINAPI'!A:E,5,0),IF(A37="COMP. SINAPI",VLOOKUP(C37,'Excluido COMP Sint. Sinapi'!A25:E6697,5,0),IF(A37="INS. SICRO",VLOOKUP(C37,'[12]INSUMOS SICRO'!B:F,5,0),""))) -> 3,07
A38: COMP. SINAPI | B38: SINAPI | C38: 100574 | D38: ESPALHAMENTO DE MATERIAL COM TRATOR DE ESTEIRAS. AF_11/2019 | E38: M³ | F38: =IF(A38="INS. SINAPI",VLOOKUP(C38,'Excluido INSUMOS SINAPI'!A:E,5,0),IF(A38="COMP. SINAPI",VLOOKUP(C38,'Excluido COMP Sint. Sinapi'!A26:E6698,5,0),IF(A38="INS. SICRO",VLOOKUP(C38,'[12]INSUMOS SICRO'!B:F,5,0),""))) -> 1,05
A39: COMP. SINAPI | B39: SINAPI | C39: 83356 | D39: TRANSPORTE PEDRA DE MAO | E39: m² X KM
A40: COMP. SINAPI | B40: SINAPI | C40: 87445 | D40: Betoneira 320 l, diesel, potencia de 5,5 hp, sem carregador mecanico (locacao) | E40: h | F40: =IF(A40="INS. SINAPI",VLOOKUP(C40,'Excluido INSUMOS SINAPI'!A:E,5,0),IF(A40="COMP. SINAPI",VLOOKUP(C40,'Excluido COMP Sint. Sinapi'!A28:E6700,5,0),IF(A40="INS. SICRO",VLOOKUP(C40,'[12]INSUMOS SICRO'!B:F,5,0),""))) -> 4,15
A41: COMP. SINAPI | B41: SINAPI | C41: 88257 | D41: BLASTER | E41: H | F41: =IF(A41="INS. SINAPI",VLOOKUP(C41,'Excluido INSUMOS SINAPI'!A:E,5,0),IF(A41="COMP. SINAPI",VLOOKUP(C41,'Excluido COMP Sint. Sinapi'!A29:E6701,5,0),IF(A41="INS. SICRO",VLOOKUP(C41,'[12]INSUMOS SICRO'!B:F,5,0),""))) -> 18,25
A42: COMP. SINAPI | B42: SINAPI | C42: 88262 | D42: CARPINTEIRO DE FORMAS COM ENCARGOS COMPLEMENTARES | E42: h | F42: =IF(A42="INS. SINAPI",VLOOKUP(C42,'Excluido INSUMOS SINAPI'!A:E,5,0),IF(A42="COMP. SINAPI",VLOOKUP(C42,'Excluido COMP Sint. Sinapi'!A30:E6702,5,0),IF(A42="INS. SICRO",VLOOKUP(C42,'[12]INSUMOS SICRO'!B:F,5,0),""))) -> 20,46
A43: COMP. SINAPI | B43: SINAPI | C43: 88309 | D43: PEDREIRO COM ENCARGOS COMPLEMENTARES | E43: H | F43: =IF(A43="INS. SINAPI",VLOOKUP(C43,'Excluido INSUMOS SINAPI'!A:E,5,0),IF(A43="COMP. SINAPI",VLOOKUP(C43,'Excluido COMP Sint. Sinapi'!A31:E6703,5,0),IF(A43="INS. SICRO",VLOOKUP(C43,'[12]INSUMOS SICRO'!B:F,5,0),""))) -> 20,66
A44: COMP. SINAPI | B44: SINAPI | C44: 88377 | D44: OPERADOR DE BETONEIRA ESTACIONÁRIA/MISTURADOR COM ENCARGOS COMPLEMENTARES | E44: H | F44: =IF(A44="INS. SINAPI",VLOOKUP(C44,'Excluido INSUMOS SINAPI'!A:E,5,0),IF(A44="COMP. SINAPI",VLOOKUP(C44,'Excluido COMP Sint. Sinapi'!A32:E6704,5,0),IF(A44="INS. SICRO",VLOOKUP(C44,'[12]INSUMOS SICRO'!B:F,5,0),""))) -> 17,60
A45: COMP. SINAPI | B45: SINAPI | C45: 88629 | D45: ARGAMASSA TRAÇO 1:3 (EM VOLUME DE CIMENTO E AREIA MÉDIA ÚMIDA), PREPARO MANUAL. AF_08/2019 | E45: M3 | F45: =IF(A45="INS. SINAPI",VLOOKUP(C45,'Excluido INSUMOS SINAPI'!A:E,5,0),IF(A45="COMP. SINAPI",VLOOKUP(C45,'Excluido COMP Sint. Sinapi'!A33:E6705,5,0),IF(A45="INS. SICRO",VLOOKUP(C45,'[12]INSUMOS SICRO'!B:F,5,0),""))) -> 485,65
A46: COMP. SINAPI | B46: SINAPI | C46: 88830 | D46: BETONEIRA CAPACIDADE NOMINAL DE 400 L, CAPACIDADE DE MISTURA 280 L, MOTOR ELÉTRICO TRIFÁSICO POTÊNCIA DE 2 CV, SEM CARREGADOR - CHP DIURNO. AF_10/2014 | E46: CHP | F46: =IF(A46="INS. SINAPI",VLOOKUP(C46,'Excluido INSUMOS SINAPI'!A:E,5,0),IF(A46="COMP. SINAPI",VLOOKUP(C46,'Excluido COMP Sint. Sinapi'!A34:E6706,5,0),IF(A46="INS. SICRO",VLOOKUP(C46,'[12]INSUMOS SICRO'!B:F,5,0),""))) -> 1,56
A47: COMP. SINAPI | B47: SINAPI | C47: 88831 | D47: BETONEIRA CAPACIDADE NOMINAL DE 400 L, CAPACIDADE DE MISTURA 280 L, MOTOR ELÉTRICO TRIFÁSICO POTÊNCIA DE 2 CV, SEM CARREGADOR - CHI DIURNO. AF_10/2014 | E47: CHI | F47: =IF(A47="INS. SINAPI",VLOOKUP(C47,'Excluido INSUMOS SINAPI'!A:E,5,0),IF(A47="COMP. SINAPI",VLOOKUP(C47,'Excluido COMP Sint. Sinapi'!A35:E6707,5,0),IF(A47="INS. SICRO",VLOOKUP(C47,'[12]INSUMOS SICRO'!B:F,5,0),""))) -> 0,33
A48: COMP. SINAPI | B48: SINAPI | C48: 88843 | D48: TRATOR DE ESTEIRAS COM LÂMINA - 112 KW | E48: CHP | F48: =IF(A48="INS. SINAPI",VLOOKUP(C48,'Excluido INSUMOS SINAPI'!A:E,5,0),IF(A48="COMP. SINAPI",VLOOKUP(C48,'Excluido COMP Sint. Sinapi'!A36:E6708,5,0),IF(A48="INS. SICRO",VLOOKUP(C48,'[12]INSUMOS SICRO'!B:F,5,0),""))) -> 158,18
A49: COMP. SINAPI | B49: SINAPI | C49: 88844 | D49: TRATOR DE ESTEIRAS COM LÂMINA - 112 KW | E49: CHI | F49: =IF(A49="INS. SINAPI",VLOOKUP(C49,'Excluido INSUMOS SINAPI'!A:E,5,0),IF(A49="COMP. SINAPI",VLOOKUP(C49,'Excluido COMP Sint. Sinapi'!A37:E6709,5,0),IF(A49="INS. SICRO",VLOOKUP(C49,'[12]INSUMOS SICRO'!B:F,5,0),""))) -> 51,73
A50: COMP. SINAPI | B50: SINAPI | C50: 89035 | D50: TRATOR AGRÍCOLA - 77 KW | E50: CHP | F50: =IF(A50="INS. SINAPI",VLOOKUP(C50,'Excluido INSUMOS SINAPI'!A:E,5,0),IF(A50="COMP. SINAPI",VLOOKUP(C50,'Excluido COMP Sint. Sinapi'!A38:E6710,5,0),IF(A50="INS. SICRO",VLOOKUP(C50,'[12]INSUMOS SICRO'!B:F,5,0),""))) -> 136,96
A51: COMP. SINAPI | B51: SINAPI | C51: 89876 | D51: CAMINHÃO BASCULANTE COM CAPACIDADE DE 14 M³ - 323 KW | E51: CHP | F51: =IF(A51="INS. SINAPI",VLOOKUP(C51,'Excluido INSUMOS SINAPI'!A:E,5,0),IF(A51="COMP. SINAPI",VLOOKUP(C51,'Excluido COMP Sint. Sinapi'!A39:E6711,5,0),IF(A51="INS. SICRO",VLOOKUP(C51,'[12]INSUMOS SICRO'!B:F,5,0),""))) -> 241,71
A52: COMP. SINAPI | B52: SINAPI | C52: 89877 | D52: CAMINHÃO BASCULANTE COM CAPACIDADE DE 14 M³ - 323 KW | E52: CHI | F52: =IF(A52="INS. SINAPI",VLOOKUP(C52,'Excluido INSUMOS SINAPI'!A:E,5,0),IF(A52="COMP. SINAPI",VLOOKUP(C52,'Excluido COMP Sint. Sinapi'!A40:E6712,5,0),IF(A52="INS. SICRO",VLOOKUP(C52,'[12]INSUMOS SICRO'!B:F,5,0),""))) -> 52,81
A53: COMP. SINAPI | B53: SINAPI | C53: 90772 | D53: AUXILIAR DE ESCRITORIO COM ENCARGOS COMPLEMENTARES | E53: H | F53: =IF(A53="INS. SINAPI",VLOOKUP(C53,'Excluido INSUMOS SINAPI'!A:E,5,0),IF(A53="COMP. SINAPI",VLOOKUP(C53,'Excluido COMP Sint. Sinapi'!A41:E6713,5,0),IF(A53="INS. SICRO",VLOOKUP(C53,'[12]INSUMOS SICRO'!B:F,5,0),""))) -> 12,30
A54: COMP. SINAPI | B54: SINAPI | C54: 90777 | D54: ENGENHEIRO CIVIL DE OBRA JUNIOR COM ENCARGOS COMPLEMENTARES | E54: H | F54: =IF(A54="INS. SINAPI",VLOOKUP(C54,'Excluido INSUMOS SINAPI'!A:E,5,0),IF(A54="COMP. SINAPI",VLOOKUP(C54,'Excluido COMP Sint. Sinapi'!A42:E6714,5,0),IF(A54="INS. SICRO",VLOOKUP(C54,'[12]INSUMOS SICRO'!B:F,5,0),""))) -> 92,53
A55: COMP. SINAPI | B55: SINAPI | C55: 90780 | D55: MESTRE DE OBRAS COM ENCARGOS COMPLEMENTARES | E55: H | F55: =IF(A55="INS. SINAPI",VLOOKUP(C55,'Excluido INSUMOS SINAPI'!A:E,5,0),IF(A55="COMP. SINAPI",VLOOKUP(C55,'Excluido COMP Sint. Sinapi'!A43:E6715,5,0),IF(A55="INS. SICRO",VLOOKUP(C55,'[12]INSUMOS SICRO'!B:F,5,0),""))) -> 43,48
A56: COMP. SINAPI | B56: SINAPI | C56: 94964 | D56: CONCRETO FCK = 20 MPA - CONFECÇÃO EM BETONEIRA E LANÇAMENTO MANUAL - AREIA E BRITA COMERCIAIS | E56: M3 | F56: =IF(A56="INS. SINAPI",VLOOKUP(C56,'Excluido INSUMOS SINAPI'!A:E,5,0),IF(A56="COMP. SINAPI",VLOOKUP(C56,'Excluido COMP Sint. Sinapi'!A44:E6716,5,0),IF(A56="INS. SICRO",VLOOKUP(C56,'[12]INSUMOS SICRO'!B:F,5,0),""))) -> 351,23
A57: COMP.SICRO | B57: DNIT | C57: 4816126 | D57: CONFECÇÃO DE TUBOS DE CONCRETO D = 0,60 M - AREIA E BRITA COMERCIAIS | E57: m | F57: =IF(A57="INS. SINAPI",VLOOKUP(C57,'Excluido INSUMOS SINAPI'!A:E,5,0),IF(A57="COMP. SINAPI",VLOOKUP(C57,'Excluido COMP Sint. Sinapi'!A45:E6717,5,0),IF(A57="INS. SICRO",VLOOKUP(C57,'[12]INSUMOS SICRO'!B:F,5,0),""))) -> 
A58: COMP. SINAPI | B58: SINAPI | C58: 95708 | D58: PERFURATRIZ SOBRE ESTEIRAS - 145 KW | E58: CHP | F58: =IF(A58="INS. SINAPI",VLOOKUP(C58,'Excluido INSUMOS SINAPI'!A:E,5,0),IF(A58="COMP. SINAPI",VLOOKUP(C58,'Excluido COMP Sint. Sinapi'!A46:E6718,5,0),IF(A58="INS. SICRO",VLOOKUP(C58,'[12]INSUMOS SICRO'!B:F,5,0),""))) -> 122,08
A59: COMP. SINAPI | B59: SINAPI | C59: 95720 | D59: ESCAVADEIRA HIDRÁULICA SOBRE ESTEIRA COM CAÇAMBA COM CAPACIDADE DE 1,5 M³ - 110 KW | E59: CHP | F59: =IF(A59="INS. SINAPI",VLOOKUP(C59,'Excluido INSUMOS SINAPI'!A:E,5,0),IF(A59="COMP. SINAPI",VLOOKUP(C59,'Excluido COMP Sint. Sinapi'!A47:E6719,5,0),IF(A59="INS. SICRO",VLOOKUP(C59,'[12]INSUMOS SICRO'!B:F,5,0),""))) -> 179,81
A60: COMP. SINAPI | B60: SINAPI | C60: 96035 | D60: CAMINHÃO BASCULANTE PARA ROCHA COM CAPACIDADE DE 12 M³ - 188 KW | E60: CHI | F60: =IF(A60="INS. SINAPI",VLOOKUP(C60,'Excluido INSUMOS SINAPI'!A:E,5,0),IF(A60="COMP. SINAPI",VLOOKUP(C60,'Excluido COMP Sint. Sinapi'!A48:E6720,5,0),IF(A60="INS. SICRO",VLOOKUP(C60,'[12]INSUMOS SICRO'!B:F,5,0),""))) -> 197,29
A61: COMP.SICRO | B61: DNIT | C61: 407820 | D61: ARMAÇÃO EM AÇO CA-60 - FORNECIMENTO, PREPARO E COLOCAÇÃO | E61: kg | F61: ='[12]INSUMOS SICRO'!F1752 -> 9.17
A62: COMP.SICRO | B62: DNIT | C62: 1506055 | D62: PEDRA ARGAMASSADA COM CIMENTO E AREIA 1:3 - AREIA E PEDRA DE MÃO COMERCIAL - FORNECIMENTO E ASSENTAMENTO | E62: m² | F62: ='[12]INSUMOS SICRO'!F1753 -> 238.53
A63: COMP.SICRO | B63: DNIT | C63: 2003842 | D63: ENCHIMENTO DE JUNTA DE CONCRETO COM ARGAMASSA ASFÁLTICA DE DENSIDADE 1.700 KG/M³ - ESPESSURA DE 1 CM | E63: kg | F63: ='[12]INSUMOS SICRO'!F1754 -> 46.55
A64: COMP.SICRO | B64: DNIT | C64: 4805751 | D64: ESCAVAÇÃO MANUAL EM MATERIAL DE 1ª CATEGORIA NA PROFUNDIDADE DE ATÉ 2M | E64: m³ | F64: ='[12]INSUMOS SICRO'!F1755 -> 40.99
A65: COMP.SICRO | B65: DNIT | C65: 3103302 | D65: FORMAS DE TÁBUAS DE PINHO PARA DISPOSITIVOS DE DRENAGEM - UTILIZAÇÃO DE 3 VEZES - CONFECÇÃO, INSTALAÇÃO E RETIRADA | E65: m² | F65: ='[12]INSUMOS SICRO'!F1756 -> 54.98
A66: COMP.SICRO | B66: DNIT | C66: 3108022 | D66: GUIA DE MADEIRA DE 2,5 X 8,0 CM - CONFECÇÃO E INSTALAÇÃO | E66: m | F66: ='[12]INSUMOS SICRO'!F1757 -> 2.6
A67: COMP.SICRO | B67: DNIT | C67: 4413996 | D67: ENLEIVAMENTO | E67: M² | F67: ='[12]INSUMOS SICRO'!F1758 -> 5.79
A68: COMP. SICRO | B68: DNIT | C68: 5213414 | D68: CONFECÇÃO DE PLACA EM AÇO Nº 16 GALVANIZADO, COM PELÍCULA RETRORREFLETIVA TIPO I + SI | E68: M² | F68: ='[12]INSUMOS SICRO'!F1759 -> 414.64
A69: COMP. ORSE | B69: ORSE | C69: 12651/ORSE | D69: APILOAMENTO MANUAL | E69: m³ | F69: 19.46
A70: COMP. SINAPI | B70: SINAPI | C70: 5824 | D70: CAMINHÃO TOCO, PBT 16.000 KG, CARGA ÚTIL MÁX. 10.685 KG, DIST. ENTRE EIXOS 4,8 M, POTÊNCIA 189 CV, INCLUSIVE CARROCERIA FIXA ABERTA DE MADEIRA P/ TRANSPORTE GERAL DE CARGA SECA, DIMEN. APROX. 2,5 X 7,00 X 0,50 M - CHP DIURNO. AF_06/2014 | E70: CHP | F70: =IF(A70="INS. SINAPI",VLOOKUP(C70,'Excluido INSUMOS SINAPI'!A:E,5,0),IF(A70="COMP. SINAPI",VLOOKUP(C70,'Excluido COMP Sint. Sinapi'!A59:E6731,5,0),IF(A70="INS. SICRO",VLOOKUP(C70,'[12]INSUMOS SICRO'!B:F,5,0),""))) -> 142,64
A71: COMP. SINAPI | B71: SINAPI | C71: 5835 | D71: VIBROACABADORA DE ASFALTO SOBRE ESTEIRAS, LARGURA DE PAVIMENTAÇÃO 1,90 M A 5,30 M, POTÊNCIA 105 HP CAPACIDADE 450 T/H - CHP DIURNO. AF_11/2014 | E71: CHP | F71: =IF(A71="INS. SINAPI",VLOOKUP(C71,'Excluido INSUMOS SINAPI'!A:E,5,0),IF(A71="COMP. SINAPI",VLOOKUP(C71,'Excluido COMP Sint. Sinapi'!A60:E6732,5,0),IF(A71="INS. SICRO",VLOOKUP(C71,'[12]INSUMOS SICRO'!B:F,5,0),""))) -> 335,59
A72: COMP. SINAPI | B72: SINAPI | C72: 5837 | D72: VIBROACABADORA DE ASFALTO SOBRE ESTEIRAS, LARGURA DE PAVIMENTAÇÃO 1,90 M A 5,30 M, POTÊNCIA 105 HP CAPACIDADE 450 T/H - CHI DIURNO. AF_11/2014 | E72: CHI | F72: =IF(A72="INS. SINAPI",VLOOKUP(C72,'Excluido INSUMOS SINAPI'!A:E,5,0),IF(A72="COMP. SINAPI",VLOOKUP(C72,'Excluido COMP Sint. Sinapi'!A61:E6733,5,0),IF(A72="INS. SICRO",VLOOKUP(C72,'[12]INSUMOS SICRO'!B:F,5,0),""))) -> 125,25
A73: COMP. ORSE | B73: ORSE | C73: 4 | D73: Limpeza mecanizada do terreno c/ trator esteira (vegetação rasteira) inclusive carga e transporte - dmt até 1 km | E73: M2 | F73: 4.17
A74: COMP. SINAPI | B74: SINAPI | C74: 83362 | D74: ESPARGIDOR DE ASFALTO PRESSURIZADO, TANQUE 6 M3 COM ISOLAÇÃO TÉRMICA, AQUECIDO COM 2 MAÇARICOS, COM BARRA ESPARGIDORA 3,60 M, MONTADO SOBRE CAMINHÃO TOCO, PBT 14.300 KG, POTÊNCIA 185 CV - CHP DIURNO. AF_08/2015 | E74: CHP | F74: =IF(A74="INS. SINAPI",VLOOKUP(C74,'Excluido INSUMOS SINAPI'!A:E,5,0),IF(A74="COMP. SINAPI",VLOOKUP(C74,'Excluido COMP Sint. Sinapi'!A63:E6735,5,0),IF(A74="INS. SICRO",VLOOKUP(C74,'[12]INSUMOS SICRO'!B:F,5,0),""))) -> 223,77
A75: COMP. SINAPI | B75: SINAPI | C75: 88278 | D75: Montador | E75: H | F75: =IF(A75="INS. SINAPI",VLOOKUP(C75,'Excluido INSUMOS SINAPI'!A:E,5,0),IF(A75="COMP. SINAPI",VLOOKUP(C75,'Excluido COMP Sint. Sinapi'!A64:E6736,5,0),IF(A75="INS. SICRO",VLOOKUP(C75,'[12]INSUMOS SICRO'!B:F,5,0),""))) -> 17,07
A76: COMP. SINAPI | B76: SINAPI | C76: 88314 | D76: RASTELEIRO COM ENCARGOS COMPLEMENTARES | E76: H | F76: =IF(A76="INS. SINAPI",VLOOKUP(C76,'Excluido INSUMOS SINAPI'!A:E,5,0),IF(A76="COMP. SINAPI",VLOOKUP(C76,'Excluido COMP Sint. Sinapi'!A65:E6737,5,0),IF(A76="INS. SICRO",VLOOKUP(C76,'[12]INSUMOS SICRO'!B:F,5,0),""))) -> 16,35
A77: COMP. SINAPI | B77: SINAPI | C77: 88316 | D77: SERVENTE COM ENCARGOS COMPLEMENTARES | E77: H | F77: =IF(A77="INS. SINAPI",VLOOKUP(C77,'Excluido INSUMOS SINAPI'!A:E,5,0),IF(A77="COMP. SINAPI",VLOOKUP(C77,'Excluido COMP Sint. Sinapi'!A66:E6738,5,0),IF(A77="INS. SICRO",VLOOKUP(C77,'[12]INSUMOS SICRO'!B:F,5,0),""))) -> 16,25
A78: COMP. SINAPI | B78: SINAPI | C78: 91386 | D78: CAMINHÃO BASCULANTE 10 M3, TRUCADO CABINE SIMPLES, PESO BRUTO TOTAL 23.000 KG, CARGA ÚTIL MÁXIMA 15.935 KG, DISTÂNCIA ENTRE EIXOS 4,80 M, POTÊNCIA 230 CV INCLUSIVE CAÇAMBA METÁLICA - CHP DIURNO. AF_06/2014 | E78: CHP | F78: =IF(A78="INS. SINAPI",VLOOKUP(C78,'Excluido INSUMOS SINAPI'!A:E,5,0),IF(A78="COMP. SINAPI",VLOOKUP(C78,'Excluido COMP Sint. Sinapi'!A67:E6739,5,0),IF(A78="INS. SICRO",VLOOKUP(C78,'[12]INSUMOS SICRO'!B:F,5,0),""))) -> 187,65
A79: COMP. SINAPI | B79: SINAPI | C79: 94970 | D79: Concreto fck = 20 MPa - confecção em betoneira e lançamento manual - areia e brita comerciais | E79: M³ | F79: =IF(A79="INS. SINAPI",VLOOKUP(C79,'Excluido INSUMOS SINAPI'!A:E,5,0),IF(A79="COMP. SINAPI",VLOOKUP(C79,'Excluido COMP Sint. Sinapi'!A68:E6740,5,0),IF(A79="INS. SICRO",VLOOKUP(C79,'[12]INSUMOS SICRO'!B:F,5,0),""))) -> 341,33
A80: COMP. SINAPI | B80: SINAPI | C80: 95133 | D80: MÁQUINA DEMARCADORA DE FAIXA DE TRÁFEGO À FRIO, AUTOPROPELIDA, POTÊNCIA 38 HP - CHP DIURNO. AF_07/2016 | E80: CHP | F80: =IF(A80="INS. SINAPI",VLOOKUP(C80,'Excluido INSUMOS SINAPI'!A:E,5,0),IF(A80="COMP. SINAPI",VLOOKUP(C80,'Excluido COMP Sint. Sinapi'!A69:E6741,5,0),IF(A80="INS. SICRO",VLOOKUP(C80,'[12]INSUMOS SICRO'!B:F,5,0),""))) -> 129,31
A81: COMP. SINAPI | B81: SINAPI | C81: 95631 | D81: ROLO COMPACTADOR VIBRATORIO TANDEM, ACO LISO, POTENCIA 125 HP, PESO SEM/COM LASTRO 10,20/11,65 T, LARGURA DE TRABALHO 1,73 M - CHP DIURNO. AF_11/2016 | E81: CHP | F81: =IF(A81="INS. SINAPI",VLOOKUP(C81,'Excluido INSUMOS SINAPI'!A:E,5,0),IF(A81="COMP. SINAPI",VLOOKUP(C81,'Excluido COMP Sint. Sinapi'!A70:E6742,5,0),IF(A81="INS. SICRO",VLOOKUP(C81,'[12]INSUMOS SICRO'!B:F,5,0),""))) -> 163,87
A82: COMP. SINAPI | B82: SINAPI | C82: 95632 | D82: ROLO COMPACTADOR VIBRATORIO TANDEM, ACO LISO, POTENCIA 125 HP, PESO SEM/COM LASTRO 10,20/11,65 T, LARGURA DE TRABALHO 1,73 M - CHI DIURNO. AF_11/2016 | E82: CHI | F82: =IF(A82="INS. SINAPI",VLOOKUP(C82,'Excluido INSUMOS SINAPI'!A:E,5,0),IF(A82="COMP. SINAPI",VLOOKUP(C82,'Excluido COMP Sint. Sinapi'!A71:E6743,5,0),IF(A82="INS. SICRO",VLOOKUP(C82,'[12]INSUMOS SICRO'!B:F,5,0),""))) -> 56,71
A83: COMP. SINAPI | B83: SINAPI | C83: 96013 | D83: TRATOR DE PNEUS COM POTÊNCIA DE 122 CV, TRAÇÃO 4X4, COM VASSOURA MECÂNICA ACOPLADA - CHP DIURNO. AF_02/2017 | E83: CHP | F83: =IF(A83="INS. SINAPI",VLOOKUP(C83,'Excluido INSUMOS SINAPI'!A:E,5,0),IF(A83="COMP. SINAPI",VLOOKUP(C83,'Excluido COMP Sint. Sinapi'!A72:E6744,5,0),IF(A83="INS. SICRO",VLOOKUP(C83,'[12]INSUMOS SICRO'!B:F,5,0),""))) -> 193,63
A84: COMP. SINAPI | B84: SINAPI | C84: 96014 | D84: TRATOR DE PNEUS COM POTÊNCIA DE 122 CV, TRAÇÃO 4X4, COM VASSOURA MECÂNICA ACOPLADA - CHI DIURNO. AF_02/2017 | E84: CHI | F84: =IF(A84="INS. SINAPI",VLOOKUP(C84,'Excluido INSUMOS SINAPI'!A:E,5,0),IF(A84="COMP. SINAPI",VLOOKUP(C84,'Excluido COMP Sint. Sinapi'!A73:E6745,5,0),IF(A84="INS. SICRO",VLOOKUP(C84,'[12]INSUMOS SICRO'!B:F,5,0),""))) -> 40,31
A85: COMP. SINAPI | B85: SINAPI | C85: 96155 | D85: TRATOR DE PNEUS COM POTÊNCIA DE 85 CV, TRAÇÃO 4X4, COM VASSOURA MECÂNICA ACOPLADA - CHI DIURNO. AF_02/2017 | E85: CHI | F85: =IF(A85="INS. SINAPI",VLOOKUP(C85,'Excluido INSUMOS SINAPI'!A:E,5,0),IF(A85="COMP. SINAPI",VLOOKUP(C85,'Excluido COMP Sint. Sinapi'!A74:E6746,5,0),IF(A85="INS. SICRO",VLOOKUP(C85,'[12]INSUMOS SICRO'!B:F,5,0),""))) -> 36,11
A86: COMP. SINAPI | B86: SINAPI | C86: 96157 | D86: TRATOR DE PNEUS COM POTÊNCIA DE 85 CV, TRAÇÃO 4X4, COM VASSOURA MECÂNICA ACOPLADA - CHP DIURNO. AF_03/2017 | E86: CHP | F86: =IF(A86="INS. SINAPI",VLOOKUP(C86,'Excluido INSUMOS SINAPI'!A:E,5,0),IF(A86="COMP. SINAPI",VLOOKUP(C86,'Excluido COMP Sint. Sinapi'!A75:E6747,5,0),IF(A86="INS. SICRO",VLOOKUP(C86,'[12]INSUMOS SICRO'!B:F,5,0),""))) -> 144,63
A87: COMP. SINAPI | B87: SINAPI | C87: 96463 | D87: ROLO COMPACTADOR DE PNEUS, ESTATICO, PRESSAO VARIAVEL, POTENCIA 110 HP, PESO SEM/COM LASTRO 10,8/27 T, LARGURA DE ROLAGEM 2,30 M - CHP DIURNO. AF_06/2017 | E87: CHP | F87: =IF(A87="INS. SINAPI",VLOOKUP(C87,'Excluido INSUMOS SINAPI'!A:E,5,0),IF(A87="COMP. SINAPI",VLOOKUP(C87,'Excluido COMP Sint. Sinapi'!A76:E6748,5,0),IF(A87="INS. SICRO",VLOOKUP(C87,'[12]INSUMOS SICRO'!B:F,5,0),""))) -> 151,75
A88: COMP. SINAPI | B88: SINAPI | C88: 96464 | D88: ROLO COMPACTADOR DE PNEUS, ESTATICO, PRESSAO VARIAVEL, POTENCIA 110 HP, PESO SEM/COM LASTRO 10,8/27 T, LARGURA DE ROLAGEM 2,30 M - CHI DIURNO. AF_06/2017 | E88: CHI | F88: =IF(A88="INS. SINAPI",VLOOKUP(C88,'Excluido INSUMOS SINAPI'!A:E,5,0),IF(A88="COMP. SINAPI",VLOOKUP(C88,'Excluido COMP Sint. Sinapi'!A77:E6749,5,0),IF(A88="INS. SICRO",VLOOKUP(C88,'[12]INSUMOS SICRO'!B:F,5,0),""))) -> 60,41
A89: COMP.SICRO | B89: DNIT | C89: E9647 | D89: COMPACTADOR MANUAL COM SOQUETE VIBRATÓRIO - 4,1 KW | E89: H | F89: =VLOOKUP($C89,'INSUMOS SICRO'!$B$1760:$I$2246,8,0) -> 6.5686
A90: COMP. SICRO | B90: DNIT | C90: E9687 | D90: Caminhão carroceria com capacidade de 5 t - 115 kW | E90: CHP | F90: =VLOOKUP($C90,'INSUMOS SICRO'!$B$1760:$I$2246,8,0) -> 86.5258
A91: COMP. SICRO | B91: DNIT | C91: E9687 | D91: Caminhão carroceria com capacidade de 5 t - 115 kW | E91: CHI | F91: =VLOOKUP($C91,'INSUMOS SICRO'!$B$1760:$I$2246,7,0) -> 36.4779
A92: INS. SICRO | B92: DNIT | C92: M0787 | D92: Suporte em aço carbono galvanizado perfil "C" | E92: kg | F92: =VLOOKUP($C92,'INSUMOS SICRO'!$B$6:$F$1632,5,0) -> 14.0262
A93: INS. SICRO | B93: DNIT | C93: M0789 | D93: Conjunto de cantoneiras e parafusos galvanizados para fixação de placas | E93: kg | F93: =VLOOKUP($C93,'INSUMOS SICRO'!$B$6:$F$1632,5,0) -> 9.9071
A94: INS. SICRO | B94: DNIT | C94: M2042 | D94: EMULSÃO EXPLOSIVA ENCARTUCHADA | E94: kg | F94: =VLOOKUP($C94,'INSUMOS SICRO'!$B$6:$F$1632,5,0) -> 10.1513
A95: INS. SICRO | B95: DNIT | C95: M2062 | D95: COROA PARA PERFURATRIZ T38 - D = 2 1/2" | E95: und | F95: =VLOOKUP($C95,'INSUMOS SICRO'!$B$6:$F$1632,5,0) -> 559.8072
A96: INS. SICRO | B96: DNIT | C96: M2065 | D96: HASTE PARA PERFURATRIZ DE ESTEIRA T38 DE 1 1/2" X 3 M | E96: und | F96: =VLOOKUP($C96,'INSUMOS SICRO'!$B$6:$F$1632,5,0) -> 1232.135
A97: INS. SICRO | B97: DNIT | C97: M2066 | D97: LUVA PARA PERFURATRIZ DE ESTEIRA T38 - D = 1 1/2" | E97: und | F97: =VLOOKUP($C97,'INSUMOS SICRO'!$B$6:$F$1632,5,0) -> 220.8036
A98: INS. SICRO | B98: DNIT | C98: M2067 | D98: PUNHO PARA PERFURATRIZ DE ESTEIRA T38 - D = 1 1/2" | E98: und | F98: =VLOOKUP($C98,'INSUMOS SICRO'!$B$6:$F$1632,5,0) -> 998.1907
A99: INS. SICRO | B99: DNIT | C99: M2141 | D99: NONEL DE INICIAÇÃO PARA FOGACHO COM 6 M | E99: und | F99: =VLOOKUP($C99,'INSUMOS SICRO'!$B$6:$F$1632,5,0) -> 13.4415
A100: INS. SICRO | B100: DNIT | C100: M2143 | D100: NONEL DE LIGAÇÃO | E100: und | F100: =VLOOKUP($C100,'INSUMOS SICRO'!$B$6:$F$1632,5,0) -> 10.7075
A101: INS. SICRO | B101: DNIT | C101: M2144 | D101: NONEL DE COLUNA COM 6 M | E101: und | F101: =VLOOKUP($C101,'INSUMOS SICRO'!$B$6:$F$1632,5,0) -> 15.6128
A102: INS. SICRO | B102: DNIT | C102: M2145 | D102: SÉRIE DE BROCAS S-12 - D = 22 MM | E102: und | F102: =VLOOKUP($C102,'INSUMOS SICRO'!$B$6:$F$1632,5,0) -> 548.5352
A103: INS. SICRO | B103: DNIT | C103: M2146 | D103: NONEL INICIADOR COM 150 M | E103: und | F103: =VLOOKUP($C103,'INSUMOS SICRO'!$B$6:$F$1632,5,0) -> 153.4275

Sheet Excluido INSUMOS SINAPI
A1: PRECOS DE INSUMOS
A3: MES DE COLETA: 06/2021
A4: LOCALIDADE: 0760 - FORTALEZA
A5: ENCARGOS SOCIAIS (%) HORISTA 112,76 MENSALISTA 71,07
A7: CODIGO | B7: DESCRICAO DO INSUMO | C7: UNIDADE | D7: ORIGEM DO PRECO | E7: PRECO MEDIANO R$
A8: 1363 | B8: !EM PROCESSO DE DESATIVACAO! CHAPA DE MADEIRA COMPENSADA DE PINUS, VIROLA OU EQUIVALENTE, DE *2,2 X 1,6* M, E = 6 MM | C8: M2 | D8: C | E8: 21,84
A9: 1344 | B9: !EM PROCESSO DE DESATIVACAO! CHAPA DE MADEIRA COMPENSADA PLASTIFICADA PARA FORMA DE CONCRETO, DE 2,20 x 1,10 M, E = 6 MM | C9: UN | D9: AS | E9: 74,31
A10: 1342 | B10: !EM PROCESSO DE DESATIVACAO! CHAPA DE MADEIRA COMPENSADA PLASTIFICADA PARA FORMA DE CONCRETO, DE 2,20 X 1,10 m, E = 14 MM | C10: UN | D10: AS | E10: 131,36
A11: 1349 | B11: !EM PROCESSO DE DESATIVACAO! CHAPA DE MADEIRA COMPENSADA PLASTIFICADA PARA FORMA DE CONCRETO, DE 2,20 X 1,10 M, E = 20 MM | C11: UN | D11: AS | E11: 187,34
A12: 1350 | B12: !EM PROCESSO DE DESATIVACAO! CHAPA DE MADEIRA COMPENSADA RESINADA PARA FORMA DE CONCRETO, DE *2,2 X 1,1* M, E = 10 MM | C12: UN | D12: C | E12: 71,00
A13: 1359 | B13: !EM PROCESSO DE DESATIVACAO! CHAPA DE MADEIRA COMPENSADA RESINADA PARA FORMA DE CONCRETO, DE *2,2 X 1,1* M, E = 20 MM | C13: UN | D13: CR | E13: 139,73
A14: 1351 | B14: !EM PROCESSO DE DESATIVACAO! CHAPA DE MADEIRA COMPENSADA RESINADA PARA FORMA DE CONCRETO, DE *2,2 X 1,1* M, E = 6 MM | C14: UN | D14: CR | E14: 45,03
A15: 2418 | B15: !EM PROCESSO DE DESATIVACAO! DOBRADICA EM ACO/FERRO, 3" X 2 1/2", E= 1,2 A 1,8 MM, SEM ANEL, CROMADO OU ZINCADO, TAMPA BOLA, COM PARAFUSOS | C15: UN | D15: AS | E15: 13,47
A16: 6086 | B16: !EM PROCESSO DE DESATIVACAO! FUNDO SINTETICO NIVELADOR BRANCO FOSCO PARA MADEIRA | C16: GL | D16: CR | E16: 45,42
A17: 20017 | B17: !EM PROCESSO DE DESATIVACAO! GUARNICAO/ ALIZAR/ VISTA MACICA, E= *1* CM, L= *4,5* CM, EM CEDRINHO/ ANGELIM COMERCIAL/ EUCALIPTO/ CURUPIXA/ PEROBA/ CUMARU OU EQUIVALENTE DA REGIAO | C17: M | D17: CR | E17: 4,54
A18: 20007 | B18: !EM PROCESSO DE DESATIVACAO! GUARNICAO/ ALIZAR/ VISTA MACICA, E= *1* CM, L= *4,5* CM, EM PINUS/ TAUARI/ VIROLA OU EQUIVALENTE DA REGIAO | C18: M | D18: CR | E18: 3,48
A19: 3378 | B19: !EM PROCESSO DE DESATIVACAO! HASTE DE ATERRAMENTO EM ACO COM 3,00 M DE COMPRIMENTO E DN = 3/4", REVESTIDA COM BAIXA CAMADA DE COBRE, SEM CONECTOR | C19: UN | D19: CR | E19: 72,71
A20: 3380 | B20: !EM PROCESSO DE DESATIVACAO! HASTE DE ATERRAMENTO EM ACO COM 3,00 M DE COMPRIMENTO E DN = 5/8", REVESTIDA COM BAIXA CAMADA DE COBRE, COM CONECTOR TIPO GRAMPO | C20: UN | D20: C | E20: 50,90
A21: 3379 | B21: !EM PROCESSO DE DESATIVACAO! HASTE DE ATERRAMENTO EM ACO COM 3,00 M DE COMPRIMENTO E DN = 5/8", REVESTIDA COM BAIXA CAMADA DE COBRE, SEM CONECTOR | C21: UN | D21: CR | E21: 49,14
A22: 615 | B22: !EM PROCESSO DE DESATIVACAO! JANELA BASCULANTE, ACO, COM BATENTE/REQUADRO, 60 X 80 CM (SEM VIDROS) | C22: M2 | D22: AS | E22: 468,96
A23: 606 | B23: !EM PROCESSO DE DESATIVACAO! JANELA DE CORRER, ACO, BATENTE/REQUADRO DE 6 A 14 CM, QUADRICULADA, PINTURA ANTICORROSIVA, SEM VIDRO, BANDEIRA COM BASCULA, 4 FLS, 120 X 150 CM (A X L) | C23: M2 | D23: AS | E23: 736,68
A24: 13382 | B24: !EM PROCESSO DE DESATIVACAO! LUMINARIA FECHADA P/ ILUMINACAO PUBLICA, TIPO ABL 50/F OU EQUIV, P/ LAMPADA A VAPOR DE MERCURIO 400W | C24: UN | D24: AS | E24: 348,68
A25: 4047 | B25: !EM PROCESSO DE DESATIVACAO! MASSA CORRIDA PVA PARA PAREDES INTERNAS | C25: GL | D25: C | E25: 9,19
A26: 7344 | B26: !EM PROCESSO DE DESATIVACAO! TINTA LATEX PVA PREMIUM, COR BRANCA | C26: GL | D26: C | E26: 72,00
A27: 40514 | B27: !EM PROCESSO DE DESATIVACAO! VERNIZ POLIURETANO BRILHANTE PARA MADEIRA, SEM FILTRO SOLAR, USO INTERNO E EXTERNO | C27: L | D27: C | E27: 25,81
A28: 11199 | B28: !EM PROCESSO DE DESATIVACAO!JANELA DE CORRER, ACO, BATENTE/REQUADRO DE 6 A 14 CM, COM DIVISAO HORIZ , PINT ANTICORROSIVA, SEM VIDRO, BANDEIRA COM BASCULA, 4 FLS, 120 X 150 CM (A X L) | C28: UN | D28: AS | E28: 1.057,06
A29: 4053 | B29: !EM PROCESSO DE DESATIVACAO!MASSA A OLEO PARA MADEIRA | C29: GL | D29: CR | E29: 35,00
A30: 4056 | B30: !EM PROCESSO DE DESATIVACAO!MASSA ACRILICA PARA PAREDES INTERIOR/EXTERIOR | C30: GL | D30: CR | E30: 18,41
A31: 21136 | B31: !EM PROCESSO DESATIVACAO! ELETRODUTO EM ACO GALVANIZADO ELETROLITICO, LEVE, DIAMETRO 1", PAREDE DE 0,90 MM | C31: M | D31: AS | E31: 13,79
A32: 21128 | B32: !EM PROCESSO DESATIVACAO! ELETRODUTO EM ACO GALVANIZADO ELETROLITICO, LEVE, DIAMETRO 3/4", PAREDE DE 0,90 MM | C32: M | D32: AS | E32: 10,67
A33: 21130 | B33: !EM PROCESSO DESATIVACAO! ELETRODUTO EM ACO GALVANIZADO ELETROLITICO, SEMI-PESADO, DIAMETRO 1 1/2", PAREDE DE 1,20 MM | C33: M | D33: AS | E33: 26,95
A34: 21135 | B34: !EM PROCESSO DESATIVACAO! ELETRODUTO EM ACO GALVANIZADO ELETROLITICO, SEMI-PESADO, DIAMETRO 1 1/4", PAREDE DE 1,20 MM | C34: M | D34: AS | E34: 26,53
A35: 38605 | B35: ABERTURA PARA ENCAIXE DE CUBA OU LAVATORIO EM BANCADA DE MARMORE/ GRANITO OU OUTRO TIPO DE PEDRA NATURAL | C35: UN | D35: AS | E35: 127,94
A36: 11270 | B36: ABRACADEIRA DE LATAO PARA FIXACAO DE CABO PARA-RAIO, DIMENSOES 32 X 24 X 24 MM | C36: UN | D36: CR | E36: 2,25
A37: 412 | B37: ABRACADEIRA DE NYLON PARA AMARRACAO DE CABOS, COMPRIMENTO DE *230* X *7,6* MM | C37: UN | D37: CR | E37: 0,97
A38: 414 | B38: ABRACADEIRA DE NYLON PARA AMARRACAO DE CABOS, COMPRIMENTO DE 100 X 2,5 MM | C38: UN | D38: CR | E38: 0,06
A39: 410 | B39: ABRACADEIRA DE NYLON PARA AMARRACAO DE CABOS, COMPRIMENTO DE 150 X *3,6* MM | C39: UN | D39: CR | E39: 0,15
A40: 411 | B40: ABRACADEIRA DE NYLON PARA AMARRACAO DE CABOS, COMPRIMENTO DE 200 X *4,6* MM | C40: UN | D40: C | E40: 0,19
A41: 408 | B41: ABRACADEIRA DE NYLON PARA AMARRACAO DE CABOS, COMPRIMENTO DE 390 X *4,6* MM | C41: UN | D41: CR | E41: 0,94
A42: 39131 | B42: ABRACADEIRA EM ACO PARA AMARRACAO DE ELETRODUTOS, TIPO D, COM 1 1/2" E CUNHA DE FIXACAO | C42: UN | D42: AS | E42: 1,78
A43: 394 | B43: ABRACADEIRA EM ACO PARA AMARRACAO DE ELETRODUTOS, TIPO D, COM 1 1/2" E PARAFUSO DE FIXACAO | C43: UN | D43: AS | E43: 1,80
A44: 39130 | B44: ABRACADEIRA EM ACO PARA AMARRACAO DE ELETRODUTOS, TIPO D, COM 1 1/4" E CUNHA DE FIXACAO | C44: UN | D44: AS | E44: 1,63
A45: 395 | B45: ABRACADEIRA EM ACO PARA AMARRACAO DE ELETRODUTOS, TIPO D, COM 1 1/4" E PARAFUSO DE FIXACAO | C45: UN | D45: AS | E45: 1,74
A46: 39127 | B46: ABRACADEIRA EM ACO PARA AMARRACAO DE ELETRODUTOS, TIPO D, COM 1/2" E CUNHA DE FIXACAO | C46: UN | D46: AS | E46: 0,86
A47: 392 | B47: ABRACADEIRA EM ACO PARA AMARRACAO DE ELETRODUTOS, TIPO D, COM 1/2" E PARAFUSO DE FIXACAO | C47: UN | D47: AS | E47: 0,88
A48: 39129 | B48: ABRACADEIRA EM ACO PARA AMARRACAO DE ELETRODUTOS, TIPO D, COM 1" E CUNHA DE FIXACAO | C48: UN | D48: AS | E48: 1,00
A49: 393 | B49: ABRACADEIRA EM ACO PARA AMARRACAO DE ELETRODUTOS, TIPO D, COM 1" E PARAFUSO DE FIXACAO | C49: UN | D49: AS | E49: 1,05
A50: 39133 | B50: ABRACADEIRA EM ACO PARA AMARRACAO DE ELETRODUTOS, TIPO D, COM 2 1/2" E CUNHA DE FIXACAO | C50: UN | D50: AS | E50: 2,34
A51: 397 | B51: ABRACADEIRA EM ACO PARA AMARRACAO DE ELETRODUTOS, TIPO D, COM 2 1/2" E PARAFUSO DE FIXACAO | C51: UN | D51: AS | E51: 2,59
A52: 39132 | B52: ABRACADEIRA EM ACO PARA AMARRACAO DE ELETRODUTOS, TIPO D, COM 2" E CUNHA DE FIXACAO | C52: UN | D52: AS | E52: 1,87
A53: 396 | B53: ABRACADEIRA EM ACO PARA AMARRACAO DE ELETRODUTOS, TIPO D, COM 2" E PARAFUSO DE FIXACAO | C53: UN | D53: AS | E53: 2,01
A54: 39135 | B54: ABRACADEIRA EM ACO PARA AMARRACAO DE ELETRODUTOS, TIPO D, COM 3 1/2" E CUNHA DE FIXACAO | C54: UN | D54: AS | E54: 3,75
A55: 39128 | B55: ABRACADEIRA EM ACO PARA AMARRACAO DE ELETRODUTOS, TIPO D, COM 3/4" E CUNHA DE FIXACAO | C55: UN | D55: AS | E55: 0,93
A56: 400 | B56: ABRACADEIRA EM ACO PARA AMARRACAO DE ELETRODUTOS, TIPO D, COM 3/4" E PARAFUSO DE FIXACAO | C56: UN | D56: AS | E56: 0,91
A57: 39125 | B57: ABRACADEIRA EM ACO PARA AMARRACAO DE ELETRODUTOS, TIPO D, COM 3/8" E PARAFUSO DE FIXACAO | C57: UN | D57: AS | E57: 0,93
A58: 39134 | B58: ABRACADEIRA EM ACO PARA AMARRACAO DE ELETRODUTOS, TIPO D, COM 3" E CUNHA DE FIXACAO | C58: UN | D58: AS | E58: 3,12
A59: 398 | B59: ABRACADEIRA EM ACO PARA AMARRACAO DE ELETRODUTOS, TIPO D, COM 3" E PARAFUSO DE FIXACAO | C59: UN | D59: AS | E59: 2,88
A60: 39126 | B60: ABRACADEIRA EM ACO PARA AMARRACAO DE ELETRODUTOS, TIPO D, COM 4" E CUNHA DE FIXACAO | C60: UN | D60: AS | E60: 4,22
A61: 399 | B61: ABRACADEIRA EM ACO PARA AMARRACAO DE ELETRODUTOS, TIPO D, COM 4" E PARAFUSO DE FIXACAO | C61: UN | D61: AS | E61: 3,71
A62: 39158 | B62: ABRACADEIRA EM ACO PARA AMARRACAO DE ELETRODUTOS, TIPO ECONOMICA (GOTA), COM 8" | C62: UN | D62: AS | E62: 9,98
A63: 39141 | B63: ABRACADEIRA EM ACO PARA AMARRACAO DE ELETRODUTOS, TIPO U SIMPLES, COM 1 1/2" | C63: UN | D63: AS | E63: 0,72
A64: 39140 | B64: ABRACADEIRA EM ACO PARA AMARRACAO DE ELETRODUTOS, TIPO U SIMPLES, COM 1 1/4" | C64: UN | D64: AS | E64: 0,65
A65: 39137 | B65: ABRACADEIRA EM ACO PARA AMARRACAO DE ELETRODUTOS, TIPO U SIMPLES, COM 1/2" | C65: UN | D65: AS | E65: 0,37
A66: 39139 | B66: ABRACADEIRA EM ACO PARA AMARRACAO DE ELETRODUTOS, TIPO U SIMPLES, COM 1" | C66: UN | D66: AS | E66: 0,54
A67: 39143 | B67: ABRACADEIRA EM ACO PARA AMARRACAO DE ELETRODUTOS, TIPO U SIMPLES, COM 2 1/2" | C67: UN | D67: AS | E67: 1,49
A68: 39142 | B68: ABRACADEIRA EM ACO PARA AMARRACAO DE ELETRODUTOS, TIPO U SIMPLES, COM 2" | C68: UN | D68: AS | E68: 1,07
A69: 39138 | B69: ABRACADEIRA EM ACO PARA AMARRACAO DE ELETRODUTOS, TIPO U SIMPLES, COM 3/4" | C69: UN | D69: AS | E69: 0,40
A70: 39136 | B70: ABRACADEIRA EM ACO PARA AMARRACAO DE ELETRODUTOS, TIPO U SIMPLES, COM 3/8" | C70: UN | D70: AS | E70: 0,26
A71: 39144 | B71: ABRACADEIRA EM ACO PARA AMARRACAO DE ELETRODUTOS, TIPO U SIMPLES, COM 3" | C71: UN | D71: AS | E71: 1,74
A72: 39145 | B72: ABRACADEIRA EM ACO PARA AMARRACAO DE ELETRODUTOS, TIPO U SIMPLES, COM 4" | C72: UN | D72: AS | E72: 2,87
A73: 12615 | B73: ABRACADEIRA PVC, PARA CALHA PLUVIAL, DIAMETRO ENTRE 80 E 100 MM, PARA DRENAGEM PREDIAL | C73: UN | D73: AS | E73: 4,26
A74: 11927 | B74: ABRACADEIRA, GALVANIZADA/ZINCADA, ROSCA SEM FIM, PARAFUSO INOX, LARGURA FITA *12,6 A *14 MM, D = 2" A 2 1/2" | C74: UN | D74: CR | E74: 6,73
A75: 11928 | B75: ABRACADEIRA, GALVANIZADA/ZINCADA, ROSCA SEM FIM, PARAFUSO INOX, LARGURA FITA *12,6 A *14 MM, D = 3" A 3 3/4" | C75: UN | D75: CR | E75: 7,71
A76: 11929 | B76: ABRACADEIRA, GALVANIZADA/ZINCADA, ROSCA SEM FIM, PARAFUSO INOX, LARGURA FITA *12,6 A *14 MM, D = 4" A 4 3/4" | C76: UN | D76: CR | E76: 11,93
A77: 36801 | B77: ACABAMENTO CROMADO PARA REGISTRO PEQUENO, 1/2 " OU 3/4 " | C77: UN | D77: CR | E77: 24,04
A78: 36246 | B78: ACABAMENTO SIMPLES/CONVENCIONAL PARA FORRO PVC, TIPO "U" OU "C", COR BRANCA, COMPRIMENTO 6 M | C78: M | D78: AS | E78: 4,57
A79: 37600 | B79: ACESSORIO DE LIGACAO NAO ELETRICO PARA CARGAS EXPLOSIVAS, TUBO DE 6 M | C79: UN | D79: AS | E79: 93,16
A80: 37599 | B80: ACESSORIO INICIADOR NAO ELETRICO, TUBO DE 6 M, TEMPO DE RETARDO DE *160* MS | C80: UN | D80: AS | E80: 86,71
A81: 1 | B81: ACETILENO (RECARGA PARA CILINDRO DE CONJUNTO OXICORTE GRANDE) | C81: KG | D81: C | E81: 50,00
A82: 3 | B82: ACIDO MURIATICO, DILUICAO 10% A 12% PARA USO EM LIMPEZA | C82: L | D82: CR | E82: 5,96
A83: 43054 | B83: ACO CA-25, 10,0 MM, OU 12,5 MM, OU 16,0 MM, OU 20,0 MM, OU 25,0 MM, VERGALHAO | C83: KG | D83: CR | E83: 12,42
A84: 42402 | B84: ACO CA-25, 16,0 MM, BARRA DE TRANSFERENCIA | C84: KG | D84: CR | E84: 11,87
A85: 42403 | B85: ACO CA-25, 20,0 MM, BARRA DE TRANSFERENCIA | C85: KG | D85: CR | E85: 15,22
A86: 42404 | B86: ACO CA-25, 25,0 MM, BARRA DE TRANSFERENCIA | C86: KG | D86: CR | E86: 15,14
A87: 42405 | B87: ACO CA-25, 32,0 MM, BARRA DE TRANSFERENCIA | C87: KG | D87: CR | E87: 16,12
A88: 34341 | B88: ACO CA-25, 32,0 MM, VERGALHAO | C88: KG | D88: CR | E88: 13,99
A89: 43053 | B89: ACO CA-25, 6,3 MM OU 8,0 MM, VERGALHAO | C89: KG | D89: CR | E89: 11,09
A90: 43058 | B90: ACO CA-50, 10,0 MM, OU 12,5 MM, OU 16,0 MM, OU 20,0 MM, DOBRADO E CORTADO | C90: KG | D90: CR | E90: 11,50
A91: 34 | B91: ACO CA-50, 10,0 MM, VERGALHAO | C91: KG | D91: CR | E91: 11,56
A92: 43055 | B92: ACO CA-50, 12,5 MM OU 16,0 MM, VERGALHAO | C92: KG | D92: C | E92: 10,01
A93: 43056 | B93: ACO CA-50, 20,0 MM OU 25,0 MM, VERGALHAO | C93: KG | D93: CR | E93: 11,54
A94: 43057 | B94: ACO CA-50, 32,0 MM, VERGALHAO | C94: KG | D94: CR | E94: 12,68
A95: 34449 | B95: ACO CA-50, 6,3 MM, DOBRADO E CORTADO | C95: KG | D95: CR | E95: 13,56
A96: 32 | B96: ACO CA-50, 6,3 MM, VERGALHAO | C96: KG | D96: CR | E96: 12,19
A97: 33 | B97: ACO CA-50, 8,0 MM, VERGALHAO | C97: KG | D97: CR | E97: 12,26
A98: 43061 | B98: ACO CA-60, 4,2 MM OU 5,0 MM, DOBRADO E CORTADO | C98: KG | D98: CR | E98: 11,46
A99: 43059 | B99: ACO CA-60, 4,2 MM, OU 5,0 MM, OU 6,0 MM, OU 7,0 MM, VERGALHAO | C99: KG | D99: CR | E99: 10,94
A100: 43062 | B100: ACO CA-60, 6,0 MM OU 7,0 MM, DOBRADO E CORTADO | C100: KG | D100: CR | E100: 12,12
A101: 43060 | B101: ACO CA-60, 8,0 MM OU 9,5 MM, VERGALHAO | C101: KG | D101: CR | E101: 9,53
A102: 20063 | B102: ACOPLAMENTO DE CONDUTOR PLUVIAL, EM PVC, DIAMETRO ENTRE 80 E 100 MM, PARA DRENAGEM PREDIAL | C102: UN | D102: AS | E102: 4,23
A103: 40410 | B103: ACOPLAMENTO RIGIDO EM FERRO FUNDIDO PARA SISTEMA DE TUBULACAO RANHURADA, DN 50 MM (2") | C103: UN | D103: AS | E103: 24,22
A104: 40411 | B104: ACOPLAMENTO RIGIDO EM FERRO FUNDIDO PARA SISTEMA DE TUBULACAO RANHURADA, DN 65 MM (2 1/2") | C104: UN | D104: AS | E104: 26,28
A105: 40412 | B105: ACOPLAMENTO RIGIDO EM FERRO FUNDIDO PARA SISTEMA DE TUBULACAO RANHURADA, DN 80 MM (3") | C105: UN | D105: AS | E105: 29,50
A106: 38838 | B106: ADAPTADOR DE COBRE PARA TUBULACAO PEX, DN 16 X 15 MM | C106: UN | D106: AS | E106: 11,73
A107: 38839 | B107: ADAPTADOR DE COBRE PARA TUBULACAO PEX, DN 20 X 22 MM | C107: UN | D107: AS | E107: 13,81
A108: 55 | B108: ADAPTADOR DE COMPRESSAO EM POLIPROPILENO (PP), PARA TUBO EM PEAD, 20 MM X 1/2", PARA LIGACAO PREDIAL DE AGUA (NTS 179) | C108: UN | D108: AS | E108: 4,55
A109: 61 | B109: ADAPTADOR DE COMPRESSAO EM POLIPROPILENO (PP), PARA TUBO EM PEAD, 20 MM X 3/4", PARA LIGACAO PREDIAL DE AGUA (NTS 179) | C109: UN | D109: AS | E109: 4,30
A110: 62 | B110: ADAPTADOR DE COMPRESSAO EM POLIPROPILENO (PP), PARA TUBO EM PEAD, 32 MM X 1", PARA LIGACAO PREDIAL DE AGUA (NTS 179) | C110: UN | D110: AS | E110: 8,92
A111: 77 | B111: ADAPTADOR PVC PARA SIFAO METALICO, SOLDAVEL, COM ANEL BORRACHA (JE), 40 MM X 1 1/2" | C111: UN | D111: CR | E111: 1,22
A112: 76 | B112: ADAPTADOR PVC PARA SIFAO, ROSCAVEL, 40 MM X 1 1/4" | C112: UN | D112: CR | E112: 1,24
A113: 67 | B113: ADAPTADOR PVC ROSCAVEL, COM FLANGES E ANEL DE VEDACAO, 1/2", PARA CAIXA D' AGUA | C113: UN | D113: CR | E113: 12,00
A114: 71 | B114: ADAPTADOR PVC ROSCAVEL, COM FLANGES E ANEL DE VEDACAO, 1", PARA CAIXA D' AGUA | C114: UN | D114: CR | E114: 22,06
A115: 73 | B115: ADAPTADOR PVC ROSCAVEL, COM FLANGES E ANEL DE VEDACAO, 3/4", PARA CAIXA D' AGUA | C115: UN | D115: CR | E115: 16,47
A116: 103 | B116: ADAPTADOR PVC SOLDAVEL CURTO COM BOLSA E ROSCA, 110 MM X 4", PARA AGUA FRIA | C116: UN | D116: CR | E116: 48,99
A117: 107 | B117: ADAPTADOR PVC SOLDAVEL CURTO COM BOLSA E ROSCA, 20 MM X 1/2", PARA AGUA FRIA | C117: UN | D117: CR | E117: 0,76
A118: 65 | B118: ADAPTADOR PVC SOLDAVEL CURTO COM BOLSA E ROSCA, 25 MM X 3/4", PARA AGUA FRIA | C118: UN | D118: CR | E118: 0,94
A119: 108 | B119: ADAPTADOR PVC SOLDAVEL CURTO COM BOLSA E ROSCA, 32 MM X 1", PARA AGUA FRIA | C119: UN | D119: CR | E119: 1,95
A120: 110 | B120: ADAPTADOR PVC SOLDAVEL CURTO COM BOLSA E ROSCA, 40 MM X 1 1/2", PARA AGUA FRIA | C120: UN | D120: CR | E120: 7,56
A121: 109 | B121: ADAPTADOR PVC SOLDAVEL CURTO COM BOLSA E ROSCA, 40 MM X 1 1/4", PARA AGUA FRIA | C121: UN | D121: CR | E121: 3,73
A122: 111 | B122: ADAPTADOR PVC SOLDAVEL CURTO COM BOLSA E ROSCA, 50 MM X 1 1/4", PARA AGUA FRIA | C122: UN | D122: CR | E122: 8,72
A123: 112 | B123: ADAPTADOR PVC SOLDAVEL CURTO COM BOLSA E ROSCA, 50 MM X1 1/2", PARA AGUA FRIA | C123: UN | D123: CR | E123: 4,74
A124: 113 | B124: ADAPTADOR PVC SOLDAVEL CURTO COM BOLSA E ROSCA, 60 MM X 2", PARA AGUA FRIA | C124: UN | D124: CR | E124: 12,88
A125: 104 | B125: ADAPTADOR PVC SOLDAVEL CURTO COM BOLSA E ROSCA, 75 MM X 2 1/2", PARA AGUA FRIA | C125: UN | D125: CR | E125: 18,74
A126: 102 | B126: ADAPTADOR PVC SOLDAVEL CURTO COM BOLSA E ROSCA, 85 MM X 3", PARA AGUA FRIA | C126: UN | D126: CR | E126: 30,77
A127: 95 | B127: ADAPTADOR PVC SOLDAVEL, COM FLANGE E ANEL DE VEDACAO, 20 MM X 1/2", PARA CAIXA D'AGUA | C127: UN | D127: CR | E127: 10,41
A128: 96 | B128: ADAPTADOR PVC SOLDAVEL, COM FLANGE E ANEL DE VEDACAO, 25 MM X 3/4", PARA CAIXA D'AGUA | C128: UN | D128: CR | E128: 11,98
A129: 97 | B129: ADAPTADOR PVC SOLDAVEL, COM FLANGE E ANEL DE VEDACAO, 32 MM X 1", PARA CAIXA D'AGUA | C129: UN | D129: CR | E129: 15,55
A130: 98 | B130: ADAPTADOR PVC SOLDAVEL, COM FLANGE E ANEL DE VEDACAO, 40 MM X 1 1/4", PARA CAIXA D'AGUA | C130: UN | D130: CR | E130: 20,96
A131: 99 | B131: ADAPTADOR PVC SOLDAVEL, COM FLANGE E ANEL DE VEDACAO, 50 MM X 1 1/2", PARA CAIXA D'AGUA | C131: UN | D131: CR | E131: 25,42
A132: 100 | B132: ADAPTADOR PVC SOLDAVEL, COM FLANGES E ANEL DE VEDACAO, 60 MM X 2", PARA CAIXA D' AGUA | C132: UN | D132: CR | E132: 35,47
A133: 75 | B133: ADAPTADOR PVC SOLDAVEL, COM FLANGES LIVRES, 110 MM X 4", PARA CAIXA D' AGUA | C133: UN | D133: CR | E133: 369,66
A134: 114 | B134: ADAPTADOR PVC SOLDAVEL, COM FLANGES LIVRES, 25 MM X 3/4", PARA CAIXA D' AGUA | C134: UN | D134: CR | E134: 13,47
A135: 68 | B135: ADAPTADOR PVC SOLDAVEL, COM FLANGES LIVRES, 32 MM X 1", PARA CAIXA D' AGUA | C135: UN | D135: CR | E135: 20,60
A136: 86 | B136: ADAPTADOR PVC SOLDAVEL, COM FLANGES LIVRES, 40 MM X 1 1/4", PARA CAIXA D' AGUA | C136: UN | D136: CR | E136: 38,29
A137: 66 | B137: ADAPTADOR PVC SOLDAVEL, COM FLANGES LIVRES, 50 MM X 1 1/2", PARA CAIXA D' AGUA | C137: UN | D137: CR | E137: 38,43
A138: 69 | B138: ADAPTADOR PVC SOLDAVEL, COM FLANGES LIVRES, 60 MM X 2", PARA CAIXA D' AGUA | C138: UN | D138: CR | E138: 58,74
A139: 83 | B139: ADAPTADOR PVC SOLDAVEL, COM FLANGES LIVRES, 75 MM X 2 1/2", PARA CAIXA D' AGUA | C139: UN | D139: CR | E139: 187,60
A140: 74 | B140: ADAPTADOR PVC SOLDAVEL, COM FLANGES LIVRES, 85 MM X 3", PARA CAIXA D' AGUA | C140: UN | D140: CR | E140: 261,91
A141: 106 | B141: ADAPTADOR PVC SOLDAVEL, LONGO, COM FLANGE LIVRE, 110 MM X 4", PARA CAIXA D' AGUA | C141: UN | D141: CR | E141: 397,88
A142: 87 | B142: ADAPTADOR PVC SOLDAVEL, LONGO, COM FLANGE LIVRE, 25 MM X 3/4", PARA CAIXA D' AGUA | C142: UN | D142: CR | E142: 18,91
A143: 88 | B143: ADAPTADOR PVC SOLDAVEL, LONGO, COM FLANGE LIVRE, 32 MM X 1", PARA CAIXA D' AGUA | C143: UN | D143: CR | E143: 21,10
A144: 89 | B144: ADAPTADOR PVC SOLDAVEL, LONGO, COM FLANGE LIVRE, 40 MM X 1 1/4", PARA CAIXA D' AGUA | C144: UN | D144: CR | E144: 31,21
A145: 90 | B145: ADAPTADOR PVC SOLDAVEL, LONGO, COM FLANGE LIVRE, 50 MM X 1 1/2", PARA CAIXA D' AGUA | C145: UN | D145: CR | E145: 35,75
A146: 81 | B146: ADAPTADOR PVC SOLDAVEL, LONGO, COM FLANGE LIVRE, 60 MM X 2", PARA CAIXA D' AGUA | C146: UN | D146: CR | E146: 61,15
A147: 82 | B147: ADAPTADOR PVC SOLDAVEL, LONGO, COM FLANGE LIVRE, 75 MM X 2 1/2", PARA CAIXA D' AGUA | C147: UN | D147: CR | E147: 237,40
A148: 105 | B148: ADAPTADOR PVC SOLDAVEL, LONGO, COM FLANGE LIVRE, 85 MM X 3", PARA CAIXA D' AGUA | C148: UN | D148: CR | E148: 277,94
A149: 60 | B149: ADAPTADOR PVC, COM REGISTRO, PARA PEAD, 20 MM X 3/4", PARA LIGACAO PREDIAL DE AGUA | C149: UN | D149: AS | E149: 5,90
A150: 72 | B150: ADAPTADOR PVC, ROSCAVEL, COM FLANGES E ANEL DE VEDACAO, 1 1/2", PARA CAIXA D'AGUA | C150: UN | D150: CR | E150: 37,38
A151: 70 | B151: ADAPTADOR PVC, ROSCAVEL, COM FLANGES E ANEL DE VEDACAO, 1 1/4", PARA CAIXA D' AGUA | C151: UN | D151: CR | E151: 31,26
A152: 85 | B152: ADAPTADOR PVC, ROSCAVEL, COM FLANGES E ANEL DE VEDACAO, 2", PARA CAIXA D' AGUA | C152: UN | D152: CR | E152: 45,37
A153: 84 | B153: ADAPTADOR PVC, ROSCAVEL, PARA VALVULA PIA OU LAVATORIO, 40 MM | C153: UN | D153: CR | E153: 0,52
A154: 37997 | B154: ADAPTADOR, CPVC, SOLDAVEL, 15 MM, PARA AGUA QUENTE | C154: UN | D154: AS | E154: 5,56
A155: 37998 | B155: ADAPTADOR, CPVC, SOLDAVEL, 22 MM, PARA AGUA QUENTE | C155: UN | D155: AS | E155: 5,76
A156: 10899 | B156: ADAPTADOR, EM LATAO, ENGATE RAPIDO 2 1/2" X ROSCA INTERNA 5 FIOS 2 1/2", PARA INSTALACAO PREDIAL DE COMBATE A INCENDIO | C156: UN | D156: CR | E156: 75,35
A157: 10900 | B157: ADAPTADOR, EM LATAO, ENGATE RAPIDO1 1/2" X ROSCA INTERNA 5 FIOS 2 1/2", PARA INSTALACAO PREDIAL DE COMBATE A INCENDIO | C157: UN | D157: CR | E157: 58,97
A158: 46 | B158: ADAPTADOR, PVC PBA, BOLSA/ROSCA, JE, DN 75 / DE 85 MM | C158: UN | D158: AS | E158: 53,68
A159: 51 | B159: ADAPTADOR, PVC PBA, A BOLSA DEFOFO, JE, DN 100 / DE 110 MM | C159: UN | D159: AS | E159: 148,10
A160: 12863 | B160: ADAPTADOR, PVC PBA, A BOLSA DEFOFO, JE, DN 50 / DE 60 MM | C160: UN | D160: AS | E160: 34,11
A161: 50 | B161: ADAPTADOR, PVC PBA, A BOLSA DEFOFO, JE, DN 75 / DE 85 MM | C161: UN | D161: AS | E161: 77,34
A162: 47 | B162: ADAPTADOR, PVC PBA, BOLSA/ROSCA, JE, DN 100 / DE 110 MM | C162: UN | D162: AS | E162: 91,79
A163: 48 | B163: ADAPTADOR, PVC PBA, BOLSA/ROSCA, JE, DN 50 / DE 60 MM | C163: UN | D163: AS | E163: 23,94
A164: 52 | B164: ADAPTADOR, PVC PBA, PONTA/ROSCA, JE, DN 50 / DE 60 MM | C164: UN | D164: AS | E164: 18,19
A165: 43 | B165: ADAPTADOR, PVC PBA, PONTA/ROSCA, JE, DN 75 / DE 85 MM | C165: UN | D165: AS | E165: 61,39
A166: 4791 | B166: ADESIVO ACRILICO/COLA DE CONTATO | C166: KG | D166: CR | E166: 17,87
A167: 157 | B167: ADESIVO ESTRUTURAL A BASE DE RESINA EPOXI PARA INJECAO EM TRINCAS, BICOMPONENTE, BAIXA VISCOSIDADE | C167: KG | D167: CR | E167: 137,59
A168: 156 | B168: ADESIVO ESTRUTURAL A BASE DE RESINA EPOXI, BICOMPONENTE, FLUIDO | C168: KG | D168: CR | E168: 48,99
A169: 131 | B169: ADESIVO ESTRUTURAL A BASE DE RESINA EPOXI, BICOMPONENTE, PASTOSO (TIXOTROPICO) | C169: KG | D169: CR | E169: 41,89
A170: 39719 | B170: ADESIVO LIQUIDO A BASE DE RESINAS PARA COLAGEM DE ESPUMA DE ISOLAMENTO TERMICO FLEXIVEL | C170: L | D170: CR | E170: 69,79
A171: 21114 | B171: ADESIVO PARA TUBOS CPVC, *75* G | C171: UN | D171: CR | E171: 14,95
A172: 119 | B172: ADESIVO PLASTICO PARA PVC, BISNAGA COM 75 GR | C172: UN | D172: C | E172: 5,90
A173: 20080 | B173: ADESIVO PLASTICO PARA PVC, FRASCO COM 175 GR | C173: UN | D173: CR | E173: 16,91
A174: 122 | B174: ADESIVO PLASTICO PARA PVC, FRASCO COM 850 GR | C174: UN | D174: CR | E174: 53,29
A175: 3410 | B175: ADESIVO/COLA PARA EPS (ISOPOR) E OUTROS MATERIAIS | C175: KG | D175: AS | E175: 27,22
A176: 124 | B176: ADITIVO ACELERADOR DE PEGA E ENDURECIMENTO PARA ARGAMASSAS E CONCRETOS, LIQUIDO E ISENTO DE CLORETOS | C176: L | D176: CR | E176: 16,15
A177: 7334 | B177: ADITIVO ADESIVO LIQUIDO PARA ARGAMASSAS DE REVESTIMENTOS CIMENTICIOS | C177: L | D177: CR | E177: 10,69
A178: 123 | B178: ADITIVO IMPERMEABILIZANTE DE PEGA NORMAL PARA ARGAMASSAS E CONCRETOS SEM ARMACAO, LIQUIDO E ISENTO DE CLORETOS | C178: L | D178: C | E178: 6,61
A179: 127 | B179: ADITIVO IMPERMEABILIZANTE DE PEGA ULTRARRAPIDA, LIQUIDO E ISENTO DE CLORETOS | C179: L | D179: CR | E179: 15,78
A180: 41373 | B180: ADITIVO LIQUIDO IMPERMEABILIZANTE CRISTALIZANTE | C180: L | D180: CR | E180: 21,98
A181: 133 | B181: ADITIVO LIQUIDO INCORPORADOR DE AR PARA CONCRETO E ARGAMASSA, LIQUIDO E ISENTO DE CLORETOS | C181: L | D181: CR | E181: 6,55
A182: 43617 | B182: ADITIVO PLASTIFICANTE E ESTABILIZADOR PARA ARGAMASSAS DE ASSENTAMENTO E REBOCO, LIQUIDO E ISENTO DE CLORETOS | C182: L | D182: CR | E182: 7,32
A183: 132 | B183: ADITIVO PLASTIFICANTE RETARDADOR DE PEGA E REDUTOR DE AGUA PARA CONCRETO, LIQUIDO E ISENTO DE CLORETOS | C183: L | D183: CR | E183: 6,79
A184: 43618 | B184: ADITIVO SUPERPLASTIFICANTE DE PEGA NORMAL PARA CONCRETO, LIQUIDO E ISENTO DE CLORETOS | C184: KG | D184: CR | E184: 17,10
A185: 37476 | B185: ADUELA/ GALERIA PRE-MOLDADA DE CONCRETO ARMADO, SECAO QUADRADA INTERNA DE 1,50 X 1,50 M (L X A), MISULA DE 20 X 20 CM, C = 1,00 M, ESPESSURA MIN = 15 CM, TB-45 E FCK DO CONCRETO = 30 MPA | C185: UN | D185: AS | E185: 2.805,94
A186: 37478 | B186: ADUELA/ GALERIA PRE-MOLDADA DE CONCRETO ARMADO, SECAO RETANGULAR INTERNA DE 2,00 X 2,00 M (L X A), MISULA DE 20 X 20 CM, C = 1,00 M, ESPESSURA MIN = 15 CM, TB-45 E FCK DO CONCRETO = 30 MPA | C186: UN | D186: AS | E186: 3.514,51
A187: 37477 | B187: ADUELA/ GALERIA PRE-MOLDADA DE CONCRETO ARMADO, SECAO RETANGULAR INTERNA DE 2,50 X 2,50 M (L X A), MISULA DE 20 X 20 CM, C = 1,00 M, ESPESSURA MIN = 15 CM, TB-45 E FCK DO CONCRETO = 30 MPA | C187: UN | D187: AS | E187: 4.761,59
A188: 37479 | B188: ADUELA/ GALERIA PRE-MOLDADA DE CONCRETO ARMADO, SECAO RETANGULAR INTERNA DE 3,00 X 3,00 M (L X A), MISULA DE 20 X 20 CM, C = 1.00 M, ESPESSURA MIN = 20 CM, TB-45 E FCK DO CONCRETO = 30 MPA | C188: UN | D188: AS | E188: 5.647,31
A189: 4319 | B189: AFASTADOR PARA TELHA DE FIBROCIMENTO CANALETE 90 OU KALHETAO | C189: UN | D189: CR | E189: 1,54
A190: 42409 | B190: AGENTE DE CURA, PROTETOR DA EVAPORACAO DA AGUA DE HIDRATACAO DO CONCRETO | C190: KG | D190: CR | E190: 10,77
A191: 40553 | B191: AGREGADO RECICLADO, TIPO RACHAO RECICLADO CINZA, CLASSE A | C191: M3 | D191: AS | E191: 36,40
A192: 6114 | B192: AJUDANTE DE ARMADOR | C192: H | D192: CR | E192: 10,36
A193: 40912 | B193: AJUDANTE DE ARMADOR (MENSALISTA) | C193: MES | D193: CR | E193: 1.835,11
A194: 247 | B194: AJUDANTE DE ELETRICISTA | C194: H | D194: CR | E194: 10,44
A195: 40919 | B195: AJUDANTE DE ELETRICISTA (MENSALISTA) | C195: MES | D195: CR | E195: 1.850,56
A196: 25958 | B196: AJUDANTE DE ESTRUTURAS METALICAS | C196: H | D196: CR | E196: 9,08
A197: 40984 | B197: AJUDANTE DE ESTRUTURAS METALICAS (MENSALISTA) | C197: MES | D197: CR | E197: 1.609,71
A198: 248 | B198: AJUDANTE DE OPERACAO EM GERAL | C198: H | D198: CR | E198: 10,72
A199: 41086 | B199: AJUDANTE DE OPERACAO EM GERAL (MENSALISTA) | C199: MES | D199: CR | E199: 1.898,91
A200: 34466 | B200: AJUDANTE DE PINTOR | C200: H | D200: CR | E200: 10,72
A201: 41083 | B201: AJUDANTE DE PINTOR (MENSALISTA) | C201: MES | D201: CR | E201: 1.898,91
A202: 252 | B202: AJUDANTE DE SERRALHEIRO | C202: H | D202: CR | E202: 11,12
... 4984 more rows

Sheet ExcluidoCOMPOSIÇÃO ANALI sinapi
A1: PCI.818.01 - CUSTOS DE COMPOSIÇÕES ANALÍTICO DATA DE EMISSÃO:14/07/2021 23:35:53 DATA DE RT: 14/07/2021
A2: ENCARGOS SOCIAIS SOBRE PREÇOS DA MÃO-DE-OBRA: 112,76%(HORA) 71,07%(MÊS)
A3: ABRANGENCIA: NACIONAL DATA REFERENCIA TECNICA: 14/07/2021 LOCALIDADE : FORTALEZA DATA DE PREÇO : 06/2021
A4: REFERÊNCIA DE COLETA: MEDIANO
A6: DESCRICAO DA CLASSE | B6: SIGLA DA CLASSE | C6: DESCRICAO DO TIPO 1 | D6: SIGLA DO TIPO 1 | E6: CODIGO DO AGRUPADOR | F6: DESCRICAO DO AGRUPADOR | G6: CODIGO DA COMPOSICAO | H6: DESCRICAO DA COMPOSICAO | I6: UNIDADE | J6: ORIGEM DE PREÇO | K6: CUSTO TOTAL | L6: TIPO ITEM | M6: CODIGO ITEM | N6: DESCRIÇÃO ITEM | O6: UNIDADE ITEM | P6: ORIGEM DE PREÇO ITEM | Q6: COEFICIENTE | R6: PRECO UNITARIO | S6: CUSTO TOTAL | T6: CUSTO MAO DE OBRA | U6: % MAO DE OBRA | V6: CUSTO MATERIAL | W6: % MATERIAL | X6: CUSTO EQUIPAMENTO | Y6: % EQUIPAMENTO | Z6: CUSTO SERVICOS TERCEIROS | AA6: % SERVICOS TERCEIROS | AB6: CUSTO OUTROS | AC6: % OUTROS | AD6: % ATRIBUÍDO SÃO PAULO | AE6: VINCULO
A8: ASSENTAMENTO DE TUBOS E PECAS | B8: ASTU | C8: FORNEC E/OU ASSENT DE TUBO DE FERRO FUNDIDO JUNTA | D8: 45 | G8: 97141 | H8: ASSENTAMENTO DE TUBO DE FERRO FUNDIDO PARA REDE DE ÁGUA, DN 80 MM, JUNTA ELÁSTICA, INSTALADO EM LOCAL COM NÍVEL ALTO DE INTERFERÊNCIAS (NÃO INCLUI FORNECIMENTO). AF_11/2017 | I8: M | J8: ATRIBUÍDO SÃO PAULO | K8: 5,94 | T8: 2,97 | U8: 49,9136443 | V8: 1,61 | W8: 27,1157167 | X8: 1,36 | Y8: 22,9706390 | Z8: 0,00 | AA8: 0,0000000 | AB8: 0,00 | AC8: 0,0000000 | AD8: 0.22391 | AE8: CAIXA REFERENCIAL
A9: ASSENTAMENTO DE TUBOS E PECAS | B9: ASTU | C9: FORNEC E/OU ASSENT DE TUBO DE FERRO FUNDIDO JUNTA | D9: 45 | G9: 97141 | H9: ASSENTAMENTO DE TUBO DE FERRO FUNDIDO PARA REDE DE ÁGUA, DN 80 MM, JUNTA ELÁSTICA, INSTALADO EM LOCAL COM NÍVEL ALTO DE INTERFERÊNCIAS (NÃO INCLUI FORNECIMENTO). AF_11/2017 | I9: M | J9: ATRIBUÍDO SÃO PAULO | K9: 5,94 | L9: COMPOSICAO | M9: 5678 | N9: RETROESCAVADEIRA SOBRE RODAS COM CARREGADEIRA, TRAÇÃO 4X4, POTÊNCIA LÍQ. 88 HP, CAÇAMBA CARREG. CAP. MÍN. 1 M3, CAÇAMBA RETRO CAP. 0,26 M3, PESO OPERACIONAL MÍN. 6.674 KG, PROFUNDIDADE ESCAVAÇÃO MÁX. 4,37 M - CHP DIURNO. AF_06/2014 | O9: CHP | P9: ATRIBUÍDO SÃO PAULO | Q9: 0,0099000 | R9: 105,80 | S9: 1,04 | AE9: CAIXA REFERENCIAL
A10: ASSENTAMENTO DE TUBOS E PECAS | B10: ASTU | C10: FORNEC E/OU ASSENT DE TUBO DE FERRO FUNDIDO JUNTA | D10: 45 | G10: 97141 | H10: ASSENTAMENTO DE TUBO DE FERRO FUNDIDO PARA REDE DE ÁGUA, DN 80 MM, JUNTA ELÁSTICA, INSTALADO EM LOCAL COM NÍVEL ALTO DE INTERFERÊNCIAS (NÃO INCLUI FORNECIMENTO). AF_11/2017 | I10: M | J10: ATRIBUÍDO SÃO PAULO | K10: 5,94 | L10: COMPOSICAO | M10: 5679 | N10: RETROESCAVADEIRA SOBRE RODAS COM CARREGADEIRA, TRAÇÃO 4X4, POTÊNCIA LÍQ. 88 HP, CAÇAMBA CARREG. CAP. MÍN. 1 M3, CAÇAMBA RETRO CAP. 0,26 M3, PESO OPERACIONAL MÍN. 6.674 KG, PROFUNDIDADE ESCAVAÇÃO MÁX. 4,37 M - CHI DIURNO. AF_06/2014 | O10: CHI | P10: ATRIBUÍDO SÃO PAULO | Q10: 0,0477000 | R10: 42,42 | S10: 2,02 | AE10: CAIXA REFERENCIAL
A11: ASSENTAMENTO DE TUBOS E PECAS | B11: ASTU | C11: FORNEC E/OU ASSENT DE TUBO DE FERRO FUNDIDO JUNTA | D11: 45 | G11: 97141 | H11: ASSENTAMENTO DE TUBO DE FERRO FUNDIDO PARA REDE DE ÁGUA, DN 80 MM, JUNTA ELÁSTICA, INSTALADO EM LOCAL COM NÍVEL ALTO DE INTERFERÊNCIAS (NÃO INCLUI FORNECIMENTO). AF_11/2017 | I11: M | J11: ATRIBUÍDO SÃO PAULO | K11: 5,94 | L11: INSUMO | M11: 20078 | N11: PASTA LUBRIFICANTE PARA TUBOS E CONEXOES COM JUNTA ELASTICA (USO EM PVC, ACO, POLIETILENO E OUTROS) ( DE *400* G) | O11: UN | P11: COEFICIENTE DE REPRESENTATIVIDADE | Q11: 0,0046000 | R11: 19,51 | S11: 0,08 | AE11: CAIXA REFERENCIAL
A12: ASSENTAMENTO DE TUBOS E PECAS | B12: ASTU | C12: FORNEC E/OU ASSENT DE TUBO DE FERRO FUNDIDO JUNTA | D12: 45 | G12: 97141 | H12: ASSENTAMENTO DE TUBO DE FERRO FUNDIDO PARA REDE DE ÁGUA, DN 80 MM, JUNTA ELÁSTICA, INSTALADO EM LOCAL COM NÍVEL ALTO DE INTERFERÊNCIAS (NÃO INCLUI FORNECIMENTO). AF_11/2017 | I12: M | J12: ATRIBUÍDO SÃO PAULO | K12: 5,94 | L12: COMPOSICAO | M12: 88246 | N12: ASSENTADOR DE TUBOS COM ENCARGOS COMPLEMENTARES | O12: H | P12: COEFICIENTE DE REPRESENTATIVIDADE | Q12: 0,0905000 | R12: 14,73 | S12: 1,33 | AE12: CAIXA REFERENCIAL
A13: ASSENTAMENTO DE TUBOS E PECAS | B13: ASTU | C13: FORNEC E/OU ASSENT DE TUBO DE FERRO FUNDIDO JUNTA | D13: 45 | G13: 97141 | H13: ASSENTAMENTO DE TUBO DE FERRO FUNDIDO PARA REDE DE ÁGUA, DN 80 MM, JUNTA ELÁSTICA, INSTALADO EM LOCAL COM NÍVEL ALTO DE INTERFERÊNCIAS (NÃO INCLUI FORNECIMENTO). AF_11/2017 | I13: M | J13: ATRIBUÍDO SÃO PAULO | K13: 5,94 | L13: COMPOSICAO | M13: 88316 | N13: SERVENTE COM ENCARGOS COMPLEMENTARES | O13: H | P13: COLETADO | Q13: 0,0905000 | R13: 16,25 | S13: 1,47 | AE13: CAIXA REFERENCIAL
A14: ASSENTAMENTO DE TUBOS E PECAS | B14: ASTU | C14: FORNEC E/OU ASSENT DE TUBO DE FERRO FUNDIDO JUNTA | D14: 45 | G14: 97142 | H14: ASSENTAMENTO DE TUBO DE FERRO FUNDIDO PARA REDE DE ÁGUA, DN 100 MM, JUNTA ELÁSTICA, INSTALADO EM LOCAL COM NÍVEL ALTO DE INTERFERÊNCIAS (NÃO INCLUI FORNECIMENTO). AF_11/2017 | I14: M | J14: ATRIBUÍDO SÃO PAULO | K14: 6,60 | T14: 3,34 | U14: 50,5426357 | V14: 1,82 | W14: 27,5968992 | X14: 1,44 | Y14: 21,8604651 | Z14: 0,00 | AA14: 0,0000000 | AB14: 0,00 | AC14: 0,0000000 | AD14: 0.21364 | AE14: CAIXA REFERENCIAL
A15: ASSENTAMENTO DE TUBOS E PECAS | B15: ASTU | C15: FORNEC E/OU ASSENT DE TUBO DE FERRO FUNDIDO JUNTA | D15: 45 | G15: 97142 | H15: ASSENTAMENTO DE TUBO DE FERRO FUNDIDO PARA REDE DE ÁGUA, DN 100 MM, JUNTA ELÁSTICA, INSTALADO EM LOCAL COM NÍVEL ALTO DE INTERFERÊNCIAS (NÃO INCLUI FORNECIMENTO). AF_11/2017 | I15: M | J15: ATRIBUÍDO SÃO PAULO | K15: 6,60 | L15: COMPOSICAO | M15: 5678 | N15: RETROESCAVADEIRA SOBRE RODAS COM CARREGADEIRA, TRAÇÃO 4X4, POTÊNCIA LÍQ. 88 HP, CAÇAMBA CARREG. CAP. MÍN. 1 M3, CAÇAMBA RETRO CAP. 0,26 M3, PESO OPERACIONAL MÍN. 6.674 KG, PROFUNDIDADE ESCAVAÇÃO MÁX. 4,37 M - CHP DIURNO. AF_06/2014 | O15: CHP | P15: ATRIBUÍDO SÃO PAULO | Q15: 0,0106000 | R15: 105,80 | S15: 1,12 | AE15: CAIXA REFERENCIAL
A16: ASSENTAMENTO DE TUBOS E PECAS | B16: ASTU | C16: FORNEC E/OU ASSENT DE TUBO DE FERRO FUNDIDO JUNTA | D16: 45 | G16: 97142 | H16: ASSENTAMENTO DE TUBO DE FERRO FUNDIDO PARA REDE DE ÁGUA, DN 100 MM, JUNTA ELÁSTICA, INSTALADO EM LOCAL COM NÍVEL ALTO DE INTERFERÊNCIAS (NÃO INCLUI FORNECIMENTO). AF_11/2017 | I16: M | J16: ATRIBUÍDO SÃO PAULO | K16: 6,60 | L16: COMPOSICAO | M16: 5679 | N16: RETROESCAVADEIRA SOBRE RODAS COM CARREGADEIRA, TRAÇÃO 4X4, POTÊNCIA LÍQ. 88 HP, CAÇAMBA CARREG. CAP. MÍN. 1 M3, CAÇAMBA RETRO CAP. 0,26 M3, PESO OPERACIONAL MÍN. 6.674 KG, PROFUNDIDADE ESCAVAÇÃO MÁX. 4,37 M - CHI DIURNO. AF_06/2014 | O16: CHI | P16: ATRIBUÍDO SÃO PAULO | Q16: 0,0510000 | R16: 42,42 | S16: 2,16 | AE16: CAIXA REFERENCIAL
A17: ASSENTAMENTO DE TUBOS E PECAS | B17: ASTU | C17: FORNEC E/OU ASSENT DE TUBO DE FERRO FUNDIDO JUNTA | D17: 45 | G17: 97142 | H17: ASSENTAMENTO DE TUBO DE FERRO FUNDIDO PARA REDE DE ÁGUA, DN 100 MM, JUNTA ELÁSTICA, INSTALADO EM LOCAL COM NÍVEL ALTO DE INTERFERÊNCIAS (NÃO INCLUI FORNECIMENTO). AF_11/2017 | I17: M | J17: ATRIBUÍDO SÃO PAULO | K17: 6,60 | L17: INSUMO | M17: 20078 | N17: PASTA LUBRIFICANTE PARA TUBOS E CONEXOES COM JUNTA ELASTICA (USO EM PVC, ACO, POLIETILENO E OUTROS) ( DE *400* G) | O17: UN | P17: COEFICIENTE DE REPRESENTATIVIDADE | Q17: 0,0054000 | R17: 19,51 | S17: 0,10 | AE17: CAIXA REFERENCIAL
A18: ASSENTAMENTO DE TUBOS E PECAS | B18: ASTU | C18: FORNEC E/OU ASSENT DE TUBO DE FERRO FUNDIDO JUNTA | D18: 45 | G18: 97142 | H18: ASSENTAMENTO DE TUBO DE FERRO FUNDIDO PARA REDE DE ÁGUA, DN 100 MM, JUNTA ELÁSTICA, INSTALADO EM LOCAL COM NÍVEL ALTO DE INTERFERÊNCIAS (NÃO INCLUI FORNECIMENTO). AF_11/2017 | I18: M | J18: ATRIBUÍDO SÃO PAULO | K18: 6,60 | L18: COMPOSICAO | M18: 88246 | N18: ASSENTADOR DE TUBOS COM ENCARGOS COMPLEMENTARES | O18: H | P18: COEFICIENTE DE REPRESENTATIVIDADE | Q18: 0,1045000 | R18: 14,73 | S18: 1,53 | AE18: CAIXA REFERENCIAL
A19: ASSENTAMENTO DE TUBOS E PECAS | B19: ASTU | C19: FORNEC E/OU ASSENT DE TUBO DE FERRO FUNDIDO JUNTA | D19: 45 | G19: 97142 | H19: ASSENTAMENTO DE TUBO DE FERRO FUNDIDO PARA REDE DE ÁGUA, DN 100 MM, JUNTA ELÁSTICA, INSTALADO EM LOCAL COM NÍVEL ALTO DE INTERFERÊNCIAS (NÃO INCLUI FORNECIMENTO). AF_11/2017 | I19: M | J19: ATRIBUÍDO SÃO PAULO | K19: 6,60 | L19: COMPOSICAO | M19: 88316 | N19: SERVENTE COM ENCARGOS COMPLEMENTARES | O19: H | P19: COLETADO | Q19: 0,1045000 | R19: 16,25 | S19: 1,69 | AE19: CAIXA REFERENCIAL
A20: ASSENTAMENTO DE TUBOS E PECAS | B20: ASTU | C20: FORNEC E/OU ASSENT DE TUBO DE FERRO FUNDIDO JUNTA | D20: 45 | G20: 97143 | H20: ASSENTAMENTO DE TUBO DE FERRO FUNDIDO PARA REDE DE ÁGUA, DN 150 MM, JUNTA ELÁSTICA, INSTALADO EM LOCAL COM NÍVEL ALTO DE INTERFERÊNCIAS (NÃO INCLUI FORNECIMENTO). AF_11/2017 | I20: M | J20: ATRIBUÍDO SÃO PAULO | K20: 8,26 | T20: 4,26 | U20: 51,4814816 | V20: 2,33 | W20: 28,2716049 | X20: 1,67 | Y20: 20,2469135 | Z20: 0,00 | AA20: 0,0000000 | AB20: 0,00 | AC20: 0,0000000 | AD20: 0.19855 | AE20: CAIXA REFERENCIAL
A21: ASSENTAMENTO DE TUBOS E PECAS | B21: ASTU | C21: FORNEC E/OU ASSENT DE TUBO DE FERRO FUNDIDO JUNTA | D21: 45 | G21: 97143 | H21: ASSENTAMENTO DE TUBO DE FERRO FUNDIDO PARA REDE DE ÁGUA, DN 150 MM, JUNTA ELÁSTICA, INSTALADO EM LOCAL COM NÍVEL ALTO DE INTERFERÊNCIAS (NÃO INCLUI FORNECIMENTO). AF_11/2017 | I21: M | J21: ATRIBUÍDO SÃO PAULO | K21: 8,26 | L21: COMPOSICAO | M21: 5678 | N21: RETROESCAVADEIRA SOBRE RODAS COM CARREGADEIRA, TRAÇÃO 4X4, POTÊNCIA LÍQ. 88 HP, CAÇAMBA CARREG. CAP. MÍN. 1 M3, CAÇAMBA RETRO CAP. 0,26 M3, PESO OPERACIONAL MÍN. 6.674 KG, PROFUNDIDADE ESCAVAÇÃO MÁX. 4,37 M - CHP DIURNO. AF_06/2014 | O21: CHP | P21: ATRIBUÍDO SÃO PAULO | Q21: 0,0124000 | R21: 105,80 | S21: 1,31 | AE21: CAIXA REFERENCIAL
A22: ASSENTAMENTO DE TUBOS E PECAS | B22: ASTU | C22: FORNEC E/OU ASSENT DE TUBO DE FERRO FUNDIDO JUNTA | D22: 45 | G22: 97143 | H22: ASSENTAMENTO DE TUBO DE FERRO FUNDIDO PARA REDE DE ÁGUA, DN 150 MM, JUNTA ELÁSTICA, INSTALADO EM LOCAL COM NÍVEL ALTO DE INTERFERÊNCIAS (NÃO INCLUI FORNECIMENTO). AF_11/2017 | I22: M | J22: ATRIBUÍDO SÃO PAULO | K22: 8,26 | L22: COMPOSICAO | M22: 5679 | N22: RETROESCAVADEIRA SOBRE RODAS COM CARREGADEIRA, TRAÇÃO 4X4, POTÊNCIA LÍQ. 88 HP, CAÇAMBA CARREG. CAP. MÍN. 1 M3, CAÇAMBA RETRO CAP. 0,26 M3, PESO OPERACIONAL MÍN. 6.674 KG, PROFUNDIDADE ESCAVAÇÃO MÁX. 4,37 M - CHI DIURNO. AF_06/2014 | O22: CHI | P22: ATRIBUÍDO SÃO PAULO | Q22: 0,0594000 | R22: 42,42 | S22: 2,51 | AE22: CAIXA REFERENCIAL
A23: ASSENTAMENTO DE TUBOS E PECAS | B23: ASTU | C23: FORNEC E/OU ASSENT DE TUBO DE FERRO FUNDIDO JUNTA | D23: 45 | G23: 97143 | H23: ASSENTAMENTO DE TUBO DE FERRO FUNDIDO PARA REDE DE ÁGUA, DN 150 MM, JUNTA ELÁSTICA, INSTALADO EM LOCAL COM NÍVEL ALTO DE INTERFERÊNCIAS (NÃO INCLUI FORNECIMENTO). AF_11/2017 | I23: M | J23: ATRIBUÍDO SÃO PAULO | K23: 8,26 | L23: INSUMO | M23: 20078 | N23: PASTA LUBRIFICANTE PARA TUBOS E CONEXOES COM JUNTA ELASTICA (USO EM PVC, ACO, POLIETILENO E OUTROS) ( DE *400* G) | O23: UN | P23: COEFICIENTE DE REPRESENTATIVIDADE | Q23: 0,0071000 | R23: 19,51 | S23: 0,13 | AE23: CAIXA REFERENCIAL
A24: ASSENTAMENTO DE TUBOS E PECAS | B24: ASTU | C24: FORNEC E/OU ASSENT DE TUBO DE FERRO FUNDIDO JUNTA | D24: 45 | G24: 97143 | H24: ASSENTAMENTO DE TUBO DE FERRO FUNDIDO PARA REDE DE ÁGUA, DN 150 MM, JUNTA ELÁSTICA, INSTALADO EM LOCAL COM NÍVEL ALTO DE INTERFERÊNCIAS (NÃO INCLUI FORNECIMENTO). AF_11/2017 | I24: M | J24: ATRIBUÍDO SÃO PAULO | K24: 8,26 | L24: COMPOSICAO | M24: 88246 | N24: ASSENTADOR DE TUBOS COM ENCARGOS COMPLEMENTARES | O24: H | P24: COEFICIENTE DE REPRESENTATIVIDADE | Q24: 0,1396000 | R24: 14,73 | S24: 2,05 | AE24: CAIXA REFERENCIAL
A25: ASSENTAMENTO DE TUBOS E PECAS | B25: ASTU | C25: FORNEC E/OU ASSENT DE TUBO DE FERRO FUNDIDO JUNTA | D25: 45 | G25: 97143 | H25: ASSENTAMENTO DE TUBO DE FERRO FUNDIDO PARA REDE DE ÁGUA, DN 150 MM, JUNTA ELÁSTICA, INSTALADO EM LOCAL COM NÍVEL ALTO DE INTERFERÊNCIAS (NÃO INCLUI FORNECIMENTO). AF_11/2017 | I25: M | J25: ATRIBUÍDO SÃO PAULO | K25: 8,26 | L25: COMPOSICAO | M25: 88316 | N25: SERVENTE COM ENCARGOS COMPLEMENTARES | O25: H | P25: COLETADO | Q25: 0,1396000 | R25: 16,25 | S25: 2,26 | AE25: CAIXA REFERENCIAL
A26: ASSENTAMENTO DE TUBOS E PECAS | B26: ASTU | C26: FORNEC E/OU ASSENT DE TUBO DE FERRO FUNDIDO JUNTA | D26: 45 | G26: 97144 | H26: ASSENTAMENTO DE TUBO DE FERRO FUNDIDO PARA REDE DE ÁGUA, DN 200 MM, JUNTA ELÁSTICA, INSTALADO EM LOCAL COM NÍVEL ALTO DE INTERFERÊNCIAS (NÃO INCLUI FORNECIMENTO). AF_11/2017 | I26: M | J26: ATRIBUÍDO SÃO PAULO | K26: 9,92 | T26: 5,16 | U26: 51,9467215 | V26: 2,84 | W26: 28,6885245 | X26: 1,92 | Y26: 19,3647540 | Z26: 0,00 | AA26: 0,0000000 | AB26: 0,00 | AC26: 0,0000000 | AD26: 0.19052 | AE26: CAIXA REFERENCIAL
A27: ASSENTAMENTO DE TUBOS E PECAS | B27: ASTU | C27: FORNEC E/OU ASSENT DE TUBO DE FERRO FUNDIDO JUNTA | D27: 45 | G27: 97144 | H27: ASSENTAMENTO DE TUBO DE FERRO FUNDIDO PARA REDE DE ÁGUA, DN 200 MM, JUNTA ELÁSTICA, INSTALADO EM LOCAL COM NÍVEL ALTO DE INTERFERÊNCIAS (NÃO INCLUI FORNECIMENTO). AF_11/2017 | I27: M | J27: ATRIBUÍDO SÃO PAULO | K27: 9,92 | L27: COMPOSICAO | M27: 5678 | N27: RETROESCAVADEIRA SOBRE RODAS COM CARREGADEIRA, TRAÇÃO 4X4, POTÊNCIA LÍQ. 88 HP, CAÇAMBA CARREG. CAP. MÍN. 1 M3, CAÇAMBA RETRO CAP. 0,26 M3, PESO OPERACIONAL MÍN. 6.674 KG, PROFUNDIDADE ESCAVAÇÃO MÁX. 4,37 M - CHP DIURNO. AF_06/2014 | O27: CHP | P27: ATRIBUÍDO SÃO PAULO | Q27: 0,0141000 | R27: 105,80 | S27: 1,49 | AE27: CAIXA REFERENCIAL
A28: ASSENTAMENTO DE TUBOS E PECAS | B28: ASTU | C28: FORNEC E/OU ASSENT DE TUBO DE FERRO FUNDIDO JUNTA | D28: 45 | G28: 97144 | H28: ASSENTAMENTO DE TUBO DE FERRO FUNDIDO PARA REDE DE ÁGUA, DN 200 MM, JUNTA ELÁSTICA, INSTALADO EM LOCAL COM NÍVEL ALTO DE INTERFERÊNCIAS (NÃO INCLUI FORNECIMENTO). AF_11/2017 | I28: M | J28: ATRIBUÍDO SÃO PAULO | K28: 9,92 | L28: COMPOSICAO | M28: 5679 | N28: RETROESCAVADEIRA SOBRE RODAS COM CARREGADEIRA, TRAÇÃO 4X4, POTÊNCIA LÍQ. 88 HP, CAÇAMBA CARREG. CAP. MÍN. 1 M3, CAÇAMBA RETRO CAP. 0,26 M3, PESO OPERACIONAL MÍN. 6.674 KG, PROFUNDIDADE ESCAVAÇÃO MÁX. 4,37 M - CHI DIURNO. AF_06/2014 | O28: CHI | P28: ATRIBUÍDO SÃO PAULO | Q28: 0,0678000 | R28: 42,42 | S28: 2,87 | AE28: CAIXA REFERENCIAL
A29: ASSENTAMENTO DE TUBOS E PECAS | B29: ASTU | C29: FORNEC E/OU ASSENT DE TUBO DE FERRO FUNDIDO JUNTA | D29: 45 | G29: 97144 | H29: ASSENTAMENTO DE TUBO DE FERRO FUNDIDO PARA REDE DE ÁGUA, DN 200 MM, JUNTA ELÁSTICA, INSTALADO EM LOCAL COM NÍVEL ALTO DE INTERFERÊNCIAS (NÃO INCLUI FORNECIMENTO). AF_11/2017 | I29: M | J29: ATRIBUÍDO SÃO PAULO | K29: 9,92 | L29: INSUMO | M29: 20078 | N29: PASTA LUBRIFICANTE PARA TUBOS E CONEXOES COM JUNTA ELASTICA (USO EM PVC, ACO, POLIETILENO E OUTROS) ( DE *400* G) | O29: UN | P29: COEFICIENTE DE REPRESENTATIVIDADE | Q29: 0,0087000 | R29: 19,51 | S29: 0,16 | AE29: CAIXA REFERENCIAL
A30: ASSENTAMENTO DE TUBOS E PECAS | B30: ASTU | C30: FORNEC E/OU ASSENT DE TUBO DE FERRO FUNDIDO JUNTA | D30: 45 | G30: 97144 | H30: ASSENTAMENTO DE TUBO DE FERRO FUNDIDO PARA REDE DE ÁGUA, DN 200 MM, JUNTA ELÁSTICA, INSTALADO EM LOCAL COM NÍVEL ALTO DE INTERFERÊNCIAS (NÃO INCLUI FORNECIMENTO). AF_11/2017 | I30: M | J30: ATRIBUÍDO SÃO PAULO | K30: 9,92 | L30: COMPOSICAO | M30: 88246 | N30: ASSENTADOR DE TUBOS COM ENCARGOS COMPLEMENTARES | O30: H | P30: COEFICIENTE DE REPRESENTATIVIDADE | Q30: 0,1747000 | R30: 14,73 | S30: 2,57 | AE30: CAIXA REFERENCIAL
A31: ASSENTAMENTO DE TUBOS E PECAS | B31: ASTU | C31: FORNEC E/OU ASSENT DE TUBO DE FERRO FUNDIDO JUNTA | D31: 45 | G31: 97144 | H31: ASSENTAMENTO DE TUBO DE FERRO FUNDIDO PARA REDE DE ÁGUA, DN 200 MM, JUNTA ELÁSTICA, INSTALADO EM LOCAL COM NÍVEL ALTO DE INTERFERÊNCIAS (NÃO INCLUI FORNECIMENTO). AF_11/2017 | I31: M | J31: ATRIBUÍDO SÃO PAULO | K31: 9,92 | L31: COMPOSICAO | M31: 88316 | N31: SERVENTE COM ENCARGOS COMPLEMENTARES | O31: H | P31: COLETADO | Q31: 0,1747000 | R31: 16,25 | S31: 2,83 | AE31: CAIXA REFERENCIAL
A32: ASSENTAMENTO DE TUBOS E PECAS | B32: ASTU | C32: FORNEC E/OU ASSENT DE TUBO DE FERRO FUNDIDO JUNTA | D32: 45 | G32: 97145 | H32: ASSENTAMENTO DE TUBO DE FERRO FUNDIDO PARA REDE DE ÁGUA, DN 250 MM, JUNTA ELÁSTICA, INSTALADO EM LOCAL COM NÍVEL ALTO DE INTERFERÊNCIAS (NÃO INCLUI FORNECIMENTO). AF_11/2017 | I32: M | J32: ATRIBUÍDO SÃO PAULO | K32: 11,61 | T32: 6,08 | U32: 52,3103750 | V32: 3,39 | W32: 29,2066259 | X32: 2,14 | Y32: 18,4829991 | Z32: 0,00 | AA32: 0,0000000 | AB32: 0,00 | AC32: 0,0000000 | AD32: 0.1826 | AE32: CAIXA REFERENCIAL
A33: ASSENTAMENTO DE TUBOS E PECAS | B33: ASTU | C33: FORNEC E/OU ASSENT DE TUBO DE FERRO FUNDIDO JUNTA | D33: 45 | G33: 97145 | H33: ASSENTAMENTO DE TUBO DE FERRO FUNDIDO PARA REDE DE ÁGUA, DN 250 MM, JUNTA ELÁSTICA, INSTALADO EM LOCAL COM NÍVEL ALTO DE INTERFERÊNCIAS (NÃO INCLUI FORNECIMENTO). AF_11/2017 | I33: M | J33: ATRIBUÍDO SÃO PAULO | K33: 11,61 | L33: COMPOSICAO | M33: 5678 | N33: RETROESCAVADEIRA SOBRE RODAS COM CARREGADEIRA, TRAÇÃO 4X4, POTÊNCIA LÍQ. 88 HP, CAÇAMBA CARREG. CAP. MÍN. 1 M3, CAÇAMBA RETRO CAP. 0,26 M3, PESO OPERACIONAL MÍN. 6.674 KG, PROFUNDIDADE ESCAVAÇÃO MÁX. 4,37 M - CHP DIURNO. AF_06/2014 | O33: CHP | P33: ATRIBUÍDO SÃO PAULO | Q33: 0,0159000 | R33: 105,80 | S33: 1,68 | AE33: CAIXA REFERENCIAL
A34: ASSENTAMENTO DE TUBOS E PECAS | B34: ASTU | C34: FORNEC E/OU ASSENT DE TUBO DE FERRO FUNDIDO JUNTA | D34: 45 | G34: 97145 | H34: ASSENTAMENTO DE TUBO DE FERRO FUNDIDO PARA REDE DE ÁGUA, DN 250 MM, JUNTA ELÁSTICA, INSTALADO EM LOCAL COM NÍVEL ALTO DE INTERFERÊNCIAS (NÃO INCLUI FORNECIMENTO). AF_11/2017 | I34: M | J34: ATRIBUÍDO SÃO PAULO | K34: 11,61 | L34: COMPOSICAO | M34: 5679 | N34: RETROESCAVADEIRA SOBRE RODAS COM CARREGADEIRA, TRAÇÃO 4X4, POTÊNCIA LÍQ. 88 HP, CAÇAMBA CARREG. CAP. MÍN. 1 M3, CAÇAMBA RETRO CAP. 0,26 M3, PESO OPERACIONAL MÍN. 6.674 KG, PROFUNDIDADE ESCAVAÇÃO MÁX. 4,37 M - CHI DIURNO. AF_06/2014 | O34: CHI | P34: ATRIBUÍDO SÃO PAULO | Q34: 0,0762000 | R34: 42,42 | S34: 3,23 | AE34: CAIXA REFERENCIAL
A35: ASSENTAMENTO DE TUBOS E PECAS | B35: ASTU | C35: FORNEC E/OU ASSENT DE TUBO DE FERRO FUNDIDO JUNTA | D35: 45 | G35: 97145 | H35: ASSENTAMENTO DE TUBO DE FERRO FUNDIDO PARA REDE DE ÁGUA, DN 250 MM, JUNTA ELÁSTICA, INSTALADO EM LOCAL COM NÍVEL ALTO DE INTERFERÊNCIAS (NÃO INCLUI FORNECIMENTO). AF_11/2017 | I35: M | J35: ATRIBUÍDO SÃO PAULO | K35: 11,61 | L35: INSUMO | M35: 20078 | N35: PASTA LUBRIFICANTE PARA TUBOS E CONEXOES COM JUNTA ELASTICA (USO EM PVC, ACO, POLIETILENO E OUTROS) ( DE *400* G) | O35: UN | P35: COEFICIENTE DE REPRESENTATIVIDADE | Q35: 0,0113000 | R35: 19,51 | S35: 0,22 | AE35: CAIXA REFERENCIAL
A36: ASSENTAMENTO DE TUBOS E PECAS | B36: ASTU | C36: FORNEC E/OU ASSENT DE TUBO DE FERRO FUNDIDO JUNTA | D36: 45 | G36: 97145 | H36: ASSENTAMENTO DE TUBO DE FERRO FUNDIDO PARA REDE DE ÁGUA, DN 250 MM, JUNTA ELÁSTICA, INSTALADO EM LOCAL COM NÍVEL ALTO DE INTERFERÊNCIAS (NÃO INCLUI FORNECIMENTO). AF_11/2017 | I36: M | J36: ATRIBUÍDO SÃO PAULO | K36: 11,61 | L36: COMPOSICAO | M36: 88246 | N36: ASSENTADOR DE TUBOS COM ENCARGOS COMPLEMENTARES | O36: H | P36: COEFICIENTE DE REPRESENTATIVIDADE | Q36: 0,2097000 | R36: 14,73 | S36: 3,08 | AE36: CAIXA REFERENCIAL
A37: ASSENTAMENTO DE TUBOS E PECAS | B37: ASTU | C37: FORNEC E/OU ASSENT DE TUBO DE FERRO FUNDIDO JUNTA | D37: 45 | G37: 97145 | H37: ASSENTAMENTO DE TUBO DE FERRO FUNDIDO PARA REDE DE ÁGUA, DN 250 MM, JUNTA ELÁSTICA, INSTALADO EM LOCAL COM NÍVEL ALTO DE INTERFERÊNCIAS (NÃO INCLUI FORNECIMENTO). AF_11/2017 | I37: M | J37: ATRIBUÍDO SÃO PAULO | K37: 11,61 | L37: COMPOSICAO | M37: 88316 | N37: SERVENTE COM ENCARGOS COMPLEMENTARES | O37: H | P37: COLETADO | Q37: 0,2097000 | R37: 16,25 | S37: 3,40 | AE37: CAIXA REFERENCIAL
A38: ASSENTAMENTO DE TUBOS E PECAS | B38: ASTU | C38: FORNEC E/OU ASSENT DE TUBO DE FERRO FUNDIDO JUNTA | D38: 45 | G38: 97146 | H38: ASSENTAMENTO DE TUBO DE FERRO FUNDIDO PARA REDE DE ÁGUA, DN 300 MM, JUNTA ELÁSTICA, INSTALADO EM LOCAL COM NÍVEL ALTO DE INTERFERÊNCIAS (NÃO INCLUI FORNECIMENTO). AF_11/2017 | I38: M | J38: ATRIBUÍDO SÃO PAULO | K38: 13,27 | T38: 6,99 | U38: 52,6275706 | V38: 3,89 | W38: 29,3221629 | X38: 2,39 | Y38: 18,0502665 | Z38: 0,00 | AA38: 0,0000000 | AB38: 0,00 | AC38: 0,0000000 | AD38: 0.1786 | AE38: CAIXA REFERENCIAL
A39: ASSENTAMENTO DE TUBOS E PECAS | B39: ASTU | C39: FORNEC E/OU ASSENT DE TUBO DE FERRO FUNDIDO JUNTA | D39: 45 | G39: 97146 | H39: ASSENTAMENTO DE TUBO DE FERRO FUNDIDO PARA REDE DE ÁGUA, DN 300 MM, JUNTA ELÁSTICA, INSTALADO EM LOCAL COM NÍVEL ALTO DE INTERFERÊNCIAS (NÃO INCLUI FORNECIMENTO). AF_11/2017 | I39: M | J39: ATRIBUÍDO SÃO PAULO | K39: 13,27 | L39: COMPOSICAO | M39: 5678 | N39: RETROESCAVADEIRA SOBRE RODAS COM CARREGADEIRA, TRAÇÃO 4X4, POTÊNCIA LÍQ. 88 HP, CAÇAMBA CARREG. CAP. MÍN. 1 M3, CAÇAMBA RETRO CAP. 0,26 M3, PESO OPERACIONAL MÍN. 6.674 KG, PROFUNDIDADE ESCAVAÇÃO MÁX. 4,37 M - CHP DIURNO. AF_06/2014 | O39: CHP | P39: ATRIBUÍDO SÃO PAULO | Q39: 0,0176000 | R39: 105,80 | S39: 1,86 | AE39: CAIXA REFERENCIAL
A40: ASSENTAMENTO DE TUBOS E PECAS | B40: ASTU | C40: FORNEC E/OU ASSENT DE TUBO DE FERRO FUNDIDO JUNTA | D40: 45 | G40: 97146 | H40: ASSENTAMENTO DE TUBO DE FERRO FUNDIDO PARA REDE DE ÁGUA, DN 300 MM, JUNTA ELÁSTICA, INSTALADO EM LOCAL COM NÍVEL ALTO DE INTERFERÊNCIAS (NÃO INCLUI FORNECIMENTO). AF_11/2017 | I40: M | J40: ATRIBUÍDO SÃO PAULO | K40: 13,27 | L40: COMPOSICAO | M40: 5679 | N40: RETROESCAVADEIRA SOBRE RODAS COM CARREGADEIRA, TRAÇÃO 4X4, POTÊNCIA LÍQ. 88 HP, CAÇAMBA CARREG. CAP. MÍN. 1 M3, CAÇAMBA RETRO CAP. 0,26 M3, PESO OPERACIONAL MÍN. 6.674 KG, PROFUNDIDADE ESCAVAÇÃO MÁX. 4,37 M - CHI DIURNO. AF_06/2014 | O40: CHI | P40: ATRIBUÍDO SÃO PAULO | Q40: 0,0846000 | R40: 42,42 | S40: 3,58 | AE40: CAIXA REFERENCIAL
A41: ASSENTAMENTO DE TUBOS E PECAS | B41: ASTU | C41: FORNEC E/OU ASSENT DE TUBO DE FERRO FUNDIDO JUNTA | D41: 45 | G41: 97146 | H41: ASSENTAMENTO DE TUBO DE FERRO FUNDIDO PARA REDE DE ÁGUA, DN 300 MM, JUNTA ELÁSTICA, INSTALADO EM LOCAL COM NÍVEL ALTO DE INTERFERÊNCIAS (NÃO INCLUI FORNECIMENTO). AF_11/2017 | I41: M | J41: ATRIBUÍDO SÃO PAULO | K41: 13,27 | L41: INSUMO | M41: 20078 | N41: PASTA LUBRIFICANTE PARA TUBOS E CONEXOES COM JUNTA ELASTICA (USO EM PVC, ACO, POLIETILENO E OUTROS) ( DE *400* G) | O41: UN | P41: COEFICIENTE DE REPRESENTATIVIDADE | Q41: 0,0138000 | R41: 19,51 | S41: 0,26 | AE41: CAIXA REFERENCIAL
A42: ASSENTAMENTO DE TUBOS E PECAS | B42: ASTU | C42: FORNEC E/OU ASSENT DE TUBO DE FERRO FUNDIDO JUNTA | D42: 45 | G42: 97146 | H42: ASSENTAMENTO DE TUBO DE FERRO FUNDIDO PARA REDE DE ÁGUA, DN 300 MM, JUNTA ELÁSTICA, INSTALADO EM LOCAL COM NÍVEL ALTO DE INTERFERÊNCIAS (NÃO INCLUI FORNECIMENTO). AF_11/2017 | I42: M | J42: ATRIBUÍDO SÃO PAULO | K42: 13,27 | L42: COMPOSICAO | M42: 88246 | N42: ASSENTADOR DE TUBOS COM ENCARGOS COMPLEMENTARES | O42: H | P42: COEFICIENTE DE REPRESENTATIVIDADE | Q42: 0,2448000 | R42: 14,73 | S42: 3,60 | AE42: CAIXA REFERENCIAL
A43: ASSENTAMENTO DE TUBOS E PECAS | B43: ASTU | C43: FORNEC E/OU ASSENT DE TUBO DE FERRO FUNDIDO JUNTA | D43: 45 | G43: 97146 | H43: ASSENTAMENTO DE TUBO DE FERRO FUNDIDO PARA REDE DE ÁGUA, DN 300 MM, JUNTA ELÁSTICA, INSTALADO EM LOCAL COM NÍVEL ALTO DE INTERFERÊNCIAS (NÃO INCLUI FORNECIMENTO). AF_11/2017 | I43: M | J43: ATRIBUÍDO SÃO PAULO | K43: 13,27 | L43: COMPOSICAO | M43: 88316 | N43: SERVENTE COM ENCARGOS COMPLEMENTARES | O43: H | P43: COLETADO | Q43: 0,2448000 | R43: 16,25 | S43: 3,97 | AE43: CAIXA REFERENCIAL
A44: ASSENTAMENTO DE TUBOS E PECAS | B44: ASTU | C44: FORNEC E/OU ASSENT DE TUBO DE FERRO FUNDIDO JUNTA | D44: 45 | G44: 97147 | H44: ASSENTAMENTO DE TUBO DE FERRO FUNDIDO PARA REDE DE ÁGUA, DN 350 MM, JUNTA ELÁSTICA, INSTALADO EM LOCAL COM NÍVEL ALTO DE INTERFERÊNCIAS (NÃO INCLUI FORNECIMENTO). AF_11/2017 | I44: M | J44: ATRIBUÍDO SÃO PAULO | K44: 14,96 | T44: 7,92 | U44: 52,9093370 | V44: 4,42 | W44: 29,5669824 | X44: 2,62 | Y44: 17,5236806 | Z44: 0,00 | AA44: 0,0000000 | AB44: 0,00 | AC44: 0,0000000 | AD44: 0.1738 | AE44: CAIXA REFERENCIAL
A45: ASSENTAMENTO DE TUBOS E PECAS | B45: ASTU | C45: FORNEC E/OU ASSENT DE TUBO DE FERRO FUNDIDO JUNTA | D45: 45 | G45: 97147 | H45: ASSENTAMENTO DE TUBO DE FERRO FUNDIDO PARA REDE DE ÁGUA, DN 350 MM, JUNTA ELÁSTICA, INSTALADO EM LOCAL COM NÍVEL ALTO DE INTERFERÊNCIAS (NÃO INCLUI FORNECIMENTO). AF_11/2017 | I45: M | J45: ATRIBUÍDO SÃO PAULO | K45: 14,96 | L45: COMPOSICAO | M45: 5678 | N45: RETROESCAVADEIRA SOBRE RODAS COM CARREGADEIRA, TRAÇÃO 4X4, POTÊNCIA LÍQ. 88 HP, CAÇAMBA CARREG. CAP. MÍN. 1 M3, CAÇAMBA RETRO CAP. 0,26 M3, PESO OPERACIONAL MÍN. 6.674 KG, PROFUNDIDADE ESCAVAÇÃO MÁX. 4,37 M - CHP DIURNO. AF_06/2014 | O45: CHP | P45: ATRIBUÍDO SÃO PAULO | Q45: 0,0194000 | R45: 105,80 | S45: 2,05 | AE45: CAIXA REFERENCIAL
A46: ASSENTAMENTO DE TUBOS E PECAS | B46: ASTU | C46: FORNEC E/OU ASSENT DE TUBO DE FERRO FUNDIDO JUNTA | D46: 45 | G46: 97147 | H46: ASSENTAMENTO DE TUBO DE FERRO FUNDIDO PARA REDE DE ÁGUA, DN 350 MM, JUNTA ELÁSTICA, INSTALADO EM LOCAL COM NÍVEL ALTO DE INTERFERÊNCIAS (NÃO INCLUI FORNECIMENTO). AF_11/2017 | I46: M | J46: ATRIBUÍDO SÃO PAULO | K46: 14,96 | L46: COMPOSICAO | M46: 5679 | N46: RETROESCAVADEIRA SOBRE RODAS COM CARREGADEIRA, TRAÇÃO 4X4, POTÊNCIA LÍQ. 88 HP, CAÇAMBA CARREG. CAP. MÍN. 1 M3, CAÇAMBA RETRO CAP. 0,26 M3, PESO OPERACIONAL MÍN. 6.674 KG, PROFUNDIDADE ESCAVAÇÃO MÁX. 4,37 M - CHI DIURNO. AF_06/2014 | O46: CHI | P46: ATRIBUÍDO SÃO PAULO | Q46: 0,0930000 | R46: 42,42 | S46: 3,94 | AE46: CAIXA REFERENCIAL
A47: ASSENTAMENTO DE TUBOS E PECAS | B47: ASTU | C47: FORNEC E/OU ASSENT DE TUBO DE FERRO FUNDIDO JUNTA | D47: 45 | G47: 97147 | H47: ASSENTAMENTO DE TUBO DE FERRO FUNDIDO PARA REDE DE ÁGUA, DN 350 MM, JUNTA ELÁSTICA, INSTALADO EM LOCAL COM NÍVEL ALTO DE INTERFERÊNCIAS (NÃO INCLUI FORNECIMENTO). AF_11/2017 | I47: M | J47: ATRIBUÍDO SÃO PAULO | K47: 14,96 | L47: INSUMO | M47: 20078 | N47: PASTA LUBRIFICANTE PARA TUBOS E CONEXOES COM JUNTA ELASTICA (USO EM PVC, ACO, POLIETILENO E OUTROS) ( DE *400* G) | O47: UN | P47: COEFICIENTE DE REPRESENTATIVIDADE | Q47: 0,0163000 | R47: 19,51 | S47: 0,31 | AE47: CAIXA REFERENCIAL
A48: ASSENTAMENTO DE TUBOS E PECAS | B48: ASTU | C48: FORNEC E/OU ASSENT DE TUBO DE FERRO FUNDIDO JUNTA | D48: 45 | G48: 97147 | H48: ASSENTAMENTO DE TUBO DE FERRO FUNDIDO PARA REDE DE ÁGUA, DN 350 MM, JUNTA ELÁSTICA, INSTALADO EM LOCAL COM NÍVEL ALTO DE INTERFERÊNCIAS (NÃO INCLUI FORNECIMENTO). AF_11/2017 | I48: M | J48: ATRIBUÍDO SÃO PAULO | K48: 14,96 | L48: COMPOSICAO | M48: 88246 | N48: ASSENTADOR DE TUBOS COM ENCARGOS COMPLEMENTARES | O48: H | P48: COEFICIENTE DE REPRESENTATIVIDADE | Q48: 0,2799000 | R48: 14,73 | S48: 4,12 | AE48: CAIXA REFERENCIAL
A49: ASSENTAMENTO DE TUBOS E PECAS | B49: ASTU | C49: FORNEC E/OU ASSENT DE TUBO DE FERRO FUNDIDO JUNTA | D49: 45 | G49: 97147 | H49: ASSENTAMENTO DE TUBO DE FERRO FUNDIDO PARA REDE DE ÁGUA, DN 350 MM, JUNTA ELÁSTICA, INSTALADO EM LOCAL COM NÍVEL ALTO DE INTERFERÊNCIAS (NÃO INCLUI FORNECIMENTO). AF_11/2017 | I49: M | J49: ATRIBUÍDO SÃO PAULO | K49: 14,96 | L49: COMPOSICAO | M49: 88316 | N49: SERVENTE COM ENCARGOS COMPLEMENTARES | O49: H | P49: COLETADO | Q49: 0,2799000 | R49: 16,25 | S49: 4,54 | AE49: CAIXA REFERENCIAL
A50: ASSENTAMENTO DE TUBOS E PECAS | B50: ASTU | C50: FORNEC E/OU ASSENT DE TUBO DE FERRO FUNDIDO JUNTA | D50: 45 | G50: 97148 | H50: ASSENTAMENTO DE TUBO DE FERRO FUNDIDO PARA REDE DE ÁGUA, DN 400 MM, JUNTA ELÁSTICA, INSTALADO EM LOCAL COM NÍVEL ALTO DE INTERFERÊNCIAS (NÃO INCLUI FORNECIMENTO). AF_11/2017 | I50: M | J50: ATRIBUÍDO SÃO PAULO | K50: 16,63 | T50: 8,85 | U50: 53,1591738 | V50: 4,93 | W50: 29,6476306 | X50: 2,85 | Y50: 17,1931956 | Z50: 0,00 | AA50: 0,0000000 | AB50: 0,00 | AC50: 0,0000000 | AD50: 0.17017 | AE50: CAIXA REFERENCIAL
A51: ASSENTAMENTO DE TUBOS E PECAS | B51: ASTU | C51: FORNEC E/OU ASSENT DE TUBO DE FERRO FUNDIDO JUNTA | D51: 45 | G51: 97148 | H51: ASSENTAMENTO DE TUBO DE FERRO FUNDIDO PARA REDE DE ÁGUA, DN 400 MM, JUNTA ELÁSTICA, INSTALADO EM LOCAL COM NÍVEL ALTO DE INTERFERÊNCIAS (NÃO INCLUI FORNECIMENTO). AF_11/2017 | I51: M | J51: ATRIBUÍDO SÃO PAULO | K51: 16,63 | L51: COMPOSICAO | M51: 5678 | N51: RETROESCAVADEIRA SOBRE RODAS COM CARREGADEIRA, TRAÇÃO 4X4, POTÊNCIA LÍQ. 88 HP, CAÇAMBA CARREG. CAP. MÍN. 1 M3, CAÇAMBA RETRO CAP. 0,26 M3, PESO OPERACIONAL MÍN. 6.674 KG, PROFUNDIDADE ESCAVAÇÃO MÁX. 4,37 M - CHP DIURNO. AF_06/2014 | O51: CHP | P51: ATRIBUÍDO SÃO PAULO | Q51: 0,0211000 | R51: 105,80 | S51: 2,23 | AE51: CAIXA REFERENCIAL
A52: ASSENTAMENTO DE TUBOS E PECAS | B52: ASTU | C52: FORNEC E/OU ASSENT DE TUBO DE FERRO FUNDIDO JUNTA | D52: 45 | G52: 97148 | H52: ASSENTAMENTO DE TUBO DE FERRO FUNDIDO PARA REDE DE ÁGUA, DN 400 MM, JUNTA ELÁSTICA, INSTALADO EM LOCAL COM NÍVEL ALTO DE INTERFERÊNCIAS (NÃO INCLUI FORNECIMENTO). AF_11/2017 | I52: M | J52: ATRIBUÍDO SÃO PAULO | K52: 16,63 | L52: COMPOSICAO | M52: 5679 | N52: RETROESCAVADEIRA SOBRE RODAS COM CARREGADEIRA, TRAÇÃO 4X4, POTÊNCIA LÍQ. 88 HP, CAÇAMBA CARREG. CAP. MÍN. 1 M3, CAÇAMBA RETRO CAP. 0,26 M3, PESO OPERACIONAL MÍN. 6.674 KG, PROFUNDIDADE ESCAVAÇÃO MÁX. 4,37 M - CHI DIURNO. AF_06/2014 | O52: CHI | P52: ATRIBUÍDO SÃO PAULO | Q52: 0,1014000 | R52: 42,42 | S52: 4,30 | AE52: CAIXA REFERENCIAL
A53: ASSENTAMENTO DE TUBOS E PECAS | B53: ASTU | C53: FORNEC E/OU ASSENT DE TUBO DE FERRO FUNDIDO JUNTA | D53: 45 | G53: 97148 | H53: ASSENTAMENTO DE TUBO DE FERRO FUNDIDO PARA REDE DE ÁGUA, DN 400 MM, JUNTA ELÁSTICA, INSTALADO EM LOCAL COM NÍVEL ALTO DE INTERFERÊNCIAS (NÃO INCLUI FORNECIMENTO). AF_11/2017 | I53: M | J53: ATRIBUÍDO SÃO PAULO | K53: 16,63 | L53: INSUMO | M53: 20078 | N53: PASTA LUBRIFICANTE PARA TUBOS E CONEXOES COM JUNTA ELASTICA (USO EM PVC, ACO, POLIETILENO E OUTROS) ( DE *400* G) | O53: UN | P53: COEFICIENTE DE REPRESENTATIVIDADE | Q53: 0,0188000 | R53: 19,51 | S53: 0,36 | AE53: CAIXA REFERENCIAL
A54: ASSENTAMENTO DE TUBOS E PECAS | B54: ASTU | C54: FORNEC E/OU ASSENT DE TUBO DE FERRO FUNDIDO JUNTA | D54: 45 | G54: 97148 | H54: ASSENTAMENTO DE TUBO DE FERRO FUNDIDO PARA REDE DE ÁGUA, DN 400 MM, JUNTA ELÁSTICA, INSTALADO EM LOCAL COM NÍVEL ALTO DE INTERFERÊNCIAS (NÃO INCLUI FORNECIMENTO). AF_11/2017 | I54: M | J54: ATRIBUÍDO SÃO PAULO | K54: 16,63 | L54: COMPOSICAO | M54: 88246 | N54: ASSENTADOR DE TUBOS COM ENCARGOS COMPLEMENTARES | O54: H | P54: COEFICIENTE DE REPRESENTATIVIDADE | Q54: 0,3150000 | R54: 14,73 | S54: 4,63 | AE54: CAIXA REFERENCIAL
A55: ASSENTAMENTO DE TUBOS E PECAS | B55: ASTU | C55: FORNEC E/OU ASSENT DE TUBO DE FERRO FUNDIDO JUNTA | D55: 45 | G55: 97148 | H55: ASSENTAMENTO DE TUBO DE FERRO FUNDIDO PARA REDE DE ÁGUA, DN 400 MM, JUNTA ELÁSTICA, INSTALADO EM LOCAL COM NÍVEL ALTO DE INTERFERÊNCIAS (NÃO INCLUI FORNECIMENTO). AF_11/2017 | I55: M | J55: ATRIBUÍDO SÃO PAULO | K55: 16,63 | L55: COMPOSICAO | M55: 88316 | N55: SERVENTE COM ENCARGOS COMPLEMENTARES | O55: H | P55: COLETADO | Q55: 0,3150000 | R55: 16,25 | S55: 5,11 | AE55: CAIXA REFERENCIAL
A56: ASSENTAMENTO DE TUBOS E PECAS | B56: ASTU | C56: FORNEC E/OU ASSENT DE TUBO DE FERRO FUNDIDO JUNTA | D56: 45 | G56: 97149 | H56: ASSENTAMENTO DE TUBO DE FERRO FUNDIDO PARA REDE DE ÁGUA, DN 450 MM, JUNTA ELÁSTICA, INSTALADO EM LOCAL COM NÍVEL ALTO DE INTERFERÊNCIAS (NÃO INCLUI FORNECIMENTO). AF_11/2017 | I56: M | J56: ATRIBUÍDO SÃO PAULO | K56: 18,33 | T56: 9,74 | U56: 53,1026909 | V56: 5,49 | W56: 29,9835255 | X56: 3,10 | Y56: 16,9137836 | Z56: 0,00 | AA56: 0,0000000 | AB56: 0,00 | AC56: 0,0000000 | AD56: 0.16803 | AE56: CAIXA REFERENCIAL
A57: ASSENTAMENTO DE TUBOS E PECAS | B57: ASTU | C57: FORNEC E/OU ASSENT DE TUBO DE FERRO FUNDIDO JUNTA | D57: 45 | G57: 97149 | H57: ASSENTAMENTO DE TUBO DE FERRO FUNDIDO PARA REDE DE ÁGUA, DN 450 MM, JUNTA ELÁSTICA, INSTALADO EM LOCAL COM NÍVEL ALTO DE INTERFERÊNCIAS (NÃO INCLUI FORNECIMENTO). AF_11/2017 | I57: M | J57: ATRIBUÍDO SÃO PAULO | K57: 18,33 | L57: COMPOSICAO | M57: 5678 | N57: RETROESCAVADEIRA SOBRE RODAS COM CARREGADEIRA, TRAÇÃO 4X4, POTÊNCIA LÍQ. 88 HP, CAÇAMBA CARREG. CAP. MÍN. 1 M3, CAÇAMBA RETRO CAP. 0,26 M3, PESO OPERACIONAL MÍN. 6.674 KG, PROFUNDIDADE ESCAVAÇÃO MÁX. 4,37 M - CHP DIURNO. AF_06/2014 | O57: CHP | P57: ATRIBUÍDO SÃO PAULO | Q57: 0,0229000 | R57: 105,80 | S57: 2,42 | AE57: CAIXA REFERENCIAL
A58: ASSENTAMENTO DE TUBOS E PECAS | B58: ASTU | C58: FORNEC E/OU ASSENT DE TUBO DE FERRO FUNDIDO JUNTA | D58: 45 | G58: 97149 | H58: ASSENTAMENTO DE TUBO DE FERRO FUNDIDO PARA REDE DE ÁGUA, DN 450 MM, JUNTA ELÁSTICA, INSTALADO EM LOCAL COM NÍVEL ALTO DE INTERFERÊNCIAS (NÃO INCLUI FORNECIMENTO). AF_11/2017 | I58: M | J58: ATRIBUÍDO SÃO PAULO | K58: 18,33 | L58: COMPOSICAO | M58: 5679 | N58: RETROESCAVADEIRA SOBRE RODAS COM CARREGADEIRA, TRAÇÃO 4X4, POTÊNCIA LÍQ. 88 HP, CAÇAMBA CARREG. CAP. MÍN. 1 M3, CAÇAMBA RETRO CAP. 0,26 M3, PESO OPERACIONAL MÍN. 6.674 KG, PROFUNDIDADE ESCAVAÇÃO MÁX. 4,37 M - CHI DIURNO. AF_06/2014 | O58: CHI | P58: ATRIBUÍDO SÃO PAULO | Q58: 0,1098000 | R58: 42,42 | S58: 4,65 | AE58: CAIXA REFERENCIAL
A59: ASSENTAMENTO DE TUBOS E PECAS | B59: ASTU | C59: FORNEC E/OU ASSENT DE TUBO DE FERRO FUNDIDO JUNTA | D59: 45 | G59: 97149 | H59: ASSENTAMENTO DE TUBO DE FERRO FUNDIDO PARA REDE DE ÁGUA, DN 450 MM, JUNTA ELÁSTICA, INSTALADO EM LOCAL COM NÍVEL ALTO DE INTERFERÊNCIAS (NÃO INCLUI FORNECIMENTO). AF_11/2017 | I59: M | J59: ATRIBUÍDO SÃO PAULO | K59: 18,33 | L59: INSUMO | M59: 20078 | N59: PASTA LUBRIFICANTE PARA TUBOS E CONEXOES COM JUNTA ELASTICA (USO EM PVC, ACO, POLIETILENO E OUTROS) ( DE *400* G) | O59: UN | P59: COEFICIENTE DE REPRESENTATIVIDADE | Q59: 0,0221000 | R59: 19,51 | S59: 0,43 | AE59: CAIXA REFERENCIAL
A60: ASSENTAMENTO DE TUBOS E PECAS | B60: ASTU | C60: FORNEC E/OU ASSENT DE TUBO DE FERRO FUNDIDO JUNTA | D60: 45 | G60: 97149 | H60: ASSENTAMENTO DE TUBO DE FERRO FUNDIDO PARA REDE DE ÁGUA, DN 450 MM, JUNTA ELÁSTICA, INSTALADO EM LOCAL COM NÍVEL ALTO DE INTERFERÊNCIAS (NÃO INCLUI FORNECIMENTO). AF_11/2017 | I60: M | J60: ATRIBUÍDO SÃO PAULO | K60: 18,33 | L60: COMPOSICAO | M60: 88246 | N60: ASSENTADOR DE TUBOS COM ENCARGOS COMPLEMENTARES | O60: H | P60: COEFICIENTE DE REPRESENTATIVIDADE | Q60: 0,3501000 | R60: 14,73 | S60: 5,15 | AE60: CAIXA REFERENCIAL
A61: ASSENTAMENTO DE TUBOS E PECAS | B61: ASTU | C61: FORNEC E/OU ASSENT DE TUBO DE FERRO FUNDIDO JUNTA | D61: 45 | G61: 97149 | H61: ASSENTAMENTO DE TUBO DE FERRO FUNDIDO PARA REDE DE ÁGUA, DN 450 MM, JUNTA ELÁSTICA, INSTALADO EM LOCAL COM NÍVEL ALTO DE INTERFERÊNCIAS (NÃO INCLUI FORNECIMENTO). AF_11/2017 | I61: M | J61: ATRIBUÍDO SÃO PAULO | K61: 18,33 | L61: COMPOSICAO | M61: 88316 | N61: SERVENTE COM ENCARGOS COMPLEMENTARES | O61: H | P61: COLETADO | Q61: 0,3501000 | R61: 16,25 | S61: 5,68 | AE61: CAIXA REFERENCIAL
A62: ASSENTAMENTO DE TUBOS E PECAS | B62: ASTU | C62: FORNEC E/OU ASSENT DE TUBO DE FERRO FUNDIDO JUNTA | D62: 45 | G62: 97150 | H62: ASSENTAMENTO DE TUBO DE FERRO FUNDIDO PARA REDE DE ÁGUA, DN 500 MM, JUNTA ELÁSTICA, INSTALADO EM LOCAL COM NÍVEL ALTO DE INTERFERÊNCIAS (NÃO INCLUI FORNECIMENTO). AF_11/2017 | I62: M | J62: ATRIBUÍDO SÃO PAULO | K62: 23,09 | T62: 10,65 | U62: 46,0801394 | V62: 6,22 | W62: 26,9599303 | X62: 6,22 | Y62: 26,9599303 | Z62: 0,00 | AA62: 0,0000000 | AB62: 0,00 | AC62: 0,0000000 | AD62: 0.26808 | AE62: CAIXA REFERENCIAL
A63: ASSENTAMENTO DE TUBOS E PECAS | B63: ASTU | C63: FORNEC E/OU ASSENT DE TUBO DE FERRO FUNDIDO JUNTA | D63: 45 | G63: 97150 | H63: ASSENTAMENTO DE TUBO DE FERRO FUNDIDO PARA REDE DE ÁGUA, DN 500 MM, JUNTA ELÁSTICA, INSTALADO EM LOCAL COM NÍVEL ALTO DE INTERFERÊNCIAS (NÃO INCLUI FORNECIMENTO). AF_11/2017 | I63: M | J63: ATRIBUÍDO SÃO PAULO | K63: 23,09 | L63: COMPOSICAO | M63: 5631 | N63: ESCAVADEIRA HIDRÁULICA SOBRE ESTEIRAS, CAÇAMBA 0,80 M3, PESO OPERACIONAL 17 T, POTENCIA BRUTA 111 HP - CHP DIURNO. AF_06/2014 | O63: CHP | P63: ATRIBUÍDO SÃO PAULO | Q63: 0,0246000 | R63: 149,99 | S63: 3,68 | AE63: CAIXA REFERENCIAL
A64: ASSENTAMENTO DE TUBOS E PECAS | B64: ASTU | C64: FORNEC E/OU ASSENT DE TUBO DE FERRO FUNDIDO JUNTA | D64: 45 | G64: 97150 | H64: ASSENTAMENTO DE TUBO DE FERRO FUNDIDO PARA REDE DE ÁGUA, DN 500 MM, JUNTA ELÁSTICA, INSTALADO EM LOCAL COM NÍVEL ALTO DE INTERFERÊNCIAS (NÃO INCLUI FORNECIMENTO). AF_11/2017 | I64: M | J64: ATRIBUÍDO SÃO PAULO | K64: 23,09 | L64: COMPOSICAO | M64: 5632 | N64: ESCAVADEIRA HIDRÁULICA SOBRE ESTEIRAS, CAÇAMBA 0,80 M3, PESO OPERACIONAL 17 T, POTENCIA BRUTA 111 HP - CHI DIURNO. AF_06/2014 | O64: CHI | P64: ATRIBUÍDO SÃO PAULO | Q64: 0,1182000 | R64: 59,34 | S64: 7,01 | AE64: CAIXA REFERENCIAL
A65: ASSENTAMENTO DE TUBOS E PECAS | B65: ASTU | C65: FORNEC E/OU ASSENT DE TUBO DE FERRO FUNDIDO JUNTA | D65: 45 | G65: 97150 | H65: ASSENTAMENTO DE TUBO DE FERRO FUNDIDO PARA REDE DE ÁGUA, DN 500 MM, JUNTA ELÁSTICA, INSTALADO EM LOCAL COM NÍVEL ALTO DE INTERFERÊNCIAS (NÃO INCLUI FORNECIMENTO). AF_11/2017 | I65: M | J65: ATRIBUÍDO SÃO PAULO | K65: 23,09 | L65: INSUMO | M65: 20078 | N65: PASTA LUBRIFICANTE PARA TUBOS E CONEXOES COM JUNTA ELASTICA (USO EM PVC, ACO, POLIETILENO E OUTROS) ( DE *400* G) | O65: UN | P65: COEFICIENTE DE REPRESENTATIVIDADE | Q65: 0,0248000 | R65: 19,51 | S65: 0,48 | AE65: CAIXA REFERENCIAL
A66: ASSENTAMENTO DE TUBOS E PECAS | B66: ASTU | C66: FORNEC E/OU ASSENT DE TUBO DE FERRO FUNDIDO JUNTA | D66: 45 | G66: 97150 | H66: ASSENTAMENTO DE TUBO DE FERRO FUNDIDO PARA REDE DE ÁGUA, DN 500 MM, JUNTA ELÁSTICA, INSTALADO EM LOCAL COM NÍVEL ALTO DE INTERFERÊNCIAS (NÃO INCLUI FORNECIMENTO). AF_11/2017 | I66: M | J66: ATRIBUÍDO SÃO PAULO | K66: 23,09 | L66: COMPOSICAO | M66: 88246 | N66: ASSENTADOR DE TUBOS COM ENCARGOS COMPLEMENTARES | O66: H | P66: COEFICIENTE DE REPRESENTATIVIDADE | Q66: 0,3851000 | R66: 14,73 | S66: 5,67 | AE66: CAIXA REFERENCIAL
A67: ASSENTAMENTO DE TUBOS E PECAS | B67: ASTU | C67: FORNEC E/OU ASSENT DE TUBO DE FERRO FUNDIDO JUNTA | D67: 45 | G67: 97150 | H67: ASSENTAMENTO DE TUBO DE FERRO FUNDIDO PARA REDE DE ÁGUA, DN 500 MM, JUNTA ELÁSTICA, INSTALADO EM LOCAL COM NÍVEL ALTO DE INTERFERÊNCIAS (NÃO INCLUI FORNECIMENTO). AF_11/2017 | I67: M | J67: ATRIBUÍDO SÃO PAULO | K67: 23,09 | L67: COMPOSICAO | M67: 88316 | N67: SERVENTE COM ENCARGOS COMPLEMENTARES | O67: H | P67: COLETADO | Q67: 0,3851000 | R67: 16,25 | S67: 6,25 | AE67: CAIXA REFERENCIAL
A68: ASSENTAMENTO DE TUBOS E PECAS | B68: ASTU | C68: FORNEC E/OU ASSENT DE TUBO DE FERRO FUNDIDO JUNTA | D68: 45 | G68: 97151 | H68: ASSENTAMENTO DE TUBO DE FERRO FUNDIDO PARA REDE DE ÁGUA, DN 600 MM, JUNTA ELÁSTICA, INSTALADO EM LOCAL COM NÍVEL ALTO DE INTERFERÊNCIAS (NÃO INCLUI FORNECIMENTO). AF_11/2017 | I68: M | J68: ATRIBUÍDO SÃO PAULO | K68: 26,92 | T68: 12,48 | U68: 46,3205081 | V68: 7,34 | W68: 27,2693313 | X68: 7,10 | Y68: 26,4101606 | Z68: 0,00 | AA68: 0,0000000 | AB68: 0,00 | AC68: 0,0000000 | AD68: 0.26263 | AE68: CAIXA REFERENCIAL
A69: ASSENTAMENTO DE TUBOS E PECAS | B69: ASTU | C69: FORNEC E/OU ASSENT DE TUBO DE FERRO FUNDIDO JUNTA | D69: 45 | G69: 97151 | H69: ASSENTAMENTO DE TUBO DE FERRO FUNDIDO PARA REDE DE ÁGUA, DN 600 MM, JUNTA ELÁSTICA, INSTALADO EM LOCAL COM NÍVEL ALTO DE INTERFERÊNCIAS (NÃO INCLUI FORNECIMENTO). AF_11/2017 | I69: M | J69: ATRIBUÍDO SÃO PAULO | K69: 26,92 | L69: COMPOSICAO | M69: 5631 | N69: ESCAVADEIRA HIDRÁULICA SOBRE ESTEIRAS, CAÇAMBA 0,80 M3, PESO OPERACIONAL 17 T, POTENCIA BRUTA 111 HP - CHP DIURNO. AF_06/2014 | O69: CHP | P69: ATRIBUÍDO SÃO PAULO | Q69: 0,0281000 | R69: 149,99 | S69: 4,21 | AE69: CAIXA REFERENCIAL
A70: ASSENTAMENTO DE TUBOS E PECAS | B70: ASTU | C70: FORNEC E/OU ASSENT DE TUBO DE FERRO FUNDIDO JUNTA | D70: 45 | G70: 97151 | H70: ASSENTAMENTO DE TUBO DE FERRO FUNDIDO PARA REDE DE ÁGUA, DN 600 MM, JUNTA ELÁSTICA, INSTALADO EM LOCAL COM NÍVEL ALTO DE INTERFERÊNCIAS (NÃO INCLUI FORNECIMENTO). AF_11/2017 | I70: M | J70: ATRIBUÍDO SÃO PAULO | K70: 26,92 | L70: COMPOSICAO | M70: 5632 | N70: ESCAVADEIRA HIDRÁULICA SOBRE ESTEIRAS, CAÇAMBA 0,80 M3, PESO OPERACIONAL 17 T, POTENCIA BRUTA 111 HP - CHI DIURNO. AF_06/2014 | O70: CHI | P70: ATRIBUÍDO SÃO PAULO | Q70: 0,1350000 | R70: 59,34 | S70: 8,01 | AE70: CAIXA REFERENCIAL
A71: ASSENTAMENTO DE TUBOS E PECAS | B71: ASTU | C71: FORNEC E/OU ASSENT DE TUBO DE FERRO FUNDIDO JUNTA | D71: 45 | G71: 97151 | H71: ASSENTAMENTO DE TUBO DE FERRO FUNDIDO PARA REDE DE ÁGUA, DN 600 MM, JUNTA ELÁSTICA, INSTALADO EM LOCAL COM NÍVEL ALTO DE INTERFERÊNCIAS (NÃO INCLUI FORNECIMENTO). AF_11/2017 | I71: M | J71: ATRIBUÍDO SÃO PAULO | K71: 26,92 | L71: INSUMO | M71: 20078 | N71: PASTA LUBRIFICANTE PARA TUBOS E CONEXOES COM JUNTA ELASTICA (USO EM PVC, ACO, POLIETILENO E OUTROS) ( DE *400* G) | O71: UN | P71: COEFICIENTE DE REPRESENTATIVIDADE | Q71: 0,0313000 | R71: 19,51 | S71: 0,61 | AE71: CAIXA REFERENCIAL
A72: ASSENTAMENTO DE TUBOS E PECAS | B72: ASTU | C72: FORNEC E/OU ASSENT DE TUBO DE FERRO FUNDIDO JUNTA | D72: 45 | G72: 97151 | H72: ASSENTAMENTO DE TUBO DE FERRO FUNDIDO PARA REDE DE ÁGUA, DN 600 MM, JUNTA ELÁSTICA, INSTALADO EM LOCAL COM NÍVEL ALTO DE INTERFERÊNCIAS (NÃO INCLUI FORNECIMENTO). AF_11/2017 | I72: M | J72: ATRIBUÍDO SÃO PAULO | K72: 26,92 | L72: COMPOSICAO | M72: 88246 | N72: ASSENTADOR DE TUBOS COM ENCARGOS COMPLEMENTARES | O72: H | P72: COEFICIENTE DE REPRESENTATIVIDADE | Q72: 0,4553000 | R72: 14,73 | S72: 6,70 | AE72: CAIXA REFERENCIAL
A73: ASSENTAMENTO DE TUBOS E PECAS | B73: ASTU | C73: FORNEC E/OU ASSENT DE TUBO DE FERRO FUNDIDO JUNTA | D73: 45 | G73: 97151 | H73: ASSENTAMENTO DE TUBO DE FERRO FUNDIDO PARA REDE DE ÁGUA, DN 600 MM, JUNTA ELÁSTICA, INSTALADO EM LOCAL COM NÍVEL ALTO DE INTERFERÊNCIAS (NÃO INCLUI FORNECIMENTO). AF_11/2017 | I73: M | J73: ATRIBUÍDO SÃO PAULO | K73: 26,92 | L73: COMPOSICAO | M73: 88316 | N73: SERVENTE COM ENCARGOS COMPLEMENTARES | O73: H | P73: COLETADO | Q73: 0,4553000 | R73: 16,25 | S73: 7,39 | AE73: CAIXA REFERENCIAL
A74: ASSENTAMENTO DE TUBOS E PECAS | B74: ASTU | C74: FORNEC E/OU ASSENT DE TUBO DE FERRO FUNDIDO JUNTA | D74: 45 | G74: 97152 | H74: ASSENTAMENTO DE TUBO DE FERRO FUNDIDO PARA REDE DE ÁGUA, DN 700 MM, JUNTA ELÁSTICA, INSTALADO EM LOCAL COM NÍVEL ALTO DE INTERFERÊNCIAS (NÃO INCLUI FORNECIMENTO). AF_11/2017 | I74: M | J74: ATRIBUÍDO SÃO PAULO | K74: 30,55 | T74: 14,31 | U74: 46,7938179 | V74: 8,26 | W74: 27,0634659 | X74: 7,98 | Y74: 26,1427162 | Z74: 0,00 | AA74: 0,0000000 | AB74: 0,00 | AC74: 0,0000000 | AD74: 0.26023 | AE74: CAIXA REFERENCIAL
A75: ASSENTAMENTO DE TUBOS E PECAS | B75: ASTU | C75: FORNEC E/OU ASSENT DE TUBO DE FERRO FUNDIDO JUNTA | D75: 45 | G75: 97152 | H75: ASSENTAMENTO DE TUBO DE FERRO FUNDIDO PARA REDE DE ÁGUA, DN 700 MM, JUNTA ELÁSTICA, INSTALADO EM LOCAL COM NÍVEL ALTO DE INTERFERÊNCIAS (NÃO INCLUI FORNECIMENTO). AF_11/2017 | I75: M | J75: ATRIBUÍDO SÃO PAULO | K75: 30,55 | L75: COMPOSICAO | M75: 5631 | N75: ESCAVADEIRA HIDRÁULICA SOBRE ESTEIRAS, CAÇAMBA 0,80 M3, PESO OPERACIONAL 17 T, POTENCIA BRUTA 111 HP - CHP DIURNO. AF_06/2014 | O75: CHP | P75: ATRIBUÍDO SÃO PAULO | Q75: 0,0316000 | R75: 149,99 | S75: 4,73 | AE75: CAIXA REFERENCIAL
A76: ASSENTAMENTO DE TUBOS E PECAS | B76: ASTU | C76: FORNEC E/OU ASSENT DE TUBO DE FERRO FUNDIDO JUNTA | D76: 45 | G76: 97152 | H76: ASSENTAMENTO DE TUBO DE FERRO FUNDIDO PARA REDE DE ÁGUA, DN 700 MM, JUNTA ELÁSTICA, INSTALADO EM LOCAL COM NÍVEL ALTO DE INTERFERÊNCIAS (NÃO INCLUI FORNECIMENTO). AF_11/2017 | I76: M | J76: ATRIBUÍDO SÃO PAULO | K76: 30,55 | L76: COMPOSICAO | M76: 5632 | N76: ESCAVADEIRA HIDRÁULICA SOBRE ESTEIRAS, CAÇAMBA 0,80 M3, PESO OPERACIONAL 17 T, POTENCIA BRUTA 111 HP - CHI DIURNO. AF_06/2014 | O76: CHI | P76: ATRIBUÍDO SÃO PAULO | Q76: 0,1518000 | R76: 59,34 | S76: 9,00 | AE76: CAIXA REFERENCIAL
A77: ASSENTAMENTO DE TUBOS E PECAS | B77: ASTU | C77: FORNEC E/OU ASSENT DE TUBO DE FERRO FUNDIDO JUNTA | D77: 45 | G77: 97152 | H77: ASSENTAMENTO DE TUBO DE FERRO FUNDIDO PARA REDE DE ÁGUA, DN 700 MM, JUNTA ELÁSTICA, INSTALADO EM LOCAL COM NÍVEL ALTO DE INTERFERÊNCIAS (NÃO INCLUI FORNECIMENTO). AF_11/2017 | I77: M | J77: ATRIBUÍDO SÃO PAULO | K77: 30,55 | L77: INSUMO | M77: 20078 | N77: PASTA LUBRIFICANTE PARA TUBOS E CONEXOES COM JUNTA ELASTICA (USO EM PVC, ACO, POLIETILENO E OUTROS) ( DE *400* G) | O77: UN | P77: COEFICIENTE DE REPRESENTATIVIDADE | Q77: 0,0284000 | R77: 19,51 | S77: 0,55 | AE77: CAIXA REFERENCIAL
A78: ASSENTAMENTO DE TUBOS E PECAS | B78: ASTU | C78: FORNEC E/OU ASSENT DE TUBO DE FERRO FUNDIDO JUNTA | D78: 45 | G78: 97152 | H78: ASSENTAMENTO DE TUBO DE FERRO FUNDIDO PARA REDE DE ÁGUA, DN 700 MM, JUNTA ELÁSTICA, INSTALADO EM LOCAL COM NÍVEL ALTO DE INTERFERÊNCIAS (NÃO INCLUI FORNECIMENTO). AF_11/2017 | I78: M | J78: ATRIBUÍDO SÃO PAULO | K78: 30,55 | L78: COMPOSICAO | M78: 88246 | N78: ASSENTADOR DE TUBOS COM ENCARGOS COMPLEMENTARES | O78: H | P78: COEFICIENTE DE REPRESENTATIVIDADE | Q78: 0,5255000 | R78: 14,73 | S78: 7,74 | AE78: CAIXA REFERENCIAL
A79: ASSENTAMENTO DE TUBOS E PECAS | B79: ASTU | C79: FORNEC E/OU ASSENT DE TUBO DE FERRO FUNDIDO JUNTA | D79: 45 | G79: 97152 | H79: ASSENTAMENTO DE TUBO DE FERRO FUNDIDO PARA REDE DE ÁGUA, DN 700 MM, JUNTA ELÁSTICA, INSTALADO EM LOCAL COM NÍVEL ALTO DE INTERFERÊNCIAS (NÃO INCLUI FORNECIMENTO). AF_11/2017 | I79: M | J79: ATRIBUÍDO SÃO PAULO | K79: 30,55 | L79: COMPOSICAO | M79: 88316 | N79: SERVENTE COM ENCARGOS COMPLEMENTARES | O79: H | P79: COLETADO | Q79: 0,5255000 | R79: 16,25 | S79: 8,53 | AE79: CAIXA REFERENCIAL
A80: ASSENTAMENTO DE TUBOS E PECAS | B80: ASTU | C80: FORNEC E/OU ASSENT DE TUBO DE FERRO FUNDIDO JUNTA | D80: 45 | G80: 97153 | H80: ASSENTAMENTO DE TUBO DE FERRO FUNDIDO PARA REDE DE ÁGUA, DN 800 MM, JUNTA ELÁSTICA, INSTALADO EM LOCAL COM NÍVEL ALTO DE INTERFERÊNCIAS (NÃO INCLUI FORNECIMENTO). AF_11/2017 | I80: M | J80: ATRIBUÍDO SÃO PAULO | K80: 34,31 | T80: 16,15 | U80: 47,0415936 | V80: 9,28 | W80: 27,0650263 | X80: 8,88 | Y80: 25,8933801 | Z80: 0,00 | AA80: 0,0000000 | AB80: 0,00 | AC80: 0,0000000 | AD80: 0.25765 | AE80: CAIXA REFERENCIAL
A81: ASSENTAMENTO DE TUBOS E PECAS | B81: ASTU | C81: FORNEC E/OU ASSENT DE TUBO DE FERRO FUNDIDO JUNTA | D81: 45 | G81: 97153 | H81: ASSENTAMENTO DE TUBO DE FERRO FUNDIDO PARA REDE DE ÁGUA, DN 800 MM, JUNTA ELÁSTICA, INSTALADO EM LOCAL COM NÍVEL ALTO DE INTERFERÊNCIAS (NÃO INCLUI FORNECIMENTO). AF_11/2017 | I81: M | J81: ATRIBUÍDO SÃO PAULO | K81: 34,31 | L81: COMPOSICAO | M81: 5631 | N81: ESCAVADEIRA HIDRÁULICA SOBRE ESTEIRAS, CAÇAMBA 0,80 M3, PESO OPERACIONAL 17 T, POTENCIA BRUTA 111 HP - CHP DIURNO. AF_06/2014 | O81: CHP | P81: ATRIBUÍDO SÃO PAULO | Q81: 0,0351000 | R81: 149,99 | S81: 5,26 | AE81: CAIXA REFERENCIAL
A82: ASSENTAMENTO DE TUBOS E PECAS | B82: ASTU | C82: FORNEC E/OU ASSENT DE TUBO DE FERRO FUNDIDO JUNTA | D82: 45 | G82: 97153 | H82: ASSENTAMENTO DE TUBO DE FERRO FUNDIDO PARA REDE DE ÁGUA, DN 800 MM, JUNTA ELÁSTICA, INSTALADO EM LOCAL COM NÍVEL ALTO DE INTERFERÊNCIAS (NÃO INCLUI FORNECIMENTO). AF_11/2017 | I82: M | J82: ATRIBUÍDO SÃO PAULO | K82: 34,31 | L82: COMPOSICAO | M82: 5632 | N82: ESCAVADEIRA HIDRÁULICA SOBRE ESTEIRAS, CAÇAMBA 0,80 M3, PESO OPERACIONAL 17 T, POTENCIA BRUTA 111 HP - CHI DIURNO. AF_06/2014 | O82: CHI | P82: ATRIBUÍDO SÃO PAULO | Q82: 0,1686000 | R82: 59,34 | S82: 10,00 | AE82: CAIXA REFERENCIAL
A83: ASSENTAMENTO DE TUBOS E PECAS | B83: ASTU | C83: FORNEC E/OU ASSENT DE TUBO DE FERRO FUNDIDO JUNTA | D83: 45 | G83: 97153 | H83: ASSENTAMENTO DE TUBO DE FERRO FUNDIDO PARA REDE DE ÁGUA, DN 800 MM, JUNTA ELÁSTICA, INSTALADO EM LOCAL COM NÍVEL ALTO DE INTERFERÊNCIAS (NÃO INCLUI FORNECIMENTO). AF_11/2017 | I83: M | J83: ATRIBUÍDO SÃO PAULO | K83: 34,31 | L83: INSUMO | M83: 20078 | N83: PASTA LUBRIFICANTE PARA TUBOS E CONEXOES COM JUNTA ELASTICA (USO EM PVC, ACO, POLIETILENO E OUTROS) ( DE *400* G) | O83: UN | P83: COEFICIENTE DE REPRESENTATIVIDADE | Q83: 0,0314000 | R83: 19,51 | S83: 0,61 | AE83: CAIXA REFERENCIAL
A84: ASSENTAMENTO DE TUBOS E PECAS | B84: ASTU | C84: FORNEC E/OU ASSENT DE TUBO DE FERRO FUNDIDO JUNTA | D84: 45 | G84: 97153 | H84: ASSENTAMENTO DE TUBO DE FERRO FUNDIDO PARA REDE DE ÁGUA, DN 800 MM, JUNTA ELÁSTICA, INSTALADO EM LOCAL COM NÍVEL ALTO DE INTERFERÊNCIAS (NÃO INCLUI FORNECIMENTO). AF_11/2017 | I84: M | J84: ATRIBUÍDO SÃO PAULO | K84: 34,31 | L84: COMPOSICAO | M84: 88246 | N84: ASSENTADOR DE TUBOS COM ENCARGOS COMPLEMENTARES | O84: H | P84: COEFICIENTE DE REPRESENTATIVIDADE | Q84: 0,5956000 | R84: 14,73 | S84: 8,77 | AE84: CAIXA REFERENCIAL
A85: ASSENTAMENTO DE TUBOS E PECAS | B85: ASTU | C85: FORNEC E/OU ASSENT DE TUBO DE FERRO FUNDIDO JUNTA | D85: 45 | G85: 97153 | H85: ASSENTAMENTO DE TUBO DE FERRO FUNDIDO PARA REDE DE ÁGUA, DN 800 MM, JUNTA ELÁSTICA, INSTALADO EM LOCAL COM NÍVEL ALTO DE INTERFERÊNCIAS (NÃO INCLUI FORNECIMENTO). AF_11/2017 | I85: M | J85: ATRIBUÍDO SÃO PAULO | K85: 34,31 | L85: COMPOSICAO | M85: 88316 | N85: SERVENTE COM ENCARGOS COMPLEMENTARES | O85: H | P85: COLETADO | Q85: 0,5956000 | R85: 16,25 | S85: 9,67 | AE85: CAIXA REFERENCIAL
A86: ASSENTAMENTO DE TUBOS E PECAS | B86: ASTU | C86: FORNEC E/OU ASSENT DE TUBO DE FERRO FUNDIDO JUNTA | D86: 45 | G86: 97154 | H86: ASSENTAMENTO DE TUBO DE FERRO FUNDIDO PARA REDE DE ÁGUA, DN 900 MM, JUNTA ELÁSTICA, INSTALADO EM LOCAL COM NÍVEL ALTO DE INTERFERÊNCIAS (NÃO INCLUI FORNECIMENTO). AF_11/2017 | I86: M | J86: ATRIBUÍDO SÃO PAULO | K86: 38,08 | T86: 17,97 | U86: 47,1643366 | V86: 10,35 | W86: 27,1959905 | X86: 9,76 | Y86: 25,6396729 | Z86: 0,00 | AA86: 0,0000000 | AB86: 0,00 | AC86: 0,0000000 | AD86: 0.25525 | AE86: CAIXA REFERENCIAL
A87: ASSENTAMENTO DE TUBOS E PECAS | B87: ASTU | C87: FORNEC E/OU ASSENT DE TUBO DE FERRO FUNDIDO JUNTA | D87: 45 | G87: 97154 | H87: ASSENTAMENTO DE TUBO DE FERRO FUNDIDO PARA REDE DE ÁGUA, DN 900 MM, JUNTA ELÁSTICA, INSTALADO EM LOCAL COM NÍVEL ALTO DE INTERFERÊNCIAS (NÃO INCLUI FORNECIMENTO). AF_11/2017 | I87: M | J87: ATRIBUÍDO SÃO PAULO | K87: 38,08 | L87: COMPOSICAO | M87: 5631 | N87: ESCAVADEIRA HIDRÁULICA SOBRE ESTEIRAS, CAÇAMBA 0,80 M3, PESO OPERACIONAL 17 T, POTENCIA BRUTA 111 HP - CHP DIURNO. AF_06/2014 | O87: CHP | P87: ATRIBUÍDO SÃO PAULO | Q87: 0,0386000 | R87: 149,99 | S87: 5,78 | AE87: CAIXA REFERENCIAL
A88: ASSENTAMENTO DE TUBOS E PECAS | B88: ASTU | C88: FORNEC E/OU ASSENT DE TUBO DE FERRO FUNDIDO JUNTA | D88: 45 | G88: 97154 | H88: ASSENTAMENTO DE TUBO DE FERRO FUNDIDO PARA REDE DE ÁGUA, DN 900 MM, JUNTA ELÁSTICA, INSTALADO EM LOCAL COM NÍVEL ALTO DE INTERFERÊNCIAS (NÃO INCLUI FORNECIMENTO). AF_11/2017 | I88: M | J88: ATRIBUÍDO SÃO PAULO | K88: 38,08 | L88: COMPOSICAO | M88: 5632 | N88: ESCAVADEIRA HIDRÁULICA SOBRE ESTEIRAS, CAÇAMBA 0,80 M3, PESO OPERACIONAL 17 T, POTENCIA BRUTA 111 HP - CHI DIURNO. AF_06/2014 | O88: CHI | P88: ATRIBUÍDO SÃO PAULO | Q88: 0,1854000 | R88: 59,34 | S88: 11,00 | AE88: CAIXA REFERENCIAL
A89: ASSENTAMENTO DE TUBOS E PECAS | B89: ASTU | C89: FORNEC E/OU ASSENT DE TUBO DE FERRO FUNDIDO JUNTA | D89: 45 | G89: 97154 | H89: ASSENTAMENTO DE TUBO DE FERRO FUNDIDO PARA REDE DE ÁGUA, DN 900 MM, JUNTA ELÁSTICA, INSTALADO EM LOCAL COM NÍVEL ALTO DE INTERFERÊNCIAS (NÃO INCLUI FORNECIMENTO). AF_11/2017 | I89: M | J89: ATRIBUÍDO SÃO PAULO | K89: 38,08 | L89: INSUMO | M89: 20078 | N89: PASTA LUBRIFICANTE PARA TUBOS E CONEXOES COM JUNTA ELASTICA (USO EM PVC, ACO, POLIETILENO E OUTROS) ( DE *400* G) | O89: UN | P89: COEFICIENTE DE REPRESENTATIVIDADE | Q89: 0,0355000 | R89: 19,51 | S89: 0,69 | AE89: CAIXA REFERENCIAL
A90: ASSENTAMENTO DE TUBOS E PECAS | B90: ASTU | C90: FORNEC E/OU ASSENT DE TUBO DE FERRO FUNDIDO JUNTA | D90: 45 | G90: 97154 | H90: ASSENTAMENTO DE TUBO DE FERRO FUNDIDO PARA REDE DE ÁGUA, DN 900 MM, JUNTA ELÁSTICA, INSTALADO EM LOCAL COM NÍVEL ALTO DE INTERFERÊNCIAS (NÃO INCLUI FORNECIMENTO). AF_11/2017 | I90: M | J90: ATRIBUÍDO SÃO PAULO | K90: 38,08 | L90: COMPOSICAO | M90: 88246 | N90: ASSENTADOR DE TUBOS COM ENCARGOS COMPLEMENTARES | O90: H | P90: COEFICIENTE DE REPRESENTATIVIDADE | Q90: 0,6658000 | R90: 14,73 | S90: 9,80 | AE90: CAIXA REFERENCIAL
A91: ASSENTAMENTO DE TUBOS E PECAS | B91: ASTU | C91: FORNEC E/OU ASSENT DE TUBO DE FERRO FUNDIDO JUNTA | D91: 45 | G91: 97154 | H91: ASSENTAMENTO DE TUBO DE FERRO FUNDIDO PARA REDE DE ÁGUA, DN 900 MM, JUNTA ELÁSTICA, INSTALADO EM LOCAL COM NÍVEL ALTO DE INTERFERÊNCIAS (NÃO INCLUI FORNECIMENTO). AF_11/2017 | I91: M | J91: ATRIBUÍDO SÃO PAULO | K91: 38,08 | L91: COMPOSICAO | M91: 88316 | N91: SERVENTE COM ENCARGOS COMPLEMENTARES | O91: H | P91: COLETADO | Q91: 0,6658000 | R91: 16,25 | S91: 10,81 | AE91: CAIXA REFERENCIAL
A92: ASSENTAMENTO DE TUBOS E PECAS | B92: ASTU | C92: FORNEC E/OU ASSENT DE TUBO DE FERRO FUNDIDO JUNTA | D92: 45 | G92: 97155 | H92: ASSENTAMENTO DE TUBO DE FERRO FUNDIDO PARA REDE DE ÁGUA, DN 1000 MM, JUNTA ELÁSTICA, INSTALADO EM LOCAL COM NÍVEL ALTO DE INTERFERÊNCIAS (NÃO INCLUI FORNECIMENTO). AF_11/2017 | I92: M | J92: ATRIBUÍDO SÃO PAULO | K92: 41,86 | T92: 19,79 | U92: 47,2661872 | V92: 11,43 | W92: 27,3141486 | X92: 10,64 | Y92: 25,4196642 | Z92: 0,00 | AA92: 0,0000000 | AB92: 0,00 | AC92: 0,0000000 | AD92: 0.25323 | AE92: CAIXA REFERENCIAL
A93: ASSENTAMENTO DE TUBOS E PECAS | B93: ASTU | C93: FORNEC E/OU ASSENT DE TUBO DE FERRO FUNDIDO JUNTA | D93: 45 | G93: 97155 | H93: ASSENTAMENTO DE TUBO DE FERRO FUNDIDO PARA REDE DE ÁGUA, DN 1000 MM, JUNTA ELÁSTICA, INSTALADO EM LOCAL COM NÍVEL ALTO DE INTERFERÊNCIAS (NÃO INCLUI FORNECIMENTO). AF_11/2017 | I93: M | J93: ATRIBUÍDO SÃO PAULO | K93: 41,86 | L93: COMPOSICAO | M93: 5631 | N93: ESCAVADEIRA HIDRÁULICA SOBRE ESTEIRAS, CAÇAMBA 0,80 M3, PESO OPERACIONAL 17 T, POTENCIA BRUTA 111 HP - CHP DIURNO. AF_06/2014 | O93: CHP | P93: ATRIBUÍDO SÃO PAULO | Q93: 0,0421000 | R93: 149,99 | S93: 6,31 | AE93: CAIXA REFERENCIAL
A94: ASSENTAMENTO DE TUBOS E PECAS | B94: ASTU | C94: FORNEC E/OU ASSENT DE TUBO DE FERRO FUNDIDO JUNTA | D94: 45 | G94: 97155 | H94: ASSENTAMENTO DE TUBO DE FERRO FUNDIDO PARA REDE DE ÁGUA, DN 1000 MM, JUNTA ELÁSTICA, INSTALADO EM LOCAL COM NÍVEL ALTO DE INTERFERÊNCIAS (NÃO INCLUI FORNECIMENTO). AF_11/2017 | I94: M | J94: ATRIBUÍDO SÃO PAULO | K94: 41,86 | L94: COMPOSICAO | M94: 5632 | N94: ESCAVADEIRA HIDRÁULICA SOBRE ESTEIRAS, CAÇAMBA 0,80 M3, PESO OPERACIONAL 17 T, POTENCIA BRUTA 111 HP - CHI DIURNO. AF_06/2014 | O94: CHI | P94: ATRIBUÍDO SÃO PAULO | Q94: 0,2021000 | R94: 59,34 | S94: 11,99 | AE94: CAIXA REFERENCIAL
A95: ASSENTAMENTO DE TUBOS E PECAS | B95: ASTU | C95: FORNEC E/OU ASSENT DE TUBO DE FERRO FUNDIDO JUNTA | D95: 45 | G95: 97155 | H95: ASSENTAMENTO DE TUBO DE FERRO FUNDIDO PARA REDE DE ÁGUA, DN 1000 MM, JUNTA ELÁSTICA, INSTALADO EM LOCAL COM NÍVEL ALTO DE INTERFERÊNCIAS (NÃO INCLUI FORNECIMENTO). AF_11/2017 | I95: M | J95: ATRIBUÍDO SÃO PAULO | K95: 41,86 | L95: INSUMO | M95: 20078 | N95: PASTA LUBRIFICANTE PARA TUBOS E CONEXOES COM JUNTA ELASTICA (USO EM PVC, ACO, POLIETILENO E OUTROS) ( DE *400* G) | O95: UN | P95: COEFICIENTE DE REPRESENTATIVIDADE | Q95: 0,0403000 | R95: 19,51 | S95: 0,78 | AE95: CAIXA REFERENCIAL
A96: ASSENTAMENTO DE TUBOS E PECAS | B96: ASTU | C96: FORNEC E/OU ASSENT DE TUBO DE FERRO FUNDIDO JUNTA | D96: 45 | G96: 97155 | H96: ASSENTAMENTO DE TUBO DE FERRO FUNDIDO PARA REDE DE ÁGUA, DN 1000 MM, JUNTA ELÁSTICA, INSTALADO EM LOCAL COM NÍVEL ALTO DE INTERFERÊNCIAS (NÃO INCLUI FORNECIMENTO). AF_11/2017 | I96: M | J96: ATRIBUÍDO SÃO PAULO | K96: 41,86 | L96: COMPOSICAO | M96: 88246 | N96: ASSENTADOR DE TUBOS COM ENCARGOS COMPLEMENTARES | O96: H | P96: COEFICIENTE DE REPRESENTATIVIDADE | Q96: 0,7359000 | R96: 14,73 | S96: 10,83 | AE96: CAIXA REFERENCIAL
A97: ASSENTAMENTO DE TUBOS E PECAS | B97: ASTU | C97: FORNEC E/OU ASSENT DE TUBO DE FERRO FUNDIDO JUNTA | D97: 45 | G97: 97155 | H97: ASSENTAMENTO DE TUBO DE FERRO FUNDIDO PARA REDE DE ÁGUA, DN 1000 MM, JUNTA ELÁSTICA, INSTALADO EM LOCAL COM NÍVEL ALTO DE INTERFERÊNCIAS (NÃO INCLUI FORNECIMENTO). AF_11/2017 | I97: M | J97: ATRIBUÍDO SÃO PAULO | K97: 41,86 | L97: COMPOSICAO | M97: 88316 | N97: SERVENTE COM ENCARGOS COMPLEMENTARES | O97: H | P97: COLETADO | Q97: 0,7359000 | R97: 16,25 | S97: 11,95 | AE97: CAIXA REFERENCIAL
A98: ASSENTAMENTO DE TUBOS E PECAS | B98: ASTU | C98: FORNEC E/OU ASSENT DE TUBO DE FERRO FUNDIDO JUNTA | D98: 45 | G98: 97156 | H98: ASSENTAMENTO DE TUBO DE FERRO FUNDIDO PARA REDE DE ÁGUA, DN 1200 MM, JUNTA ELÁSTICA, INSTALADO EM LOCAL COM NÍVEL ALTO DE INTERFERÊNCIAS (NÃO INCLUI FORNECIMENTO). AF_11/2017 | I98: M | J98: ATRIBUÍDO SÃO PAULO | K98: 49,73 | T98: 23,45 | U98: 47,1370969 | V98: 13,88 | W98: 27,9233870 | X98: 12,40 | Y98: 24,9395161 | Z98: 0,00 | AA98: 0,0000000 | AB98: 0,00 | AC98: 0,0000000 | AD98: 0.24874 | AE98: CAIXA REFERENCIAL
A99: ASSENTAMENTO DE TUBOS E PECAS | B99: ASTU | C99: FORNEC E/OU ASSENT DE TUBO DE FERRO FUNDIDO JUNTA | D99: 45 | G99: 97156 | H99: ASSENTAMENTO DE TUBO DE FERRO FUNDIDO PARA REDE DE ÁGUA, DN 1200 MM, JUNTA ELÁSTICA, INSTALADO EM LOCAL COM NÍVEL ALTO DE INTERFERÊNCIAS (NÃO INCLUI FORNECIMENTO). AF_11/2017 | I99: M | J99: ATRIBUÍDO SÃO PAULO | K99: 49,73 | L99: COMPOSICAO | M99: 5631 | N99: ESCAVADEIRA HIDRÁULICA SOBRE ESTEIRAS, CAÇAMBA 0,80 M3, PESO OPERACIONAL 17 T, POTENCIA BRUTA 111 HP - CHP DIURNO. AF_06/2014 | O99: CHP | P99: ATRIBUÍDO SÃO PAULO | Q99: 0,0491000 | R99: 149,99 | S99: 7,36 | AE99: CAIXA REFERENCIAL
A100: ASSENTAMENTO DE TUBOS E PECAS | B100: ASTU | C100: FORNEC E/OU ASSENT DE TUBO DE FERRO FUNDIDO JUNTA | D100: 45 | G100: 97156 | H100: ASSENTAMENTO DE TUBO DE FERRO FUNDIDO PARA REDE DE ÁGUA, DN 1200 MM, JUNTA ELÁSTICA, INSTALADO EM LOCAL COM NÍVEL ALTO DE INTERFERÊNCIAS (NÃO INCLUI FORNECIMENTO). AF_11/2017 | I100: M | J100: ATRIBUÍDO SÃO PAULO | K100: 49,73 | L100: COMPOSICAO | M100: 5632 | N100: ESCAVADEIRA HIDRÁULICA SOBRE ESTEIRAS, CAÇAMBA 0,80 M3, PESO OPERACIONAL 17 T, POTENCIA BRUTA 111 HP - CHI DIURNO. AF_06/2014 | O100: CHI | P100: ATRIBUÍDO SÃO PAULO | Q100: 0,2357000 | R100: 59,34 | S100: 13,98 | AE100: CAIXA REFERENCIAL
A101: ASSENTAMENTO DE TUBOS E PECAS | B101: ASTU | C101: FORNEC E/OU ASSENT DE TUBO DE FERRO FUNDIDO JUNTA | D101: 45 | G101: 97156 | H101: ASSENTAMENTO DE TUBO DE FERRO FUNDIDO PARA REDE DE ÁGUA, DN 1200 MM, JUNTA ELÁSTICA, INSTALADO EM LOCAL COM NÍVEL ALTO DE INTERFERÊNCIAS (NÃO INCLUI FORNECIMENTO). AF_11/2017 | I101: M | J101: ATRIBUÍDO SÃO PAULO | K101: 49,73 | L101: INSUMO | M101: 20078 | N101: PASTA LUBRIFICANTE PARA TUBOS E CONEXOES COM JUNTA ELASTICA (USO EM PVC, ACO, POLIETILENO E OUTROS) ( DE *400* G) | O101: UN | P101: COEFICIENTE DE REPRESENTATIVIDADE | Q101: 0,0646000 | R101: 19,51 | S101: 1,26 | AE101: CAIXA REFERENCIAL
A102: ASSENTAMENTO DE TUBOS E PECAS | B102: ASTU | C102: FORNEC E/OU ASSENT DE TUBO DE FERRO FUNDIDO JUNTA | D102: 45 | G102: 97156 | H102: ASSENTAMENTO DE TUBO DE FERRO FUNDIDO PARA REDE DE ÁGUA, DN 1200 MM, JUNTA ELÁSTICA, INSTALADO EM LOCAL COM NÍVEL ALTO DE INTERFERÊNCIAS (NÃO INCLUI FORNECIMENTO). AF_11/2017 | I102: M | J102: ATRIBUÍDO SÃO PAULO | K102: 49,73 | L102: COMPOSICAO | M102: 88246 | N102: ASSENTADOR DE TUBOS COM ENCARGOS COMPLEMENTARES | O102: H | P102: COEFICIENTE DE REPRESENTATIVIDADE | Q102: 0,8762000 | R102: 14,73 | S102: 12,90 | AE102: CAIXA REFERENCIAL
A103: ASSENTAMENTO DE TUBOS E PECAS | B103: ASTU | C103: FORNEC E/OU ASSENT DE TUBO DE FERRO FUNDIDO JUNTA | D103: 45 | G103: 97156 | H103: ASSENTAMENTO DE TUBO DE FERRO FUNDIDO PARA REDE DE ÁGUA, DN 1200 MM, JUNTA ELÁSTICA, INSTALADO EM LOCAL COM NÍVEL ALTO DE INTERFERÊNCIAS (NÃO INCLUI FORNECIMENTO). AF_11/2017 | I103: M | J103: ATRIBUÍDO SÃO PAULO | K103: 49,73 | L103: COMPOSICAO | M103: 88316 | N103: SERVENTE COM ENCARGOS COMPLEMENTARES | O103: H | P103: COLETADO | Q103: 0,8762000 | R103: 16,25 | S103: 14,23 | AE103: CAIXA REFERENCIAL
A104: ASSENTAMENTO DE TUBOS E PECAS | B104: ASTU | C104: FORNEC E/OU ASSENT DE TUBO DE FERRO FUNDIDO JUNTA | D104: 45 | G104: 97157 | H104: ASSENTAMENTO DE TUBO DE FERRO FUNDIDO PARA REDE DE ÁGUA, DN 80 MM, JUNTA ELÁSTICA, INSTALADO EM LOCAL COM NÍVEL BAIXO DE INTERFERÊNCIAS (NÃO INCLUI FORNECIMENTO). AF_11/2017 | I104: M | J104: ATRIBUÍDO SÃO PAULO | K104: 3,61 | T104: 1,70 | U104: 46,9740635 | V104: 1,12 | W104: 31,1239193 | X104: 0,79 | Y104: 21,9020172 | Z104: 0,00 | AA104: 0,0000000 | AB104: 0,00 | AC104: 0,0000000 | AD104: 0.21053 | AE104: CAIXA REFERENCIAL
A105: ASSENTAMENTO DE TUBOS E PECAS | B105: ASTU | C105: FORNEC E/OU ASSENT DE TUBO DE FERRO FUNDIDO JUNTA | D105: 45 | G105: 97157 | H105: ASSENTAMENTO DE TUBO DE FERRO FUNDIDO PARA REDE DE ÁGUA, DN 80 MM, JUNTA ELÁSTICA, INSTALADO EM LOCAL COM NÍVEL BAIXO DE INTERFERÊNCIAS (NÃO INCLUI FORNECIMENTO). AF_11/2017 | I105: M | J105: ATRIBUÍDO SÃO PAULO | K105: 3,61 | L105: COMPOSICAO | M105: 5678 | N105: RETROESCAVADEIRA SOBRE RODAS COM CARREGADEIRA, TRAÇÃO 4X4, POTÊNCIA LÍQ. 88 HP, CAÇAMBA CARREG. CAP. MÍN. 1 M3, CAÇAMBA RETRO CAP. 0,26 M3, PESO OPERACIONAL MÍN. 6.674 KG, PROFUNDIDADE ESCAVAÇÃO MÁX. 4,37 M - CHP DIURNO. AF_06/2014 | O105: CHP | P105: ATRIBUÍDO SÃO PAULO | Q105: 0,0099000 | R105: 105,80 | S105: 1,04 | AE105: CAIXA REFERENCIAL
A106: ASSENTAMENTO DE TUBOS E PECAS | B106: ASTU | C106: FORNEC E/OU ASSENT DE TUBO DE FERRO FUNDIDO JUNTA | D106: 45 | G106: 97157 | H106: ASSENTAMENTO DE TUBO DE FERRO FUNDIDO PARA REDE DE ÁGUA, DN 80 MM, JUNTA ELÁSTICA, INSTALADO EM LOCAL COM NÍVEL BAIXO DE INTERFERÊNCIAS (NÃO INCLUI FORNECIMENTO). AF_11/2017 | I106: M | J106: ATRIBUÍDO SÃO PAULO | K106: 3,61 | L106: COMPOSICAO | M106: 5679 | N106: RETROESCAVADEIRA SOBRE RODAS COM CARREGADEIRA, TRAÇÃO 4X4, POTÊNCIA LÍQ. 88 HP, CAÇAMBA CARREG. CAP. MÍN. 1 M3, CAÇAMBA RETRO CAP. 0,26 M3, PESO OPERACIONAL MÍN. 6.674 KG, PROFUNDIDADE ESCAVAÇÃO MÁX. 4,37 M - CHI DIURNO. AF_06/2014 | O106: CHI | P106: ATRIBUÍDO SÃO PAULO | Q106: 0,0190000 | R106: 42,42 | S106: 0,80 | AE106: CAIXA REFERENCIAL
A107: ASSENTAMENTO DE TUBOS E PECAS | B107: ASTU | C107: FORNEC E/OU ASSENT DE TUBO DE FERRO FUNDIDO JUNTA | D107: 45 | G107: 97157 | H107: ASSENTAMENTO DE TUBO DE FERRO FUNDIDO PARA REDE DE ÁGUA, DN 80 MM, JUNTA ELÁSTICA, INSTALADO EM LOCAL COM NÍVEL BAIXO DE INTERFERÊNCIAS (NÃO INCLUI FORNECIMENTO). AF_11/2017 | I107: M | J107: ATRIBUÍDO SÃO PAULO | K107: 3,61 | L107: INSUMO | M107: 20078 | N107: PASTA LUBRIFICANTE PARA TUBOS E CONEXOES COM JUNTA ELASTICA (USO EM PVC, ACO, POLIETILENO E OUTROS) ( DE *400* G) | O107: UN | P107: COEFICIENTE DE REPRESENTATIVIDADE | Q107: 0,0046000 | R107: 19,51 | S107: 0,08 | AE107: CAIXA REFERENCIAL
A108: ASSENTAMENTO DE TUBOS E PECAS | B108: ASTU | C108: FORNEC E/OU ASSENT DE TUBO DE FERRO FUNDIDO JUNTA | D108: 45 | G108: 97157 | H108: ASSENTAMENTO DE TUBO DE FERRO FUNDIDO PARA REDE DE ÁGUA, DN 80 MM, JUNTA ELÁSTICA, INSTALADO EM LOCAL COM NÍVEL BAIXO DE INTERFERÊNCIAS (NÃO INCLUI FORNECIMENTO). AF_11/2017 | I108: M | J108: ATRIBUÍDO SÃO PAULO | K108: 3,61 | L108: COMPOSICAO | M108: 88246 | N108: ASSENTADOR DE TUBOS COM ENCARGOS COMPLEMENTARES | O108: H | P108: COEFICIENTE DE REPRESENTATIVIDADE | Q108: 0,0548000 | R108: 14,73 | S108: 0,80 | AE108: CAIXA REFERENCIAL
A109: ASSENTAMENTO DE TUBOS E PECAS | B109: ASTU | C109: FORNEC E/OU ASSENT DE TUBO DE FERRO FUNDIDO JUNTA | D109: 45 | G109: 97157 | H109: ASSENTAMENTO DE TUBO DE FERRO FUNDIDO PARA REDE DE ÁGUA, DN 80 MM, JUNTA ELÁSTICA, INSTALADO EM LOCAL COM NÍVEL BAIXO DE INTERFERÊNCIAS (NÃO INCLUI FORNECIMENTO). AF_11/2017 | I109: M | J109: ATRIBUÍDO SÃO PAULO | K109: 3,61 | L109: COMPOSICAO | M109: 88316 | N109: SERVENTE COM ENCARGOS COMPLEMENTARES | O109: H | P109: COLETADO | Q109: 0,0548000 | R109: 16,25 | S109: 0,89 | AE109: CAIXA REFERENCIAL
A110: ASSENTAMENTO DE TUBOS E PECAS | B110: ASTU | C110: FORNEC E/OU ASSENT DE TUBO DE FERRO FUNDIDO JUNTA | D110: 45 | G110: 97158 | H110: ASSENTAMENTO DE TUBO DE FERRO FUNDIDO PARA REDE DE ÁGUA, DN 100 MM, JUNTA ELÁSTICA, INSTALADO EM LOCAL COM NÍVEL BAIXO DE INTERFERÊNCIAS (NÃO INCLUI FORNECIMENTO). AF_11/2017 | I110: M | J110: ATRIBUÍDO SÃO PAULO | K110: 4,03 | T110: 1,93 | U110: 47,5578407 | V110: 1,27 | W110: 31,6195372 | X110: 0,83 | Y110: 20,8226221 | Z110: 0,00 | AA110: 0,0000000 | AB110: 0,00 | AC110: 0,0000000 | AD110: 0.20099 | AE110: CAIXA REFERENCIAL
A111: ASSENTAMENTO DE TUBOS E PECAS | B111: ASTU | C111: FORNEC E/OU ASSENT DE TUBO DE FERRO FUNDIDO JUNTA | D111: 45 | G111: 97158 | H111: ASSENTAMENTO DE TUBO DE FERRO FUNDIDO PARA REDE DE ÁGUA, DN 100 MM, JUNTA ELÁSTICA, INSTALADO EM LOCAL COM NÍVEL BAIXO DE INTERFERÊNCIAS (NÃO INCLUI FORNECIMENTO). AF_11/2017 | I111: M | J111: ATRIBUÍDO SÃO PAULO | K111: 4,03 | L111: COMPOSICAO | M111: 5678 | N111: RETROESCAVADEIRA SOBRE RODAS COM CARREGADEIRA, TRAÇÃO 4X4, POTÊNCIA LÍQ. 88 HP, CAÇAMBA CARREG. CAP. MÍN. 1 M3, CAÇAMBA RETRO CAP. 0,26 M3, PESO OPERACIONAL MÍN. 6.674 KG, PROFUNDIDADE ESCAVAÇÃO MÁX. 4,37 M - CHP DIURNO. AF_06/2014 | O111: CHP | P111: ATRIBUÍDO SÃO PAULO | Q111: 0,0106000 | R111: 105,80 | S111: 1,12 | AE111: CAIXA REFERENCIAL
A112: ASSENTAMENTO DE TUBOS E PECAS | B112: ASTU | C112: FORNEC E/OU ASSENT DE TUBO DE FERRO FUNDIDO JUNTA | D112: 45 | G112: 97158 | H112: ASSENTAMENTO DE TUBO DE FERRO FUNDIDO PARA REDE DE ÁGUA, DN 100 MM, JUNTA ELÁSTICA, INSTALADO EM LOCAL COM NÍVEL BAIXO DE INTERFERÊNCIAS (NÃO INCLUI FORNECIMENTO). AF_11/2017 | I112: M | J112: ATRIBUÍDO SÃO PAULO | K112: 4,03 | L112: COMPOSICAO | M112: 5679 | N112: RETROESCAVADEIRA SOBRE RODAS COM CARREGADEIRA, TRAÇÃO 4X4, POTÊNCIA LÍQ. 88 HP, CAÇAMBA CARREG. CAP. MÍN. 1 M3, CAÇAMBA RETRO CAP. 0,26 M3, PESO OPERACIONAL MÍN. 6.674 KG, PROFUNDIDADE ESCAVAÇÃO MÁX. 4,37 M - CHI DIURNO. AF_06/2014 | O112: CHI | P112: ATRIBUÍDO SÃO PAULO | Q112: 0,0204000 | R112: 42,42 | S112: 0,86 | AE112: CAIXA REFERENCIAL
A113: ASSENTAMENTO DE TUBOS E PECAS | B113: ASTU | C113: FORNEC E/OU ASSENT DE TUBO DE FERRO FUNDIDO JUNTA | D113: 45 | G113: 97158 | H113: ASSENTAMENTO DE TUBO DE FERRO FUNDIDO PARA REDE DE ÁGUA, DN 100 MM, JUNTA ELÁSTICA, INSTALADO EM LOCAL COM NÍVEL BAIXO DE INTERFERÊNCIAS (NÃO INCLUI FORNECIMENTO). AF_11/2017 | I113: M | J113: ATRIBUÍDO SÃO PAULO | K113: 4,03 | L113: INSUMO | M113: 20078 | N113: PASTA LUBRIFICANTE PARA TUBOS E CONEXOES COM JUNTA ELASTICA (USO EM PVC, ACO, POLIETILENO E OUTROS) ( DE *400* G) | O113: UN | P113: COEFICIENTE DE REPRESENTATIVIDADE | Q113: 0,0054000 | R113: 19,51 | S113: 0,10 | AE113: CAIXA REFERENCIAL
A114: ASSENTAMENTO DE TUBOS E PECAS | B114: ASTU | C114: FORNEC E/OU ASSENT DE TUBO DE FERRO FUNDIDO JUNTA | D114: 45 | G114: 97158 | H114: ASSENTAMENTO DE TUBO DE FERRO FUNDIDO PARA REDE DE ÁGUA, DN 100 MM, JUNTA ELÁSTICA, INSTALADO EM LOCAL COM NÍVEL BAIXO DE INTERFERÊNCIAS (NÃO INCLUI FORNECIMENTO). AF_11/2017 | I114: M | J114: ATRIBUÍDO SÃO PAULO | K114: 4,03 | L114: COMPOSICAO | M114: 88246 | N114: ASSENTADOR DE TUBOS COM ENCARGOS COMPLEMENTARES | O114: H | P114: COEFICIENTE DE REPRESENTATIVIDADE | Q114: 0,0633000 | R114: 14,73 | S114: 0,93 | AE114: CAIXA REFERENCIAL
A115: ASSENTAMENTO DE TUBOS E PECAS | B115: ASTU | C115: FORNEC E/OU ASSENT DE TUBO DE FERRO FUNDIDO JUNTA | D115: 45 | G115: 97158 | H115: ASSENTAMENTO DE TUBO DE FERRO FUNDIDO PARA REDE DE ÁGUA, DN 100 MM, JUNTA ELÁSTICA, INSTALADO EM LOCAL COM NÍVEL BAIXO DE INTERFERÊNCIAS (NÃO INCLUI FORNECIMENTO). AF_11/2017 | I115: M | J115: ATRIBUÍDO SÃO PAULO | K115: 4,03 | L115: COMPOSICAO | M115: 88316 | N115: SERVENTE COM ENCARGOS COMPLEMENTARES | O115: H | P115: COLETADO | Q115: 0,0633000 | R115: 16,25 | S115: 1,02 | AE115: CAIXA REFERENCIAL
A116: ASSENTAMENTO DE TUBOS E PECAS | B116: ASTU | C116: FORNEC E/OU ASSENT DE TUBO DE FERRO FUNDIDO JUNTA | D116: 45 | G116: 97159 | H116: ASSENTAMENTO DE TUBO DE FERRO FUNDIDO PARA REDE DE ÁGUA, DN 150 MM, JUNTA ELÁSTICA, INSTALADO EM LOCAL COM NÍVEL BAIXO DE INTERFERÊNCIAS (NÃO INCLUI FORNECIMENTO). AF_11/2017 | I116: M | J116: ATRIBUÍDO SÃO PAULO | K116: 5,05 | T116: 2,46 | U116: 48,4725052 | V116: 1,62 | W116: 32,1792260 | X116: 0,97 | Y116: 19,3482688 | Z116: 0,00 | AA116: 0,0000000 | AB116: 0,00 | AC116: 0,0000000 | AD116: 0.18812 | AE116: CAIXA REFERENCIAL
A117: ASSENTAMENTO DE TUBOS E PECAS | B117: ASTU | C117: FORNEC E/OU ASSENT DE TUBO DE FERRO FUNDIDO JUNTA | D117: 45 | G117: 97159 | H117: ASSENTAMENTO DE TUBO DE FERRO FUNDIDO PARA REDE DE ÁGUA, DN 150 MM, JUNTA ELÁSTICA, INSTALADO EM LOCAL COM NÍVEL BAIXO DE INTERFERÊNCIAS (NÃO INCLUI FORNECIMENTO). AF_11/2017 | I117: M | J117: ATRIBUÍDO SÃO PAULO | K117: 5,05 | L117: COMPOSICAO | M117: 5678 | N117: RETROESCAVADEIRA SOBRE RODAS COM CARREGADEIRA, TRAÇÃO 4X4, POTÊNCIA LÍQ. 88 HP, CAÇAMBA CARREG. CAP. MÍN. 1 M3, CAÇAMBA RETRO CAP. 0,26 M3, PESO OPERACIONAL MÍN. 6.674 KG, PROFUNDIDADE ESCAVAÇÃO MÁX. 4,37 M - CHP DIURNO. AF_06/2014 | O117: CHP | P117: ATRIBUÍDO SÃO PAULO | Q117: 0,0124000 | R117: 105,80 | S117: 1,31 | AE117: CAIXA REFERENCIAL
A118: ASSENTAMENTO DE TUBOS E PECAS | B118: ASTU | C118: FORNEC E/OU ASSENT DE TUBO DE FERRO FUNDIDO JUNTA | D118: 45 | G118: 97159 | H118: ASSENTAMENTO DE TUBO DE FERRO FUNDIDO PARA REDE DE ÁGUA, DN 150 MM, JUNTA ELÁSTICA, INSTALADO EM LOCAL COM NÍVEL BAIXO DE INTERFERÊNCIAS (NÃO INCLUI FORNECIMENTO). AF_11/2017 | I118: M | J118: ATRIBUÍDO SÃO PAULO | K118: 5,05 | L118: COMPOSICAO | M118: 5679 | N118: RETROESCAVADEIRA SOBRE RODAS COM CARREGADEIRA, TRAÇÃO 4X4, POTÊNCIA LÍQ. 88 HP, CAÇAMBA CARREG. CAP. MÍN. 1 M3, CAÇAMBA RETRO CAP. 0,26 M3, PESO OPERACIONAL MÍN. 6.674 KG, PROFUNDIDADE ESCAVAÇÃO MÁX. 4,37 M - CHI DIURNO. AF_06/2014 | O118: CHI | P118: ATRIBUÍDO SÃO PAULO | Q118: 0,0237000 | R118: 42,42 | S118: 1,00 | AE118: CAIXA REFERENCIAL
A119: ASSENTAMENTO DE TUBOS E PECAS | B119: ASTU | C119: FORNEC E/OU ASSENT DE TUBO DE FERRO FUNDIDO JUNTA | D119: 45 | G119: 97159 | H119: ASSENTAMENTO DE TUBO DE FERRO FUNDIDO PARA REDE DE ÁGUA, DN 150 MM, JUNTA ELÁSTICA, INSTALADO EM LOCAL COM NÍVEL BAIXO DE INTERFERÊNCIAS (NÃO INCLUI FORNECIMENTO). AF_11/2017 | I119: M | J119: ATRIBUÍDO SÃO PAULO | K119: 5,05 | L119: INSUMO | M119: 20078 | N119: PASTA LUBRIFICANTE PARA TUBOS E CONEXOES COM JUNTA ELASTICA (USO EM PVC, ACO, POLIETILENO E OUTROS) ( DE *400* G) | O119: UN | P119: COEFICIENTE DE REPRESENTATIVIDADE | Q119: 0,0071000 | R119: 19,51 | S119: 0,13 | AE119: CAIXA REFERENCIAL
A120: ASSENTAMENTO DE TUBOS E PECAS | B120: ASTU | C120: FORNEC E/OU ASSENT DE TUBO DE FERRO FUNDIDO JUNTA | D120: 45 | G120: 97159 | H120: ASSENTAMENTO DE TUBO DE FERRO FUNDIDO PARA REDE DE ÁGUA, DN 150 MM, JUNTA ELÁSTICA, INSTALADO EM LOCAL COM NÍVEL BAIXO DE INTERFERÊNCIAS (NÃO INCLUI FORNECIMENTO). AF_11/2017 | I120: M | J120: ATRIBUÍDO SÃO PAULO | K120: 5,05 | L120: COMPOSICAO | M120: 88246 | N120: ASSENTADOR DE TUBOS COM ENCARGOS COMPLEMENTARES | O120: H | P120: COEFICIENTE DE REPRESENTATIVIDADE | Q120: 0,0845000 | R120: 14,73 | S120: 1,24 | AE120: CAIXA REFERENCIAL
A121: ASSENTAMENTO DE TUBOS E PECAS | B121: ASTU | C121: FORNEC E/OU ASSENT DE TUBO DE FERRO FUNDIDO JUNTA | D121: 45 | G121: 97159 | H121: ASSENTAMENTO DE TUBO DE FERRO FUNDIDO PARA REDE DE ÁGUA, DN 150 MM, JUNTA ELÁSTICA, INSTALADO EM LOCAL COM NÍVEL BAIXO DE INTERFERÊNCIAS (NÃO INCLUI FORNECIMENTO). AF_11/2017 | I121: M | J121: ATRIBUÍDO SÃO PAULO | K121: 5,05 | L121: COMPOSICAO | M121: 88316 | N121: SERVENTE COM ENCARGOS COMPLEMENTARES | O121: H | P121: COLETADO | Q121: 0,0845000 | R121: 16,25 | S121: 1,37 | AE121: CAIXA REFERENCIAL
A122: ASSENTAMENTO DE TUBOS E PECAS | B122: ASTU | C122: FORNEC E/OU ASSENT DE TUBO DE FERRO FUNDIDO JUNTA | D122: 45 | G122: 97160 | H122: ASSENTAMENTO DE TUBO DE FERRO FUNDIDO PARA REDE DE ÁGUA, DN 200 MM, JUNTA ELÁSTICA, INSTALADO EM LOCAL COM NÍVEL BAIXO DE INTERFERÊNCIAS (NÃO INCLUI FORNECIMENTO). AF_11/2017 | I122: M | J122: ATRIBUÍDO SÃO PAULO | K122: 6,05 | T122: 3,01 | U122: 49,5755519 | V122: 1,93 | W122: 31,9185059 | X122: 1,11 | Y122: 18,5059422 | Z122: 0,00 | AA122: 0,0000000 | AB122: 0,00 | AC122: 0,0000000 | AD122: 0.18017 | AE122: CAIXA REFERENCIAL
A123: ASSENTAMENTO DE TUBOS E PECAS | B123: ASTU | C123: FORNEC E/OU ASSENT DE TUBO DE FERRO FUNDIDO JUNTA | D123: 45 | G123: 97160 | H123: ASSENTAMENTO DE TUBO DE FERRO FUNDIDO PARA REDE DE ÁGUA, DN 200 MM, JUNTA ELÁSTICA, INSTALADO EM LOCAL COM NÍVEL BAIXO DE INTERFERÊNCIAS (NÃO INCLUI FORNECIMENTO). AF_11/2017 | I123: M | J123: ATRIBUÍDO SÃO PAULO | K123: 6,05 | L123: COMPOSICAO | M123: 5678 | N123: RETROESCAVADEIRA SOBRE RODAS COM CARREGADEIRA, TRAÇÃO 4X4, POTÊNCIA LÍQ. 88 HP, CAÇAMBA CARREG. CAP. MÍN. 1 M3, CAÇAMBA RETRO CAP. 0,26 M3, PESO OPERACIONAL MÍN. 6.674 KG, PROFUNDIDADE ESCAVAÇÃO MÁX. 4,37 M - CHP DIURNO. AF_06/2014 | O123: CHP | P123: ATRIBUÍDO SÃO PAULO | Q123: 0,0141000 | R123: 105,80 | S123: 1,49 | AE123: CAIXA REFERENCIAL
A124: ASSENTAMENTO DE TUBOS E PECAS | B124: ASTU | C124: FORNEC E/OU ASSENT DE TUBO DE FERRO FUNDIDO JUNTA | D124: 45 | G124: 97160 | H124: ASSENTAMENTO DE TUBO DE FERRO FUNDIDO PARA REDE DE ÁGUA, DN 200 MM, JUNTA ELÁSTICA, INSTALADO EM LOCAL COM NÍVEL BAIXO DE INTERFERÊNCIAS (NÃO INCLUI FORNECIMENTO). AF_11/2017 | I124: M | J124: ATRIBUÍDO SÃO PAULO | K124: 6,05 | L124: COMPOSICAO | M124: 5679 | N124: RETROESCAVADEIRA SOBRE RODAS COM CARREGADEIRA, TRAÇÃO 4X4, POTÊNCIA LÍQ. 88 HP, CAÇAMBA CARREG. CAP. MÍN. 1 M3, CAÇAMBA RETRO CAP. 0,26 M3, PESO OPERACIONAL MÍN. 6.674 KG, PROFUNDIDADE ESCAVAÇÃO MÁX. 4,37 M - CHI DIURNO. AF_06/2014 | O124: CHI | P124: ATRIBUÍDO SÃO PAULO | Q124: 0,0270000 | R124: 42,42 | S124: 1,14 | AE124: CAIXA REFERENCIAL
A125: ASSENTAMENTO DE TUBOS E PECAS | B125: ASTU | C125: FORNEC E/OU ASSENT DE TUBO DE FERRO FUNDIDO JUNTA | D125: 45 | G125: 97160 | H125: ASSENTAMENTO DE TUBO DE FERRO FUNDIDO PARA REDE DE ÁGUA, DN 200 MM, JUNTA ELÁSTICA, INSTALADO EM LOCAL COM NÍVEL BAIXO DE INTERFERÊNCIAS (NÃO INCLUI FORNECIMENTO). AF_11/2017 | I125: M | J125: ATRIBUÍDO SÃO PAULO | K125: 6,05 | L125: INSUMO | M125: 20078 | N125: PASTA LUBRIFICANTE PARA TUBOS E CONEXOES COM JUNTA ELASTICA (USO EM PVC, ACO, POLIETILENO E OUTROS) ( DE *400* G) | O125: UN | P125: COEFICIENTE DE REPRESENTATIVIDADE | Q125: 0,0087000 | R125: 19,51 | S125: 0,16 | AE125: CAIXA REFERENCIAL
A126: ASSENTAMENTO DE TUBOS E PECAS | B126: ASTU | C126: FORNEC E/OU ASSENT DE TUBO DE FERRO FUNDIDO JUNTA | D126: 45 | G126: 97160 | H126: ASSENTAMENTO DE TUBO DE FERRO FUNDIDO PARA REDE DE ÁGUA, DN 200 MM, JUNTA ELÁSTICA, INSTALADO EM LOCAL COM NÍVEL BAIXO DE INTERFERÊNCIAS (NÃO INCLUI FORNECIMENTO). AF_11/2017 | I126: M | J126: ATRIBUÍDO SÃO PAULO | K126: 6,05 | L126: COMPOSICAO | M126: 88246 | N126: ASSENTADOR DE TUBOS COM ENCARGOS COMPLEMENTARES | O126: H | P126: COEFICIENTE DE REPRESENTATIVIDADE | Q126: 0,1057000 | R126: 14,73 | S126: 1,55 | AE126: CAIXA REFERENCIAL
A127: ASSENTAMENTO DE TUBOS E PECAS | B127: ASTU | C127: FORNEC E/OU ASSENT DE TUBO DE FERRO FUNDIDO JUNTA | D127: 45 | G127: 97160 | H127: ASSENTAMENTO DE TUBO DE FERRO FUNDIDO PARA REDE DE ÁGUA, DN 200 MM, JUNTA ELÁSTICA, INSTALADO EM LOCAL COM NÍVEL BAIXO DE INTERFERÊNCIAS (NÃO INCLUI FORNECIMENTO). AF_11/2017 | I127: M | J127: ATRIBUÍDO SÃO PAULO | K127: 6,05 | L127: COMPOSICAO | M127: 88316 | N127: SERVENTE COM ENCARGOS COMPLEMENTARES | O127: H | P127: COLETADO | Q127: 0,1057000 | R127: 16,25 | S127: 1,71 | AE127: CAIXA REFERENCIAL
A128: ASSENTAMENTO DE TUBOS E PECAS | B128: ASTU | C128: FORNEC E/OU ASSENT DE TUBO DE FERRO FUNDIDO JUNTA | D128: 45 | G128: 97161 | H128: ASSENTAMENTO DE TUBO DE FERRO FUNDIDO PARA REDE DE ÁGUA, DN 250 MM, JUNTA ELÁSTICA, INSTALADO EM LOCAL COM NÍVEL BAIXO DE INTERFERÊNCIAS (NÃO INCLUI FORNECIMENTO). AF_11/2017 | I128: M | J128: ATRIBUÍDO SÃO PAULO | K128: 7,11 | T128: 3,54 | U128: 49,6413200 | V128: 2,32 | W128: 32,7116212 | X128: 1,25 | Y128: 17,6470588 | Z128: 0,00 | AA128: 0,0000000 | AB128: 0,00 | AC128: 0,0000000 | AD128: 0.173 | AE128: CAIXA REFERENCIAL
A129: ASSENTAMENTO DE TUBOS E PECAS | B129: ASTU | C129: FORNEC E/OU ASSENT DE TUBO DE FERRO FUNDIDO JUNTA | D129: 45 | G129: 97161 | H129: ASSENTAMENTO DE TUBO DE FERRO FUNDIDO PARA REDE DE ÁGUA, DN 250 MM, JUNTA ELÁSTICA, INSTALADO EM LOCAL COM NÍVEL BAIXO DE INTERFERÊNCIAS (NÃO INCLUI FORNECIMENTO). AF_11/2017 | I129: M | J129: ATRIBUÍDO SÃO PAULO | K129: 7,11 | L129: COMPOSICAO | M129: 5678 | N129: RETROESCAVADEIRA SOBRE RODAS COM CARREGADEIRA, TRAÇÃO 4X4, POTÊNCIA LÍQ. 88 HP, CAÇAMBA CARREG. CAP. MÍN. 1 M3, CAÇAMBA RETRO CAP. 0,26 M3, PESO OPERACIONAL MÍN. 6.674 KG, PROFUNDIDADE ESCAVAÇÃO MÁX. 4,37 M - CHP DIURNO. AF_06/2014 | O129: CHP | P129: ATRIBUÍDO SÃO PAULO | Q129: 0,0159000 | R129: 105,80 | S129: 1,68 | AE129: CAIXA REFERENCIAL
A130: ASSENTAMENTO DE TUBOS E PECAS | B130: ASTU | C130: FORNEC E/OU ASSENT DE TUBO DE FERRO FUNDIDO JUNTA | D130: 45 | G130: 97161 | H130: ASSENTAMENTO DE TUBO DE FERRO FUNDIDO PARA REDE DE ÁGUA, DN 250 MM, JUNTA ELÁSTICA, INSTALADO EM LOCAL COM NÍVEL BAIXO DE INTERFERÊNCIAS (NÃO INCLUI FORNECIMENTO). AF_11/2017 | I130: M | J130: ATRIBUÍDO SÃO PAULO | K130: 7,11 | L130: COMPOSICAO | M130: 5679 | N130: RETROESCAVADEIRA SOBRE RODAS COM CARREGADEIRA, TRAÇÃO 4X4, POTÊNCIA LÍQ. 88 HP, CAÇAMBA CARREG. CAP. MÍN. 1 M3, CAÇAMBA RETRO CAP. 0,26 M3, PESO OPERACIONAL MÍN. 6.674 KG, PROFUNDIDADE ESCAVAÇÃO MÁX. 4,37 M - CHI DIURNO. AF_06/2014 | O130: CHI | P130: ATRIBUÍDO SÃO PAULO | Q130: 0,0304000 | R130: 42,42 | S130: 1,28 | AE130: CAIXA REFERENCIAL
A131: ASSENTAMENTO DE TUBOS E PECAS | B131: ASTU | C131: FORNEC E/OU ASSENT DE TUBO DE FERRO FUNDIDO JUNTA | D131: 45 | G131: 97161 | H131: ASSENTAMENTO DE TUBO DE FERRO FUNDIDO PARA REDE DE ÁGUA, DN 250 MM, JUNTA ELÁSTICA, INSTALADO EM LOCAL COM NÍVEL BAIXO DE INTERFERÊNCIAS (NÃO INCLUI FORNECIMENTO). AF_11/2017 | I131: M | J131: ATRIBUÍDO SÃO PAULO | K131: 7,11 | L131: INSUMO | M131: 20078 | N131: PASTA LUBRIFICANTE PARA TUBOS E CONEXOES COM JUNTA ELASTICA (USO EM PVC, ACO, POLIETILENO E OUTROS) ( DE *400* G) | O131: UN | P131: COEFICIENTE DE REPRESENTATIVIDADE | Q131: 0,0113000 | R131: 19,51 | S131: 0,22 | AE131: CAIXA REFERENCIAL
A132: ASSENTAMENTO DE TUBOS E PECAS | B132: ASTU | C132: FORNEC E/OU ASSENT DE TUBO DE FERRO FUNDIDO JUNTA | D132: 45 | G132: 97161 | H132: ASSENTAMENTO DE TUBO DE FERRO FUNDIDO PARA REDE DE ÁGUA, DN 250 MM, JUNTA ELÁSTICA, INSTALADO EM LOCAL COM NÍVEL BAIXO DE INTERFERÊNCIAS (NÃO INCLUI FORNECIMENTO). AF_11/2017 | I132: M | J132: ATRIBUÍDO SÃO PAULO | K132: 7,11 | L132: COMPOSICAO | M132: 88246 | N132: ASSENTADOR DE TUBOS COM ENCARGOS COMPLEMENTARES | O132: H | P132: COEFICIENTE DE REPRESENTATIVIDADE | Q132: 0,1270000 | R132: 14,73 | S132: 1,87 | AE132: CAIXA REFERENCIAL
A133: ASSENTAMENTO DE TUBOS E PECAS | B133: ASTU | C133: FORNEC E/OU ASSENT DE TUBO DE FERRO FUNDIDO JUNTA | D133: 45 | G133: 97161 | H133: ASSENTAMENTO DE TUBO DE FERRO FUNDIDO PARA REDE DE ÁGUA, DN 250 MM, JUNTA ELÁSTICA, INSTALADO EM LOCAL COM NÍVEL BAIXO DE INTERFERÊNCIAS (NÃO INCLUI FORNECIMENTO). AF_11/2017 | I133: M | J133: ATRIBUÍDO SÃO PAULO | K133: 7,11 | L133: COMPOSICAO | M133: 88316 | N133: SERVENTE COM ENCARGOS COMPLEMENTARES | O133: H | P133: COLETADO | Q133: 0,1270000 | R133: 16,25 | S133: 2,06 | AE133: CAIXA REFERENCIAL
A134: ASSENTAMENTO DE TUBOS E PECAS | B134: ASTU | C134: FORNEC E/OU ASSENT DE TUBO DE FERRO FUNDIDO JUNTA | D134: 45 | G134: 97162 | H134: ASSENTAMENTO DE TUBO DE FERRO FUNDIDO PARA REDE DE ÁGUA, DN 300 MM, JUNTA ELÁSTICA, INSTALADO EM LOCAL COM NÍVEL BAIXO DE INTERFERÊNCIAS (NÃO INCLUI FORNECIMENTO). AF_11/2017 | I134: M | J134: ATRIBUÍDO SÃO PAULO | K134: 8,12 | T134: 4,06 | U134: 49,8746869 | V134: 2,67 | W134: 32,9573934 | X134: 1,39 | Y134: 17,1679197 | Z134: 0,00 | AA134: 0,0000000 | AB134: 0,00 | AC134: 0,0000000 | AD134: 0.16872 | AE134: CAIXA REFERENCIAL
A135: ASSENTAMENTO DE TUBOS E PECAS | B135: ASTU | C135: FORNEC E/OU ASSENT DE TUBO DE FERRO FUNDIDO JUNTA | D135: 45 | G135: 97162 | H135: ASSENTAMENTO DE TUBO DE FERRO FUNDIDO PARA REDE DE ÁGUA, DN 300 MM, JUNTA ELÁSTICA, INSTALADO EM LOCAL COM NÍVEL BAIXO DE INTERFERÊNCIAS (NÃO INCLUI FORNECIMENTO). AF_11/2017 | I135: M | J135: ATRIBUÍDO SÃO PAULO | K135: 8,12 | L135: COMPOSICAO | M135: 5678 | N135: RETROESCAVADEIRA SOBRE RODAS COM CARREGADEIRA, TRAÇÃO 4X4, POTÊNCIA LÍQ. 88 HP, CAÇAMBA CARREG. CAP. MÍN. 1 M3, CAÇAMBA RETRO CAP. 0,26 M3, PESO OPERACIONAL MÍN. 6.674 KG, PROFUNDIDADE ESCAVAÇÃO MÁX. 4,37 M - CHP DIURNO. AF_06/2014 | O135: CHP | P135: ATRIBUÍDO SÃO PAULO | Q135: 0,0176000 | R135: 105,80 | S135: 1,86 | AE135: CAIXA REFERENCIAL
A136: ASSENTAMENTO DE TUBOS E PECAS | B136: ASTU | C136: FORNEC E/OU ASSENT DE TUBO DE FERRO FUNDIDO JUNTA | D136: 45 | G136: 97162 | H136: ASSENTAMENTO DE TUBO DE FERRO FUNDIDO PARA REDE DE ÁGUA, DN 300 MM, JUNTA ELÁSTICA, INSTALADO EM LOCAL COM NÍVEL BAIXO DE INTERFERÊNCIAS (NÃO INCLUI FORNECIMENTO). AF_11/2017 | I136: M | J136: ATRIBUÍDO SÃO PAULO | K136: 8,12 | L136: COMPOSICAO | M136: 5679 | N136: RETROESCAVADEIRA SOBRE RODAS COM CARREGADEIRA, TRAÇÃO 4X4, POTÊNCIA LÍQ. 88 HP, CAÇAMBA CARREG. CAP. MÍN. 1 M3, CAÇAMBA RETRO CAP. 0,26 M3, PESO OPERACIONAL MÍN. 6.674 KG, PROFUNDIDADE ESCAVAÇÃO MÁX. 4,37 M - CHI DIURNO. AF_06/2014 | O136: CHI | P136: ATRIBUÍDO SÃO PAULO | Q136: 0,0337000 | R136: 42,42 | S136: 1,42 | AE136: CAIXA REFERENCIAL
A137: ASSENTAMENTO DE TUBOS E PECAS | B137: ASTU | C137: FORNEC E/OU ASSENT DE TUBO DE FERRO FUNDIDO JUNTA | D137: 45 | G137: 97162 | H137: ASSENTAMENTO DE TUBO DE FERRO FUNDIDO PARA REDE DE ÁGUA, DN 300 MM, JUNTA ELÁSTICA, INSTALADO EM LOCAL COM NÍVEL BAIXO DE INTERFERÊNCIAS (NÃO INCLUI FORNECIMENTO). AF_11/2017 | I137: M | J137: ATRIBUÍDO SÃO PAULO | K137: 8,12 | L137: INSUMO | M137: 20078 | N137: PASTA LUBRIFICANTE PARA TUBOS E CONEXOES COM JUNTA ELASTICA (USO EM PVC, ACO, POLIETILENO E OUTROS) ( DE *400* G) | O137: UN | P137: COEFICIENTE DE REPRESENTATIVIDADE | Q137: 0,0138000 | R137: 19,51 | S137: 0,26 | AE137: CAIXA REFERENCIAL
A138: ASSENTAMENTO DE TUBOS E PECAS | B138: ASTU | C138: FORNEC E/OU ASSENT DE TUBO DE FERRO FUNDIDO JUNTA | D138: 45 | G138: 97162 | H138: ASSENTAMENTO DE TUBO DE FERRO FUNDIDO PARA REDE DE ÁGUA, DN 300 MM, JUNTA ELÁSTICA, INSTALADO EM LOCAL COM NÍVEL BAIXO DE INTERFERÊNCIAS (NÃO INCLUI FORNECIMENTO). AF_11/2017 | I138: M | J138: ATRIBUÍDO SÃO PAULO | K138: 8,12 | L138: COMPOSICAO | M138: 88246 | N138: ASSENTADOR DE TUBOS COM ENCARGOS COMPLEMENTARES | O138: H | P138: COEFICIENTE DE REPRESENTATIVIDADE | Q138: 0,1482000 | R138: 14,73 | S138: 2,18 | AE138: CAIXA REFERENCIAL
A139: ASSENTAMENTO DE TUBOS E PECAS | B139: ASTU | C139: FORNEC E/OU ASSENT DE TUBO DE FERRO FUNDIDO JUNTA | D139: 45 | G139: 97162 | H139: ASSENTAMENTO DE TUBO DE FERRO FUNDIDO PARA REDE DE ÁGUA, DN 300 MM, JUNTA ELÁSTICA, INSTALADO EM LOCAL COM NÍVEL BAIXO DE INTERFERÊNCIAS (NÃO INCLUI FORNECIMENTO). AF_11/2017 | I139: M | J139: ATRIBUÍDO SÃO PAULO | K139: 8,12 | L139: COMPOSICAO | M139: 88316 | N139: SERVENTE COM ENCARGOS COMPLEMENTARES | O139: H | P139: COLETADO | Q139: 0,1482000 | R139: 16,25 | S139: 2,40 | AE139: CAIXA REFERENCIAL
A140: ASSENTAMENTO DE TUBOS E PECAS | B140: ASTU | C140: FORNEC E/OU ASSENT DE TUBO DE FERRO FUNDIDO JUNTA | D140: 45 | G140: 97163 | H140: ASSENTAMENTO DE TUBO DE FERRO FUNDIDO PARA REDE DE ÁGUA, DN 350 MM, JUNTA ELÁSTICA, INSTALADO EM LOCAL COM NÍVEL BAIXO DE INTERFERÊNCIAS (NÃO INCLUI FORNECIMENTO). AF_11/2017 | I140: M | J140: ATRIBUÍDO SÃO PAULO | K140: 9,17 | T140: 4,59 | U140: 50,0000001 | V140: 3,06 | W140: 33,3702882 | X140: 1,52 | Y140: 16,6297117 | Z140: 0,00 | AA140: 0,0000000 | AB140: 0,00 | AC140: 0,0000000 | AD140: 0.16358 | AE140: CAIXA REFERENCIAL
A141: ASSENTAMENTO DE TUBOS E PECAS | B141: ASTU | C141: FORNEC E/OU ASSENT DE TUBO DE FERRO FUNDIDO JUNTA | D141: 45 | G141: 97163 | H141: ASSENTAMENTO DE TUBO DE FERRO FUNDIDO PARA REDE DE ÁGUA, DN 350 MM, JUNTA ELÁSTICA, INSTALADO EM LOCAL COM NÍVEL BAIXO DE INTERFERÊNCIAS (NÃO INCLUI FORNECIMENTO). AF_11/2017 | I141: M | J141: ATRIBUÍDO SÃO PAULO | K141: 9,17 | L141: COMPOSICAO | M141: 5678 | N141: RETROESCAVADEIRA SOBRE RODAS COM CARREGADEIRA, TRAÇÃO 4X4, POTÊNCIA LÍQ. 88 HP, CAÇAMBA CARREG. CAP. MÍN. 1 M3, CAÇAMBA RETRO CAP. 0,26 M3, PESO OPERACIONAL MÍN. 6.674 KG, PROFUNDIDADE ESCAVAÇÃO MÁX. 4,37 M - CHP DIURNO. AF_06/2014 | O141: CHP | P141: ATRIBUÍDO SÃO PAULO | Q141: 0,0194000 | R141: 105,80 | S141: 2,05 | AE141: CAIXA REFERENCIAL
A142: ASSENTAMENTO DE TUBOS E PECAS | B142: ASTU | C142: FORNEC E/OU ASSENT DE TUBO DE FERRO FUNDIDO JUNTA | D142: 45 | G142: 97163 | H142: ASSENTAMENTO DE TUBO DE FERRO FUNDIDO PARA REDE DE ÁGUA, DN 350 MM, JUNTA ELÁSTICA, INSTALADO EM LOCAL COM NÍVEL BAIXO DE INTERFERÊNCIAS (NÃO INCLUI FORNECIMENTO). AF_11/2017 | I142: M | J142: ATRIBUÍDO SÃO PAULO | K142: 9,17 | L142: COMPOSICAO | M142: 5679 | N142: RETROESCAVADEIRA SOBRE RODAS COM CARREGADEIRA, TRAÇÃO 4X4, POTÊNCIA LÍQ. 88 HP, CAÇAMBA CARREG. CAP. MÍN. 1 M3, CAÇAMBA RETRO CAP. 0,26 M3, PESO OPERACIONAL MÍN. 6.674 KG, PROFUNDIDADE ESCAVAÇÃO MÁX. 4,37 M - CHI DIURNO. AF_06/2014 | O142: CHI | P142: ATRIBUÍDO SÃO PAULO | Q142: 0,0371000 | R142: 42,42 | S142: 1,57 | AE142: CAIXA REFERENCIAL
A143: ASSENTAMENTO DE TUBOS E PECAS | B143: ASTU | C143: FORNEC E/OU ASSENT DE TUBO DE FERRO FUNDIDO JUNTA | D143: 45 | G143: 97163 | H143: ASSENTAMENTO DE TUBO DE FERRO FUNDIDO PARA REDE DE ÁGUA, DN 350 MM, JUNTA ELÁSTICA, INSTALADO EM LOCAL COM NÍVEL BAIXO DE INTERFERÊNCIAS (NÃO INCLUI FORNECIMENTO). AF_11/2017 | I143: M | J143: ATRIBUÍDO SÃO PAULO | K143: 9,17 | L143: INSUMO | M143: 20078 | N143: PASTA LUBRIFICANTE PARA TUBOS E CONEXOES COM JUNTA ELASTICA (USO EM PVC, ACO, POLIETILENO E OUTROS) ( DE *400* G) | O143: UN | P143: COEFICIENTE DE REPRESENTATIVIDADE | Q143: 0,0163000 | R143: 19,51 | S143: 0,31 | AE143: CAIXA REFERENCIAL
A144: ASSENTAMENTO DE TUBOS E PECAS | B144: ASTU | C144: FORNEC E/OU ASSENT DE TUBO DE FERRO FUNDIDO JUNTA | D144: 45 | G144: 97163 | H144: ASSENTAMENTO DE TUBO DE FERRO FUNDIDO PARA REDE DE ÁGUA, DN 350 MM, JUNTA ELÁSTICA, INSTALADO EM LOCAL COM NÍVEL BAIXO DE INTERFERÊNCIAS (NÃO INCLUI FORNECIMENTO). AF_11/2017 | I144: M | J144: ATRIBUÍDO SÃO PAULO | K144: 9,17 | L144: COMPOSICAO | M144: 88246 | N144: ASSENTADOR DE TUBOS COM ENCARGOS COMPLEMENTARES | O144: H | P144: COEFICIENTE DE REPRESENTATIVIDADE | Q144: 0,1694000 | R144: 14,73 | S144: 2,49 | AE144: CAIXA REFERENCIAL
A145: ASSENTAMENTO DE TUBOS E PECAS | B145: ASTU | C145: FORNEC E/OU ASSENT DE TUBO DE FERRO FUNDIDO JUNTA | D145: 45 | G145: 97163 | H145: ASSENTAMENTO DE TUBO DE FERRO FUNDIDO PARA REDE DE ÁGUA, DN 350 MM, JUNTA ELÁSTICA, INSTALADO EM LOCAL COM NÍVEL BAIXO DE INTERFERÊNCIAS (NÃO INCLUI FORNECIMENTO). AF_11/2017 | I145: M | J145: ATRIBUÍDO SÃO PAULO | K145: 9,17 | L145: COMPOSICAO | M145: 88316 | N145: SERVENTE COM ENCARGOS COMPLEMENTARES | O145: H | P145: COLETADO | Q145: 0,1694000 | R145: 16,25 | S145: 2,75 | AE145: CAIXA REFERENCIAL
A146: ASSENTAMENTO DE TUBOS E PECAS | B146: ASTU | C146: FORNEC E/OU ASSENT DE TUBO DE FERRO FUNDIDO JUNTA | D146: 45 | G146: 97164 | H146: ASSENTAMENTO DE TUBO DE FERRO FUNDIDO PARA REDE DE ÁGUA, DN 400 MM, JUNTA ELÁSTICA, INSTALADO EM LOCAL COM NÍVEL BAIXO DE INTERFERÊNCIAS (NÃO INCLUI FORNECIMENTO). AF_11/2017 | I146: M | J146: ATRIBUÍDO SÃO PAULO | K146: 10,19 | T146: 5,12 | U146: 50,1992033 | V146: 3,42 | W146: 33,5657370 | X146: 1,65 | Y146: 16,2350597 | Z146: 0,00 | AA146: 0,0000000 | AB146: 0,00 | AC146: 0,0000000 | AD146: 0.15996 | AE146: CAIXA REFERENCIAL
A147: ASSENTAMENTO DE TUBOS E PECAS | B147: ASTU | C147: FORNEC E/OU ASSENT DE TUBO DE FERRO FUNDIDO JUNTA | D147: 45 | G147: 97164 | H147: ASSENTAMENTO DE TUBO DE FERRO FUNDIDO PARA REDE DE ÁGUA, DN 400 MM, JUNTA ELÁSTICA, INSTALADO EM LOCAL COM NÍVEL BAIXO DE INTERFERÊNCIAS (NÃO INCLUI FORNECIMENTO). AF_11/2017 | I147: M | J147: ATRIBUÍDO SÃO PAULO | K147: 10,19 | L147: COMPOSICAO | M147: 5678 | N147: RETROESCAVADEIRA SOBRE RODAS COM CARREGADEIRA, TRAÇÃO 4X4, POTÊNCIA LÍQ. 88 HP, CAÇAMBA CARREG. CAP. MÍN. 1 M3, CAÇAMBA RETRO CAP. 0,26 M3, PESO OPERACIONAL MÍN. 6.674 KG, PROFUNDIDADE ESCAVAÇÃO MÁX. 4,37 M - CHP DIURNO. AF_06/2014 | O147: CHP | P147: ATRIBUÍDO SÃO PAULO | Q147: 0,0211000 | R147: 105,80 | S147: 2,23 | AE147: CAIXA REFERENCIAL
A148: ASSENTAMENTO DE TUBOS E PECAS | B148: ASTU | C148: FORNEC E/OU ASSENT DE TUBO DE FERRO FUNDIDO JUNTA | D148: 45 | G148: 97164 | H148: ASSENTAMENTO DE TUBO DE FERRO FUNDIDO PARA REDE DE ÁGUA, DN 400 MM, JUNTA ELÁSTICA, INSTALADO EM LOCAL COM NÍVEL BAIXO DE INTERFERÊNCIAS (NÃO INCLUI FORNECIMENTO). AF_11/2017 | I148: M | J148: ATRIBUÍDO SÃO PAULO | K148: 10,19 | L148: COMPOSICAO | M148: 5679 | N148: RETROESCAVADEIRA SOBRE RODAS COM CARREGADEIRA, TRAÇÃO 4X4, POTÊNCIA LÍQ. 88 HP, CAÇAMBA CARREG. CAP. MÍN. 1 M3, CAÇAMBA RETRO CAP. 0,26 M3, PESO OPERACIONAL MÍN. 6.674 KG, PROFUNDIDADE ESCAVAÇÃO MÁX. 4,37 M - CHI DIURNO. AF_06/2014 | O148: CHI | P148: ATRIBUÍDO SÃO PAULO | Q148: 0,0404000 | R148: 42,42 | S148: 1,71 | AE148: CAIXA REFERENCIAL
A149: ASSENTAMENTO DE TUBOS E PECAS | B149: ASTU | C149: FORNEC E/OU ASSENT DE TUBO DE FERRO FUNDIDO JUNTA | D149: 45 | G149: 97164 | H149: ASSENTAMENTO DE TUBO DE FERRO FUNDIDO PARA REDE DE ÁGUA, DN 400 MM, JUNTA ELÁSTICA, INSTALADO EM LOCAL COM NÍVEL BAIXO DE INTERFERÊNCIAS (NÃO INCLUI FORNECIMENTO). AF_11/2017 | I149: M | J149: ATRIBUÍDO SÃO PAULO | K149: 10,19 | L149: INSUMO | M149: 20078 | N149: PASTA LUBRIFICANTE PARA TUBOS E CONEXOES COM JUNTA ELASTICA (USO EM PVC, ACO, POLIETILENO E OUTROS) ( DE *400* G) | O149: UN | P149: COEFICIENTE DE REPRESENTATIVIDADE | Q149: 0,0188000 | R149: 19,51 | S149: 0,36 | AE149: CAIXA REFERENCIAL
A150: ASSENTAMENTO DE TUBOS E PECAS | B150: ASTU | C150: FORNEC E/OU ASSENT DE TUBO DE FERRO FUNDIDO JUNTA | D150: 45 | G150: 97164 | H150: ASSENTAMENTO DE TUBO DE FERRO FUNDIDO PARA REDE DE ÁGUA, DN 400 MM, JUNTA ELÁSTICA, INSTALADO EM LOCAL COM NÍVEL BAIXO DE INTERFERÊNCIAS (NÃO INCLUI FORNECIMENTO). AF_11/2017 | I150: M | J150: ATRIBUÍDO SÃO PAULO | K150: 10,19 | L150: COMPOSICAO | M150: 88246 | N150: ASSENTADOR DE TUBOS COM ENCARGOS COMPLEMENTARES | O150: H | P150: COEFICIENTE DE REPRESENTATIVIDADE | Q150: 0,1907000 | R150: 14,73 | S150: 2,80 | AE150: CAIXA REFERENCIAL
A151: ASSENTAMENTO DE TUBOS E PECAS | B151: ASTU | C151: FORNEC E/OU ASSENT DE TUBO DE FERRO FUNDIDO JUNTA | D151: 45 | G151: 97164 | H151: ASSENTAMENTO DE TUBO DE FERRO FUNDIDO PARA REDE DE ÁGUA, DN 400 MM, JUNTA ELÁSTICA, INSTALADO EM LOCAL COM NÍVEL BAIXO DE INTERFERÊNCIAS (NÃO INCLUI FORNECIMENTO). AF_11/2017 | I151: M | J151: ATRIBUÍDO SÃO PAULO | K151: 10,19 | L151: COMPOSICAO | M151: 88316 | N151: SERVENTE COM ENCARGOS COMPLEMENTARES | O151: H | P151: COLETADO | Q151: 0,1907000 | R151: 16,25 | S151: 3,09 | AE151: CAIXA REFERENCIAL
A152: ASSENTAMENTO DE TUBOS E PECAS | B152: ASTU | C152: FORNEC E/OU ASSENT DE TUBO DE FERRO FUNDIDO JUNTA | D152: 45 | G152: 97165 | H152: ASSENTAMENTO DE TUBO DE FERRO FUNDIDO PARA REDE DE ÁGUA, DN 450 MM, JUNTA ELÁSTICA, INSTALADO EM LOCAL COM NÍVEL BAIXO DE INTERFERÊNCIAS (NÃO INCLUI FORNECIMENTO). AF_11/2017 | I152: M | J152: ATRIBUÍDO SÃO PAULO | K152: 11,26 | T152: 5,67 | U152: 50,2697843 | V152: 3,79 | W152: 33,7230215 | X152: 1,80 | Y152: 16,0071942 | Z152: 0,00 | AA152: 0,0000000 | AB152: 0,00 | AC152: 0,0000000 | AD152: 0.15808 | AE152: CAIXA REFERENCIAL
A153: ASSENTAMENTO DE TUBOS E PECAS | B153: ASTU | C153: FORNEC E/OU ASSENT DE TUBO DE FERRO FUNDIDO JUNTA | D153: 45 | G153: 97165 | H153: ASSENTAMENTO DE TUBO DE FERRO FUNDIDO PARA REDE DE ÁGUA, DN 450 MM, JUNTA ELÁSTICA, INSTALADO EM LOCAL COM NÍVEL BAIXO DE INTERFERÊNCIAS (NÃO INCLUI FORNECIMENTO). AF_11/2017 | I153: M | J153: ATRIBUÍDO SÃO PAULO | K153: 11,26 | L153: COMPOSICAO | M153: 5678 | N153: RETROESCAVADEIRA SOBRE RODAS COM CARREGADEIRA, TRAÇÃO 4X4, POTÊNCIA LÍQ. 88 HP, CAÇAMBA CARREG. CAP. MÍN. 1 M3, CAÇAMBA RETRO CAP. 0,26 M3, PESO OPERACIONAL MÍN. 6.674 KG, PROFUNDIDADE ESCAVAÇÃO MÁX. 4,37 M - CHP DIURNO. AF_06/2014 | O153: CHP | P153: ATRIBUÍDO SÃO PAULO | Q153: 0,0229000 | R153: 105,80 | S153: 2,42 | AE153: CAIXA REFERENCIAL
A154: ASSENTAMENTO DE TUBOS E PECAS | B154: ASTU | C154: FORNEC E/OU ASSENT DE TUBO DE FERRO FUNDIDO JUNTA | D154: 45 | G154: 97165 | H154: ASSENTAMENTO DE TUBO DE FERRO FUNDIDO PARA REDE DE ÁGUA, DN 450 MM, JUNTA ELÁSTICA, INSTALADO EM LOCAL COM NÍVEL BAIXO DE INTERFERÊNCIAS (NÃO INCLUI FORNECIMENTO). AF_11/2017 | I154: M | J154: ATRIBUÍDO SÃO PAULO | K154: 11,26 | L154: COMPOSICAO | M154: 5679 | N154: RETROESCAVADEIRA SOBRE RODAS COM CARREGADEIRA, TRAÇÃO 4X4, POTÊNCIA LÍQ. 88 HP, CAÇAMBA CARREG. CAP. MÍN. 1 M3, CAÇAMBA RETRO CAP. 0,26 M3, PESO OPERACIONAL MÍN. 6.674 KG, PROFUNDIDADE ESCAVAÇÃO MÁX. 4,37 M - CHI DIURNO. AF_06/2014 | O154: CHI | P154: ATRIBUÍDO SÃO PAULO | Q154: 0,0438000 | R154: 42,42 | S154: 1,85 | AE154: CAIXA REFERENCIAL
A155: ASSENTAMENTO DE TUBOS E PECAS | B155: ASTU | C155: FORNEC E/OU ASSENT DE TUBO DE FERRO FUNDIDO JUNTA | D155: 45 | G155: 97165 | H155: ASSENTAMENTO DE TUBO DE FERRO FUNDIDO PARA REDE DE ÁGUA, DN 450 MM, JUNTA ELÁSTICA, INSTALADO EM LOCAL COM NÍVEL BAIXO DE INTERFERÊNCIAS (NÃO INCLUI FORNECIMENTO). AF_11/2017 | I155: M | J155: ATRIBUÍDO SÃO PAULO | K155: 11,26 | L155: INSUMO | M155: 20078 | N155: PASTA LUBRIFICANTE PARA TUBOS E CONEXOES COM JUNTA ELASTICA (USO EM PVC, ACO, POLIETILENO E OUTROS) ( DE *400* G) | O155: UN | P155: COEFICIENTE DE REPRESENTATIVIDADE | Q155: 0,0221000 | R155: 19,51 | S155: 0,43 | AE155: CAIXA REFERENCIAL
A156: ASSENTAMENTO DE TUBOS E PECAS | B156: ASTU | C156: FORNEC E/OU ASSENT DE TUBO DE FERRO FUNDIDO JUNTA | D156: 45 | G156: 97165 | H156: ASSENTAMENTO DE TUBO DE FERRO FUNDIDO PARA REDE DE ÁGUA, DN 450 MM, JUNTA ELÁSTICA, INSTALADO EM LOCAL COM NÍVEL BAIXO DE INTERFERÊNCIAS (NÃO INCLUI FORNECIMENTO). AF_11/2017 | I156: M | J156: ATRIBUÍDO SÃO PAULO | K156: 11,26 | L156: COMPOSICAO | M156: 88246 | N156: ASSENTADOR DE TUBOS COM ENCARGOS COMPLEMENTARES | O156: H | P156: COEFICIENTE DE REPRESENTATIVIDADE | Q156: 0,2119000 | R156: 14,73 | S156: 3,12 | AE156: CAIXA REFERENCIAL
A157: ASSENTAMENTO DE TUBOS E PECAS | B157: ASTU | C157: FORNEC E/OU ASSENT DE TUBO DE FERRO FUNDIDO JUNTA | D157: 45 | G157: 97165 | H157: ASSENTAMENTO DE TUBO DE FERRO FUNDIDO PARA REDE DE ÁGUA, DN 450 MM, JUNTA ELÁSTICA, INSTALADO EM LOCAL COM NÍVEL BAIXO DE INTERFERÊNCIAS (NÃO INCLUI FORNECIMENTO). AF_11/2017 | I157: M | J157: ATRIBUÍDO SÃO PAULO | K157: 11,26 | L157: COMPOSICAO | M157: 88316 | N157: SERVENTE COM ENCARGOS COMPLEMENTARES | O157: H | P157: COLETADO | Q157: 0,2119000 | R157: 16,25 | S157: 3,44 | AE157: CAIXA REFERENCIAL
A158: ASSENTAMENTO DE TUBOS E PECAS | B158: ASTU | C158: FORNEC E/OU ASSENT DE TUBO DE FERRO FUNDIDO JUNTA | D158: 45 | G158: 97166 | H158: ASSENTAMENTO DE TUBO DE FERRO FUNDIDO PARA REDE DE ÁGUA, DN 500 MM, JUNTA ELÁSTICA, INSTALADO EM LOCAL COM NÍVEL BAIXO DE INTERFERÊNCIAS (NÃO INCLUI FORNECIMENTO). AF_11/2017 | I158: M | J158: ATRIBUÍDO SÃO PAULO | K158: 14,16 | T158: 6,19 | U158: 43,6117061 | V158: 4,35 | W158: 30,7637401 | X158: 3,62 | Y158: 25,6245538 | Z158: 0,00 | AA158: 0,0000000 | AB158: 0,00 | AC158: 0,0000000 | AD158: 0.25353 | AE158: CAIXA REFERENCIAL
A159: ASSENTAMENTO DE TUBOS E PECAS | B159: ASTU | C159: FORNEC E/OU ASSENT DE TUBO DE FERRO FUNDIDO JUNTA | D159: 45 | G159: 97166 | H159: ASSENTAMENTO DE TUBO DE FERRO FUNDIDO PARA REDE DE ÁGUA, DN 500 MM, JUNTA ELÁSTICA, INSTALADO EM LOCAL COM NÍVEL BAIXO DE INTERFERÊNCIAS (NÃO INCLUI FORNECIMENTO). AF_11/2017 | I159: M | J159: ATRIBUÍDO SÃO PAULO | K159: 14,16 | L159: COMPOSICAO | M159: 5631 | N159: ESCAVADEIRA HIDRÁULICA SOBRE ESTEIRAS, CAÇAMBA 0,80 M3, PESO OPERACIONAL 17 T, POTENCIA BRUTA 111 HP - CHP DIURNO. AF_06/2014 | O159: CHP | P159: ATRIBUÍDO SÃO PAULO | Q159: 0,0246000 | R159: 149,99 | S159: 3,68 | AE159: CAIXA REFERENCIAL
A160: ASSENTAMENTO DE TUBOS E PECAS | B160: ASTU | C160: FORNEC E/OU ASSENT DE TUBO DE FERRO FUNDIDO JUNTA | D160: 45 | G160: 97166 | H160: ASSENTAMENTO DE TUBO DE FERRO FUNDIDO PARA REDE DE ÁGUA, DN 500 MM, JUNTA ELÁSTICA, INSTALADO EM LOCAL COM NÍVEL BAIXO DE INTERFERÊNCIAS (NÃO INCLUI FORNECIMENTO). AF_11/2017 | I160: M | J160: ATRIBUÍDO SÃO PAULO | K160: 14,16 | L160: COMPOSICAO | M160: 5632 | N160: ESCAVADEIRA HIDRÁULICA SOBRE ESTEIRAS, CAÇAMBA 0,80 M3, PESO OPERACIONAL 17 T, POTENCIA BRUTA 111 HP - CHI DIURNO. AF_06/2014 | O160: CHI | P160: ATRIBUÍDO SÃO PAULO | Q160: 0,0471000 | R160: 59,34 | S160: 2,79 | AE160: CAIXA REFERENCIAL
A161: ASSENTAMENTO DE TUBOS E PECAS | B161: ASTU | C161: FORNEC E/OU ASSENT DE TUBO DE FERRO FUNDIDO JUNTA | D161: 45 | G161: 97166 | H161: ASSENTAMENTO DE TUBO DE FERRO FUNDIDO PARA REDE DE ÁGUA, DN 500 MM, JUNTA ELÁSTICA, INSTALADO EM LOCAL COM NÍVEL BAIXO DE INTERFERÊNCIAS (NÃO INCLUI FORNECIMENTO). AF_11/2017 | I161: M | J161: ATRIBUÍDO SÃO PAULO | K161: 14,16 | L161: INSUMO | M161: 20078 | N161: PASTA LUBRIFICANTE PARA TUBOS E CONEXOES COM JUNTA ELASTICA (USO EM PVC, ACO, POLIETILENO E OUTROS) ( DE *400* G) | O161: UN | P161: COEFICIENTE DE REPRESENTATIVIDADE | Q161: 0,0248000 | R161: 19,51 | S161: 0,48 | AE161: CAIXA REFERENCIAL
A162: ASSENTAMENTO DE TUBOS E PECAS | B162: ASTU | C162: FORNEC E/OU ASSENT DE TUBO DE FERRO FUNDIDO JUNTA | D162: 45 | G162: 97166 | H162: ASSENTAMENTO DE TUBO DE FERRO FUNDIDO PARA REDE DE ÁGUA, DN 500 MM, JUNTA ELÁSTICA, INSTALADO EM LOCAL COM NÍVEL BAIXO DE INTERFERÊNCIAS (NÃO INCLUI FORNECIMENTO). AF_11/2017 | I162: M | J162: ATRIBUÍDO SÃO PAULO | K162: 14,16 | L162: COMPOSICAO | M162: 88246 | N162: ASSENTADOR DE TUBOS COM ENCARGOS COMPLEMENTARES | O162: H | P162: COEFICIENTE DE REPRESENTATIVIDADE | Q162: 0,2331000 | R162: 14,73 | S162: 3,43 | AE162: CAIXA REFERENCIAL
A163: ASSENTAMENTO DE TUBOS E PECAS | B163: ASTU | C163: FORNEC E/OU ASSENT DE TUBO DE FERRO FUNDIDO JUNTA | D163: 45 | G163: 97166 | H163: ASSENTAMENTO DE TUBO DE FERRO FUNDIDO PARA REDE DE ÁGUA, DN 500 MM, JUNTA ELÁSTICA, INSTALADO EM LOCAL COM NÍVEL BAIXO DE INTERFERÊNCIAS (NÃO INCLUI FORNECIMENTO). AF_11/2017 | I163: M | J163: ATRIBUÍDO SÃO PAULO | K163: 14,16 | L163: COMPOSICAO | M163: 88316 | N163: SERVENTE COM ENCARGOS COMPLEMENTARES | O163: H | P163: COLETADO | Q163: 0,2331000 | R163: 16,25 | S163: 3,78 | AE163: CAIXA REFERENCIAL
A164: ASSENTAMENTO DE TUBOS E PECAS | B164: ASTU | C164: FORNEC E/OU ASSENT DE TUBO DE FERRO FUNDIDO JUNTA | D164: 45 | G164: 97167 | H164: ASSENTAMENTO DE TUBO DE FERRO FUNDIDO PARA REDE DE ÁGUA, DN 600 MM, JUNTA ELÁSTICA, INSTALADO EM LOCAL COM NÍVEL BAIXO DE INTERFERÊNCIAS (NÃO INCLUI FORNECIMENTO). AF_11/2017 | I164: M | J164: ATRIBUÍDO SÃO PAULO | K164: 16,53 | T164: 7,25 | U164: 43,8071996 | V164: 5,14 | W164: 31,1165344 | X164: 4,14 | Y164: 25,0762660 | Z164: 0,00 | AA164: 0,0000000 | AB164: 0,00 | AC164: 0,0000000 | AD164: 0.24864 | AE164: CAIXA REFERENCIAL
A165: ASSENTAMENTO DE TUBOS E PECAS | B165: ASTU | C165: FORNEC E/OU ASSENT DE TUBO DE FERRO FUNDIDO JUNTA | D165: 45 | G165: 97167 | H165: ASSENTAMENTO DE TUBO DE FERRO FUNDIDO PARA REDE DE ÁGUA, DN 600 MM, JUNTA ELÁSTICA, INSTALADO EM LOCAL COM NÍVEL BAIXO DE INTERFERÊNCIAS (NÃO INCLUI FORNECIMENTO). AF_11/2017 | I165: M | J165: ATRIBUÍDO SÃO PAULO | K165: 16,53 | L165: COMPOSICAO | M165: 5631 | N165: ESCAVADEIRA HIDRÁULICA SOBRE ESTEIRAS, CAÇAMBA 0,80 M3, PESO OPERACIONAL 17 T, POTENCIA BRUTA 111 HP - CHP DIURNO. AF_06/2014 | O165: CHP | P165: ATRIBUÍDO SÃO PAULO | Q165: 0,0281000 | R165: 149,99 | S165: 4,21 | AE165: CAIXA REFERENCIAL
A166: ASSENTAMENTO DE TUBOS E PECAS | B166: ASTU | C166: FORNEC E/OU ASSENT DE TUBO DE FERRO FUNDIDO JUNTA | D166: 45 | G166: 97167 | H166: ASSENTAMENTO DE TUBO DE FERRO FUNDIDO PARA REDE DE ÁGUA, DN 600 MM, JUNTA ELÁSTICA, INSTALADO EM LOCAL COM NÍVEL BAIXO DE INTERFERÊNCIAS (NÃO INCLUI FORNECIMENTO). AF_11/2017 | I166: M | J166: ATRIBUÍDO SÃO PAULO | K166: 16,53 | L166: COMPOSICAO | M166: 5632 | N166: ESCAVADEIRA HIDRÁULICA SOBRE ESTEIRAS, CAÇAMBA 0,80 M3, PESO OPERACIONAL 17 T, POTENCIA BRUTA 111 HP - CHI DIURNO. AF_06/2014 | O166: CHI | P166: ATRIBUÍDO SÃO PAULO | Q166: 0,0538000 | R166: 59,34 | S166: 3,19 | AE166: CAIXA REFERENCIAL
A167: ASSENTAMENTO DE TUBOS E PECAS | B167: ASTU | C167: FORNEC E/OU ASSENT DE TUBO DE FERRO FUNDIDO JUNTA | D167: 45 | G167: 97167 | H167: ASSENTAMENTO DE TUBO DE FERRO FUNDIDO PARA REDE DE ÁGUA, DN 600 MM, JUNTA ELÁSTICA, INSTALADO EM LOCAL COM NÍVEL BAIXO DE INTERFERÊNCIAS (NÃO INCLUI FORNECIMENTO). AF_11/2017 | I167: M | J167: ATRIBUÍDO SÃO PAULO | K167: 16,53 | L167: INSUMO | M167: 20078 | N167: PASTA LUBRIFICANTE PARA TUBOS E CONEXOES COM JUNTA ELASTICA (USO EM PVC, ACO, POLIETILENO E OUTROS) ( DE *400* G) | O167: UN | P167: COEFICIENTE DE REPRESENTATIVIDADE | Q167: 0,0313000 | R167: 19,51 | S167: 0,61 | AE167: CAIXA REFERENCIAL
A168: ASSENTAMENTO DE TUBOS E PECAS | B168: ASTU | C168: FORNEC E/OU ASSENT DE TUBO DE FERRO FUNDIDO JUNTA | D168: 45 | G168: 97167 | H168: ASSENTAMENTO DE TUBO DE FERRO FUNDIDO PARA REDE DE ÁGUA, DN 600 MM, JUNTA ELÁSTICA, INSTALADO EM LOCAL COM NÍVEL BAIXO DE INTERFERÊNCIAS (NÃO INCLUI FORNECIMENTO). AF_11/2017 | I168: M | J168: ATRIBUÍDO SÃO PAULO | K168: 16,53 | L168: COMPOSICAO | M168: 88246 | N168: ASSENTADOR DE TUBOS COM ENCARGOS COMPLEMENTARES | O168: H | P168: COEFICIENTE DE REPRESENTATIVIDADE | Q168: 0,2756000 | R168: 14,73 | S168: 4,05 | AE168: CAIXA REFERENCIAL
A169: ASSENTAMENTO DE TUBOS E PECAS | B169: ASTU | C169: FORNEC E/OU ASSENT DE TUBO DE FERRO FUNDIDO JUNTA | D169: 45 | G169: 97167 | H169: ASSENTAMENTO DE TUBO DE FERRO FUNDIDO PARA REDE DE ÁGUA, DN 600 MM, JUNTA ELÁSTICA, INSTALADO EM LOCAL COM NÍVEL BAIXO DE INTERFERÊNCIAS (NÃO INCLUI FORNECIMENTO). AF_11/2017 | I169: M | J169: ATRIBUÍDO SÃO PAULO | K169: 16,53 | L169: COMPOSICAO | M169: 88316 | N169: SERVENTE COM ENCARGOS COMPLEMENTARES | O169: H | P169: COLETADO | Q169: 0,2756000 | R169: 16,25 | S169: 4,47 | AE169: CAIXA REFERENCIAL
A170: ASSENTAMENTO DE TUBOS E PECAS | B170: ASTU | C170: FORNEC E/OU ASSENT DE TUBO DE FERRO FUNDIDO JUNTA | D170: 45 | G170: 97168 | H170: ASSENTAMENTO DE TUBO DE FERRO FUNDIDO PARA REDE DE ÁGUA, DN 700 MM, JUNTA ELÁSTICA, INSTALADO EM LOCAL COM NÍVEL BAIXO DE INTERFERÊNCIAS (NÃO INCLUI FORNECIMENTO). AF_11/2017 | I170: M | J170: ATRIBUÍDO SÃO PAULO | K170: 18,71 | T170: 8,34 | U170: 44,5043105 | V170: 5,73 | W170: 30,6573275 | X170: 4,64 | Y170: 24,8383620 | Z170: 0,00 | AA170: 0,0000000 | AB170: 0,00 | AC170: 0,0000000 | AD170: 0.24639 | AE170: CAIXA REFERENCIAL
A171: ASSENTAMENTO DE TUBOS E PECAS | B171: ASTU | C171: FORNEC E/OU ASSENT DE TUBO DE FERRO FUNDIDO JUNTA | D171: 45 | G171: 97168 | H171: ASSENTAMENTO DE TUBO DE FERRO FUNDIDO PARA REDE DE ÁGUA, DN 700 MM, JUNTA ELÁSTICA, INSTALADO EM LOCAL COM NÍVEL BAIXO DE INTERFERÊNCIAS (NÃO INCLUI FORNECIMENTO). AF_11/2017 | I171: M | J171: ATRIBUÍDO SÃO PAULO | K171: 18,71 | L171: COMPOSICAO | M171: 5631 | N171: ESCAVADEIRA HIDRÁULICA SOBRE ESTEIRAS, CAÇAMBA 0,80 M3, PESO OPERACIONAL 17 T, POTENCIA BRUTA 111 HP - CHP DIURNO. AF_06/2014 | O171: CHP | P171: ATRIBUÍDO SÃO PAULO | Q171: 0,0316000 | R171: 149,99 | S171: 4,73 | AE171: CAIXA REFERENCIAL
A172: ASSENTAMENTO DE TUBOS E PECAS | B172: ASTU | C172: FORNEC E/OU ASSENT DE TUBO DE FERRO FUNDIDO JUNTA | D172: 45 | G172: 97168 | H172: ASSENTAMENTO DE TUBO DE FERRO FUNDIDO PARA REDE DE ÁGUA, DN 700 MM, JUNTA ELÁSTICA, INSTALADO EM LOCAL COM NÍVEL BAIXO DE INTERFERÊNCIAS (NÃO INCLUI FORNECIMENTO). AF_11/2017 | I172: M | J172: ATRIBUÍDO SÃO PAULO | K172: 18,71 | L172: COMPOSICAO | M172: 5632 | N172: ESCAVADEIRA HIDRÁULICA SOBRE ESTEIRAS, CAÇAMBA 0,80 M3, PESO OPERACIONAL 17 T, POTENCIA BRUTA 111 HP - CHI DIURNO. AF_06/2014 | O172: CHI | P172: ATRIBUÍDO SÃO PAULO | Q172: 0,0605000 | R172: 59,34 | S172: 3,59 | AE172: CAIXA REFERENCIAL
A173: ASSENTAMENTO DE TUBOS E PECAS | B173: ASTU | C173: FORNEC E/OU ASSENT DE TUBO DE FERRO FUNDIDO JUNTA | D173: 45 | G173: 97168 | H173: ASSENTAMENTO DE TUBO DE FERRO FUNDIDO PARA REDE DE ÁGUA, DN 700 MM, JUNTA ELÁSTICA, INSTALADO EM LOCAL COM NÍVEL BAIXO DE INTERFERÊNCIAS (NÃO INCLUI FORNECIMENTO). AF_11/2017 | I173: M | J173: ATRIBUÍDO SÃO PAULO | K173: 18,71 | L173: INSUMO | M173: 20078 | N173: PASTA LUBRIFICANTE PARA TUBOS E CONEXOES COM JUNTA ELASTICA (USO EM PVC, ACO, POLIETILENO E OUTROS) ( DE *400* G) | O173: UN | P173: COEFICIENTE DE REPRESENTATIVIDADE | Q173: 0,0284000 | R173: 19,51 | S173: 0,55 | AE173: CAIXA REFERENCIAL
A174: ASSENTAMENTO DE TUBOS E PECAS | B174: ASTU | C174: FORNEC E/OU ASSENT DE TUBO DE FERRO FUNDIDO JUNTA | D174: 45 | G174: 97168 | H174: ASSENTAMENTO DE TUBO DE FERRO FUNDIDO PARA REDE DE ÁGUA, DN 700 MM, JUNTA ELÁSTICA, INSTALADO EM LOCAL COM NÍVEL BAIXO DE INTERFERÊNCIAS (NÃO INCLUI FORNECIMENTO). AF_11/2017 | I174: M | J174: ATRIBUÍDO SÃO PAULO | K174: 18,71 | L174: COMPOSICAO | M174: 88246 | N174: ASSENTADOR DE TUBOS COM ENCARGOS COMPLEMENTARES | O174: H | P174: COEFICIENTE DE REPRESENTATIVIDADE | Q174: 0,3181000 | R174: 14,73 | S174: 4,68 | AE174: CAIXA REFERENCIAL
A175: ASSENTAMENTO DE TUBOS E PECAS | B175: ASTU | C175: FORNEC E/OU ASSENT DE TUBO DE FERRO FUNDIDO JUNTA | D175: 45 | G175: 97168 | H175: ASSENTAMENTO DE TUBO DE FERRO FUNDIDO PARA REDE DE ÁGUA, DN 700 MM, JUNTA ELÁSTICA, INSTALADO EM LOCAL COM NÍVEL BAIXO DE INTERFERÊNCIAS (NÃO INCLUI FORNECIMENTO). AF_11/2017 | I175: M | J175: ATRIBUÍDO SÃO PAULO | K175: 18,71 | L175: COMPOSICAO | M175: 88316 | N175: SERVENTE COM ENCARGOS COMPLEMENTARES | O175: H | P175: COLETADO | Q175: 0,3181000 | R175: 16,25 | S175: 5,16 | AE175: CAIXA REFERENCIAL
A176: ASSENTAMENTO DE TUBOS E PECAS | B176: ASTU | C176: FORNEC E/OU ASSENT DE TUBO DE FERRO FUNDIDO JUNTA | D176: 45 | G176: 97169 | H176: ASSENTAMENTO DE TUBO DE FERRO FUNDIDO PARA REDE DE ÁGUA, DN 800 MM, JUNTA ELÁSTICA, INSTALADO EM LOCAL COM NÍVEL BAIXO DE INTERFERÊNCIAS (NÃO INCLUI FORNECIMENTO). AF_11/2017 | I176: M | J176: ATRIBUÍDO SÃO PAULO | K176: 21,01 | T176: 9,40 | U176: 44,7216892 | V176: 6,43 | W176: 30,6142034 | X176: 5,18 | Y176: 24,6641074 | Z176: 0,00 | AA176: 0,0000000 | AB176: 0,00 | AC176: 0,0000000 | AD176: 0.24465 | AE176: CAIXA REFERENCIAL
A177: ASSENTAMENTO DE TUBOS E PECAS | B177: ASTU | C177: FORNEC E/OU ASSENT DE TUBO DE FERRO FUNDIDO JUNTA | D177: 45 | G177: 97169 | H177: ASSENTAMENTO DE TUBO DE FERRO FUNDIDO PARA REDE DE ÁGUA, DN 800 MM, JUNTA ELÁSTICA, INSTALADO EM LOCAL COM NÍVEL BAIXO DE INTERFERÊNCIAS (NÃO INCLUI FORNECIMENTO). AF_11/2017 | I177: M | J177: ATRIBUÍDO SÃO PAULO | K177: 21,01 | L177: COMPOSICAO | M177: 5631 | N177: ESCAVADEIRA HIDRÁULICA SOBRE ESTEIRAS, CAÇAMBA 0,80 M3, PESO OPERACIONAL 17 T, POTENCIA BRUTA 111 HP - CHP DIURNO. AF_06/2014 | O177: CHP | P177: ATRIBUÍDO SÃO PAULO | Q177: 0,0351000 | R177: 149,99 | S177: 5,26 | AE177: CAIXA REFERENCIAL
A178: ASSENTAMENTO DE TUBOS E PECAS | B178: ASTU | C178: FORNEC E/OU ASSENT DE TUBO DE FERRO FUNDIDO JUNTA | D178: 45 | G178: 97169 | H178: ASSENTAMENTO DE TUBO DE FERRO FUNDIDO PARA REDE DE ÁGUA, DN 800 MM, JUNTA ELÁSTICA, INSTALADO EM LOCAL COM NÍVEL BAIXO DE INTERFERÊNCIAS (NÃO INCLUI FORNECIMENTO). AF_11/2017 | I178: M | J178: ATRIBUÍDO SÃO PAULO | K178: 21,01 | L178: COMPOSICAO | M178: 5632 | N178: ESCAVADEIRA HIDRÁULICA SOBRE ESTEIRAS, CAÇAMBA 0,80 M3, PESO OPERACIONAL 17 T, POTENCIA BRUTA 111 HP - CHI DIURNO. AF_06/2014 | O178: CHI | P178: ATRIBUÍDO SÃO PAULO | Q178: 0,0672000 | R178: 59,34 | S178: 3,98 | AE178: CAIXA REFERENCIAL
A179: ASSENTAMENTO DE TUBOS E PECAS | B179: ASTU | C179: FORNEC E/OU ASSENT DE TUBO DE FERRO FUNDIDO JUNTA | D179: 45 | G179: 97169 | H179: ASSENTAMENTO DE TUBO DE FERRO FUNDIDO PARA REDE DE ÁGUA, DN 800 MM, JUNTA ELÁSTICA, INSTALADO EM LOCAL COM NÍVEL BAIXO DE INTERFERÊNCIAS (NÃO INCLUI FORNECIMENTO). AF_11/2017 | I179: M | J179: ATRIBUÍDO SÃO PAULO | K179: 21,01 | L179: INSUMO | M179: 20078 | N179: PASTA LUBRIFICANTE PARA TUBOS E CONEXOES COM JUNTA ELASTICA (USO EM PVC, ACO, POLIETILENO E OUTROS) ( DE *400* G) | O179: UN | P179: COEFICIENTE DE REPRESENTATIVIDADE | Q179: 0,0314000 | R179: 19,51 | S179: 0,61 | AE179: CAIXA REFERENCIAL
A180: ASSENTAMENTO DE TUBOS E PECAS | B180: ASTU | C180: FORNEC E/OU ASSENT DE TUBO DE FERRO FUNDIDO JUNTA | D180: 45 | G180: 97169 | H180: ASSENTAMENTO DE TUBO DE FERRO FUNDIDO PARA REDE DE ÁGUA, DN 800 MM, JUNTA ELÁSTICA, INSTALADO EM LOCAL COM NÍVEL BAIXO DE INTERFERÊNCIAS (NÃO INCLUI FORNECIMENTO). AF_11/2017 | I180: M | J180: ATRIBUÍDO SÃO PAULO | K180: 21,01 | L180: COMPOSICAO | M180: 88246 | N180: ASSENTADOR DE TUBOS COM ENCARGOS COMPLEMENTARES | O180: H | P180: COEFICIENTE DE REPRESENTATIVIDADE | Q180: 0,3605000 | R180: 14,73 | S180: 5,31 | AE180: CAIXA REFERENCIAL
A181: ASSENTAMENTO DE TUBOS E PECAS | B181: ASTU | C181: FORNEC E/OU ASSENT DE TUBO DE FERRO FUNDIDO JUNTA | D181: 45 | G181: 97169 | H181: ASSENTAMENTO DE TUBO DE FERRO FUNDIDO PARA REDE DE ÁGUA, DN 800 MM, JUNTA ELÁSTICA, INSTALADO EM LOCAL COM NÍVEL BAIXO DE INTERFERÊNCIAS (NÃO INCLUI FORNECIMENTO). AF_11/2017 | I181: M | J181: ATRIBUÍDO SÃO PAULO | K181: 21,01 | L181: COMPOSICAO | M181: 88316 | N181: SERVENTE COM ENCARGOS COMPLEMENTARES | O181: H | P181: COLETADO | Q181: 0,3605000 | R181: 16,25 | S181: 5,85 | AE181: CAIXA REFERENCIAL
A182: ASSENTAMENTO DE TUBOS E PECAS | B182: ASTU | C182: FORNEC E/OU ASSENT DE TUBO DE FERRO FUNDIDO JUNTA | D182: 45 | G182: 97170 | H182: ASSENTAMENTO DE TUBO DE FERRO FUNDIDO PARA REDE DE ÁGUA, DN 900 MM, JUNTA ELÁSTICA, INSTALADO EM LOCAL COM NÍVEL BAIXO DE INTERFERÊNCIAS (NÃO INCLUI FORNECIMENTO). AF_11/2017 | I182: M | J182: ATRIBUÍDO SÃO PAULO | K182: 23,32 | T182: 10,47 | U182: 44,8662641 | V182: 7,18 | W182: 30,8024158 | X182: 5,67 | Y182: 24,3313201 | Z182: 0,00 | AA182: 0,0000000 | AB182: 0,00 | AC182: 0,0000000 | AD182: 0.24185 | AE182: CAIXA REFERENCIAL
A183: ASSENTAMENTO DE TUBOS E PECAS | B183: ASTU | C183: FORNEC E/OU ASSENT DE TUBO DE FERRO FUNDIDO JUNTA | D183: 45 | G183: 97170 | H183: ASSENTAMENTO DE TUBO DE FERRO FUNDIDO PARA REDE DE ÁGUA, DN 900 MM, JUNTA ELÁSTICA, INSTALADO EM LOCAL COM NÍVEL BAIXO DE INTERFERÊNCIAS (NÃO INCLUI FORNECIMENTO). AF_11/2017 | I183: M | J183: ATRIBUÍDO SÃO PAULO | K183: 23,32 | L183: COMPOSICAO | M183: 5631 | N183: ESCAVADEIRA HIDRÁULICA SOBRE ESTEIRAS, CAÇAMBA 0,80 M3, PESO OPERACIONAL 17 T, POTENCIA BRUTA 111 HP - CHP DIURNO. AF_06/2014 | O183: CHP | P183: ATRIBUÍDO SÃO PAULO | Q183: 0,0386000 | R183: 149,99 | S183: 5,78 | AE183: CAIXA REFERENCIAL
A184: ASSENTAMENTO DE TUBOS E PECAS | B184: ASTU | C184: FORNEC E/OU ASSENT DE TUBO DE FERRO FUNDIDO JUNTA | D184: 45 | G184: 97170 | H184: ASSENTAMENTO DE TUBO DE FERRO FUNDIDO PARA REDE DE ÁGUA, DN 900 MM, JUNTA ELÁSTICA, INSTALADO EM LOCAL COM NÍVEL BAIXO DE INTERFERÊNCIAS (NÃO INCLUI FORNECIMENTO). AF_11/2017 | I184: M | J184: ATRIBUÍDO SÃO PAULO | K184: 23,32 | L184: COMPOSICAO | M184: 5632 | N184: ESCAVADEIRA HIDRÁULICA SOBRE ESTEIRAS, CAÇAMBA 0,80 M3, PESO OPERACIONAL 17 T, POTENCIA BRUTA 111 HP - CHI DIURNO. AF_06/2014 | O184: CHI | P184: ATRIBUÍDO SÃO PAULO | Q184: 0,0739000 | R184: 59,34 | S184: 4,38 | AE184: CAIXA REFERENCIAL
A185: ASSENTAMENTO DE TUBOS E PECAS | B185: ASTU | C185: FORNEC E/OU ASSENT DE TUBO DE FERRO FUNDIDO JUNTA | D185: 45 | G185: 97170 | H185: ASSENTAMENTO DE TUBO DE FERRO FUNDIDO PARA REDE DE ÁGUA, DN 900 MM, JUNTA ELÁSTICA, INSTALADO EM LOCAL COM NÍVEL BAIXO DE INTERFERÊNCIAS (NÃO INCLUI FORNECIMENTO). AF_11/2017 | I185: M | J185: ATRIBUÍDO SÃO PAULO | K185: 23,32 | L185: INSUMO | M185: 20078 | N185: PASTA LUBRIFICANTE PARA TUBOS E CONEXOES COM JUNTA ELASTICA (USO EM PVC, ACO, POLIETILENO E OUTROS) ( DE *400* G) | O185: UN | P185: COEFICIENTE DE REPRESENTATIVIDADE | Q185: 0,0355000 | R185: 19,51 | S185: 0,69 | AE185: CAIXA REFERENCIAL
A186: ASSENTAMENTO DE TUBOS E PECAS | B186: ASTU | C186: FORNEC E/OU ASSENT DE TUBO DE FERRO FUNDIDO JUNTA | D186: 45 | G186: 97170 | H186: ASSENTAMENTO DE TUBO DE FERRO FUNDIDO PARA REDE DE ÁGUA, DN 900 MM, JUNTA ELÁSTICA, INSTALADO EM LOCAL COM NÍVEL BAIXO DE INTERFERÊNCIAS (NÃO INCLUI FORNECIMENTO). AF_11/2017 | I186: M | J186: ATRIBUÍDO SÃO PAULO | K186: 23,32 | L186: COMPOSICAO | M186: 88246 | N186: ASSENTADOR DE TUBOS COM ENCARGOS COMPLEMENTARES | O186: H | P186: COEFICIENTE DE REPRESENTATIVIDADE | Q186: 0,4030000 | R186: 14,73 | S186: 5,93 | AE186: CAIXA REFERENCIAL
A187: ASSENTAMENTO DE TUBOS E PECAS | B187: ASTU | C187: FORNEC E/OU ASSENT DE TUBO DE FERRO FUNDIDO JUNTA | D187: 45 | G187: 97170 | H187: ASSENTAMENTO DE TUBO DE FERRO FUNDIDO PARA REDE DE ÁGUA, DN 900 MM, JUNTA ELÁSTICA, INSTALADO EM LOCAL COM NÍVEL BAIXO DE INTERFERÊNCIAS (NÃO INCLUI FORNECIMENTO). AF_11/2017 | I187: M | J187: ATRIBUÍDO SÃO PAULO | K187: 23,32 | L187: COMPOSICAO | M187: 88316 | N187: SERVENTE COM ENCARGOS COMPLEMENTARES | O187: H | P187: COLETADO | Q187: 0,4030000 | R187: 16,25 | S187: 6,54 | AE187: CAIXA REFERENCIAL
A188: ASSENTAMENTO DE TUBOS E PECAS | B188: ASTU | C188: FORNEC E/OU ASSENT DE TUBO DE FERRO FUNDIDO JUNTA | D188: 45 | G188: 97171 | H188: ASSENTAMENTO DE TUBO DE FERRO FUNDIDO PARA REDE DE ÁGUA, DN 1000 MM, JUNTA ELÁSTICA, INSTALADO EM LOCAL COM NÍVEL BAIXO DE INTERFERÊNCIAS (NÃO INCLUI FORNECIMENTO). AF_11/2017 | I188: M | J188: ATRIBUÍDO SÃO PAULO | K188: 25,66 | T188: 11,54 | U188: 44,9451412 | V188: 7,93 | W188: 30,9169278 | X188: 6,19 | Y188: 24,1379310 | Z188: 0,00 | AA188: 0,0000000 | AB188: 0,00 | AC188: 0,0000000 | AD188: 0.24006 | AE188: CAIXA REFERENCIAL
A189: ASSENTAMENTO DE TUBOS E PECAS | B189: ASTU | C189: FORNEC E/OU ASSENT DE TUBO DE FERRO FUNDIDO JUNTA | D189: 45 | G189: 97171 | H189: ASSENTAMENTO DE TUBO DE FERRO FUNDIDO PARA REDE DE ÁGUA, DN 1000 MM, JUNTA ELÁSTICA, INSTALADO EM LOCAL COM NÍVEL BAIXO DE INTERFERÊNCIAS (NÃO INCLUI FORNECIMENTO). AF_11/2017 | I189: M | J189: ATRIBUÍDO SÃO PAULO | K189: 25,66 | L189: COMPOSICAO | M189: 5631 | N189: ESCAVADEIRA HIDRÁULICA SOBRE ESTEIRAS, CAÇAMBA 0,80 M3, PESO OPERACIONAL 17 T, POTENCIA BRUTA 111 HP - CHP DIURNO. AF_06/2014 | O189: CHP | P189: ATRIBUÍDO SÃO PAULO | Q189: 0,0421000 | R189: 149,99 | S189: 6,31 | AE189: CAIXA REFERENCIAL
A190: ASSENTAMENTO DE TUBOS E PECAS | B190: ASTU | C190: FORNEC E/OU ASSENT DE TUBO DE FERRO FUNDIDO JUNTA | D190: 45 | G190: 97171 | H190: ASSENTAMENTO DE TUBO DE FERRO FUNDIDO PARA REDE DE ÁGUA, DN 1000 MM, JUNTA ELÁSTICA, INSTALADO EM LOCAL COM NÍVEL BAIXO DE INTERFERÊNCIAS (NÃO INCLUI FORNECIMENTO). AF_11/2017 | I190: M | J190: ATRIBUÍDO SÃO PAULO | K190: 25,66 | L190: COMPOSICAO | M190: 5632 | N190: ESCAVADEIRA HIDRÁULICA SOBRE ESTEIRAS, CAÇAMBA 0,80 M3, PESO OPERACIONAL 17 T, POTENCIA BRUTA 111 HP - CHI DIURNO. AF_06/2014 | O190: CHI | P190: ATRIBUÍDO SÃO PAULO | Q190: 0,0806000 | R190: 59,34 | S190: 4,78 | AE190: CAIXA REFERENCIAL
A191: ASSENTAMENTO DE TUBOS E PECAS | B191: ASTU | C191: FORNEC E/OU ASSENT DE TUBO DE FERRO FUNDIDO JUNTA | D191: 45 | G191: 97171 | H191: ASSENTAMENTO DE TUBO DE FERRO FUNDIDO PARA REDE DE ÁGUA, DN 1000 MM, JUNTA ELÁSTICA, INSTALADO EM LOCAL COM NÍVEL BAIXO DE INTERFERÊNCIAS (NÃO INCLUI FORNECIMENTO). AF_11/2017 | I191: M | J191: ATRIBUÍDO SÃO PAULO | K191: 25,66 | L191: INSUMO | M191: 20078 | N191: PASTA LUBRIFICANTE PARA TUBOS E CONEXOES COM JUNTA ELASTICA (USO EM PVC, ACO, POLIETILENO E OUTROS) ( DE *400* G) | O191: UN | P191: COEFICIENTE DE REPRESENTATIVIDADE | Q191: 0,0403000 | R191: 19,51 | S191: 0,78 | AE191: CAIXA REFERENCIAL
A192: ASSENTAMENTO DE TUBOS E PECAS | B192: ASTU | C192: FORNEC E/OU ASSENT DE TUBO DE FERRO FUNDIDO JUNTA | D192: 45 | G192: 97171 | H192: ASSENTAMENTO DE TUBO DE FERRO FUNDIDO PARA REDE DE ÁGUA, DN 1000 MM, JUNTA ELÁSTICA, INSTALADO EM LOCAL COM NÍVEL BAIXO DE INTERFERÊNCIAS (NÃO INCLUI FORNECIMENTO). AF_11/2017 | I192: M | J192: ATRIBUÍDO SÃO PAULO | K192: 25,66 | L192: COMPOSICAO | M192: 88246 | N192: ASSENTADOR DE TUBOS COM ENCARGOS COMPLEMENTARES | O192: H | P192: COEFICIENTE DE REPRESENTATIVIDADE | Q192: 0,4455000 | R192: 14,73 | S192: 6,56 | AE192: CAIXA REFERENCIAL
A193: ASSENTAMENTO DE TUBOS E PECAS | B193: ASTU | C193: FORNEC E/OU ASSENT DE TUBO DE FERRO FUNDIDO JUNTA | D193: 45 | G193: 97171 | H193: ASSENTAMENTO DE TUBO DE FERRO FUNDIDO PARA REDE DE ÁGUA, DN 1000 MM, JUNTA ELÁSTICA, INSTALADO EM LOCAL COM NÍVEL BAIXO DE INTERFERÊNCIAS (NÃO INCLUI FORNECIMENTO). AF_11/2017 | I193: M | J193: ATRIBUÍDO SÃO PAULO | K193: 25,66 | L193: COMPOSICAO | M193: 88316 | N193: SERVENTE COM ENCARGOS COMPLEMENTARES | O193: H | P193: COLETADO | Q193: 0,4455000 | R193: 16,25 | S193: 7,23 | AE193: CAIXA REFERENCIAL
A194: ASSENTAMENTO DE TUBOS E PECAS | B194: ASTU | C194: FORNEC E/OU ASSENT DE TUBO DE FERRO FUNDIDO JUNTA | D194: 45 | G194: 97172 | H194: ASSENTAMENTO DE TUBO DE FERRO FUNDIDO PARA REDE DE ÁGUA, DN 1200 MM, JUNTA ELÁSTICA, INSTALADO EM LOCAL COM NÍVEL BAIXO DE INTERFERÊNCIAS (NÃO INCLUI FORNECIMENTO). AF_11/2017 | I194: M | J194: ATRIBUÍDO SÃO PAULO | K194: 30,61 | T194: 13,67 | U194: 44,6340664 | V194: 9,72 | W194: 31,7689530 | X194: 7,22 | Y194: 23,5969806 | Z194: 0,00 | AA194: 0,0000000 | AB194: 0,00 | AC194: 0,0000000 | AD194: 0.23489 | AE194: CAIXA REFERENCIAL
A195: ASSENTAMENTO DE TUBOS E PECAS | B195: ASTU | C195: FORNEC E/OU ASSENT DE TUBO DE FERRO FUNDIDO JUNTA | D195: 45 | G195: 97172 | H195: ASSENTAMENTO DE TUBO DE FERRO FUNDIDO PARA REDE DE ÁGUA, DN 1200 MM, JUNTA ELÁSTICA, INSTALADO EM LOCAL COM NÍVEL BAIXO DE INTERFERÊNCIAS (NÃO INCLUI FORNECIMENTO). AF_11/2017 | I195: M | J195: ATRIBUÍDO SÃO PAULO | K195: 30,61 | L195: COMPOSICAO | M195: 5631 | N195: ESCAVADEIRA HIDRÁULICA SOBRE ESTEIRAS, CAÇAMBA 0,80 M3, PESO OPERACIONAL 17 T, POTENCIA BRUTA 111 HP - CHP DIURNO. AF_06/2014 | O195: CHP | P195: ATRIBUÍDO SÃO PAULO | Q195: 0,0491000 | R195: 149,99 | S195: 7,36 | AE195: CAIXA REFERENCIAL
A196: ASSENTAMENTO DE TUBOS E PECAS | B196: ASTU | C196: FORNEC E/OU ASSENT DE TUBO DE FERRO FUNDIDO JUNTA | D196: 45 | G196: 97172 | H196: ASSENTAMENTO DE TUBO DE FERRO FUNDIDO PARA REDE DE ÁGUA, DN 1200 MM, JUNTA ELÁSTICA, INSTALADO EM LOCAL COM NÍVEL BAIXO DE INTERFERÊNCIAS (NÃO INCLUI FORNECIMENTO). AF_11/2017 | I196: M | J196: ATRIBUÍDO SÃO PAULO | K196: 30,61 | L196: COMPOSICAO | M196: 5632 | N196: ESCAVADEIRA HIDRÁULICA SOBRE ESTEIRAS, CAÇAMBA 0,80 M3, PESO OPERACIONAL 17 T, POTENCIA BRUTA 111 HP - CHI DIURNO. AF_06/2014 | O196: CHI | P196: ATRIBUÍDO SÃO PAULO | Q196: 0,0940000 | R196: 59,34 | S196: 5,57 | AE196: CAIXA REFERENCIAL
A197: ASSENTAMENTO DE TUBOS E PECAS | B197: ASTU | C197: FORNEC E/OU ASSENT DE TUBO DE FERRO FUNDIDO JUNTA | D197: 45 | G197: 97172 | H197: ASSENTAMENTO DE TUBO DE FERRO FUNDIDO PARA REDE DE ÁGUA, DN 1200 MM, JUNTA ELÁSTICA, INSTALADO EM LOCAL COM NÍVEL BAIXO DE INTERFERÊNCIAS (NÃO INCLUI FORNECIMENTO). AF_11/2017 | I197: M | J197: ATRIBUÍDO SÃO PAULO | K197: 30,61 | L197: INSUMO | M197: 20078 | N197: PASTA LUBRIFICANTE PARA TUBOS E CONEXOES COM JUNTA ELASTICA (USO EM PVC, ACO, POLIETILENO E OUTROS) ( DE *400* G) | O197: UN | P197: COEFICIENTE DE REPRESENTATIVIDADE | Q197: 0,0646000 | R197: 19,51 | S197: 1,26 | AE197: CAIXA REFERENCIAL
A198: ASSENTAMENTO DE TUBOS E PECAS | B198: ASTU | C198: FORNEC E/OU ASSENT DE TUBO DE FERRO FUNDIDO JUNTA | D198: 45 | G198: 97172 | H198: ASSENTAMENTO DE TUBO DE FERRO FUNDIDO PARA REDE DE ÁGUA, DN 1200 MM, JUNTA ELÁSTICA, INSTALADO EM LOCAL COM NÍVEL BAIXO DE INTERFERÊNCIAS (NÃO INCLUI FORNECIMENTO). AF_11/2017 | I198: M | J198: ATRIBUÍDO SÃO PAULO | K198: 30,61 | L198: COMPOSICAO | M198: 88246 | N198: ASSENTADOR DE TUBOS COM ENCARGOS COMPLEMENTARES | O198: H | P198: COEFICIENTE DE REPRESENTATIVIDADE | Q198: 0,5304000 | R198: 14,73 | S198: 7,81 | AE198: CAIXA REFERENCIAL
A199: ASSENTAMENTO DE TUBOS E PECAS | B199: ASTU | C199: FORNEC E/OU ASSENT DE TUBO DE FERRO FUNDIDO JUNTA | D199: 45 | G199: 97172 | H199: ASSENTAMENTO DE TUBO DE FERRO FUNDIDO PARA REDE DE ÁGUA, DN 1200 MM, JUNTA ELÁSTICA, INSTALADO EM LOCAL COM NÍVEL BAIXO DE INTERFERÊNCIAS (NÃO INCLUI FORNECIMENTO). AF_11/2017 | I199: M | J199: ATRIBUÍDO SÃO PAULO | K199: 30,61 | L199: COMPOSICAO | M199: 88316 | N199: SERVENTE COM ENCARGOS COMPLEMENTARES | O199: H | P199: COLETADO | Q199: 0,5304000 | R199: 16,25 | S199: 8,61 | AE199: CAIXA REFERENCIAL
A200: ASSENTAMENTO DE TUBOS E PECAS | B200: ASTU | C200: FORNEC E/OU ASSENT DE TUBO DE ACO COM JUNTA SOLDAD | D200: 46 | G200: 97173 | H200: ASSENTAMENTO DE TUBO DE AÇO CARBONO PARA REDE DE ÁGUA, DN 600 MM (24), JUNTA SOLDADA, INSTALADO EM LOCAL COM NÍVEL ALTO DE INTERFERÊNCIAS (NÃO INCLUI FORNECIMENTO). AF_11/2017 | I200: M | J200: ATRIBUÍDO SÃO PAULO | K200: 26,96 | T200: 11,70 | U200: 43,3482811 | V200: 9,94 | W200: 36,8834080 | X200: 5,32 | Y200: 19,7683109 | Z200: 0,00 | AA200: 0,0000000 | AB200: 0,00 | AC200: 0,0000000 | AD200: 0.19622 | AE200: CAIXA REFERENCIAL
A201: ASSENTAMENTO DE TUBOS E PECAS | B201: ASTU | C201: FORNEC E/OU ASSENT DE TUBO DE ACO COM JUNTA SOLDAD | D201: 46 | G201: 97173 | H201: ASSENTAMENTO DE TUBO DE AÇO CARBONO PARA REDE DE ÁGUA, DN 600 MM (24), JUNTA SOLDADA, INSTALADO EM LOCAL COM NÍVEL ALTO DE INTERFERÊNCIAS (NÃO INCLUI FORNECIMENTO). AF_11/2017 | I201: M | J201: ATRIBUÍDO SÃO PAULO | K201: 26,96 | L201: COMPOSICAO | M201: 5631 | N201: ESCAVADEIRA HIDRÁULICA SOBRE ESTEIRAS, CAÇAMBA 0,80 M3, PESO OPERACIONAL 17 T, POTENCIA BRUTA 111 HP - CHP DIURNO. AF_06/2014 | O201: CHP | P201: ATRIBUÍDO SÃO PAULO | Q201: 0,0211000 | R201: 149,99 | S201: 3,16 | AE201: CAIXA REFERENCIAL
A202: ASSENTAMENTO DE TUBOS E PECAS | B202: ASTU | C202: FORNEC E/OU ASSENT DE TUBO DE ACO COM JUNTA SOLDAD | D202: 46 | G202: 97173 | H202: ASSENTAMENTO DE TUBO DE AÇO CARBONO PARA REDE DE ÁGUA, DN 600 MM (24), JUNTA SOLDADA, INSTALADO EM LOCAL COM NÍVEL ALTO DE INTERFERÊNCIAS (NÃO INCLUI FORNECIMENTO). AF_11/2017 | I202: M | J202: ATRIBUÍDO SÃO PAULO | K202: 26,96 | L202: COMPOSICAO | M202: 5632 | N202: ESCAVADEIRA HIDRÁULICA SOBRE ESTEIRAS, CAÇAMBA 0,80 M3, PESO OPERACIONAL 17 T, POTENCIA BRUTA 111 HP - CHI DIURNO. AF_06/2014 | O202: CHI | P202: ATRIBUÍDO SÃO PAULO | Q202: 0,1011000 | R202: 59,34 | S202: 5,99 | AE202: CAIXA REFERENCIAL
... 2048 more rows

Sheet Excluido COMP Sint. Sinapi
A1: PCI.817.01 - CUSTO DE COMPOSIÇÕES - SINTÉTICO DATA DE EMISSÃO: 14/07/2021 23:18:16 DATA DE RT: 14/07/2021
A2: ENCARGOS SOCIAIS SOBRE PREÇOS DA MÃO-DE-OBRA: 112,76%(HORA) 71,07%(MÊS)
A3: ABRANGÊNCIA : NACIONAL LOCALIDADE : FORTALEZA DATA DE PREÇO : 06/2021 REFERÊNCIA COLETA : MEDIANO
A5: CODIGO DA COMPOSICAO | B5: DESCRICAO DA COMPOSICAO | C5: UNIDADE | D5: ORIGEM DE PREÇO | E5: CUSTO TOTAL | F5: VINCULO
A7: 97141 | B7: ASSENTAMENTO DE TUBO DE FERRO FUNDIDO PARA REDE DE ÁGUA, DN 80 MM, JUNTA ELÁSTICA, INSTALADO EM LOCAL COM NÍVEL ALTO DE INTERFERÊNCIAS (NÃO INCLUI FORNECIMENTO). AF_11/2017 | C7: M | D7: ATRIBUÍDO SÃO PAULO | E7: 5,94 | F7: CAIXA REFERENCIAL
A8: 97142 | B8: ASSENTAMENTO DE TUBO DE FERRO FUNDIDO PARA REDE DE ÁGUA, DN 100 MM, JUNTA ELÁSTICA, INSTALADO EM LOCAL COM NÍVEL ALTO DE INTERFERÊNCIAS (NÃO INCLUI FORNECIMENTO). AF_11/2017 | C8: M | D8: ATRIBUÍDO SÃO PAULO | E8: 6,60 | F8: CAIXA REFERENCIAL
A9: 97143 | B9: ASSENTAMENTO DE TUBO DE FERRO FUNDIDO PARA REDE DE ÁGUA, DN 150 MM, JUNTA ELÁSTICA, INSTALADO EM LOCAL COM NÍVEL ALTO DE INTERFERÊNCIAS (NÃO INCLUI FORNECIMENTO). AF_11/2017 | C9: M | D9: ATRIBUÍDO SÃO PAULO | E9: 8,26 | F9: CAIXA REFERENCIAL
A10: 97144 | B10: ASSENTAMENTO DE TUBO DE FERRO FUNDIDO PARA REDE DE ÁGUA, DN 200 MM, JUNTA ELÁSTICA, INSTALADO EM LOCAL COM NÍVEL ALTO DE INTERFERÊNCIAS (NÃO INCLUI FORNECIMENTO). AF_11/2017 | C10: M | D10: ATRIBUÍDO SÃO PAULO | E10: 9,92 | F10: CAIXA REFERENCIAL
A11: 97145 | B11: ASSENTAMENTO DE TUBO DE FERRO FUNDIDO PARA REDE DE ÁGUA, DN 250 MM, JUNTA ELÁSTICA, INSTALADO EM LOCAL COM NÍVEL ALTO DE INTERFERÊNCIAS (NÃO INCLUI FORNECIMENTO). AF_11/2017 | C11: M | D11: ATRIBUÍDO SÃO PAULO | E11: 11,61 | F11: CAIXA REFERENCIAL
A12: 97146 | B12: ASSENTAMENTO DE TUBO DE FERRO FUNDIDO PARA REDE DE ÁGUA, DN 300 MM, JUNTA ELÁSTICA, INSTALADO EM LOCAL COM NÍVEL ALTO DE INTERFERÊNCIAS (NÃO INCLUI FORNECIMENTO). AF_11/2017 | C12: M | D12: ATRIBUÍDO SÃO PAULO | E12: 13,27 | F12: CAIXA REFERENCIAL
A13: 97147 | B13: ASSENTAMENTO DE TUBO DE FERRO FUNDIDO PARA REDE DE ÁGUA, DN 350 MM, JUNTA ELÁSTICA, INSTALADO EM LOCAL COM NÍVEL ALTO DE INTERFERÊNCIAS (NÃO INCLUI FORNECIMENTO). AF_11/2017 | C13: M | D13: ATRIBUÍDO SÃO PAULO | E13: 14,96 | F13: CAIXA REFERENCIAL
A14: 97148 | B14: ASSENTAMENTO DE TUBO DE FERRO FUNDIDO PARA REDE DE ÁGUA, DN 400 MM, JUNTA ELÁSTICA, INSTALADO EM LOCAL COM NÍVEL ALTO DE INTERFERÊNCIAS (NÃO INCLUI FORNECIMENTO). AF_11/2017 | C14: M | D14: ATRIBUÍDO SÃO PAULO | E14: 16,63 | F14: CAIXA REFERENCIAL
A15: 97149 | B15: ASSENTAMENTO DE TUBO DE FERRO FUNDIDO PARA REDE DE ÁGUA, DN 450 MM, JUNTA ELÁSTICA, INSTALADO EM LOCAL COM NÍVEL ALTO DE INTERFERÊNCIAS (NÃO INCLUI FORNECIMENTO). AF_11/2017 | C15: M | D15: ATRIBUÍDO SÃO PAULO | E15: 18,33 | F15: CAIXA REFERENCIAL
A16: 97150 | B16: ASSENTAMENTO DE TUBO DE FERRO FUNDIDO PARA REDE DE ÁGUA, DN 500 MM, JUNTA ELÁSTICA, INSTALADO EM LOCAL COM NÍVEL ALTO DE INTERFERÊNCIAS (NÃO INCLUI FORNECIMENTO). AF_11/2017 | C16: M | D16: ATRIBUÍDO SÃO PAULO | E16: 23,09 | F16: CAIXA REFERENCIAL
A17: 97151 | B17: ASSENTAMENTO DE TUBO DE FERRO FUNDIDO PARA REDE DE ÁGUA, DN 600 MM, JUNTA ELÁSTICA, INSTALADO EM LOCAL COM NÍVEL ALTO DE INTERFERÊNCIAS (NÃO INCLUI FORNECIMENTO). AF_11/2017 | C17: M | D17: ATRIBUÍDO SÃO PAULO | E17: 26,92 | F17: CAIXA REFERENCIAL
A18: 97152 | B18: ASSENTAMENTO DE TUBO DE FERRO FUNDIDO PARA REDE DE ÁGUA, DN 700 MM, JUNTA ELÁSTICA, INSTALADO EM LOCAL COM NÍVEL ALTO DE INTERFERÊNCIAS (NÃO INCLUI FORNECIMENTO). AF_11/2017 | C18: M | D18: ATRIBUÍDO SÃO PAULO | E18: 30,55 | F18: CAIXA REFERENCIAL
A19: 97153 | B19: ASSENTAMENTO DE TUBO DE FERRO FUNDIDO PARA REDE DE ÁGUA, DN 800 MM, JUNTA ELÁSTICA, INSTALADO EM LOCAL COM NÍVEL ALTO DE INTERFERÊNCIAS (NÃO INCLUI FORNECIMENTO). AF_11/2017 | C19: M | D19: ATRIBUÍDO SÃO PAULO | E19: 34,31 | F19: CAIXA REFERENCIAL
A20: 97154 | B20: ASSENTAMENTO DE TUBO DE FERRO FUNDIDO PARA REDE DE ÁGUA, DN 900 MM, JUNTA ELÁSTICA, INSTALADO EM LOCAL COM NÍVEL ALTO DE INTERFERÊNCIAS (NÃO INCLUI FORNECIMENTO). AF_11/2017 | C20: M | D20: ATRIBUÍDO SÃO PAULO | E20: 38,08 | F20: CAIXA REFERENCIAL
A21: 97155 | B21: ASSENTAMENTO DE TUBO DE FERRO FUNDIDO PARA REDE DE ÁGUA, DN 1000 MM, JUNTA ELÁSTICA, INSTALADO EM LOCAL COM NÍVEL ALTO DE INTERFERÊNCIAS (NÃO INCLUI FORNECIMENTO). AF_11/2017 | C21: M | D21: ATRIBUÍDO SÃO PAULO | E21: 41,86 | F21: CAIXA REFERENCIAL
A22: 97156 | B22: ASSENTAMENTO DE TUBO DE FERRO FUNDIDO PARA REDE DE ÁGUA, DN 1200 MM, JUNTA ELÁSTICA, INSTALADO EM LOCAL COM NÍVEL ALTO DE INTERFERÊNCIAS (NÃO INCLUI FORNECIMENTO). AF_11/2017 | C22: M | D22: ATRIBUÍDO SÃO PAULO | E22: 49,73 | F22: CAIXA REFERENCIAL
A23: 97157 | B23: ASSENTAMENTO DE TUBO DE FERRO FUNDIDO PARA REDE DE ÁGUA, DN 80 MM, JUNTA ELÁSTICA, INSTALADO EM LOCAL COM NÍVEL BAIXO DE INTERFERÊNCIAS (NÃO INCLUI FORNECIMENTO). AF_11/2017 | C23: M | D23: ATRIBUÍDO SÃO PAULO | E23: 3,61 | F23: CAIXA REFERENCIAL
A24: 97158 | B24: ASSENTAMENTO DE TUBO DE FERRO FUNDIDO PARA REDE DE ÁGUA, DN 100 MM, JUNTA ELÁSTICA, INSTALADO EM LOCAL COM NÍVEL BAIXO DE INTERFERÊNCIAS (NÃO INCLUI FORNECIMENTO). AF_11/2017 | C24: M | D24: ATRIBUÍDO SÃO PAULO | E24: 4,03 | F24: CAIXA REFERENCIAL
A25: 97159 | B25: ASSENTAMENTO DE TUBO DE FERRO FUNDIDO PARA REDE DE ÁGUA, DN 150 MM, JUNTA ELÁSTICA, INSTALADO EM LOCAL COM NÍVEL BAIXO DE INTERFERÊNCIAS (NÃO INCLUI FORNECIMENTO). AF_11/2017 | C25: M | D25: ATRIBUÍDO SÃO PAULO | E25: 5,05 | F25: CAIXA REFERENCIAL
A26: 97160 | B26: ASSENTAMENTO DE TUBO DE FERRO FUNDIDO PARA REDE DE ÁGUA, DN 200 MM, JUNTA ELÁSTICA, INSTALADO EM LOCAL COM NÍVEL BAIXO DE INTERFERÊNCIAS (NÃO INCLUI FORNECIMENTO). AF_11/2017 | C26: M | D26: ATRIBUÍDO SÃO PAULO | E26: 6,05 | F26: CAIXA REFERENCIAL
A27: 97161 | B27: ASSENTAMENTO DE TUBO DE FERRO FUNDIDO PARA REDE DE ÁGUA, DN 250 MM, JUNTA ELÁSTICA, INSTALADO EM LOCAL COM NÍVEL BAIXO DE INTERFERÊNCIAS (NÃO INCLUI FORNECIMENTO). AF_11/2017 | C27: M | D27: ATRIBUÍDO SÃO PAULO | E27: 7,11 | F27: CAIXA REFERENCIAL
A28: 97162 | B28: ASSENTAMENTO DE TUBO DE FERRO FUNDIDO PARA REDE DE ÁGUA, DN 300 MM, JUNTA ELÁSTICA, INSTALADO EM LOCAL COM NÍVEL BAIXO DE INTERFERÊNCIAS (NÃO INCLUI FORNECIMENTO). AF_11/2017 | C28: M | D28: ATRIBUÍDO SÃO PAULO | E28: 8,12 | F28: CAIXA REFERENCIAL
A29: 97163 | B29: ASSENTAMENTO DE TUBO DE FERRO FUNDIDO PARA REDE DE ÁGUA, DN 350 MM, JUNTA ELÁSTICA, INSTALADO EM LOCAL COM NÍVEL BAIXO DE INTERFERÊNCIAS (NÃO INCLUI FORNECIMENTO). AF_11/2017 | C29: M | D29: ATRIBUÍDO SÃO PAULO | E29: 9,17 | F29: CAIXA REFERENCIAL
A30: 97164 | B30: ASSENTAMENTO DE TUBO DE FERRO FUNDIDO PARA REDE DE ÁGUA, DN 400 MM, JUNTA ELÁSTICA, INSTALADO EM LOCAL COM NÍVEL BAIXO DE INTERFERÊNCIAS (NÃO INCLUI FORNECIMENTO). AF_11/2017 | C30: M | D30: ATRIBUÍDO SÃO PAULO | E30: 10,19 | F30: CAIXA REFERENCIAL
A31: 97165 | B31: ASSENTAMENTO DE TUBO DE FERRO FUNDIDO PARA REDE DE ÁGUA, DN 450 MM, JUNTA ELÁSTICA, INSTALADO EM LOCAL COM NÍVEL BAIXO DE INTERFERÊNCIAS (NÃO INCLUI FORNECIMENTO). AF_11/2017 | C31: M | D31: ATRIBUÍDO SÃO PAULO | E31: 11,26 | F31: CAIXA REFERENCIAL
A32: 97166 | B32: ASSENTAMENTO DE TUBO DE FERRO FUNDIDO PARA REDE DE ÁGUA, DN 500 MM, JUNTA ELÁSTICA, INSTALADO EM LOCAL COM NÍVEL BAIXO DE INTERFERÊNCIAS (NÃO INCLUI FORNECIMENTO). AF_11/2017 | C32: M | D32: ATRIBUÍDO SÃO PAULO | E32: 14,16 | F32: CAIXA REFERENCIAL
A33: 97167 | B33: ASSENTAMENTO DE TUBO DE FERRO FUNDIDO PARA REDE DE ÁGUA, DN 600 MM, JUNTA ELÁSTICA, INSTALADO EM LOCAL COM NÍVEL BAIXO DE INTERFERÊNCIAS (NÃO INCLUI FORNECIMENTO). AF_11/2017 | C33: M | D33: ATRIBUÍDO SÃO PAULO | E33: 16,53 | F33: CAIXA REFERENCIAL
A34: 97168 | B34: ASSENTAMENTO DE TUBO DE FERRO FUNDIDO PARA REDE DE ÁGUA, DN 700 MM, JUNTA ELÁSTICA, INSTALADO EM LOCAL COM NÍVEL BAIXO DE INTERFERÊNCIAS (NÃO INCLUI FORNECIMENTO). AF_11/2017 | C34: M | D34: ATRIBUÍDO SÃO PAULO | E34: 18,71 | F34: CAIXA REFERENCIAL
A35: 97169 | B35: ASSENTAMENTO DE TUBO DE FERRO FUNDIDO PARA REDE DE ÁGUA, DN 800 MM, JUNTA ELÁSTICA, INSTALADO EM LOCAL COM NÍVEL BAIXO DE INTERFERÊNCIAS (NÃO INCLUI FORNECIMENTO). AF_11/2017 | C35: M | D35: ATRIBUÍDO SÃO PAULO | E35: 21,01 | F35: CAIXA REFERENCIAL
A36: 97170 | B36: ASSENTAMENTO DE TUBO DE FERRO FUNDIDO PARA REDE DE ÁGUA, DN 900 MM, JUNTA ELÁSTICA, INSTALADO EM LOCAL COM NÍVEL BAIXO DE INTERFERÊNCIAS (NÃO INCLUI FORNECIMENTO). AF_11/2017 | C36: M | D36: ATRIBUÍDO SÃO PAULO | E36: 23,32 | F36: CAIXA REFERENCIAL
A37: 97171 | B37: ASSENTAMENTO DE TUBO DE FERRO FUNDIDO PARA REDE DE ÁGUA, DN 1000 MM, JUNTA ELÁSTICA, INSTALADO EM LOCAL COM NÍVEL BAIXO DE INTERFERÊNCIAS (NÃO INCLUI FORNECIMENTO). AF_11/2017 | C37: M | D37: ATRIBUÍDO SÃO PAULO | E37: 25,66 | F37: CAIXA REFERENCIAL
A38: 97172 | B38: ASSENTAMENTO DE TUBO DE FERRO FUNDIDO PARA REDE DE ÁGUA, DN 1200 MM, JUNTA ELÁSTICA, INSTALADO EM LOCAL COM NÍVEL BAIXO DE INTERFERÊNCIAS (NÃO INCLUI FORNECIMENTO). AF_11/2017 | C38: M | D38: ATRIBUÍDO SÃO PAULO | E38: 30,61 | F38: CAIXA REFERENCIAL
A39: 97173 | B39: ASSENTAMENTO DE TUBO DE AÇO CARBONO PARA REDE DE ÁGUA, DN 600 MM (24), JUNTA SOLDADA, INSTALADO EM LOCAL COM NÍVEL ALTO DE INTERFERÊNCIAS (NÃO INCLUI FORNECIMENTO). AF_11/2017 | C39: M | D39: ATRIBUÍDO SÃO PAULO | E39: 26,96 | F39: CAIXA REFERENCIAL
A40: 97174 | B40: ASSENTAMENTO DE TUBO DE AÇO CARBONO PARA REDE DE ÁGUA, DN 700 MM (28), JUNTA SOLDADA, INSTALADO EM LOCAL COM NÍVEL ALTO DE INTERFERÊNCIAS (NÃO INCLUI FORNECIMENTO). AF_11/2017 | C40: M | D40: ATRIBUÍDO SÃO PAULO | E40: 31,24 | F40: CAIXA REFERENCIAL
A41: 97175 | B41: ASSENTAMENTO DE TUBO DE AÇO CARBONO PARA REDE DE ÁGUA, DN 800 MM (32), JUNTA SOLDADA, INSTALADO EM LOCAL COM NÍVEL ALTO DE INTERFERÊNCIAS (NÃO INCLUI FORNECIMENTO). AF_11/2017 | C41: M | D41: ATRIBUÍDO SÃO PAULO | E41: 35,49 | F41: CAIXA REFERENCIAL
A42: 97176 | B42: ASSENTAMENTO DE TUBO DE AÇO CARBONO PARA REDE DE ÁGUA, DN 900 MM (36), JUNTA SOLDADA, INSTALADO EM LOCAL COM NÍVEL ALTO DE INTERFERÊNCIAS (NÃO INCLUI FORNECIMENTO). AF_11/2017 | C42: M | D42: ATRIBUÍDO SÃO PAULO | E42: 39,75 | F42: CAIXA REFERENCIAL
A43: 97177 | B43: ASSENTAMENTO DE TUBO DE AÇO CARBONO PARA REDE DE ÁGUA, DN 1000 MM (40) OU DN 1100 MM (44), JUNTA SOLDADA, INSTALADO EM LOCAL COM NÍVEL ALTO DE INTERFERÊNCIAS (NÃO INCLUI FORNECIMENTO). AF_11/2017 | C43: M | D43: ATRIBUÍDO SÃO PAULO | E43: 48,28 | F43: CAIXA REFERENCIAL
A44: 97178 | B44: ASSENTAMENTO DE TUBO DE AÇO CARBONO PARA REDE DE ÁGUA, DN 1200 MM (48) OU DN 1300 MM (52), JUNTA SOLDADA, INSTALADO EM LOCAL COM NÍVEL ALTO DE INTERFERÊNCIAS (NÃO INCLUI FORNECIMENTO). AF_11/2017 | C44: M | D44: ATRIBUÍDO SÃO PAULO | E44: 56,81 | F44: CAIXA REFERENCIAL
A45: 97179 | B45: ASSENTAMENTO DE TUBO DE AÇO CARBONO PARA REDE DE ÁGUA, DN 1400 MM (56'') OU DN 1500 MM (60), JUNTA SOLDADA, INSTALADO EM LOCAL COM NÍVEL ALTO DE INTERFERÊNCIAS (NÃO INCLUI FORNECIMENTO). AF_11/2017 | C45: M | D45: ATRIBUÍDO SÃO PAULO | E45: 65,33 | F45: CAIXA REFERENCIAL
A46: 97180 | B46: ASSENTAMENTO DE TUBO DE AÇO CARBONO PARA REDE DE ÁGUA, DN 1600 MM (64) OU DN 1700 MM (68), JUNTA SOLDADA, INSTALADO EM LOCAL COM NÍVEL ALTO DE INTERFERÊNCIAS (NÃO INCLUI FORNECIMENTO). AF_11/2017 | C46: M | D46: ATRIBUÍDO SÃO PAULO | E46: 73,86 | F46: CAIXA REFERENCIAL
A47: 97181 | B47: ASSENTAMENTO DE TUBO DE AÇO CARBONO PARA REDE DE ÁGUA, DN 1800 MM (72) OU DN 1900 MM (76), JUNTA SOLDADA, INSTALADO EM LOCAL COM NÍVEL ALTO DE INTERFERÊNCIAS (NÃO INCLUI FORNECIMENTO). AF_11/2017 | C47: M | D47: ATRIBUÍDO SÃO PAULO | E47: 85,59 | F47: CAIXA REFERENCIAL
A48: 97182 | B48: ASSENTAMENTO DE TUBO DE AÇO CARBONO PARA REDE DE ÁGUA, DN 2000 MM (80) OU DN 2100 MM (84), JUNTA SOLDADA, INSTALADO EM LOCAL COM NÍVEL ALTO DE INTERFERÊNCIAS (NÃO INCLUI FORNECIMENTO). AF_11/2017 | C48: M | D48: ATRIBUÍDO SÃO PAULO | E48: 94,47 | F48: CAIXA REFERENCIAL
A49: 97183 | B49: ASSENTAMENTO DE TUBO DE AÇO CARBONO PARA REDE DE ÁGUA, DN 600 MM (24), JUNTA SOLDADA, INSTALADO EM LOCAL COM NÍVEL BAIXO DE INTERFERÊNCIAS (NÃO INCLUI FORNECIMENTO). AF_11/2017 | C49: M | D49: ATRIBUÍDO SÃO PAULO | E49: 22,04 | F49: CAIXA REFERENCIAL
A50: 97184 | B50: ASSENTAMENTO DE TUBO DE AÇO CARBONO PARA REDE DE ÁGUA, DN 700 MM (28), JUNTA SOLDADA, INSTALADO EM LOCAL COM NÍVEL BAIXO DE INTERFERÊNCIAS (NÃO INCLUI FORNECIMENTO). AF_11/2017 | C50: M | D50: ATRIBUÍDO SÃO PAULO | E50: 25,58 | F50: CAIXA REFERENCIAL
A51: 97185 | B51: ASSENTAMENTO DE TUBO DE AÇO CARBONO PARA REDE DE ÁGUA, DN 800 MM (32), JUNTA SOLDADA, INSTALADO EM LOCAL COM NÍVEL BAIXO DE INTERFERÊNCIAS (NÃO INCLUI FORNECIMENTO). AF_11/2017 | C51: M | D51: ATRIBUÍDO SÃO PAULO | E51: 29,10 | F51: CAIXA REFERENCIAL
A52: 97186 | B52: ASSENTAMENTO DE TUBO DE AÇO CARBONO PARA REDE DE ÁGUA, DN 900 MM (36), JUNTA SOLDADA, INSTALADO EM LOCAL COM NÍVEL BAIXO DE INTERFERÊNCIAS (NÃO INCLUI FORNECIMENTO). AF_11/2017 | C52: M | D52: ATRIBUÍDO SÃO PAULO | E52: 32,63 | F52: CAIXA REFERENCIAL
A53: 97187 | B53: ASSENTAMENTO DE TUBO DE AÇO CARBONO PARA REDE DE ÁGUA, DN 1000 MM (40 ) OU DN 1100 MM (44 ), JUNTA SOLDADA, INSTALADO EM LOCAL COM NÍVEL BAIXO DE INTERFERÊNCIAS (NÃO INCLUI FORNECIMENTO). AF_11/2017 | C53: M | D53: ATRIBUÍDO SÃO PAULO | E53: 39,70 | F53: CAIXA REFERENCIAL
A54: 97188 | B54: ASSENTAMENTO DE TUBO DE AÇO CARBONO PARA REDE DE ÁGUA, DN 1200 MM (48) OU DN 1300 MM (52), JUNTA SOLDADA, INSTALADO EM LOCAL COM NÍVEL BAIXO DE INTERFERÊNCIAS (NÃO INCLUI FORNECIMENTO). AF_11/2017 | C54: M | D54: ATRIBUÍDO SÃO PAULO | E54: 46,78 | F54: CAIXA REFERENCIAL
A55: 97189 | B55: ASSENTAMENTO DE TUBO DE AÇO CARBONO PARA REDE DE ÁGUA, DN 1400 MM (56'') OU DN 1500 MM (60), JUNTA SOLDADA, INSTALADO EM LOCAL COM NÍVEL BAIXO DE INTERFERÊNCIAS (NÃO INCLUI FORNECIMENTO). AF_11/2017 | C55: M | D55: ATRIBUÍDO SÃO PAULO | E55: 53,85 | F55: CAIXA REFERENCIAL
A56: 97190 | B56: ASSENTAMENTO DE TUBO DE AÇO CARBONO PARA REDE DE ÁGUA, DN 1600 MM (64) OU DN 1700 MM (68), JUNTA SOLDADA, INSTALADO EM LOCAL COM NÍVEL BAIXO DE INTERFERÊNCIAS (NÃO INCLUI FORNECIMENTO). AF_11/2017 | C56: M | D56: ATRIBUÍDO SÃO PAULO | E56: 60,91 | F56: CAIXA REFERENCIAL
A57: 97191 | B57: ASSENTAMENTO DE TUBO DE AÇO CARBONO PARA REDE DE ÁGUA, DN 1800 MM (72) OU DN 1900 MM (76), JUNTA SOLDADA, INSTALADO EM LOCAL COM NÍVEL BAIXO DE INTERFERÊNCIAS (NÃO INCLUI FORNECIMENTO). AF_11/2017 | C57: M | D57: ATRIBUÍDO SÃO PAULO | E57: 70,40 | F57: CAIXA REFERENCIAL
A58: 97192 | B58: ASSENTAMENTO DE TUBO DE AÇO CARBONO PARA REDE DE ÁGUA, DN 2000 MM (80) OU DN 2100 MM (84), JUNTA SOLDADA, INSTALADO EM LOCAL COM NÍVEL BAIXO DE INTERFERÊNCIAS (NÃO INCLUI FORNECIMENTO). AF_11/2017 | C58: M | D58: ATRIBUÍDO SÃO PAULO | E58: 77,73 | F58: CAIXA REFERENCIAL
A59: 90694 | B59: TUBO DE PVC PARA REDE COLETORA DE ESGOTO DE PAREDE MACIÇA, DN 100 MM, JUNTA ELÁSTICA - FORNECIMENTO E ASSENTAMENTO. AF_01/2021 | C59: M | D59: ATRIBUÍDO SÃO PAULO | E59: 41,19 | F59: CAIXA REFERENCIAL
A60: 90695 | B60: TUBO DE PVC PARA REDE COLETORA DE ESGOTO DE PAREDE MACIÇA, DN 150 MM, JUNTA ELÁSTICA - FORNECIMENTO E ASSENTAMENTO. AF_01/2021 | C60: M | D60: ATRIBUÍDO SÃO PAULO | E60: 86,42 | F60: CAIXA REFERENCIAL
A61: 90696 | B61: TUBO DE PVC PARA REDE COLETORA DE ESGOTO DE PAREDE MACIÇA, DN 200 MM, JUNTA ELÁSTICA - FORNECIMENTO E ASSENTAMENTO. AF_01/2021 | C61: M | D61: ATRIBUÍDO SÃO PAULO | E61: 128,69 | F61: CAIXA REFERENCIAL
A62: 90697 | B62: TUBO DE PVC PARA REDE COLETORA DE ESGOTO DE PAREDE MACIÇA, DN 250 MM, JUNTA ELÁSTICA - FORNECIMENTO E ASSENTAMENTO. AF_01/2021 | C62: M | D62: ATRIBUÍDO SÃO PAULO | E62: 217,47 | F62: CAIXA REFERENCIAL
A63: 90698 | B63: TUBO DE PVC PARA REDE COLETORA DE ESGOTO DE PAREDE MACIÇA, DN 300 MM, JUNTA ELÁSTICA, FORNECIMENTO E ASSENTAMENTO. AF_01/2021 | C63: M | D63: ATRIBUÍDO SÃO PAULO | E63: 349,30 | F63: CAIXA REFERENCIAL
A64: 90699 | B64: TUBO DE PVC PARA REDE COLETORA DE ESGOTO DE PAREDE MACIÇA, DN 350 MM, JUNTA ELÁSTICA - FORNECIMENTO E ASSENTAMENTO. AF_01/2021 | C64: M | D64: ATRIBUÍDO SÃO PAULO | E64: 432,06 | F64: CAIXA REFERENCIAL
A65: 90700 | B65: TUBO DE PVC PARA REDE COLETORA DE ESGOTO DE PAREDE MACIÇA, DN 400 MM, JUNTA ELÁSTICA FORNECIMENTO E ASSENTAMENTO. AF_01/2021 | C65: M | D65: ATRIBUÍDO SÃO PAULO | E65: 560,15 | F65: CAIXA REFERENCIAL
A66: 90701 | B66: TUBO DE PVC CORRUGADO DE DUPLA PAREDE PARA REDE COLETORA DE ESGOTO, DN 150 MM, JUNTA ELÁSTICA - FORNECIMENTO E ASSENTAMENTO. AF_01/2021 | C66: M | D66: ATRIBUÍDO SÃO PAULO | E66: 70,30 | F66: CAIXA REFERENCIAL
A67: 90702 | B67: TUBO DE PVC CORRUGADO DE DUPLA PAREDE PARA REDE COLETORA DE ESGOTO, DN 200 MM, JUNTA ELÁSTICA - FORNECIMENTO E ASSENTAMENTO. AF_01/2021 | C67: M | D67: ATRIBUÍDO SÃO PAULO | E67: 112,38 | F67: CAIXA REFERENCIAL
A68: 90703 | B68: TUBO DE PVC CORRUGADO DE DUPLA PAREDE PARA REDE COLETORA DE ESGOTO, DN 250 MM, JUNTA ELÁSTICA - FORNECIMENTO E ASSENTAMENTO. AF_01/2021 | C68: M | D68: ATRIBUÍDO SÃO PAULO | E68: 184,77 | F68: CAIXA REFERENCIAL
A69: 90704 | B69: TUBO DE PVC CORRUGADO DE DUPLA PAREDE PARA REDE COLETORA DE ESGOTO, DN 300 MM, JUNTA ELÁSTICA - FORNECIMENTO E ASSENTAMENTO. AF_01/2021 | C69: M | D69: ATRIBUÍDO SÃO PAULO | E69: 255,96 | F69: CAIXA REFERENCIAL
A70: 90705 | B70: TUBO DE PVC CORRUGADO DE DUPLA PAREDE PARA REDE COLETORA DE ESGOTO, DN 350 MM, JUNTA ELÁSTICA - FORNECIMENTO E ASSENTAMENTO. AF_01/2021 | C70: M | D70: ATRIBUÍDO SÃO PAULO | E70: 360,58 | F70: CAIXA REFERENCIAL
A71: 90706 | B71: TUBO DE PVC CORRUGADO DE DUPLA PAREDE PARA REDE COLETORA DE ESGOTO, DN 400 MM, JUNTA ELÁSTICA - FORNECIMENTO E ASSENTAMENTO. AF_01/2021 | C71: M | D71: ATRIBUÍDO SÃO PAULO | E71: 420,92 | F71: CAIXA REFERENCIAL
A72: 90708 | B72: TUBO DE PEAD CORRUGADO DE DUPLA PAREDE PARA REDE COLETORA DE ESGOTO, DN 600 MM, JUNTA ELÁSTICA INTEGRADA - FORNECIMENTO E ASSENTAMENTO. AF_01/2021 | C72: M | D72: ATRIBUÍDO SÃO PAULO | E72: 1.188,69 | F72: CAIXA REFERENCIAL
A73: 90724 | B73: JUNTA ARGAMASSADA ENTRE TUBO DN 100 MM E O POÇO DE VISITA/ CAIXA DE CONCRETO OU ALVENARIA EM REDES DE ESGOTO. AF_01/2021 | C73: UN | D73: COEFICIENTE DE REPRESENTATIVIDADE | E73: 16,62 | F73: CAIXA REFERENCIAL
A74: 90725 | B74: JUNTA ARGAMASSADA ENTRE TUBO DN 150 MM E O POÇO DE VISITA/ CAIXA DE CONCRETO OU ALVENARIA EM REDES DE ESGOTO. AF_01/2021 | C74: UN | D74: COEFICIENTE DE REPRESENTATIVIDADE | E74: 20,46 | F74: CAIXA REFERENCIAL
A75: 90726 | B75: JUNTA ARGAMASSADA ENTRE TUBO DN 200 MM E O POÇO/ CAIXA DE CONCRETO OU ALVENARIA EM REDES DE ESGOTO. AF_01/2021 | C75: UN | D75: COEFICIENTE DE REPRESENTATIVIDADE | E75: 24,36 | F75: CAIXA REFERENCIAL
A76: 90727 | B76: JUNTA ARGAMASSADA ENTRE TUBO DN 250 MM E O POÇO DE VISITA/ CAIXA DE CONCRETO OU ALVENARIA EM REDES DE ESGOTO. AF_01/2021 | C76: UN | D76: COEFICIENTE DE REPRESENTATIVIDADE | E76: 28,19 | F76: CAIXA REFERENCIAL
A77: 90728 | B77: JUNTA ARGAMASSADA ENTRE TUBO DN 300 MM E O POÇO DE VISITA/ CAIXA DE CONCRETO OU ALVENARIA EM REDES DE ESGOTO. AF_01/2021 | C77: UN | D77: COEFICIENTE DE REPRESENTATIVIDADE | E77: 32,04 | F77: CAIXA REFERENCIAL
A78: 90729 | B78: JUNTA ARGAMASSADA ENTRE TUBO DN 350 MM E O POÇO DE VISITA/ CAIXA DE CONCRETO OU ALVENARIA EM REDES DE ESGOTO. AF_01/2021 | C78: UN | D78: COEFICIENTE DE REPRESENTATIVIDADE | E78: 35,89 | F78: CAIXA REFERENCIAL
A79: 90730 | B79: JUNTA ARGAMASSADA ENTRE TUBO DN 400 MM E O POÇO DE VISITA/ CAIXA DE CONCRETO OU ALVENARIA EM REDES DE ESGOTO. AF_01/2021 | C79: UN | D79: COEFICIENTE DE REPRESENTATIVIDADE | E79: 39,73 | F79: CAIXA REFERENCIAL
A80: 90731 | B80: JUNTA ARGAMASSADA ENTRE TUBO DN 450 MM E O POÇO DE VISITA/ CAIXA DE CONCRETO OU ALVENARIA EM REDES DE ESGOTO. AF_01/2021 | C80: UN | D80: COEFICIENTE DE REPRESENTATIVIDADE | E80: 43,57 | F80: CAIXA REFERENCIAL
A81: 90732 | B81: JUNTA ARGAMASSADA ENTRE TUBO DN 600 MM E O POÇO DE VISITA/ CAIXA DE CONCRETO OU ALVENARIA EM REDES DE ESGOTO. AF_01/2021 | C81: UN | D81: COEFICIENTE DE REPRESENTATIVIDADE | E81: 55,11 | F81: CAIXA REFERENCIAL
A82: 90733 | B82: ASSENTAMENTO DE TUBO DE PVC PARA REDE COLETORA DE ESGOTO DE PAREDE MACIÇA, DN 100 MM, JUNTA ELÁSTICA (NÃO INCLUI FORNECIMENTO). AF_01/2021 | C82: M | D82: COEFICIENTE DE REPRESENTATIVIDADE | E82: 2,32 | F82: CAIXA REFERENCIAL
A83: 90734 | B83: ASSENTAMENTO DE TUBO DE PVC PARA REDE COLETORA DE ESGOTO DE PAREDE MACIÇA, DN 150 MM, JUNTA ELÁSTICA, (NÃO INCLUI FORNECIMENTO). AF_01/2021 | C83: M | D83: COEFICIENTE DE REPRESENTATIVIDADE | E83: 2,75 | F83: CAIXA REFERENCIAL
A84: 90735 | B84: ASSENTAMENTO DE TUBO DE PVC PARA REDE COLETORA DE ESGOTO DE PAREDE MACIÇA, DN 200 MM, JUNTA ELÁSTICA (NÃO INCLUI FORNECIMENTO). AF_01/2021 | C84: M | D84: COEFICIENTE DE REPRESENTATIVIDADE | E84: 3,18 | F84: CAIXA REFERENCIAL
A85: 90736 | B85: ASSENTAMENTO DE TUBO DE PVC PARA REDE COLETORA DE ESGOTO DE PAREDE MACIÇA, DN 250 MM, JUNTA ELÁSTICA (NÃO INCLUI FORNECIMENTO). AF_01/2021 | C85: M | D85: COEFICIENTE DE REPRESENTATIVIDADE | E85: 3,61 | F85: CAIXA REFERENCIAL
A86: 90737 | B86: ASSENTAMENTO DE TUBO DE PVC PARA REDE COLETORA DE ESGOTO DE PAREDE MACIÇA, DN 300 MM, JUNTA ELÁSTICA (NÃO INCLUI FORNECIMENTO). AF_01/2021 | C86: M | D86: COEFICIENTE DE REPRESENTATIVIDADE | E86: 4,04 | F86: CAIXA REFERENCIAL
A87: 90738 | B87: ASSENTAMENTO DE TUBO DE PVC PARA REDE COLETORA DE ESGOTO DE PAREDE MACIÇA, DN 350 MM, JUNTA ELÁSTICA (NÃO INCLUI FORNECIMENTO). AF_01/2021 | C87: M | D87: COEFICIENTE DE REPRESENTATIVIDADE | E87: 4,48 | F87: CAIXA REFERENCIAL
A88: 90739 | B88: ASSENTAMENTO DE TUBO DE PVC PARA REDE COLETORA DE ESGOTO DE PAREDE MACIÇA, DN 400 MM, JUNTA ELÁSTICA (NÃO INCLUI FORNECIMENTO). AF_01/2021 | C88: M | D88: ATRIBUÍDO SÃO PAULO | E88: 6,42 | F88: CAIXA REFERENCIAL
A89: 90740 | B89: ASSENTAMENTO DE TUBO DE PVC CORRUGADO DE DUPLA PAREDE PARA REDE COLETORA DE ESGOTO, DN 150 MM, JUNTA ELÁSTICA (NÃO INCLUI FORNECIMENTO). AF_01/2021 | C89: M | D89: COEFICIENTE DE REPRESENTATIVIDADE | E89: 3,07 | F89: CAIXA REFERENCIAL
A90: 90741 | B90: ASSENTAMENTO DE TUBO DE PVC CORRUGADO DE DUPLA PAREDE PARA REDE COLETORA DE ESGOTO, DN 200 MM, JUNTA ELÁSTICA (NÃO INCLUI FORNECIMENTO). AF_01/2021 | C90: M | D90: COEFICIENTE DE REPRESENTATIVIDADE | E90: 3,49 | F90: CAIXA REFERENCIAL
A91: 90742 | B91: ASSENTAMENTO DE TUBO DE PVC CORRUGADO DE DUPLA PAREDE PARA REDE COLETORA DE ESGOTO, DN 250 MM, JUNTA ELÁSTICA (NÃO INCLUI FORNECIMENTO). AF_01/2021 | C91: M | D91: COEFICIENTE DE REPRESENTATIVIDADE | E91: 3,93 | F91: CAIXA REFERENCIAL
A92: 90743 | B92: ASSENTAMENTO DE TUBO DE PVC CORRUGADO DE DUPLA PAREDE PARA REDE COLETORA DE ESGOTO, DN 300 MM, JUNTA ELÁSTICA (NÃO INCLUI FORNECIMENTO). AF_01/2021 | C92: M | D92: COEFICIENTE DE REPRESENTATIVIDADE | E92: 4,36 | F92: CAIXA REFERENCIAL
A93: 90744 | B93: ASSENTAMENTO DE TUBO DE PVC CORRUGADO DE DUPLA PAREDE PARA REDE COLETORA DE ESGOTO, DN 350 MM, JUNTA ELÁSTICA (NÃO INCLUI FORNECIMENTO). AF_01/2021 | C93: M | D93: COEFICIENTE DE REPRESENTATIVIDADE | E93: 4,79 | F93: CAIXA REFERENCIAL
A94: 90745 | B94: ASSENTAMENTO DE TUBO DE PVC CORRUGADO DE DUPLA PAREDE PARA REDE COLETORA DE ESGOTO, DN 400 MM, JUNTA ELÁSTICA (NÃO INCLUI FORNECIMENTO). AF_01/2021 | C94: M | D94: ATRIBUÍDO SÃO PAULO | E94: 7,18 | F94: CAIXA REFERENCIAL
A95: 90746 | B95: ASSENTAMENTO DE TUBO DE PEAD CORRUGADO DE DUPLA PAREDE PARA REDE COLETORA DE ESGOTO, DN 450 MM, JUNTA ELÁSTICA INTEGRADA (NÃO INCLUI FORNECIMENTO). AF_01/2021 | C95: M | D95: COEFICIENTE DE REPRESENTATIVIDADE | E95: 2,51 | F95: CAIXA REFERENCIAL
A96: 90747 | B96: ASSENTAMENTO DE TUBO DE PEAD CORRUGADO DE DUPLA PAREDE PARA REDE COLETORA DE ESGOTO, DN 600 MM, JUNTA ELÁSTICA INTEGRADA (NÃO INCLUI FORNECIMENTO). AF_01/2021 | C96: M | D96: ATRIBUÍDO SÃO PAULO | E96: 11,89 | F96: CAIXA REFERENCIAL
A97: 94869 | B97: TUBO DE PEAD CORRUGADO DE DUPLA PAREDE PARA REDE COLETORA DE ESGOTO, DN 250 MM, JUNTA ELÁSTICA INTEGRADA - FORNECIMENTO E ASSENTAMENTO. AF_01/2021 | C97: M | D97: ATRIBUÍDO SÃO PAULO | E97: 242,43 | F97: CAIXA REFERENCIAL
A98: 94870 | B98: ASSENTAMENTO DE TUBO DE PEAD CORRUGADO DE DUPLA PAREDE PARA REDE COLETORA DE ESGOTO, DN 250 MM, JUNTA ELÁSTICA INTEGRADA (NÃO INCLUI FORNECIMENTO). AF_01/2021 | C98: M | D98: COEFICIENTE DE REPRESENTATIVIDADE | E98: 1,34 | F98: CAIXA REFERENCIAL
A99: 94871 | B99: TUBO DE PEAD CORRUGADO DE DUPLA PAREDE PARA REDE COLETORA DE ESGOTO, DN 300 MM, JUNTA ELÁSTICA INTEGRADA - FORNECIMENTO E ASSENTAMENTO. AF_01/2021 | C99: M | D99: ATRIBUÍDO SÃO PAULO | E99: 287,02 | F99: CAIXA REFERENCIAL
A100: 94872 | B100: ASSENTAMENTO DE TUBO DE PEAD CORRUGADO DE DUPLA PAREDE PARA REDE COLETORA DE ESGOTO, DN 300 MM, JUNTA ELÁSTICA INTEGRADA (NÃO INCLUI FORNECIMENTO). AF_01/2021 | C100: M | D100: COEFICIENTE DE REPRESENTATIVIDADE | E100: 1,88 | F100: CAIXA REFERENCIAL
A101: 94875 | B101: TUBO DE PEAD CORRUGADO DE DUPLA PAREDE PARA REDE COLETORA DE ESGOTO, DN 800 MM, JUNTA ELÁSTICA INTEGRADA - FORNECIMENTO E ASSENTAMENTO. AF_01/2021 | C101: M | D101: ATRIBUÍDO SÃO PAULO | E101: 1.678,84 | F101: CAIXA REFERENCIAL
A102: 94876 | B102: ASSENTAMENTO DE TUBO DE PEAD CORRUGADO DE DUPLA PAREDE PARA REDE COLETORA DE ESGOTO, DN 800 MM, JUNTA ELÁSTICA INTEGRADA (NÃO INCLUI FORNECIMENTO). AF_01/2021 | C102: M | D102: ATRIBUÍDO SÃO PAULO | E102: 20,04 | F102: CAIXA REFERENCIAL
A103: 94878 | B103: ASSENTAMENTO DE TUBO DE PEAD CORRUGADO DE DUPLA PAREDE PARA REDE COLETORA DE ESGOTO, DN 900 MM, JUNTA ELÁSTICA INTEGRADA (NÃO INCLUI FORNECIMENTO). AF_01/2021 | C103: M | D103: ATRIBUÍDO SÃO PAULO | E103: 23,17 | F103: CAIXA REFERENCIAL
A104: 94879 | B104: TUBO DE PEAD CORRUGADO DE DUPLA PAREDE PARA REDE COLETORA DE ESGOTO, DN 1000 MM, JUNTA ELÁSTICA INTEGRADA - FORNECIMENTO E ASSENTAMENTO. AF_01/2021 | C104: M | D104: ATRIBUÍDO SÃO PAULO | E104: 2.234,75 | F104: CAIXA REFERENCIAL
A105: 94880 | B105: ASSENTAMENTO DE TUBO DE PEAD CORRUGADO DE DUPLA PAREDE PARA REDE COLETORA DE ESGOTO, DN 1000 MM, JUNTA ELÁSTICA INTEGRADA (NÃO INCLUI FORNECIMENTO). AF_01/2021 | C105: M | D105: ATRIBUÍDO SÃO PAULO | E105: 29,94 | F105: CAIXA REFERENCIAL
A106: 94881 | B106: TUBO DE PEAD CORRUGADO DE DUPLA PAREDE PARA REDE COLETORA DE ESGOTO, DN 1200 MM, JUNTA ELÁSTICA INTEGRADA - FORNECIMENTO E ASSENTAMENTO. AF_01/2021 | C106: M | D106: ATRIBUÍDO SÃO PAULO | E106: 3.495,20 | F106: CAIXA REFERENCIAL
A107: 94882 | B107: ASSENTAMENTO DE TUBO DE PEAD CORRUGADO DE DUPLA PAREDE PARA REDE COLETORA DE ESGOTO, DN 1200 MM, JUNTA ELÁSTICA INTEGRADA (NÃO INCLUI FORNECIMENTO). AF_01/2021 | C107: M | D107: ATRIBUÍDO SÃO PAULO | E107: 34,77 | F107: CAIXA REFERENCIAL
A108: 94884 | B108: ASSENTAMENTO DE TUBO DE PEAD CORRUGADO DE DUPLA PAREDE PARA REDE COLETORA DE ESGOTO, DN 1500 MM, JUNTA ELÁSTICA INTEGRADA (NÃO INCLUI FORNECIMENTO). AF_01/2021 | C108: M | D108: ATRIBUÍDO SÃO PAULO | E108: 44,53 | F108: CAIXA REFERENCIAL
A109: 97121 | B109: ASSENTAMENTO DE TUBO DE PVC PBA PARA REDE DE ÁGUA, DN 50 MM, JUNTA ELÁSTICA INTEGRADA, INSTALADO EM LOCAL COM NÍVEL ALTO DE INTERFERÊNCIAS (NÃO INCLUI FORNECIMENTO). AF_11/2017 | C109: M | D109: COEFICIENTE DE REPRESENTATIVIDADE | E109: 1,39 | F109: CAIXA REFERENCIAL
A110: 97122 | B110: ASSENTAMENTO DE TUBO DE PVC PBA PARA REDE DE ÁGUA, DN 75 MM, JUNTA ELÁSTICA INTEGRADA, INSTALADO EM LOCAL COM NÍVEL ALTO DE INTERFERÊNCIAS (NÃO INCLUI FORNECIMENTO). AF_11/2017 | C110: M | D110: COEFICIENTE DE REPRESENTATIVIDADE | E110: 1,93 | F110: CAIXA REFERENCIAL
A111: 97123 | B111: ASSENTAMENTO DE TUBO DE PVC PBA PARA REDE DE ÁGUA, DN 100 MM, JUNTA ELÁSTICA INTEGRADA, INSTALADO EM LOCAL COM NÍVEL ALTO DE INTERFERÊNCIAS (NÃO INCLUI FORNECIMENTO). AF_11/2017 | C111: M | D111: COEFICIENTE DE REPRESENTATIVIDADE | E111: 2,45 | F111: CAIXA REFERENCIAL
A112: 97124 | B112: ASSENTAMENTO DE TUBO DE PVC PBA PARA REDE DE ÁGUA, DN 50 MM, JUNTA ELÁSTICA INTEGRADA, INSTALADO EM LOCAL COM NÍVEL BAIXO DE INTERFERÊNCIAS (NÃO INCLUI FORNECIMENTO). AF_11/2017 | C112: M | D112: COEFICIENTE DE REPRESENTATIVIDADE | E112: 0,61 | F112: CAIXA REFERENCIAL
A113: 97125 | B113: ASSENTAMENTO DE TUBO DE PVC PBA PARA REDE DE ÁGUA, DN 75 MM, JUNTA ELÁSTICA INTEGRADA, INSTALADO EM LOCAL COM NÍVEL BAIXO DE INTERFERÊNCIAS (NÃO INCLUI FORNECIMENTO). AF_11/2017 | C113: M | D113: COEFICIENTE DE REPRESENTATIVIDADE | E113: 0,88 | F113: CAIXA REFERENCIAL
A114: 97126 | B114: ASSENTAMENTO DE TUBO DE PVC PBA PARA REDE DE ÁGUA, DN 100 MM, JUNTA ELÁSTICA INTEGRADA, INSTALADO EM LOCAL COM NÍVEL BAIXO DE INTERFERÊNCIAS (NÃO INCLUI FORNECIMENTO). AF_11/2017 | C114: M | D114: COEFICIENTE DE REPRESENTATIVIDADE | E114: 1,11 | F114: CAIXA REFERENCIAL
A115: 102264 | B115: TUBO DE PVC BRANCO PARA REDE COLETORA DE ESGOTO CONDOMINIAL DE PAREDE MACIÇA, DN 100 MM, JUNTA ELÁSTICA - FORNECIMENTO E ASSENTAMENTO. AF_01/2021 | C115: M | D115: COEFICIENTE DE REPRESENTATIVIDADE | E115: 17,21 | F115: CAIXA REFERENCIAL
A116: 102265 | B116: JUNTA ARGAMASSADA ENTRE TUBO DN 800 MM E O POÇO DE VISITA/ CAIXA DE CONCRETO OU ALVENARIA EM REDES DE ESGOTO. AF_01/2021 | C116: UN | D116: COEFICIENTE DE REPRESENTATIVIDADE | E116: 70,48 | F116: CAIXA REFERENCIAL
A117: 102266 | B117: JUNTA ARGAMASSADA ENTRE TUBO DN 900 MM E O POÇO DE VISITA/ CAIXA DE CONCRETO OU ALVENARIA EM REDES DE ESGOTO. AF_01/2021 | C117: UN | D117: COEFICIENTE DE REPRESENTATIVIDADE | E117: 78,17 | F117: CAIXA REFERENCIAL
A118: 102267 | B118: JUNTA ARGAMASSADA ENTRE TUBO DN 1000 MM E O POÇO DE VISITA/ CAIXA DE CONCRETO OU ALVENARIA EM REDES DE ESGOTO. AF_01/2021 | C118: UN | D118: COEFICIENTE DE REPRESENTATIVIDADE | E118: 89,75 | F118: CAIXA REFERENCIAL
A119: 102268 | B119: JUNTA ARGAMASSADA ENTRE TUBO DN 1200 MM E O POÇO DE VISITA/ CAIXA DE CONCRETO OU ALVENARIA EM REDES DE ESGOTO. AF_01/2021 | C119: UN | D119: COEFICIENTE DE REPRESENTATIVIDADE | E119: 101,28 | F119: CAIXA REFERENCIAL
A120: 102269 | B120: JUNTA ARGAMASSADA ENTRE TUBO DN 1500 MM E O POÇO DE VISITA/ CAIXA DE CONCRETO OU ALVENARIA EM REDES DE ESGOTO. AF_01/2021 | C120: UN | D120: COEFICIENTE DE REPRESENTATIVIDADE | E120: 124,34 | F120: CAIXA REFERENCIAL
A121: 92833 | B121: TUBO DE CONCRETO PARA REDES COLETORAS DE ESGOTO SANITÁRIO, DIÂMETRO DE 300 MM, JUNTA ELÁSTICA, INSTALADO EM LOCAL COM BAIXO NÍVEL DE INTERFERÊNCIAS - FORNECIMENTO E ASSENTAMENTO. AF_12/2015 | C121: M | D121: ATRIBUÍDO SÃO PAULO | E121: 200,52 | F121: CAIXA REFERENCIAL
A122: 92834 | B122: ASSENTAMENTO DE TUBO DE CONCRETO PARA REDES COLETORAS DE ESGOTO SANITÁRIO, DIÂMETRO DE 300 MM, JUNTA ELÁSTICA, INSTALADO EM LOCAL COM BAIXO NÍVEL DE INTERFERÊNCIAS (NÃO INCLUI FORNECIMENTO). AF_12/2015 | C122: M | D122: ATRIBUÍDO SÃO PAULO | E122: 6,48 | F122: CAIXA REFERENCIAL
A123: 92835 | B123: TUBO DE CONCRETO PARA REDES COLETORAS DE ESGOTO SANITÁRIO, DIÂMETRO DE 400 MM, JUNTA ELÁSTICA, INSTALADO EM LOCAL COM BAIXO NÍVEL DE INTERFERÊNCIAS - FORNECIMENTO E ASSENTAMENTO. AF_12/2015 | C123: M | D123: ATRIBUÍDO SÃO PAULO | E123: 215,51 | F123: CAIXA REFERENCIAL
A124: 92836 | B124: ASSENTAMENTO DE TUBO DE CONCRETO PARA REDES COLETORAS DE ESGOTO SANITÁRIO, DIÂMETRO DE 400 MM, JUNTA ELÁSTICA, INSTALADO EM LOCAL COM BAIXO NÍVEL DE INTERFERÊNCIAS (NÃO INCLUI FORNECIMENTO). AF_12/2015 | C124: M | D124: ATRIBUÍDO SÃO PAULO | E124: 8,28 | F124: CAIXA REFERENCIAL
A125: 92837 | B125: TUBO DE CONCRETO PARA REDES COLETORAS DE ESGOTO SANITÁRIO, DIÂMETRO DE 500 MM, JUNTA ELÁSTICA, INSTALADO EM LOCAL COM BAIXO NÍVEL DE INTERFERÊNCIAS - FORNECIMENTO E ASSENTAMENTO. AF_12/2015 | C125: M | D125: ATRIBUÍDO SÃO PAULO | E125: 357,63 | F125: CAIXA REFERENCIAL
A126: 92838 | B126: ASSENTAMENTO DE TUBO DE CONCRETO PARA REDES COLETORAS DE ESGOTO SANITÁRIO, DIÂMETRO DE 500 MM, JUNTA ELÁSTICA, INSTALADO EM LOCAL COM BAIXO NÍVEL DE INTERFERÊNCIAS (NÃO INCLUI FORNECIMENTO). AF_12/2015 | C126: M | D126: ATRIBUÍDO SÃO PAULO | E126: 9,94 | F126: CAIXA REFERENCIAL
A127: 92839 | B127: TUBO DE CONCRETO PARA REDES COLETORAS DE ESGOTO SANITÁRIO, DIÂMETRO DE 600 MM, JUNTA ELÁSTICA, INSTALADO EM LOCAL COM BAIXO NÍVEL DE INTERFERÊNCIAS - FORNECIMENTO E ASSENTAMENTO. AF_12/2015 | C127: M | D127: ATRIBUÍDO SÃO PAULO | E127: 438,36 | F127: CAIXA REFERENCIAL
A128: 92840 | B128: ASSENTAMENTO DE TUBO DE CONCRETO PARA REDES COLETORAS DE ESGOTO SANITÁRIO, DIÂMETRO DE 600 MM, JUNTA ELÁSTICA, INSTALADO EM LOCAL COM BAIXO NÍVEL DE INTERFERÊNCIAS (NÃO INCLUI FORNECIMENTO). AF_12/2015 | C128: M | D128: ATRIBUÍDO SÃO PAULO | E128: 11,78 | F128: CAIXA REFERENCIAL
A129: 92841 | B129: TUBO DE CONCRETO PARA REDES COLETORAS DE ESGOTO SANITÁRIO, DIÂMETRO DE 700 MM, JUNTA ELÁSTICA, INSTALADO EM LOCAL COM BAIXO NÍVEL DE INTERFERÊNCIAS - FORNECIMENTO E ASSENTAMENTO. AF_12/2015 | C129: M | D129: ATRIBUÍDO SÃO PAULO | E129: 546,98 | F129: CAIXA REFERENCIAL
A130: 92842 | B130: ASSENTAMENTO DE TUBO DE CONCRETO PARA REDES COLETORAS DE ESGOTO SANITÁRIO, DIÂMETRO DE 700 MM, JUNTA ELÁSTICA, INSTALADO EM LOCAL COM BAIXO NÍVEL DE INTERFERÊNCIAS (NÃO INCLUI FORNECIMENTO). AF_12/2015 | C130: M | D130: ATRIBUÍDO SÃO PAULO | E130: 13,46 | F130: CAIXA REFERENCIAL
A131: 92843 | B131: TUBO DE CONCRETO PARA REDES COLETORAS DE ESGOTO SANITÁRIO, DIÂMETRO DE 800 MM, JUNTA ELÁSTICA, INSTALADO EM LOCAL COM BAIXO NÍVEL DE INTERFERÊNCIAS - FORNECIMENTO E ASSENTAMENTO. AF_12/2015 | C131: M | D131: ATRIBUÍDO SÃO PAULO | E131: 582,86 | F131: CAIXA REFERENCIAL
A132: 92844 | B132: ASSENTAMENTO DE TUBO DE CONCRETO PARA REDES COLETORAS DE ESGOTO SANITÁRIO, DIÂMETRO DE 800 MM, JUNTA ELÁSTICA, INSTALADO EM LOCAL COM BAIXO NÍVEL DE INTERFERÊNCIAS (NÃO INCLUI FORNECIMENTO). AF_12/2015 | C132: M | D132: ATRIBUÍDO SÃO PAULO | E132: 15,30 | F132: CAIXA REFERENCIAL
A133: 92845 | B133: TUBO DE CONCRETO PARA REDES COLETORAS DE ESGOTO SANITÁRIO, DIÂMETRO DE 900 MM, JUNTA ELÁSTICA, INSTALADO EM LOCAL COM BAIXO NÍVEL DE INTERFERÊNCIAS - FORNECIMENTO E ASSENTAMENTO. AF_12/2015 | C133: M | D133: ATRIBUÍDO SÃO PAULO | E133: 805,46 | F133: CAIXA REFERENCIAL
A134: 92846 | B134: ASSENTAMENTO DE TUBO DE CONCRETO PARA REDES COLETORAS DE ESGOTO SANITÁRIO, DIÂMETRO DE 900 MM, JUNTA ELÁSTICA, INSTALADO EM LOCAL COM BAIXO NÍVEL DE INTERFERÊNCIAS (NÃO INCLUI FORNECIMENTO). AF_12/2015 | C134: M | D134: ATRIBUÍDO SÃO PAULO | E134: 16,96 | F134: CAIXA REFERENCIAL
A135: 92847 | B135: TUBO DE CONCRETO PARA REDES COLETORAS DE ESGOTO SANITÁRIO, DIÂMETRO DE 1000 MM, JUNTA ELÁSTICA, INSTALADO EM LOCAL COM BAIXO NÍVEL DE INTERFERÊNCIAS - FORNECIMENTO E ASSENTAMENTO. AF_12/2015 | C135: M | D135: ATRIBUÍDO SÃO PAULO | E135: 845,27 | F135: CAIXA REFERENCIAL
A136: 92848 | B136: ASSENTAMENTO DE TUBO DE CONCRETO PARA REDES COLETORAS DE ESGOTO SANITÁRIO, DIÂMETRO DE 1000 MM, JUNTA ELÁSTICA, INSTALADO EM LOCAL COM BAIXO NÍVEL DE INTERFERÊNCIAS (NÃO INCLUI FORNECIMENTO). AF_12/2015 | C136: M | D136: ATRIBUÍDO SÃO PAULO | E136: 18,81 | F136: CAIXA REFERENCIAL
A137: 92849 | B137: TUBO DE CONCRETO PARA REDES COLETORAS DE ESGOTO SANITÁRIO, DIÂMETRO DE 300 MM, JUNTA ELÁSTICA, INSTALADO EM LOCAL COM ALTO NÍVEL DE INTERFERÊNCIAS - FORNECIMENTO E ASSENTAMENTO. AF_12/2015 | C137: M | D137: ATRIBUÍDO SÃO PAULO | E137: 206,50 | F137: CAIXA REFERENCIAL
A138: 92850 | B138: ASSENTAMENTO DE TUBO DE CONCRETO PARA REDES COLETORAS DE ESGOTO SANITÁRIO, DIÂMETRO DE 300 MM, JUNTA ELÁSTICA, INSTALADO EM LOCAL COM ALTO NÍVEL DE INTERFERÊNCIAS (NÃO INCLUI FORNECIMENTO). AF_12/2015 | C138: M | D138: ATRIBUÍDO SÃO PAULO | E138: 12,27 | F138: CAIXA REFERENCIAL
A139: 92851 | B139: TUBO DE CONCRETO PARA REDES COLETORAS DE ESGOTO SANITÁRIO, DIÂMETRO DE 400 MM, JUNTA ELÁSTICA, INSTALADO EM LOCAL COM ALTO NÍVEL DE INTERFERÊNCIAS - FORNECIMENTO E ASSENTAMENTO. AF_12/2015 | C139: M | D139: ATRIBUÍDO SÃO PAULO | E139: 222,96 | F139: CAIXA REFERENCIAL
A140: 92852 | B140: ASSENTAMENTO DE TUBO DE CONCRETO PARA REDES COLETORAS DE ESGOTO SANITÁRIO, DIÂMETRO DE 400 MM, JUNTA ELÁSTICA, INSTALADO EM LOCAL COM ALTO NÍVEL DE INTERFERÊNCIAS (NÃO INCLUI FORNECIMENTO). AF_12/2015 | C140: M | D140: ATRIBUÍDO SÃO PAULO | E140: 15,50 | F140: CAIXA REFERENCIAL
A141: 92853 | B141: TUBO DE CONCRETO PARA REDES COLETORAS DE ESGOTO SANITÁRIO, DIÂMETRO DE 500 MM, JUNTA ELÁSTICA, INSTALADO EM LOCAL COM ALTO NÍVEL DE INTERFERÊNCIAS - FORNECIMENTO E ASSENTAMENTO. AF_12/2015 | C141: M | D141: ATRIBUÍDO SÃO PAULO | E141: 366,85 | F141: CAIXA REFERENCIAL
A142: 92854 | B142: ASSENTAMENTO DE TUBO DE CONCRETO PARA REDES COLETORAS DE ESGOTO SANITÁRIO, DIÂMETRO DE 500 MM, JUNTA ELÁSTICA, INSTALADO EM LOCAL COM ALTO NÍVEL DE INTERFERÊNCIAS (NÃO INCLUI FORNECIMENTO). AF_12/2015 | C142: M | D142: ATRIBUÍDO SÃO PAULO | E142: 18,87 | F142: CAIXA REFERENCIAL
A143: 92855 | B143: TUBO DE CONCRETO PARA REDES COLETORAS DE ESGOTO SANITÁRIO, DIÂMETRO DE 600 MM, JUNTA ELÁSTICA, INSTALADO EM LOCAL COM ALTO NÍVEL DE INTERFERÊNCIAS - FORNECIMENTO E ASSENTAMENTO. AF_12/2015 | C143: M | D143: ATRIBUÍDO SÃO PAULO | E143: 449,18 | F143: CAIXA REFERENCIAL
A144: 92856 | B144: ASSENTAMENTO DE TUBO DE CONCRETO PARA REDES COLETORAS DE ESGOTO SANITÁRIO, DIÂMETRO DE 600 MM, JUNTA ELÁSTICA, INSTALADO EM LOCAL COM ALTO NÍVEL DE INTERFERÊNCIAS (NÃO INCLUI FORNECIMENTO). AF_12/2015 | C144: M | D144: ATRIBUÍDO SÃO PAULO | E144: 22,25 | F144: CAIXA REFERENCIAL
A145: 92857 | B145: TUBO DE CONCRETO PARA REDES COLETORAS DE ESGOTO SANITÁRIO, DIÂMETRO DE 700 MM, JUNTA ELÁSTICA, INSTALADO EM LOCAL COM ALTO NÍVEL DE INTERFERÊNCIAS - FORNECIMENTO E ASSENTAMENTO. AF_12/2015 | C145: M | D145: ATRIBUÍDO SÃO PAULO | E145: 559,37 | F145: CAIXA REFERENCIAL
A146: 92858 | B146: ASSENTAMENTO DE TUBO DE CONCRETO PARA REDES COLETORAS DE ESGOTO SANITÁRIO, DIÂMETRO DE 700 MM, JUNTA ELÁSTICA, INSTALADO EM LOCAL COM ALTO NÍVEL DE INTERFERÊNCIAS (NÃO INCLUI FORNECIMENTO). AF_12/2015 | C146: M | D146: ATRIBUÍDO SÃO PAULO | E146: 25,46 | F146: CAIXA REFERENCIAL
A147: 92859 | B147: TUBO DE CONCRETO PARA REDES COLETORAS DE ESGOTO SANITÁRIO, DIÂMETRO DE 800 MM, JUNTA ELÁSTICA, INSTALADO EM LOCAL COM ALTO NÍVEL DE INTERFERÊNCIAS - FORNECIMENTO E ASSENTAMENTO. AF_12/2015 | C147: M | D147: ATRIBUÍDO SÃO PAULO | E147: 596,47 | F147: CAIXA REFERENCIAL
A148: 92860 | B148: ASSENTAMENTO DE TUBO DE CONCRETO PARA REDES COLETORAS DE ESGOTO SANITÁRIO, DIÂMETRO DE 800 MM, JUNTA ELÁSTICA, INSTALADO EM LOCAL COM ALTO NÍVEL DE INTERFERÊNCIAS (NÃO INCLUI FORNECIMENTO). AF_12/2015 | C148: M | D148: ATRIBUÍDO SÃO PAULO | E148: 28,91 | F148: CAIXA REFERENCIAL
A149: 92861 | B149: TUBO DE CONCRETO PARA REDES COLETORAS DE ESGOTO SANITÁRIO, DIÂMETRO DE 900 MM, JUNTA ELÁSTICA, INSTALADO EM LOCAL COM ALTO NÍVEL DE INTERFERÊNCIAS - FORNECIMENTO E ASSENTAMENTO. AF_12/2015 | C149: M | D149: ATRIBUÍDO SÃO PAULO | E149: 820,77 | F149: CAIXA REFERENCIAL
A150: 92862 | B150: ASSENTAMENTO DE TUBO DE CONCRETO PARA REDES COLETORAS DE ESGOTO SANITÁRIO, DIÂMETRO DE 900 MM, JUNTA ELÁSTICA, INSTALADO EM LOCAL COM ALTO NÍVEL DE INTERFERÊNCIAS (NÃO INCLUI FORNECIMENTO). AF_12/2015 | C150: M | D150: ATRIBUÍDO SÃO PAULO | E150: 32,27 | F150: CAIXA REFERENCIAL
A151: 92863 | B151: TUBO DE CONCRETO PARA REDES COLETORAS DE ESGOTO SANITÁRIO, DIÂMETRO DE 1000 MM, JUNTA ELÁSTICA, INSTALADO EM LOCAL COM ALTO NÍVEL DE INTERFERÊNCIAS - FORNECIMENTO E ASSENTAMENTO. AF_12/2015 | C151: M | D151: ATRIBUÍDO SÃO PAULO | E151: 862,68 | F151: CAIXA REFERENCIAL
A152: 92864 | B152: ASSENTAMENTO DE TUBO DE CONCRETO PARA REDES COLETORAS DE ESGOTO SANITÁRIO, DIÂMETRO DE 1000 MM, JUNTA ELÁSTICA, INSTALADO EM LOCAL COM ALTO NÍVEL DE INTERFERÊNCIAS (NÃO INCLUI FORNECIMENTO). AF_12/2015 | C152: M | D152: ATRIBUÍDO SÃO PAULO | E152: 35,66 | F152: CAIXA REFERENCIAL
A153: 92210 | B153: TUBO DE CONCRETO PARA REDES COLETORAS DE ÁGUAS PLUVIAIS, DIÂMETRO DE 400 MM, JUNTA RÍGIDA, INSTALADO EM LOCAL COM BAIXO NÍVEL DE INTERFERÊNCIAS - FORNECIMENTO E ASSENTAMENTO. AF_12/2015 | C153: M | D153: ATRIBUÍDO SÃO PAULO | E153: 127,34 | F153: CAIXA REFERENCIAL
A154: 92211 | B154: TUBO DE CONCRETO PARA REDES COLETORAS DE ÁGUAS PLUVIAIS, DIÂMETRO DE 500 MM, JUNTA RÍGIDA, INSTALADO EM LOCAL COM BAIXO NÍVEL DE INTERFERÊNCIAS - FORNECIMENTO E ASSENTAMENTO. AF_12/2015 | C154: M | D154: ATRIBUÍDO SÃO PAULO | E154: 153,03 | F154: CAIXA REFERENCIAL
A155: 92212 | B155: TUBO DE CONCRETO PARA REDES COLETORAS DE ÁGUAS PLUVIAIS, DIÂMETRO DE 600 MM, JUNTA RÍGIDA, INSTALADO EM LOCAL COM BAIXO NÍVEL DE INTERFERÊNCIAS - FORNECIMENTO E ASSENTAMENTO. AF_12/2015 | C155: M | D155: ATRIBUÍDO SÃO PAULO | E155: 228,24 | F155: CAIXA REFERENCIAL
A156: 92213 | B156: TUBO DE CONCRETO PARA REDES COLETORAS DE ÁGUAS PLUVIAIS, DIÂMETRO DE 700 MM, JUNTA RÍGIDA, INSTALADO EM LOCAL COM BAIXO NÍVEL DE INTERFERÊNCIAS - FORNECIMENTO E ASSENTAMENTO. AF_12/2015 | C156: M | D156: ATRIBUÍDO SÃO PAULO | E156: 299,96 | F156: CAIXA REFERENCIAL
A157: 92214 | B157: TUBO DE CONCRETO PARA REDES COLETORAS DE ÁGUAS PLUVIAIS, DIÂMETRO DE 800 MM, JUNTA RÍGIDA, INSTALADO EM LOCAL COM BAIXO NÍVEL DE INTERFERÊNCIAS - FORNECIMENTO E ASSENTAMENTO. AF_12/2015 | C157: M | D157: ATRIBUÍDO SÃO PAULO | E157: 362,46 | F157: CAIXA REFERENCIAL
A158: 92215 | B158: TUBO DE CONCRETO PARA REDES COLETORAS DE ÁGUAS PLUVIAIS, DIÂMETRO DE 900 MM, JUNTA RÍGIDA, INSTALADO EM LOCAL COM BAIXO NÍVEL DE INTERFERÊNCIAS - FORNECIMENTO E ASSENTAMENTO. AF_12/2015 | C158: M | D158: ATRIBUÍDO SÃO PAULO | E158: 416,26 | F158: CAIXA REFERENCIAL
A159: 92216 | B159: TUBO DE CONCRETO PARA REDES COLETORAS DE ÁGUAS PLUVIAIS, DIÂMETRO DE 1000 MM, JUNTA RÍGIDA, INSTALADO EM LOCAL COM BAIXO NÍVEL DE INTERFERÊNCIAS - FORNECIMENTO E ASSENTAMENTO. AF_12/2015 | C159: M | D159: ATRIBUÍDO SÃO PAULO | E159: 435,30 | F159: CAIXA REFERENCIAL
A160: 92219 | B160: TUBO DE CONCRETO PARA REDES COLETORAS DE ÁGUAS PLUVIAIS, DIÂMETRO DE 400 MM, JUNTA RÍGIDA, INSTALADO EM LOCAL COM ALTO NÍVEL DE INTERFERÊNCIAS - FORNECIMENTO E ASSENTAMENTO. AF_12/2015 | C160: M | D160: ATRIBUÍDO SÃO PAULO | E160: 134,56 | F160: CAIXA REFERENCIAL
A161: 92220 | B161: TUBO DE CONCRETO PARA REDES COLETORAS DE ÁGUAS PLUVIAIS, DIÂMETRO DE 500 MM, JUNTA RÍGIDA, INSTALADO EM LOCAL COM ALTO NÍVEL DE INTERFERÊNCIAS - FORNECIMENTO E ASSENTAMENTO. AF_12/2015 | C161: M | D161: ATRIBUÍDO SÃO PAULO | E161: 161,98 | F161: CAIXA REFERENCIAL
A162: 92221 | B162: TUBO DE CONCRETO PARA REDES COLETORAS DE ÁGUAS PLUVIAIS, DIÂMETRO DE 600 MM, JUNTA RÍGIDA, INSTALADO EM LOCAL COM ALTO NÍVEL DE INTERFERÊNCIAS - FORNECIMENTO E ASSENTAMENTO. AF_12/2015 | C162: M | D162: ATRIBUÍDO SÃO PAULO | E162: 238,70 | F162: CAIXA REFERENCIAL
A163: 92222 | B163: TUBO DE CONCRETO PARA REDES COLETORAS DE ÁGUAS PLUVIAIS, DIÂMETRO DE 700 MM, JUNTA RÍGIDA, INSTALADO EM LOCAL COM ALTO NÍVEL DE INTERFERÊNCIAS - FORNECIMENTO E ASSENTAMENTO. AF_12/2015 | C163: M | D163: ATRIBUÍDO SÃO PAULO | E163: 312,13 | F163: CAIXA REFERENCIAL
A164: 92223 | B164: TUBO DE CONCRETO PARA REDES COLETORAS DE ÁGUAS PLUVIAIS, DIÂMETRO DE 800 MM, JUNTA RÍGIDA, INSTALADO EM LOCAL COM ALTO NÍVEL DE INTERFERÊNCIAS - FORNECIMENTO E ASSENTAMENTO. AF_12/2015 | C164: M | D164: ATRIBUÍDO SÃO PAULO | E164: 376,07 | F164: CAIXA REFERENCIAL
A165: 92224 | B165: TUBO DE CONCRETO PARA REDES COLETORAS DE ÁGUAS PLUVIAIS, DIÂMETRO DE 900 MM, JUNTA RÍGIDA, INSTALADO EM LOCAL COM ALTO NÍVEL DE INTERFERÊNCIAS - FORNECIMENTO E ASSENTAMENTO. AF_12/2015 | C165: M | D165: ATRIBUÍDO SÃO PAULO | E165: 431,38 | F165: CAIXA REFERENCIAL
A166: 92226 | B166: TUBO DE CONCRETO PARA REDES COLETORAS DE ÁGUAS PLUVIAIS, DIÂMETRO DE 1000 MM, JUNTA RÍGIDA, INSTALADO EM LOCAL COM ALTO NÍVEL DE INTERFERÊNCIAS - FORNECIMENTO E ASSENTAMENTO. AF_12/2015 | C166: M | D166: ATRIBUÍDO SÃO PAULO | E166: 452,22 | F166: CAIXA REFERENCIAL
A167: 92808 | B167: ASSENTAMENTO DE TUBO DE CONCRETO PARA REDES COLETORAS DE ÁGUAS PLUVIAIS, DIÂMETRO DE 300 MM, JUNTA RÍGIDA, INSTALADO EM LOCAL COM BAIXO NÍVEL DE INTERFERÊNCIAS (NÃO INCLUI FORNECIMENTO). AF_12/2015 | C167: M | D167: ATRIBUÍDO SÃO PAULO | E167: 29,27 | F167: CAIXA REFERENCIAL
A168: 92809 | B168: ASSENTAMENTO DE TUBO DE CONCRETO PARA REDES COLETORAS DE ÁGUAS PLUVIAIS, DIÂMETRO DE 400 MM, JUNTA RÍGIDA, INSTALADO EM LOCAL COM BAIXO NÍVEL DE INTERFERÊNCIAS (NÃO INCLUI FORNECIMENTO). AF_12/2015 | C168: M | D168: ATRIBUÍDO SÃO PAULO | E168: 37,58 | F168: CAIXA REFERENCIAL
A169: 92810 | B169: ASSENTAMENTO DE TUBO DE CONCRETO PARA REDES COLETORAS DE ÁGUAS PLUVIAIS, DIÂMETRO DE 500 MM, JUNTA RÍGIDA, INSTALADO EM LOCAL COM BAIXO NÍVEL DE INTERFERÊNCIAS (NÃO INCLUI FORNECIMENTO). AF_12/2015 | C169: M | D169: ATRIBUÍDO SÃO PAULO | E169: 45,75 | F169: CAIXA REFERENCIAL
A170: 92811 | B170: ASSENTAMENTO DE TUBO DE CONCRETO PARA REDES COLETORAS DE ÁGUAS PLUVIAIS, DIÂMETRO DE 600 MM, JUNTA RÍGIDA, INSTALADO EM LOCAL COM BAIXO NÍVEL DE INTERFERÊNCIAS (NÃO INCLUI FORNECIMENTO). AF_12/2015 | C170: M | D170: ATRIBUÍDO SÃO PAULO | E170: 54,55 | F170: CAIXA REFERENCIAL
A171: 92812 | B171: ASSENTAMENTO DE TUBO DE CONCRETO PARA REDES COLETORAS DE ÁGUAS PLUVIAIS, DIÂMETRO DE 700 MM, JUNTA RÍGIDA, INSTALADO EM LOCAL COM BAIXO NÍVEL DE INTERFERÊNCIAS (NÃO INCLUI FORNECIMENTO). AF_12/2015 | C171: M | D171: ATRIBUÍDO SÃO PAULO | E171: 63,21 | F171: CAIXA REFERENCIAL
A172: 92813 | B172: ASSENTAMENTO DE TUBO DE CONCRETO PARA REDES COLETORAS DE ÁGUAS PLUVIAIS, DIÂMETRO DE 800 MM, JUNTA RÍGIDA, INSTALADO EM LOCAL COM BAIXO NÍVEL DE INTERFERÊNCIAS (NÃO INCLUI FORNECIMENTO). AF_12/2015 | C172: M | D172: ATRIBUÍDO SÃO PAULO | E172: 73,46 | F172: CAIXA REFERENCIAL
A173: 92814 | B173: ASSENTAMENTO DE TUBO DE CONCRETO PARA REDES COLETORAS DE ÁGUAS PLUVIAIS, DIÂMETRO DE 900 MM, JUNTA RÍGIDA, INSTALADO EM LOCAL COM BAIXO NÍVEL DE INTERFERÊNCIAS (NÃO INCLUI FORNECIMENTO). AF_12/2015 | C173: M | D173: ATRIBUÍDO SÃO PAULO | E173: 84,20 | F173: CAIXA REFERENCIAL
A174: 92815 | B174: ASSENTAMENTO DE TUBO DE CONCRETO PARA REDES COLETORAS DE ÁGUAS PLUVIAIS, DIÂMETRO DE 1000 MM, JUNTA RÍGIDA, INSTALADO EM LOCAL COM BAIXO NÍVEL DE INTERFERÊNCIAS (NÃO INCLUI FORNECIMENTO). AF_12/2015 | C174: M | D174: ATRIBUÍDO SÃO PAULO | E174: 96,67 | F174: CAIXA REFERENCIAL
A175: 92816 | B175: TUBO DE CONCRETO PARA REDES COLETORAS DE ÁGUAS PLUVIAIS, DIÂMETRO DE 1200 MM, JUNTA RÍGIDA, INSTALADO EM LOCAL COM BAIXO NÍVEL DE INTERFERÊNCIAS - FORNECIMENTO E ASSENTAMENTO. AF_12/2015 | C175: M | D175: ATRIBUÍDO SÃO PAULO | E175: 626,72 | F175: CAIXA REFERENCIAL
